Workbook

Sheet Hoja1
A1: MINISTERIO DE SALUD
A2: SERVICIO DE SALUD COQUIMBO
A3: SUBDIRECCIÓN DE GESTIÓN ASISTENCIAL
A4: SUBDEPTO. DE ESTADÍSTICAS Y GESTIÓN DE LA INFORMACIÓN
A9: ESTABLECIMIENTOS | B9: ENERO | C9: FEBRERO | D9: MARZO | E9: 1º TRIMESTRE | F9: ABRIL | G9: MAYO | H9: JUNIO | I9: 2º TRIMESTRE | J9: JULIO | K9: AGOSTO | L9: SEPTIEMBRE | M9: 3º TRIMESTRE | N9: OCTUBRE | O9: NOVIEMBRE | P9: DICIEMBRE | Q9: 4º TRIMESTRE | R9: TOTAL
A10: HOSPITAL LA SERENA | B10: =ene!$K$346 -> 1,540,627,145 | C10: =feb!$K$346 -> 1,344,015,105 | D10: =mar!$K$346 -> 1,538,367,185 | E10: =SUM(B10:D10) -> 4,423,009,435 | F10: =abr!$K$346 -> 1,555,574,835 | G10: =may!$K$346 -> 1,520,709,680 | H10: =jun!$K$346 -> 1,474,110,010 | I10: =SUM(F10:H10) -> 4,550,394,525 | J10: =jul!$K$346 -> 1,452,599,960 | K10: =ago!$K$346 -> 1,655,209,400 | L10: =sep!$K$346 -> 1,312,108,865 | M10: =SUM(J10:L10) -> 4,419,918,225 | N10: =oct!$K$346 -> 1,748,022,475 | O10: =nov!$K$346 -> 1,580,928,985 | P10: =dic!$K$346 -> 1,504,339,875 | Q10: =SUM(N10:P10) -> 4,833,291,335 | R10: =Q10+M10+I10+E10 -> 18,226,613,520
A11: HOSPITAL COQUIMBO | B11: =ene!$Q$346 -> 1,222,308,605 | C11: =feb!$Q$346 -> 1,053,250,175 | D11: =mar!$Q$346 -> 1,234,299,132 | E11: =SUM(B11:D11) -> 3,509,857,912 | F11: =abr!$Q$346 -> 1,229,150,917 | G11: =may!$Q$346 -> 1,304,346,312 | H11: =jun!$Q$346 -> 1,303,720,154 | I11: 3,837,217,383 | J11: =jul!$Q$346 -> 1,262,555,477 | K11: =ago!$Q$346 -> 1,317,961,882 | L11: =sep!$Q$346 -> 1,137,816,216 | M11: =SUM(J11:L11) -> 3,718,333,574 | N11: =oct!$Q$346 -> 1,323,823,183 | O11: =nov!$Q$346 -> 1,221,278,721 | P11: =dic!$Q$346 -> 1,178,742,392 | Q11: =SUM(N11:P11) -> 3,723,844,296 | R11: =Q11+M11+I11+E11 -> 14,789,253,164
A12: HOSPITAL OVALLE | B12: =ene!$W$346 -> 779,891,810 | C12: =feb!$W$346 -> 700,594,450 | D12: =mar!$W$346 -> 784,258,397 | E12: 2,264,744,657 | F12: =abr!$W$346 -> 796,500,622 | G12: =may!$W$346 -> 833,227,641 | H12: =jun!$W$346 -> 797,360,129 | I12: 2,427,088,392 | J12: =jul!$W$346 -> 817,891,829 | K12: =ago!$W$346 -> 882,799,335 | L12: =sep!$W$346 -> 763,083,363 | M12: 2,463,774,527 | N12: =oct!$W$346 -> 887,900,941 | O12: =nov!$W$346 -> 824,289,951 | P12: =dic!$W$346 -> 756,943,182 | Q12: 2,469,134,073 | R12: 9,624,741,648
A13: HOSPITAL ILLAPEL | B13: =ene!$AC$346 -> 142,534,165 | C13: =feb!$AC$346 -> 117,329,855 | D13: =mar!$AC$346 -> 146,540,503 | E13: 406,404,523 | F13: =abr!$AC$346 -> 145,151,300 | G13: =may!$AC$346 -> 157,690,785 | H13: =jun!$AC$346 -> 160,873,823 | I13: 463,715,908 | J13: =jul!$AC$346 -> 152,692,951 | K13: =ago!$AC$346 -> 160,924,345 | L13: =sep!$AC$346 -> 128,098,298 | M13: 441,715,594 | N13: =oct!$AC$346 -> 160,395,660 | O13: =nov!$AC$346 -> 167,433,895 | P13: =dic!$AC$346 -> 151,615,940 | Q13: 479,445,495 | R13: 1,791,281,519
A14: HOSPITAL SALAMANCA | B14: =ene!$AI$346 -> 79,242,160 | C14: =feb!$AI$346 -> 78,530,180 | D14: =mar!$AI$346 -> 92,122,320 | E14: 249,894,660 | F14: =abr!$AI$346 -> 80,700,770 | G14: =may!$AI$346 -> 80,461,815 | H14: =jun!$AI$346 -> 83,104,670 | I14: 244,267,255 | J14: =jul!$AI$346 -> 88,385,820 | K14: =ago!$AI$346 -> 92,177,580 | L14: =sep!$AI$346 -> 68,608,970 | M14: 249,172,370 | N14: =oct!$AI$346 -> 95,544,840 | O14: =nov!$AI$346 -> 93,951,030 | P14: =dic!$AI$346 -> 76,964,640 | Q14: 266,460,510 | R14: 1,009,794,795
A15: HOSPITAL COMBARBALÁ | B15: =ene!$AO$346 -> 35,398,420 | C15: =feb!$AO$346 -> 34,780,870 | D15: =mar!$AO$346 -> 36,610,370 | E15: 106,789,660 | F15: =abr!$AO$346 -> 37,033,320 | G15: =may!$AO$346 -> 39,479,640 | H15: =jun!$AO$346 -> 36,049,170 | I15: 112,562,130 | J15: =jul!$AO$346 -> 44,765,450 | K15: =ago!$AO$346 -> 46,144,030 | L15: =sep!$AO$346 -> 37,540,790 | M15: 128,450,270 | N15: =oct!$AO$346 -> 40,748,220 | O15: =nov!$AO$346 -> 36,315,030 | P15: =dic!$AO$346 -> 36,113,240 | Q15: 113,176,490 | R15: 460,978,550
A16: HOSPITAL ANDACOLLO | B16: =ene!$AU$346 -> 47,008,720 | C16: =feb!$AU$346 -> 46,385,500 | D16: =mar!$AU$346 -> 49,845,950 | E16: 143,240,170 | F16: =abr!$AU$346 -> 46,899,960 | G16: =may!$AU$346 -> 47,400,060 | H16: =jun!$AU$346 -> 43,587,140 | I16: 137,887,160 | J16: =jul!$AU$346 -> 45,371,850 | K16: =ago!$AU$346 -> 53,425,150 | L16: =sep!$AU$346 -> 41,752,180 | M16: 140,549,180 | N16: =oct!$AU$346 -> 52,195,020 | O16: =nov!$AU$346 -> 49,137,920 | P16: =dic!$AU$346 -> 42,687,870 | Q16: 144,020,810 | R16: 565,697,320
A17: HOSPITAL VICUÑA | B17: =ene!$BA$346 -> 78,714,960 | C17: =feb!$BA$346 -> 69,672,440 | D17: =mar!$BA$346 -> 78,622,410 | E17: 227,009,810 | F17: =abr!$BA$346 -> 84,541,010 | G17: =may!$BA$346 -> 71,816,590 | H17: =jun!$BA$346 -> 82,301,560 | I17: 238,659,160 | J17: =jul!$BA$346 -> 80,306,150 | K17: =ago!$BA$346 -> 94,906,790 | L17: =sep!$BA$346 -> 43,643,340 | M17: 218,856,280 | N17: =oct!$BA$346 -> 75,684,900 | O17: =nov!$BA$346 -> 74,399,590 | P17: =dic!$BA$346 -> 74,284,070 | Q17: 224,368,560 | R17: 908,893,810
A18: HOSPITAL LOS VILOS | B18: =ene!$BG$346 -> 76,708,620 | C18: =feb!$BG$346 -> 89,586,200 | D18: =mar!$BG$346 -> 86,302,220 | E18: 252,597,040 | F18: =abr!$BG$346 -> 92,872,600 | G18: =may!$BG$346 -> 71,816,590 | H18: =jun!$BG$346 -> 88,000,840 | I18: 252,690,030 | J18: =jul!$BG$346 -> 104,710,900 | K18: =ago!$BG$346 -> 95,360,730 | L18: =sep!$BG$346 -> 84,838,680 | M18: 284,910,310 | N18: =oct!$BG$346 -> 92,250,530 | O18: =nov!$BG$346 -> 89,861,770 | P18: =dic!$BG$346 -> 79,287,230 | Q18: 261,399,530 | R18: 1,051,596,910
A19: SAMU | B19: =ene!$BM$346 -> 41,301,860 | C19: =feb!$BM$346 -> 39,206,780 | D19: =mar!$BM$346 -> 44,577,360 | E19: 125,086,000 | F19: =abr!$BM$346 -> 45,851,300 | G19: =may!$BM$346 -> 51,304,660 | H19: =jun!$BM$346 -> 42,388,460 | I19: 139,544,420 | J19: =jul!$BM$346 -> 57,938,680 | K19: =ago!$BM$346 -> 57,969,080 | L19: =sep!$BM$346 -> 53,199,740 | M19: 169,107,500 | N19: =oct!$BM$346 -> 48,449,020 | O19: =nov!$BM$346 -> 47,742,140 | P19: =dic!$BM$346 -> 57,072,160 | Q19: 153,263,320 | R19: 587,001,240
A20: CLÍNICA DENTAL MÓVIL | B20: =ene!$BS$346 -> 4,328,980 | C20: =feb!$BS$346 -> 5,030,900 | D20: =mar!$BS$346 -> 3,335,120 | E20: 12,695,000 | F20: =abr!$BS$346 -> 3,095,100 | G20: =may!$BS$346 -> 2,687,780 | H20: =jun!$BS$346 -> 2,161,490 | I20: 7,944,370 | J20: =jul!$BS$346 -> 6,063,190 | K20: =ago!$BS$346 -> 6,117,060 | L20: =sep!$BS$346 -> 3,115,440 | M20: 15,295,690 | N20: =oct!$BS$346 -> 3,684,890 | O20: =nov!$BS$346 -> 2,849,710 | P20: =dic!$BS$346 -> 736,830 | Q20: 7,271,430 | R20: 43,206,490
A21: TOTAL | B21: =SUM(B10:B20) -> 4,048,065,445 | C21: =SUM(C10:C20) -> 3,578,382,455 | D21: =SUM(D10:D20) -> 4,094,880,966 | E21: =SUM(E10:E20) -> 11,721,328,866 | F21: 4,117,371,734 | G21: 4,180,941,553 | H21: 4,113,657,445 | I21: 12,411,970,732 | J21: =SUM(J10:J20) -> 4,113,282,256 | K21: =SUM(K10:K20) -> 4,462,995,382 | L21: 3,673,805,881 | M21: =SUM(M10:M20) -> 12,250,083,519 | N21: 4,528,699,679 | O21: =SUM(O10:O20) -> 4,188,188,741 | P21: =SUM(P10:P20) -> 3,958,787,429 | Q21: =SUM(Q10:Q20) -> 12,675,675,849 | R21: 49,059,058,965

Sheet CONSOLIDADO
A1: SERVICIO DE SALUD / ESTABLECIMIENTO MUNICIPAL | G1: SERVICIO DE SALUD / ESTABLECIMIENTO MUNICIPAL | M1: SERVICIO DE SALUD / ESTABLECIMIENTO MUNICIPAL | S1: SERVICIO DE SALUD / ESTABLECIMIENTO MUNICIPAL | Y1: SERVICIO DE SALUD / ESTABLECIMIENTO MUNICIPAL | AE1: SERVICIO DE SALUD / ESTABLECIMIENTO MUNICIPAL | AK1: SERVICIO DE SALUD / ESTABLECIMIENTO MUNICIPAL | AQ1: SERVICIO DE SALUD / ESTABLECIMIENTO MUNICIPAL | AW1: SERVICIO DE SALUD / ESTABLECIMIENTO MUNICIPAL | BC1: SERVICIO DE SALUD / ESTABLECIMIENTO MUNICIPAL | BI1: SERVICIO DE SALUD / ESTABLECIMIENTO MUNICIPAL | BO1: SERVICIO DE SALUD / ESTABLECIMIENTO MUNICIPAL
A2: =CONCATENATE("COMUNA: ",[2]NOMBRE!B2," - ","( ",[2]NOMBRE!C2,[2]NOMBRE!D2,[2]NOMBRE!E2,[2]NOMBRE!F2,[2]NOMBRE!G2," )") -> COMUNA: - ( ) | G2: =CONCATENATE("COMUNA: ",[2]NOMBRE!H2," - ","( ",[2]NOMBRE!I2,[2]NOMBRE!J2,[2]NOMBRE!K2,[2]NOMBRE!L2,[2]NOMBRE!M2," )") -> COMUNA: - ( Falta Cód. Com. ) | M2: =CONCATENATE("COMUNA: ",[2]NOMBRE!N2," - ","( ",[2]NOMBRE!O2,[2]NOMBRE!P2,[2]NOMBRE!Q2,[2]NOMBRE!R2,[2]NOMBRE!S2," )") -> COMUNA: - ( ) | S2: =CONCATENATE("COMUNA: ",[2]NOMBRE!T2," - ","( ",[2]NOMBRE!U2,[2]NOMBRE!V2,[2]NOMBRE!W2,[2]NOMBRE!X2,[2]NOMBRE!Y2," )") -> COMUNA: - ( ) | Y2: =CONCATENATE("COMUNA: ",[2]NOMBRE!Z2," - ","( ",[2]NOMBRE!AA2,[2]NOMBRE!AB2,[2]NOMBRE!AC2,[2]NOMBRE!AD2,[2]NOMBRE!AE2," )") ->  | AE2: =CONCATENATE("COMUNA: ",[2]NOMBRE!AF2," - ","( ",[2]NOMBRE!AG2,[2]NOMBRE!AH2,[2]NOMBRE!AI2,[2]NOMBRE!AJ2,[2]NOMBRE!AK2," )") ->  | AK2: =CONCATENATE("COMUNA: ",[2]NOMBRE!AL2," - ","( ",[2]NOMBRE!AM2,[2]NOMBRE!AN2,[2]NOMBRE!AO2,[2]NOMBRE!AP2,[2]NOMBRE!AQ2," )") ->  | AQ2: =CONCATENATE("COMUNA: ",[2]NOMBRE!AR2," - ","( ",[2]NOMBRE!AS2,[2]NOMBRE!AT2,[2]NOMBRE!AU2,[2]NOMBRE!AV2,[2]NOMBRE!AW2," )") ->  | AW2: =CONCATENATE("COMUNA: ",[2]NOMBRE!AX2," - ","( ",[2]NOMBRE!AY2,[2]NOMBRE!AZ2,[2]NOMBRE!BA2,[2]NOMBRE!BB2,[2]NOMBRE!BC2," )") ->  | BC2: =CONCATENATE("COMUNA: ",[2]NOMBRE!BD2," - ","( ",[2]NOMBRE!BE2,[2]NOMBRE!BF2,[2]NOMBRE!BG2,[2]NOMBRE!BH2,[2]NOMBRE!BI2," )") ->  | BI2: =CONCATENATE("COMUNA: ",[2]NOMBRE!BJ2," - ","( ",[2]NOMBRE!BK2,[2]NOMBRE!BL2,[2]NOMBRE!BM2,[2]NOMBRE!BN2,[2]NOMBRE!BO2," )") ->  | BO2: =CONCATENATE("COMUNA: ",[2]NOMBRE!BP2," - ","( ",[2]NOMBRE!BQ2,[2]NOMBRE!BR2,[2]NOMBRE!BS2,[2]NOMBRE!BT2,[2]NOMBRE!BU2," )") -> 
A3: =CONCATENATE("ESTABLECIMIENTO/ESTRATEGIA: ",[2]NOMBRE!B3," - ","( ",[2]NOMBRE!C3,[2]NOMBRE!D3,[2]NOMBRE!E3,[2]NOMBRE!F3,[2]NOMBRE!G3,[2]NOMBRE!H3," )") -> ESTABLECIMIENTO/ESTRATEGIA: - ( ) | B3: CONSOLIDADO | G3: =CONCATENATE("ESTABLECIMIENTO/ESTRATEGIA: ",[2]NOMBRE!H3," - ","( ",[2]NOMBRE!I3,[2]NOMBRE!J3,[2]NOMBRE!K3,[2]NOMBRE!L3,[2]NOMBRE!M3,[2]NOMBRE!N3," )") -> ESTABLECIMIENTO/ESTRATEGIA: - ( Falta Cód. Est. ) | H3: HOSPITAL LA SERENA | M3: =CONCATENATE("ESTABLECIMIENTO/ESTRATEGIA: ",[2]NOMBRE!N3," - ","( ",[2]NOMBRE!O3,[2]NOMBRE!P3,[2]NOMBRE!Q3,[2]NOMBRE!R3,[2]NOMBRE!S3,[2]NOMBRE!T3," )") -> ESTABLECIMIENTO/ESTRATEGIA: - ( ) | N3: HOSPITAL COQUIMBO | S3: =CONCATENATE("ESTABLECIMIENTO/ESTRATEGIA: ",[2]NOMBRE!T3," - ","( ",[2]NOMBRE!U3,[2]NOMBRE!V3,[2]NOMBRE!W3,[2]NOMBRE!X3,[2]NOMBRE!Y3,[2]NOMBRE!Z3," )") ->  | T3: HOSPITAL OVALLE | Y3: =CONCATENATE("ESTABLECIMIENTO/ESTRATEGIA: ",[2]NOMBRE!Z3," - ","( ",[2]NOMBRE!AA3,[2]NOMBRE!AB3,[2]NOMBRE!AC3,[2]NOMBRE!AD3,[2]NOMBRE!AE3,[2]NOMBRE!AF3," )") ->  | Z3: HOSPITAL ILLAPEL | AE3: =CONCATENATE("ESTABLECIMIENTO/ESTRATEGIA: ",[2]NOMBRE!AF3," - ","( ",[2]NOMBRE!AG3,[2]NOMBRE!AH3,[2]NOMBRE!AI3,[2]NOMBRE!AJ3,[2]NOMBRE!AK3,[2]NOMBRE!AL3," )") ->  | AF3: HOSPITAL SALAMANCA | AK3: =CONCATENATE("ESTABLECIMIENTO/ESTRATEGIA: ",[2]NOMBRE!AL3," - ","( ",[2]NOMBRE!AM3,[2]NOMBRE!AN3,[2]NOMBRE!AO3,[2]NOMBRE!AP3,[2]NOMBRE!AQ3,[2]NOMBRE!AR3," )") ->  | AL3: HOSPITAL COMBARBALÁ | AQ3: =CONCATENATE("ESTABLECIMIENTO/ESTRATEGIA: ",[2]NOMBRE!AR3," - ","( ",[2]NOMBRE!AS3,[2]NOMBRE!AT3,[2]NOMBRE!AU3,[2]NOMBRE!AV3,[2]NOMBRE!AW3,[2]NOMBRE!AX3," )") ->  | AR3: HOSPITAL ANDACOLLO | AW3: =CONCATENATE("ESTABLECIMIENTO/ESTRATEGIA: ",[2]NOMBRE!AX3," - ","( ",[2]NOMBRE!AY3,[2]NOMBRE!AZ3,[2]NOMBRE!BA3,[2]NOMBRE!BB3,[2]NOMBRE!BC3,[2]NOMBRE!BD3," )") ->  | AX3: HOSPITAL VICUÑA | BC3: =CONCATENATE("ESTABLECIMIENTO/ESTRATEGIA: ",[2]NOMBRE!BD3," - ","( ",[2]NOMBRE!BE3,[2]NOMBRE!BF3,[2]NOMBRE!BG3,[2]NOMBRE!BH3,[2]NOMBRE!BI3,[2]NOMBRE!BJ3," )") ->  | BD3: HOSPITAL LOS VILOS | BI3: =CONCATENATE("ESTABLECIMIENTO/ESTRATEGIA: ",[2]NOMBRE!BJ3," - ","( ",[2]NOMBRE!BK3,[2]NOMBRE!BL3,[2]NOMBRE!BM3,[2]NOMBRE!BN3,[2]NOMBRE!BO3,[2]NOMBRE!BP3," )") ->  | BJ3: DIRECCIÓN / SAMU | BO3: =CONCATENATE("ESTABLECIMIENTO/ESTRATEGIA: ",[2]NOMBRE!BP3," - ","( ",[2]NOMBRE!BQ3,[2]NOMBRE!BR3,[2]NOMBRE!BS3,[2]NOMBRE!BT3,[2]NOMBRE!BU3,[2]NOMBRE!BV3," )") ->  | BP3: CLÍNICA DENTAL MÓVIL
A4: =CONCATENATE("MES: ",[2]NOMBRE!B6," - ","( ",[2]NOMBRE!C6,[2]NOMBRE!D6," )") -> MES: - ( ) | B4: ENERO - DICIEMBRE | G4: =CONCATENATE("MES: ",[2]NOMBRE!H6," - ","( ",[2]NOMBRE!I6,[2]NOMBRE!J6," )") -> MES: - ( Falta Cód. Mes. ) | H4: ENERO - DICIEMBRE | M4: =CONCATENATE("MES: ",[2]NOMBRE!N6," - ","( ",[2]NOMBRE!O6,[2]NOMBRE!P6," )") -> MES: - ( ) | N4: ENERO - DICIEMBRE | S4: =CONCATENATE("MES: ",[2]NOMBRE!T6," - ","( ",[2]NOMBRE!U6,[2]NOMBRE!V6," )") -> MES: - ( ) | T4: ENERO - DICIEMBRE | Y4: =CONCATENATE("MES: ",[2]NOMBRE!Z6," - ","( ",[2]NOMBRE!AA6,[2]NOMBRE!AB6," )") ->  | Z4: ENERO - DICIEMBRE | AE4: =CONCATENATE("MES: ",[2]NOMBRE!AF6," - ","( ",[2]NOMBRE!AG6,[2]NOMBRE!AH6," )") ->  | AF4: ENERO - DICIEMBRE | AK4: =CONCATENATE("MES: ",[2]NOMBRE!AL6," - ","( ",[2]NOMBRE!AM6,[2]NOMBRE!AN6," )") ->  | AL4: ENERO - DICIEMBRE | AQ4: =CONCATENATE("MES: ",[2]NOMBRE!AR6," - ","( ",[2]NOMBRE!AS6,[2]NOMBRE!AT6," )") ->  | AR4: ENERO - DICIEMBRE | AW4: =CONCATENATE("MES: ",[2]NOMBRE!AX6," - ","( ",[2]NOMBRE!AY6,[2]NOMBRE!AZ6," )") ->  | AX4: ENERO - DICIEMBRE | BC4: =CONCATENATE("MES: ",[2]NOMBRE!BD6," - ","( ",[2]NOMBRE!BE6,[2]NOMBRE!BF6," )") ->  | BD4: ENERO - DICIEMBRE | BI4: =CONCATENATE("MES: ",[2]NOMBRE!BJ6," - ","( ",[2]NOMBRE!BK6,[2]NOMBRE!BL6," )") ->  | BJ4: ENERO - DICIEMBRE | BO4: =CONCATENATE("MES: ",[2]NOMBRE!BP6," - ","( ",[2]NOMBRE!BQ6,[2]NOMBRE!BR6," )") ->  | BP4: ENERO - DICIEMBRE
A5: =CONCATENATE("AÑO: ",[2]NOMBRE!B7) -> AÑO: 2018 | G5: =CONCATENATE("AÑO: ",[2]NOMBRE!H7) ->  | M5: =CONCATENATE("AÑO: ",[2]NOMBRE!N7) ->  | S5: =CONCATENATE("AÑO: ",[2]NOMBRE!T7) ->  | Y5: =CONCATENATE("AÑO: ",[2]NOMBRE!Z7) ->  | AE5: =CONCATENATE("AÑO: ",[2]NOMBRE!AF7) -> AÑO: 5 | AK5: =CONCATENATE("AÑO: ",[2]NOMBRE!AL7) ->  | AQ5: =CONCATENATE("AÑO: ",[2]NOMBRE!AR7) ->  | AW5: =CONCATENATE("AÑO: ",[2]NOMBRE!AX7) ->  | BC5: =CONCATENATE("AÑO: ",[2]NOMBRE!BD7) ->  | BI5: =CONCATENATE("AÑO: ",[2]NOMBRE!BJ7) ->  | BO5: =CONCATENATE("AÑO: ",[2]NOMBRE!BP7) -> 
B6: REM-B17. ACTIVIDADES DE APOYO DIAGNOSTICO y TERAPEUTICO | H6: REM-B17. ACTIVIDADES DE APOYO DIAGNOSTICO y TERAPEUTICO | N6: REM-B17. ACTIVIDADES DE APOYO DIAGNOSTICO y TERAPEUTICO | T6: REM-B17. ACTIVIDADES DE APOYO DIAGNOSTICO y TERAPEUTICO | Z6: REM-B17. ACTIVIDADES DE APOYO DIAGNOSTICO y TERAPEUTICO | AF6: REM-B17. ACTIVIDADES DE APOYO DIAGNOSTICO y TERAPEUTICO | AL6: REM-B17. ACTIVIDADES DE APOYO DIAGNOSTICO y TERAPEUTICO | AR6: REM-B17. ACTIVIDADES DE APOYO DIAGNOSTICO y TERAPEUTICO | AX6: REM-B17. ACTIVIDADES DE APOYO DIAGNOSTICO y TERAPEUTICO | BD6: REM-B17. ACTIVIDADES DE APOYO DIAGNOSTICO y TERAPEUTICO | BJ6: REM-B17. ACTIVIDADES DE APOYO DIAGNOSTICO y TERAPEUTICO | BP6: REM-B17. ACTIVIDADES DE APOYO DIAGNOSTICO y TERAPEUTICO
A7: PARTE I | G7: PARTE I | M7: PARTE I | S7: PARTE I | Y7: PARTE I | AE7: PARTE I | AK7: PARTE I | AQ7: PARTE I | AW7: PARTE I | BC7: PARTE I | BI7: PARTE I | BO7: PARTE I
A8: SECCION A: ATENCIONES ABIERTAS | G8: SECCION A: ATENCIONES ABIERTAS | M8: SECCION A: ATENCIONES ABIERTAS | S8: SECCION A: ATENCIONES ABIERTAS | Y8: SECCION A: ATENCIONES ABIERTAS | AE8: SECCION A: ATENCIONES ABIERTAS | AK8: SECCION A: ATENCIONES ABIERTAS | AQ8: SECCION A: ATENCIONES ABIERTAS | AW8: SECCION A: ATENCIONES ABIERTAS | BC8: SECCION A: ATENCIONES ABIERTAS | BI8: SECCION A: ATENCIONES ABIERTAS | BO8: SECCION A: ATENCIONES ABIERTAS
A9: CODIGOS | B9: IDENTIFICACION DE PRESTACIONES | C9: TOTAL PRODUCCIÓN | D9: TOTAL BENEFICIARIOS MAI | E9: PAGO POR PRESTACIONES ($) | G9: CODIGOS | H9: IDENTIFICACION DE PRESTACIONES | I9: TOTAL PRODUCCIÓN | J9: TOTAL BENEFICIARIOS MAI | K9: PAGO POR PRESTACIONES ($) | M9: CODIGOS | N9: IDENTIFICACION DE PRESTACIONES | O9: TOTAL PRODUCCIÓN | P9: TOTAL BENEFICIARIOS MAI | Q9: PAGO POR PRESTACIONES ($) | S9: CODIGOS | T9: IDENTIFICACION DE PRESTACIONES | U9: TOTAL PRODUCCIÓN | V9: TOTAL BENEFICIARIOS MAI | W9: PAGO POR PRESTACIONES ($) | Y9: CODIGOS | Z9: IDENTIFICACION DE PRESTACIONES | AA9: TOTAL PRODUCCIÓN | AB9: TOTAL BENEFICIARIOS MAI | AC9: PAGO POR PRESTACIONES ($) | AE9: CODIGOS | AF9: IDENTIFICACION DE PRESTACIONES | AG9: TOTAL PRODUCCIÓN | AH9: TOTAL BENEFICIARIOS MAI | AI9: PAGO POR PRESTACIONES ($) | AK9: CODIGOS | AL9: IDENTIFICACION DE PRESTACIONES | AM9: TOTAL PRODUCCIÓN | AN9: TOTAL BENEFICIARIOS MAI | AO9: PAGO POR PRESTACIONES ($) | AQ9: CODIGOS | AR9: IDENTIFICACION DE PRESTACIONES | AS9: TOTAL PRODUCCIÓN | AT9: TOTAL BENEFICIARIOS MAI | AU9: PAGO POR PRESTACIONES ($) | AW9: CODIGOS | AX9: IDENTIFICACION DE PRESTACIONES | AY9: TOTAL PRODUCCIÓN | AZ9: TOTAL BENEFICIARIOS MAI | BA9: PAGO POR PRESTACIONES ($) | BC9: CODIGOS | BD9: IDENTIFICACION DE PRESTACIONES | BE9: TOTAL PRODUCCIÓN | BF9: TOTAL BENEFICIARIOS MAI | BG9: PAGO POR PRESTACIONES ($) | BI9: CODIGOS | BJ9: IDENTIFICACION DE PRESTACIONES | BK9: TOTAL PRODUCCIÓN | BL9: TOTAL BENEFICIARIOS MAI | BM9: PAGO POR PRESTACIONES ($) | BO9: CODIGOS | BP9: IDENTIFICACION DE PRESTACIONES | BQ9: TOTAL PRODUCCIÓN | BR9: TOTAL BENEFICIARIOS MAI | BS9: PAGO POR PRESTACIONES ($)
B10: CONSULTAS Y ATENCION MEDICA | C10: =SUM(C11:C23) -> 781306 | D10: =SUM(D11:D23) -> 768299 | E10: =SUM(E11:E23) -> 6426727280 | H10: CONSULTAS Y ATENCION MEDICA | I10: =SUM(I11:I23) -> 198442 | J10: =SUM(J11:J23) -> 196478 | K10: =SUM(K11:K23) -> 1947027570 | N10: CONSULTAS Y ATENCION MEDICA | O10: =SUM(O11:O23) -> 182962 | P10: =SUM(P11:P23) -> 178172 | Q10: =SUM(Q11:Q23) -> 1755554700 | T10: CONSULTAS Y ATENCION MEDICA | U10: =SUM(U11:U23) -> 141519 | V10: =SUM(V11:V23) -> 135711 | W10: =SUM(W11:W23) -> 1345419850 | Z10: CONSULTAS Y ATENCION MEDICA | AA10: =SUM(AA11:AA23) -> 66737 | AB10: =SUM(AB11:AB23) -> 66507 | AC10: =SUM(AC11:AC23) -> 476411950 | AF10: CONSULTAS Y ATENCION MEDICA | AG10: =SUM(AG11:AG23) -> 54189 | AH10: =SUM(AH11:AH23) -> 54189 | AI10: =SUM(AI11:AI23) -> 255230190 | AL10: CONSULTAS Y ATENCION MEDICA | AM10: =SUM(AM11:AM23) -> 20296 | AN10: =SUM(AN11:AN23) -> 20081 | AO10: =SUM(AO11:AO23) -> 94581510 | AR10: CONSULTAS Y ATENCION MEDICA | AS10: =SUM(AS11:AS23) -> 25058 | AT10: =SUM(AT11:AT23) -> 25058 | AU10: =SUM(AU11:AU23) -> 118023180 | AX10: CONSULTAS Y ATENCION MEDICA | AY10: =SUM(AY11:AY23) -> 41539 | AZ10: =SUM(AZ11:AZ23) -> 41539 | BA10: =SUM(BA11:BA23) -> 195648690 | BD10: CONSULTAS Y ATENCION MEDICA | BE10: =SUM(BE11:BE23) -> 50564 | BF10: =SUM(BF11:BF23) -> 50564 | BG10: =SUM(BG11:BG23) -> 238829640 | BJ10: CONSULTAS Y ATENCION MEDICA | BK10: =SUM(BK11:BK23) -> 0 | BL10: =SUM(BL11:BL23) -> 0 | BM10: =SUM(BM11:BM23) -> 0 | BP10: CONSULTAS Y ATENCION MEDICA | BQ10: =SUM(BQ11:BQ23) -> 0 | BR10: =SUM(BR11:BR23) -> 0 | BS10: =SUM(BS11:BS23) -> 0
A11: 0101101 | B11: Consulta o control médico integral en atención primaria | C11: =SUM(I11+O11+U11+AA11+AG11+AM11+AS11+AY11+BE11+BK11+BQ11) -> 193576 | D11: =SUM(J11+P11+V11+AB11+AH11+AN11+AT11+AZ11+BF11+BL11+BR11) -> 193339 | E11: 910626690 | G11: 0101101 | H11: Consulta o control médico integral en atención primaria | I11: ='1trimestre'!I11+'2ºtrimestre'!I11+'3º trimestre'!I11+'4º trimestre'!I11 -> 0 | J11: ='1trimestre'!J11+'2ºtrimestre'!J11+'3º trimestre'!J11+'4º trimestre'!J11 -> 0 | K11: ='1trimestre'!K11+'2ºtrimestre'!K11+'3º trimestre'!K11+'4º trimestre'!K11 -> 0 | M11: 0101101 | N11: Consulta o control médico integral en atención primaria | O11: ='1trimestre'!O11+'2ºtrimestre'!O11+'3º trimestre'!O11+'4º trimestre'!O11 -> 0 | P11: ='1trimestre'!P11+'2ºtrimestre'!P11+'3º trimestre'!P11+'4º trimestre'!P11 -> 0 | Q11: ='1trimestre'!Q11+'2ºtrimestre'!Q11+'3º trimestre'!Q11+'4º trimestre'!Q11 -> 0 | S11: 0101101 | T11: Consulta o control médico integral en atención primaria | U11: ='1trimestre'!U11+'2ºtrimestre'!U11+'3º trimestre'!U11+'4º trimestre'!U11 -> 0 | V11: ='1trimestre'!V11+'2ºtrimestre'!V11+'3º trimestre'!V11+'4º trimestre'!V11 -> 0 | W11: ='1trimestre'!W11+'2ºtrimestre'!W11+'3º trimestre'!W11+'4º trimestre'!W11 -> 0 | Y11: 0101101 | Z11: Consulta o control médico integral en atención primaria | AA11: ='1trimestre'!AA11+'2ºtrimestre'!AA11+'3º trimestre'!AA11+'4º trimestre'!AA11 -> 1990 | AB11: ='1trimestre'!AB11+'2ºtrimestre'!AB11+'3º trimestre'!AB11+'4º trimestre'!AB11 -> 1968 | AC11: ='1trimestre'!AC11+'2ºtrimestre'!AC11+'3º trimestre'!AC11+'4º trimestre'!AC11 -> 9269280 | AE11: 0101101 | AF11: Consulta o control médico integral en atención primaria | AG11: ='1trimestre'!AG11+'2ºtrimestre'!AG11+'3º trimestre'!AG11+'4º trimestre'!AG11 -> 54189 | AH11: ='1trimestre'!AH11+'2ºtrimestre'!AH11+'3º trimestre'!AH11+'4º trimestre'!AH11 -> 54189 | AI11: ='1trimestre'!AI11+'2ºtrimestre'!AI11+'3º trimestre'!AI11+'4º trimestre'!AI11 -> 255230190 | AK11: 0101101 | AL11: Consulta o control médico integral en atención primaria | AM11: ='1trimestre'!AM11+'2ºtrimestre'!AM11+'3º trimestre'!AM11+'4º trimestre'!AM11 -> 20296 | AN11: ='1trimestre'!AN11+'2ºtrimestre'!AN11+'3º trimestre'!AN11+'4º trimestre'!AN11 -> 20081 | AO11: ='1trimestre'!AO11+'2ºtrimestre'!AO11+'3º trimestre'!AO11+'4º trimestre'!AO11 -> 94581510 | AQ11: 0101101 | AR11: Consulta o control médico integral en atención primaria | AS11: ='1trimestre'!AS11+'2ºtrimestre'!AS11+'3º trimestre'!AS11+'4º trimestre'!AS11 -> 25058 | AT11: ='1trimestre'!AT11+'2ºtrimestre'!AT11+'3º trimestre'!AT11+'4º trimestre'!AT11 -> 25058 | AU11: ='1trimestre'!AU11+'2ºtrimestre'!AU11+'3º trimestre'!AU11+'4º trimestre'!AU11 -> 118023180 | AW11: 0101101 | AX11: Consulta o control médico integral en atención primaria | AY11: ='1trimestre'!AY11+'2ºtrimestre'!AY11+'3º trimestre'!AY11+'4º trimestre'!AY11 -> 41539 | AZ11: ='1trimestre'!AZ11+'2ºtrimestre'!AZ11+'3º trimestre'!AZ11+'4º trimestre'!AZ11 -> 41539 | BA11: ='1trimestre'!BA11+'2ºtrimestre'!BA11+'3º trimestre'!BA11+'4º trimestre'!BA11 -> 195648690 | BC11: 0101101 | BD11: Consulta o control médico integral en atención primaria | BE11: ='1trimestre'!BE11+'2ºtrimestre'!BE11+'3º trimestre'!BE11+'4º trimestre'!BE11 -> 50504 | BF11: ='1trimestre'!BF11+'2ºtrimestre'!BF11+'3º trimestre'!BF11+'4º trimestre'!BF11 -> 50504 | BG11: ='1trimestre'!BG11+'2ºtrimestre'!BG11+'3º trimestre'!BG11+'4º trimestre'!BG11 -> 237873840 | BI11: 0101101 | BJ11: Consulta o control médico integral en atención primaria | BK11: ='1trimestre'!BK11+'2ºtrimestre'!BK11+'3º trimestre'!BK11+'4º trimestre'!BK11 -> 0 | BL11: ='1trimestre'!BL11+'2ºtrimestre'!BL11+'3º trimestre'!BL11+'4º trimestre'!BL11 -> 0 | BM11: ='1trimestre'!BM11+'2ºtrimestre'!BM11+'3º trimestre'!BM11+'4º trimestre'!BM11 -> 0 | BO11: 0101101 | BP11: Consulta o control médico integral en atención primaria | BQ11: ='1trimestre'!BQ11+'2ºtrimestre'!BQ11+'3º trimestre'!BQ11+'4º trimestre'!BQ11 -> 0 | BR11: ='1trimestre'!BR11+'2ºtrimestre'!BR11+'3º trimestre'!BR11+'4º trimestre'!BR11 -> 0 | BS11: ='1trimestre'!BS11+'2ºtrimestre'!BS11+'3º trimestre'!BS11+'4º trimestre'!BS11 -> 0
A12: 0101102 | B12: Consulta o control médico integral en especialidades (Hosp. Mediana Complejidad) | C12: =SUM(I12+O12+U12+AA12+AG12+AM12+AS12+AY12+BE12+BK12+BQ12) -> 31289 | D12: =SUM(J12+P12+V12+AB12+AH12+AN12+AT12+AZ12+BF12+BL12+BR12) -> 31198 | E12: =SUM(K12+Q12+W12+AC12+AI12+AO12+AU12+BA12+BG12+BM12+BS12) -> 185004140 | G12: 0101102 | H12: Consulta o control médico integral en especialidades (Hosp. Mediana Complejidad) | I12: ='1trimestre'!I12+'2ºtrimestre'!I12+'3º trimestre'!I12+'4º trimestre'!I12 -> 0 | J12: ='1trimestre'!J12+'2ºtrimestre'!J12+'3º trimestre'!J12+'4º trimestre'!J12 -> 0 | K12: ='1trimestre'!K12+'2ºtrimestre'!K12+'3º trimestre'!K12+'4º trimestre'!K12 -> 0 | M12: 0101102 | N12: Consulta o control médico integral en especialidades (Hosp. Mediana Complejidad) | O12: ='1trimestre'!O12+'2ºtrimestre'!O12+'3º trimestre'!O12+'4º trimestre'!O12 -> 0 | P12: ='1trimestre'!P12+'2ºtrimestre'!P12+'3º trimestre'!P12+'4º trimestre'!P12 -> 0 | Q12: ='1trimestre'!Q12+'2ºtrimestre'!Q12+'3º trimestre'!Q12+'4º trimestre'!Q12 -> 0 | S12: 0101102 | T12: Consulta o control médico integral en especialidades (Hosp. Mediana Complejidad) | U12: ='1trimestre'!U12+'2ºtrimestre'!U12+'3º trimestre'!U12+'4º trimestre'!U12 -> 0 | V12: ='1trimestre'!V12+'2ºtrimestre'!V12+'3º trimestre'!V12+'4º trimestre'!V12 -> 0 | W12: ='1trimestre'!W12+'2ºtrimestre'!W12+'3º trimestre'!W12+'4º trimestre'!W12 -> 0 | Y12: 0101102 | Z12: Consulta o control médico integral en especialidades (Hosp. Mediana Complejidad) | AA12: ='1trimestre'!AA12+'2ºtrimestre'!AA12+'3º trimestre'!AA12+'4º trimestre'!AA12 -> 31289 | AB12: ='1trimestre'!AB12+'2ºtrimestre'!AB12+'3º trimestre'!AB12+'4º trimestre'!AB12 -> 31198 | AC12: ='1trimestre'!AC12+'2ºtrimestre'!AC12+'3º trimestre'!AC12+'4º trimestre'!AC12 -> 185004140 | AE12: 0101102 | AF12: Consulta o control médico integral en especialidades (Hosp. Mediana Complejidad) | AG12: ='1trimestre'!AG12+'2ºtrimestre'!AG12+'3º trimestre'!AG12+'4º trimestre'!AG12 -> 0 | AH12: ='1trimestre'!AH12+'2ºtrimestre'!AH12+'3º trimestre'!AH12+'4º trimestre'!AH12 -> 0 | AI12: ='1trimestre'!AI12+'2ºtrimestre'!AI12+'3º trimestre'!AI12+'4º trimestre'!AI12 -> 0 | AK12: 0101102 | AL12: Consulta o control médico integral en especialidades (Hosp. Mediana Complejidad) | AM12: ='1trimestre'!AM12+'2ºtrimestre'!AM12+'3º trimestre'!AM12+'4º trimestre'!AM12 -> 0 | AN12: ='1trimestre'!AN12+'2ºtrimestre'!AN12+'3º trimestre'!AN12+'4º trimestre'!AN12 -> 0 | AO12: ='1trimestre'!AO12+'2ºtrimestre'!AO12+'3º trimestre'!AO12+'4º trimestre'!AO12 -> 0 | AQ12: 0101102 | AR12: Consulta o control médico integral en especialidades (Hosp. Mediana Complejidad) | AS12: ='1trimestre'!AS12+'2ºtrimestre'!AS12+'3º trimestre'!AS12+'4º trimestre'!AS12 -> 0 | AT12: ='1trimestre'!AT12+'2ºtrimestre'!AT12+'3º trimestre'!AT12+'4º trimestre'!AT12 -> 0 | AU12: ='1trimestre'!AU12+'2ºtrimestre'!AU12+'3º trimestre'!AU12+'4º trimestre'!AU12 -> 0 | AW12: 0101102 | AX12: Consulta o control médico integral en especialidades (Hosp. Mediana Complejidad) | AY12: ='1trimestre'!AY12+'2ºtrimestre'!AY12+'3º trimestre'!AY12+'4º trimestre'!AY12 -> 0 | AZ12: ='1trimestre'!AZ12+'2ºtrimestre'!AZ12+'3º trimestre'!AZ12+'4º trimestre'!AZ12 -> 0 | BA12: ='1trimestre'!BA12+'2ºtrimestre'!BA12+'3º trimestre'!BA12+'4º trimestre'!BA12 -> 0 | BC12: 0101102 | BD12: Consulta o control médico integral en especialidades (Hosp. Mediana Complejidad) | BE12: ='1trimestre'!BE12+'2ºtrimestre'!BE12+'3º trimestre'!BE12+'4º trimestre'!BE12 -> 0 | BF12: ='1trimestre'!BF12+'2ºtrimestre'!BF12+'3º trimestre'!BF12+'4º trimestre'!BF12 -> 0 | BG12: ='1trimestre'!BG12+'2ºtrimestre'!BG12+'3º trimestre'!BG12+'4º trimestre'!BG12 -> 0 | BI12: 0101102 | BJ12: Consulta o control médico integral en especialidades (Hosp. Mediana Complejidad) | BK12: ='1trimestre'!BK12+'2ºtrimestre'!BK12+'3º trimestre'!BK12+'4º trimestre'!BK12 -> 0 | BL12: ='1trimestre'!BL12+'2ºtrimestre'!BL12+'3º trimestre'!BL12+'4º trimestre'!BL12 -> 0 | BM12: ='1trimestre'!BM12+'2ºtrimestre'!BM12+'3º trimestre'!BM12+'4º trimestre'!BM12 -> 0 | BO12: 0101102 | BP12: Consulta o control médico integral en especialidades (Hosp. Mediana Complejidad) | BQ12: ='1trimestre'!BQ12+'2ºtrimestre'!BQ12+'3º trimestre'!BQ12+'4º trimestre'!BQ12 -> 0 | BR12: ='1trimestre'!BR12+'2ºtrimestre'!BR12+'3º trimestre'!BR12+'4º trimestre'!BR12 -> 0 | BS12: ='1trimestre'!BS12+'2ºtrimestre'!BS12+'3º trimestre'!BS12+'4º trimestre'!BS12 -> 0
A13: 0101103 | B13: Consulta médica integral en servicio de urgencia (Hosp. Alta Complejidad) | C13: 187722 | D13: 181391 | E13: 2305479610 | G13: 0101103 | H13: Consulta médica integral en servicio de urgencia (Hosp. Alta Complejidad) | I13: ='1trimestre'!I13+'2ºtrimestre'!I13+'3º trimestre'!I13+'4º trimestre'!I13 -> 59081 | J13: ='1trimestre'!J13+'2ºtrimestre'!J13+'3º trimestre'!J13+'4º trimestre'!J13 -> 58720 | K13: ='1trimestre'!K13+'2ºtrimestre'!K13+'3º trimestre'!K13+'4º trimestre'!K13 -> 746331200 | M13: 0101103 | N13: Consulta médica integral en servicio de urgencia (Hosp. Alta Complejidad) | O13: ='1trimestre'!O13+'2ºtrimestre'!O13+'3º trimestre'!O13+'4º trimestre'!O13 -> 71672 | P13: ='1trimestre'!P13+'2ºtrimestre'!P13+'3º trimestre'!P13+'4º trimestre'!P13 -> 68915 | Q13: ='1trimestre'!Q13+'2ºtrimestre'!Q13+'3º trimestre'!Q13+'4º trimestre'!Q13 -> 875909650 | S13: 0101103 | T13: Consulta médica integral en servicio de urgencia (Hosp. Alta Complejidad) | U13: ='1trimestre'!U13+'2ºtrimestre'!U13+'3º trimestre'!U13+'4º trimestre'!U13 -> 56969 | V13: ='1trimestre'!V13+'2ºtrimestre'!V13+'3º trimestre'!V13+'4º trimestre'!V13 -> 53756 | W13: ='1trimestre'!W13+'2ºtrimestre'!W13+'3º trimestre'!W13+'4º trimestre'!W13 -> 683238760 | Y13: 0101103 | Z13: Consulta médica integral en servicio de urgencia (Hosp. Alta Complejidad) | AA13: ='1trimestre'!AA13+'2ºtrimestre'!AA13+'3º trimestre'!AA13+'4º trimestre'!AA13 -> 0 | AB13: ='1trimestre'!AB13+'2ºtrimestre'!AB13+'3º trimestre'!AB13+'4º trimestre'!AB13 -> 0 | AC13: ='1trimestre'!AC13+'2ºtrimestre'!AC13+'3º trimestre'!AC13+'4º trimestre'!AC13 -> 0 | AE13: 0101103 | AF13: Consulta médica integral en servicio de urgencia (Hosp. Alta Complejidad) | AG13: ='1trimestre'!AG13+'2ºtrimestre'!AG13+'3º trimestre'!AG13+'4º trimestre'!AG13 -> 0 | AH13: ='1trimestre'!AH13+'2ºtrimestre'!AH13+'3º trimestre'!AH13+'4º trimestre'!AH13 -> 0 | AI13: ='1trimestre'!AI13+'2ºtrimestre'!AI13+'3º trimestre'!AI13+'4º trimestre'!AI13 -> 0 | AK13: 0101103 | AL13: Consulta médica integral en servicio de urgencia (Hosp. Alta Complejidad) | AM13: ='1trimestre'!AM13+'2ºtrimestre'!AM13+'3º trimestre'!AM13+'4º trimestre'!AM13 -> 0 | AN13: ='1trimestre'!AN13+'2ºtrimestre'!AN13+'3º trimestre'!AN13+'4º trimestre'!AN13 -> 0 | AO13: ='1trimestre'!AO13+'2ºtrimestre'!AO13+'3º trimestre'!AO13+'4º trimestre'!AO13 -> 0 | AQ13: 0101103 | AR13: Consulta médica integral en servicio de urgencia (Hosp. Alta Complejidad) | AS13: ='1trimestre'!AS13+'2ºtrimestre'!AS13+'3º trimestre'!AS13+'4º trimestre'!AS13 -> 0 | AT13: ='1trimestre'!AT13+'2ºtrimestre'!AT13+'3º trimestre'!AT13+'4º trimestre'!AT13 -> 0 | AU13: ='1trimestre'!AU13+'2ºtrimestre'!AU13+'3º trimestre'!AU13+'4º trimestre'!AU13 -> 0 | AW13: 0101103 | AX13: Consulta médica integral en servicio de urgencia (Hosp. Alta Complejidad) | AY13: ='1trimestre'!AY13+'2ºtrimestre'!AY13+'3º trimestre'!AY13+'4º trimestre'!AY13 -> 0 | AZ13: ='1trimestre'!AZ13+'2ºtrimestre'!AZ13+'3º trimestre'!AZ13+'4º trimestre'!AZ13 -> 0 | BA13: ='1trimestre'!BA13+'2ºtrimestre'!BA13+'3º trimestre'!BA13+'4º trimestre'!BA13 -> 0 | BC13: 0101103 | BD13: Consulta médica integral en servicio de urgencia (Hosp. Alta Complejidad) | BE13: ='1trimestre'!BE13+'2ºtrimestre'!BE13+'3º trimestre'!BE13+'4º trimestre'!BE13 -> 0 | BF13: ='1trimestre'!BF13+'2ºtrimestre'!BF13+'3º trimestre'!BF13+'4º trimestre'!BF13 -> 0 | BG13: ='1trimestre'!BG13+'2ºtrimestre'!BG13+'3º trimestre'!BG13+'4º trimestre'!BG13 -> 0 | BI13: 0101103 | BJ13: Consulta médica integral en servicio de urgencia (Hosp. Alta Complejidad) | BK13: ='1trimestre'!BK13+'2ºtrimestre'!BK13+'3º trimestre'!BK13+'4º trimestre'!BK13 -> 0 | BL13: ='1trimestre'!BL13+'2ºtrimestre'!BL13+'3º trimestre'!BL13+'4º trimestre'!BL13 -> 0 | BM13: ='1trimestre'!BM13+'2ºtrimestre'!BM13+'3º trimestre'!BM13+'4º trimestre'!BM13 -> 0 | BO13: 0101103 | BP13: Consulta médica integral en servicio de urgencia (Hosp. Alta Complejidad) | BQ13: ='1trimestre'!BQ13+'2ºtrimestre'!BQ13+'3º trimestre'!BQ13+'4º trimestre'!BQ13 -> 0 | BR13: ='1trimestre'!BR13+'2ºtrimestre'!BR13+'3º trimestre'!BR13+'4º trimestre'!BR13 -> 0 | BS13: ='1trimestre'!BS13+'2ºtrimestre'!BS13+'3º trimestre'!BS13+'4º trimestre'!BS13 -> 0
A14: 0101104 | B14: Consulta médica integral en C.R.S. | C14: 0 | D14: 0 | E14: 0 | G14: 0101104 | H14: Consulta médica integral en C.R.S. | I14: ='1trimestre'!I14+'2ºtrimestre'!I14+'3º trimestre'!I14+'4º trimestre'!I14 -> 0 | J14: ='1trimestre'!J14+'2ºtrimestre'!J14+'3º trimestre'!J14+'4º trimestre'!J14 -> 0 | K14: ='1trimestre'!K14+'2ºtrimestre'!K14+'3º trimestre'!K14+'4º trimestre'!K14 -> 0 | M14: 0101104 | N14: Consulta médica integral en C.R.S. | O14: ='1trimestre'!O14+'2ºtrimestre'!O14+'3º trimestre'!O14+'4º trimestre'!O14 -> 0 | P14: ='1trimestre'!P14+'2ºtrimestre'!P14+'3º trimestre'!P14+'4º trimestre'!P14 -> 0 | Q14: ='1trimestre'!Q14+'2ºtrimestre'!Q14+'3º trimestre'!Q14+'4º trimestre'!Q14 -> 0 | S14: 0101104 | T14: Consulta médica integral en C.R.S. | U14: ='1trimestre'!U14+'2ºtrimestre'!U14+'3º trimestre'!U14+'4º trimestre'!U14 -> 0 | V14: ='1trimestre'!V14+'2ºtrimestre'!V14+'3º trimestre'!V14+'4º trimestre'!V14 -> 0 | W14: ='1trimestre'!W14+'2ºtrimestre'!W14+'3º trimestre'!W14+'4º trimestre'!W14 -> 0 | Y14: 0101104 | Z14: Consulta médica integral en C.R.S. | AA14: ='1trimestre'!AA14+'2ºtrimestre'!AA14+'3º trimestre'!AA14+'4º trimestre'!AA14 -> 0 | AB14: ='1trimestre'!AB14+'2ºtrimestre'!AB14+'3º trimestre'!AB14+'4º trimestre'!AB14 -> 0 | AC14: ='1trimestre'!AC14+'2ºtrimestre'!AC14+'3º trimestre'!AC14+'4º trimestre'!AC14 -> 0 | AE14: 0101104 | AF14: Consulta médica integral en C.R.S. | AG14: ='1trimestre'!AG14+'2ºtrimestre'!AG14+'3º trimestre'!AG14+'4º trimestre'!AG14 -> 0 | AH14: ='1trimestre'!AH14+'2ºtrimestre'!AH14+'3º trimestre'!AH14+'4º trimestre'!AH14 -> 0 | AI14: ='1trimestre'!AI14+'2ºtrimestre'!AI14+'3º trimestre'!AI14+'4º trimestre'!AI14 -> 0 | AK14: 0101104 | AL14: Consulta médica integral en C.R.S. | AM14: ='1trimestre'!AM14+'2ºtrimestre'!AM14+'3º trimestre'!AM14+'4º trimestre'!AM14 -> 0 | AN14: ='1trimestre'!AN14+'2ºtrimestre'!AN14+'3º trimestre'!AN14+'4º trimestre'!AN14 -> 0 | AO14: ='1trimestre'!AO14+'2ºtrimestre'!AO14+'3º trimestre'!AO14+'4º trimestre'!AO14 -> 0 | AQ14: 0101104 | AR14: Consulta médica integral en C.R.S. | AS14: ='1trimestre'!AS14+'2ºtrimestre'!AS14+'3º trimestre'!AS14+'4º trimestre'!AS14 -> 0 | AT14: ='1trimestre'!AT14+'2ºtrimestre'!AT14+'3º trimestre'!AT14+'4º trimestre'!AT14 -> 0 | AU14: ='1trimestre'!AU14+'2ºtrimestre'!AU14+'3º trimestre'!AU14+'4º trimestre'!AU14 -> 0 | AW14: 0101104 | AX14: Consulta médica integral en C.R.S. | AY14: ='1trimestre'!AY14+'2ºtrimestre'!AY14+'3º trimestre'!AY14+'4º trimestre'!AY14 -> 0 | AZ14: ='1trimestre'!AZ14+'2ºtrimestre'!AZ14+'3º trimestre'!AZ14+'4º trimestre'!AZ14 -> 0 | BA14: ='1trimestre'!BA14+'2ºtrimestre'!BA14+'3º trimestre'!BA14+'4º trimestre'!BA14 -> 0 | BC14: 0101104 | BD14: Consulta médica integral en C.R.S. | BE14: ='1trimestre'!BE14+'2ºtrimestre'!BE14+'3º trimestre'!BE14+'4º trimestre'!BE14 -> 0 | BF14: ='1trimestre'!BF14+'2ºtrimestre'!BF14+'3º trimestre'!BF14+'4º trimestre'!BF14 -> 0 | BG14: ='1trimestre'!BG14+'2ºtrimestre'!BG14+'3º trimestre'!BG14+'4º trimestre'!BG14 -> 0 | BI14: 0101104 | BJ14: Consulta médica integral en C.R.S. | BK14: ='1trimestre'!BK14+'2ºtrimestre'!BK14+'3º trimestre'!BK14+'4º trimestre'!BK14 -> 0 | BL14: ='1trimestre'!BL14+'2ºtrimestre'!BL14+'3º trimestre'!BL14+'4º trimestre'!BL14 -> 0 | BM14: ='1trimestre'!BM14+'2ºtrimestre'!BM14+'3º trimestre'!BM14+'4º trimestre'!BM14 -> 0 | BO14: 0101104 | BP14: Consulta médica integral en C.R.S. | BQ14: ='1trimestre'!BQ14+'2ºtrimestre'!BQ14+'3º trimestre'!BQ14+'4º trimestre'!BQ14 -> 0 | BR14: ='1trimestre'!BR14+'2ºtrimestre'!BR14+'3º trimestre'!BR14+'4º trimestre'!BR14 -> 0 | BS14: ='1trimestre'!BS14+'2ºtrimestre'!BS14+'3º trimestre'!BS14+'4º trimestre'!BS14 -> 0
A15: 0101105 | B15: Consulta médica integral en servicio de urgencia (Hosp. Mediana Complejidad) | C15: 32878 | D15: 32761 | E15: 272899130 | G15: 0101105 | H15: Consulta médica integral en servicio de urgencia (Hosp. Mediana Complejidad) | I15: ='1trimestre'!I15+'2ºtrimestre'!I15+'3º trimestre'!I15+'4º trimestre'!I15 -> 0 | J15: ='1trimestre'!J15+'2ºtrimestre'!J15+'3º trimestre'!J15+'4º trimestre'!J15 -> 0 | K15: ='1trimestre'!K15+'2ºtrimestre'!K15+'3º trimestre'!K15+'4º trimestre'!K15 -> 0 | M15: 0101105 | N15: Consulta médica integral en servicio de urgencia (Hosp. Mediana Complejidad) | O15: ='1trimestre'!O15+'2ºtrimestre'!O15+'3º trimestre'!O15+'4º trimestre'!O15 -> 0 | P15: ='1trimestre'!P15+'2ºtrimestre'!P15+'3º trimestre'!P15+'4º trimestre'!P15 -> 0 | Q15: ='1trimestre'!Q15+'2ºtrimestre'!Q15+'3º trimestre'!Q15+'4º trimestre'!Q15 -> 0 | S15: 0101105 | T15: Consulta médica integral en servicio de urgencia (Hosp. Mediana Complejidad) | U15: ='1trimestre'!U15+'2ºtrimestre'!U15+'3º trimestre'!U15+'4º trimestre'!U15 -> 0 | V15: ='1trimestre'!V15+'2ºtrimestre'!V15+'3º trimestre'!V15+'4º trimestre'!V15 -> 0 | W15: ='1trimestre'!W15+'2ºtrimestre'!W15+'3º trimestre'!W15+'4º trimestre'!W15 -> 0 | Y15: 0101105 | Z15: Consulta médica integral en servicio de urgencia (Hosp. Mediana Complejidad) | AA15: ='1trimestre'!AA15+'2ºtrimestre'!AA15+'3º trimestre'!AA15+'4º trimestre'!AA15 -> 32878 | AB15: ='1trimestre'!AB15+'2ºtrimestre'!AB15+'3º trimestre'!AB15+'4º trimestre'!AB15 -> 32761 | AC15: ='1trimestre'!AC15+'2ºtrimestre'!AC15+'3º trimestre'!AC15+'4º trimestre'!AC15 -> 272899130 | AE15: 0101105 | AF15: Consulta médica integral en servicio de urgencia (Hosp. Mediana Complejidad) | AG15: ='1trimestre'!AG15+'2ºtrimestre'!AG15+'3º trimestre'!AG15+'4º trimestre'!AG15 -> 0 | AH15: ='1trimestre'!AH15+'2ºtrimestre'!AH15+'3º trimestre'!AH15+'4º trimestre'!AH15 -> 0 | AI15: ='1trimestre'!AI15+'2ºtrimestre'!AI15+'3º trimestre'!AI15+'4º trimestre'!AI15 -> 0 | AK15: 0101105 | AL15: Consulta médica integral en servicio de urgencia (Hosp. Mediana Complejidad) | AM15: ='1trimestre'!AM15+'2ºtrimestre'!AM15+'3º trimestre'!AM15+'4º trimestre'!AM15 -> 0 | AN15: ='1trimestre'!AN15+'2ºtrimestre'!AN15+'3º trimestre'!AN15+'4º trimestre'!AN15 -> 0 | AO15: ='1trimestre'!AO15+'2ºtrimestre'!AO15+'3º trimestre'!AO15+'4º trimestre'!AO15 -> 0 | AQ15: 0101105 | AR15: Consulta médica integral en servicio de urgencia (Hosp. Mediana Complejidad) | AS15: ='1trimestre'!AS15+'2ºtrimestre'!AS15+'3º trimestre'!AS15+'4º trimestre'!AS15 -> 0 | AT15: ='1trimestre'!AT15+'2ºtrimestre'!AT15+'3º trimestre'!AT15+'4º trimestre'!AT15 -> 0 | AU15: ='1trimestre'!AU15+'2ºtrimestre'!AU15+'3º trimestre'!AU15+'4º trimestre'!AU15 -> 0 | AW15: 0101105 | AX15: Consulta médica integral en servicio de urgencia (Hosp. Mediana Complejidad) | AY15: ='1trimestre'!AY15+'2ºtrimestre'!AY15+'3º trimestre'!AY15+'4º trimestre'!AY15 -> 0 | AZ15: ='1trimestre'!AZ15+'2ºtrimestre'!AZ15+'3º trimestre'!AZ15+'4º trimestre'!AZ15 -> 0 | BA15: ='1trimestre'!BA15+'2ºtrimestre'!BA15+'3º trimestre'!BA15+'4º trimestre'!BA15 -> 0 | BC15: 0101105 | BD15: Consulta médica integral en servicio de urgencia (Hosp. Mediana Complejidad) | BE15: ='1trimestre'!BE15+'2ºtrimestre'!BE15+'3º trimestre'!BE15+'4º trimestre'!BE15 -> 0 | BF15: ='1trimestre'!BF15+'2ºtrimestre'!BF15+'3º trimestre'!BF15+'4º trimestre'!BF15 -> 0 | BG15: ='1trimestre'!BG15+'2ºtrimestre'!BG15+'3º trimestre'!BG15+'4º trimestre'!BG15 -> 0 | BI15: 0101105 | BJ15: Consulta médica integral en servicio de urgencia (Hosp. Mediana Complejidad) | BK15: ='1trimestre'!BK15+'2ºtrimestre'!BK15+'3º trimestre'!BK15+'4º trimestre'!BK15 -> 0 | BL15: ='1trimestre'!BL15+'2ºtrimestre'!BL15+'3º trimestre'!BL15+'4º trimestre'!BL15 -> 0 | BM15: ='1trimestre'!BM15+'2ºtrimestre'!BM15+'3º trimestre'!BM15+'4º trimestre'!BM15 -> 0 | BO15: 0101105 | BP15: Consulta médica integral en servicio de urgencia (Hosp. Mediana Complejidad) | BQ15: ='1trimestre'!BQ15+'2ºtrimestre'!BQ15+'3º trimestre'!BQ15+'4º trimestre'!BQ15 -> 0 | BR15: ='1trimestre'!BR15+'2ºtrimestre'!BR15+'3º trimestre'!BR15+'4º trimestre'!BR15 -> 0 | BS15: ='1trimestre'!BS15+'2ºtrimestre'!BS15+'3º trimestre'!BS15+'4º trimestre'!BS15 -> 0
A16: 0101106 | B16: Asistencia de cardiólogo a cirugías no cardíacas | C16: 0 | D16: 0 | E16: 0 | G16: 0101106 | H16: Asistencia de cardiólogo a cirugías no cardíacas | I16: ='1trimestre'!I16+'2ºtrimestre'!I16+'3º trimestre'!I16+'4º trimestre'!I16 -> 0 | J16: ='1trimestre'!J16+'2ºtrimestre'!J16+'3º trimestre'!J16+'4º trimestre'!J16 -> 0 | K16: ='1trimestre'!K16+'2ºtrimestre'!K16+'3º trimestre'!K16+'4º trimestre'!K16 -> 0 | M16: 0101106 | N16: Asistencia de cardiólogo a cirugías no cardíacas | O16: ='1trimestre'!O16+'2ºtrimestre'!O16+'3º trimestre'!O16+'4º trimestre'!O16 -> 0 | P16: ='1trimestre'!P16+'2ºtrimestre'!P16+'3º trimestre'!P16+'4º trimestre'!P16 -> 0 | Q16: ='1trimestre'!Q16+'2ºtrimestre'!Q16+'3º trimestre'!Q16+'4º trimestre'!Q16 -> 0 | S16: 0101106 | T16: Asistencia de cardiólogo a cirugías no cardíacas | U16: ='1trimestre'!U16+'2ºtrimestre'!U16+'3º trimestre'!U16+'4º trimestre'!U16 -> 0 | V16: ='1trimestre'!V16+'2ºtrimestre'!V16+'3º trimestre'!V16+'4º trimestre'!V16 -> 0 | W16: ='1trimestre'!W16+'2ºtrimestre'!W16+'3º trimestre'!W16+'4º trimestre'!W16 -> 0 | Y16: 0101106 | Z16: Asistencia de cardiólogo a cirugías no cardíacas | AA16: ='1trimestre'!AA16+'2ºtrimestre'!AA16+'3º trimestre'!AA16+'4º trimestre'!AA16 -> 0 | AB16: ='1trimestre'!AB16+'2ºtrimestre'!AB16+'3º trimestre'!AB16+'4º trimestre'!AB16 -> 0 | AC16: ='1trimestre'!AC16+'2ºtrimestre'!AC16+'3º trimestre'!AC16+'4º trimestre'!AC16 -> 0 | AE16: 0101106 | AF16: Asistencia de cardiólogo a cirugías no cardíacas | AG16: ='1trimestre'!AG16+'2ºtrimestre'!AG16+'3º trimestre'!AG16+'4º trimestre'!AG16 -> 0 | AH16: ='1trimestre'!AH16+'2ºtrimestre'!AH16+'3º trimestre'!AH16+'4º trimestre'!AH16 -> 0 | AI16: ='1trimestre'!AI16+'2ºtrimestre'!AI16+'3º trimestre'!AI16+'4º trimestre'!AI16 -> 0 | AK16: 0101106 | AL16: Asistencia de cardiólogo a cirugías no cardíacas | AM16: ='1trimestre'!AM16+'2ºtrimestre'!AM16+'3º trimestre'!AM16+'4º trimestre'!AM16 -> 0 | AN16: ='1trimestre'!AN16+'2ºtrimestre'!AN16+'3º trimestre'!AN16+'4º trimestre'!AN16 -> 0 | AO16: ='1trimestre'!AO16+'2ºtrimestre'!AO16+'3º trimestre'!AO16+'4º trimestre'!AO16 -> 0 | AQ16: 0101106 | AR16: Asistencia de cardiólogo a cirugías no cardíacas | AS16: ='1trimestre'!AS16+'2ºtrimestre'!AS16+'3º trimestre'!AS16+'4º trimestre'!AS16 -> 0 | AT16: ='1trimestre'!AT16+'2ºtrimestre'!AT16+'3º trimestre'!AT16+'4º trimestre'!AT16 -> 0 | AU16: ='1trimestre'!AU16+'2ºtrimestre'!AU16+'3º trimestre'!AU16+'4º trimestre'!AU16 -> 0 | AW16: 0101106 | AX16: Asistencia de cardiólogo a cirugías no cardíacas | AY16: ='1trimestre'!AY16+'2ºtrimestre'!AY16+'3º trimestre'!AY16+'4º trimestre'!AY16 -> 0 | AZ16: ='1trimestre'!AZ16+'2ºtrimestre'!AZ16+'3º trimestre'!AZ16+'4º trimestre'!AZ16 -> 0 | BA16: ='1trimestre'!BA16+'2ºtrimestre'!BA16+'3º trimestre'!BA16+'4º trimestre'!BA16 -> 0 | BC16: 0101106 | BD16: Asistencia de cardiólogo a cirugías no cardíacas | BE16: ='1trimestre'!BE16+'2ºtrimestre'!BE16+'3º trimestre'!BE16+'4º trimestre'!BE16 -> 0 | BF16: ='1trimestre'!BF16+'2ºtrimestre'!BF16+'3º trimestre'!BF16+'4º trimestre'!BF16 -> 0 | BG16: ='1trimestre'!BG16+'2ºtrimestre'!BG16+'3º trimestre'!BG16+'4º trimestre'!BG16 -> 0 | BI16: 0101106 | BJ16: Asistencia de cardiólogo a cirugías no cardíacas | BK16: ='1trimestre'!BK16+'2ºtrimestre'!BK16+'3º trimestre'!BK16+'4º trimestre'!BK16 -> 0 | BL16: ='1trimestre'!BL16+'2ºtrimestre'!BL16+'3º trimestre'!BL16+'4º trimestre'!BL16 -> 0 | BM16: ='1trimestre'!BM16+'2ºtrimestre'!BM16+'3º trimestre'!BM16+'4º trimestre'!BM16 -> 0 | BO16: 0101106 | BP16: Asistencia de cardiólogo a cirugías no cardíacas | BQ16: ='1trimestre'!BQ16+'2ºtrimestre'!BQ16+'3º trimestre'!BQ16+'4º trimestre'!BQ16 -> 0 | BR16: ='1trimestre'!BR16+'2ºtrimestre'!BR16+'3º trimestre'!BR16+'4º trimestre'!BR16 -> 0 | BS16: ='1trimestre'!BS16+'2ºtrimestre'!BS16+'3º trimestre'!BS16+'4º trimestre'!BS16 -> 0
A17: 0101107 | B17: Atención médica del recién nacido | C17: 11056 | D17: 6655 | E17: 106014150 | G17: 0101107 | H17: Atención médica del recién nacido | I17: ='1trimestre'!I17+'2ºtrimestre'!I17+'3º trimestre'!I17+'4º trimestre'!I17 -> 2812 | J17: ='1trimestre'!J17+'2ºtrimestre'!J17+'3º trimestre'!J17+'4º trimestre'!J17 -> 2812 | K17: ='1trimestre'!K17+'2ºtrimestre'!K17+'3º trimestre'!K17+'4º trimestre'!K17 -> 44795160 | M17: 0101107 | N17: Atención médica del recién nacido | O17: ='1trimestre'!O17+'2ºtrimestre'!O17+'3º trimestre'!O17+'4º trimestre'!O17 -> 4216 | P17: ='1trimestre'!P17+'2ºtrimestre'!P17+'3º trimestre'!P17+'4º trimestre'!P17 -> 2183 | Q17: ='1trimestre'!Q17+'2ºtrimestre'!Q17+'3º trimestre'!Q17+'4º trimestre'!Q17 -> 34775190 | S17: 0101107 | T17: Atención médica del recién nacido | U17: ='1trimestre'!U17+'2ºtrimestre'!U17+'3º trimestre'!U17+'4º trimestre'!U17 -> 3388 | V17: ='1trimestre'!V17+'2ºtrimestre'!V17+'3º trimestre'!V17+'4º trimestre'!V17 -> 1020 | W17: ='1trimestre'!W17+'2ºtrimestre'!W17+'3º trimestre'!W17+'4º trimestre'!W17 -> 16248600 | Y17: 0101107 | Z17: Atención médica del recién nacido | AA17: ='1trimestre'!AA17+'2ºtrimestre'!AA17+'3º trimestre'!AA17+'4º trimestre'!AA17 -> 580 | AB17: ='1trimestre'!AB17+'2ºtrimestre'!AB17+'3º trimestre'!AB17+'4º trimestre'!AB17 -> 580 | AC17: ='1trimestre'!AC17+'2ºtrimestre'!AC17+'3º trimestre'!AC17+'4º trimestre'!AC17 -> 9239400 | AE17: 0101107 | AF17: Atención médica del recién nacido | AG17: ='1trimestre'!AG17+'2ºtrimestre'!AG17+'3º trimestre'!AG17+'4º trimestre'!AG17 -> 0 | AH17: ='1trimestre'!AH17+'2ºtrimestre'!AH17+'3º trimestre'!AH17+'4º trimestre'!AH17 -> 0 | AI17: ='1trimestre'!AI17+'2ºtrimestre'!AI17+'3º trimestre'!AI17+'4º trimestre'!AI17 -> 0 | AK17: 0101107 | AL17: Atención médica del recién nacido | AM17: ='1trimestre'!AM17+'2ºtrimestre'!AM17+'3º trimestre'!AM17+'4º trimestre'!AM17 -> 0 | AN17: ='1trimestre'!AN17+'2ºtrimestre'!AN17+'3º trimestre'!AN17+'4º trimestre'!AN17 -> 0 | AO17: ='1trimestre'!AO17+'2ºtrimestre'!AO17+'3º trimestre'!AO17+'4º trimestre'!AO17 -> 0 | AQ17: 0101107 | AR17: Atención médica del recién nacido | AS17: ='1trimestre'!AS17+'2ºtrimestre'!AS17+'3º trimestre'!AS17+'4º trimestre'!AS17 -> 0 | AT17: ='1trimestre'!AT17+'2ºtrimestre'!AT17+'3º trimestre'!AT17+'4º trimestre'!AT17 -> 0 | AU17: ='1trimestre'!AU17+'2ºtrimestre'!AU17+'3º trimestre'!AU17+'4º trimestre'!AU17 -> 0 | AW17: 0101107 | AX17: Atención médica del recién nacido | AY17: ='1trimestre'!AY17+'2ºtrimestre'!AY17+'3º trimestre'!AY17+'4º trimestre'!AY17 -> 0 | AZ17: ='1trimestre'!AZ17+'2ºtrimestre'!AZ17+'3º trimestre'!AZ17+'4º trimestre'!AZ17 -> 0 | BA17: ='1trimestre'!BA17+'2ºtrimestre'!BA17+'3º trimestre'!BA17+'4º trimestre'!BA17 -> 0 | BC17: 0101107 | BD17: Atención médica del recién nacido | BE17: ='1trimestre'!BE17+'2ºtrimestre'!BE17+'3º trimestre'!BE17+'4º trimestre'!BE17 -> 60 | BF17: ='1trimestre'!BF17+'2ºtrimestre'!BF17+'3º trimestre'!BF17+'4º trimestre'!BF17 -> 60 | BG17: ='1trimestre'!BG17+'2ºtrimestre'!BG17+'3º trimestre'!BG17+'4º trimestre'!BG17 -> 955800 | BI17: 0101107 | BJ17: Atención médica del recién nacido | BK17: ='1trimestre'!BK17+'2ºtrimestre'!BK17+'3º trimestre'!BK17+'4º trimestre'!BK17 -> 0 | BL17: ='1trimestre'!BL17+'2ºtrimestre'!BL17+'3º trimestre'!BL17+'4º trimestre'!BL17 -> 0 | BM17: ='1trimestre'!BM17+'2ºtrimestre'!BM17+'3º trimestre'!BM17+'4º trimestre'!BM17 -> 0 | BO17: 0101107 | BP17: Atención médica del recién nacido | BQ17: ='1trimestre'!BQ17+'2ºtrimestre'!BQ17+'3º trimestre'!BQ17+'4º trimestre'!BQ17 -> 0 | BR17: ='1trimestre'!BR17+'2ºtrimestre'!BR17+'3º trimestre'!BR17+'4º trimestre'!BR17 -> 0 | BS17: ='1trimestre'!BS17+'2ºtrimestre'!BS17+'3º trimestre'!BS17+'4º trimestre'!BS17 -> 0
A18: 0101108 | B18: Consulta integral de especialidades en Cirugía, Ginecología y Obstetricia, Ortopedia y Traumatología (en CDT) | C18: 0 | D18: 0 | E18: 0 | G18: 0101108 | H18: Consulta integral de especialidades en Cirugía, Ginecología y Obstetricia, Ortopedia y Traumatología (en CDT) | I18: ='1trimestre'!I18+'2ºtrimestre'!I18+'3º trimestre'!I18+'4º trimestre'!I18 -> 0 | J18: ='1trimestre'!J18+'2ºtrimestre'!J18+'3º trimestre'!J18+'4º trimestre'!J18 -> 0 | K18: ='1trimestre'!K18+'2ºtrimestre'!K18+'3º trimestre'!K18+'4º trimestre'!K18 -> 0 | M18: 0101108 | N18: Consulta integral de especialidades en Cirugía, Ginecología y Obstetricia, Ortopedia y Traumatología (en CDT) | O18: ='1trimestre'!O18+'2ºtrimestre'!O18+'3º trimestre'!O18+'4º trimestre'!O18 -> 0 | P18: ='1trimestre'!P18+'2ºtrimestre'!P18+'3º trimestre'!P18+'4º trimestre'!P18 -> 0 | Q18: ='1trimestre'!Q18+'2ºtrimestre'!Q18+'3º trimestre'!Q18+'4º trimestre'!Q18 -> 0 | S18: 0101108 | T18: Consulta integral de especialidades en Cirugía, Ginecología y Obstetricia, Ortopedia y Traumatología (en CDT) | U18: ='1trimestre'!U18+'2ºtrimestre'!U18+'3º trimestre'!U18+'4º trimestre'!U18 -> 0 | V18: ='1trimestre'!V18+'2ºtrimestre'!V18+'3º trimestre'!V18+'4º trimestre'!V18 -> 0 | W18: ='1trimestre'!W18+'2ºtrimestre'!W18+'3º trimestre'!W18+'4º trimestre'!W18 -> 0 | Y18: 0101108 | Z18: Consulta integral de especialidades en Cirugía, Ginecología y Obstetricia, Ortopedia y Traumatología (en CDT) | AA18: ='1trimestre'!AA18+'2ºtrimestre'!AA18+'3º trimestre'!AA18+'4º trimestre'!AA18 -> 0 | AB18: ='1trimestre'!AB18+'2ºtrimestre'!AB18+'3º trimestre'!AB18+'4º trimestre'!AB18 -> 0 | AC18: ='1trimestre'!AC18+'2ºtrimestre'!AC18+'3º trimestre'!AC18+'4º trimestre'!AC18 -> 0 | AE18: 0101108 | AF18: Consulta integral de especialidades en Cirugía, Ginecología y Obstetricia, Ortopedia y Traumatología (en CDT) | AG18: ='1trimestre'!AG18+'2ºtrimestre'!AG18+'3º trimestre'!AG18+'4º trimestre'!AG18 -> 0 | AH18: ='1trimestre'!AH18+'2ºtrimestre'!AH18+'3º trimestre'!AH18+'4º trimestre'!AH18 -> 0 | AI18: ='1trimestre'!AI18+'2ºtrimestre'!AI18+'3º trimestre'!AI18+'4º trimestre'!AI18 -> 0 | AK18: 0101108 | AL18: Consulta integral de especialidades en Cirugía, Ginecología y Obstetricia, Ortopedia y Traumatología (en CDT) | AM18: ='1trimestre'!AM18+'2ºtrimestre'!AM18+'3º trimestre'!AM18+'4º trimestre'!AM18 -> 0 | AN18: ='1trimestre'!AN18+'2ºtrimestre'!AN18+'3º trimestre'!AN18+'4º trimestre'!AN18 -> 0 | AO18: ='1trimestre'!AO18+'2ºtrimestre'!AO18+'3º trimestre'!AO18+'4º trimestre'!AO18 -> 0 | AQ18: 0101108 | AR18: Consulta integral de especialidades en Cirugía, Ginecología y Obstetricia, Ortopedia y Traumatología (en CDT) | AS18: ='1trimestre'!AS18+'2ºtrimestre'!AS18+'3º trimestre'!AS18+'4º trimestre'!AS18 -> 0 | AT18: ='1trimestre'!AT18+'2ºtrimestre'!AT18+'3º trimestre'!AT18+'4º trimestre'!AT18 -> 0 | AU18: ='1trimestre'!AU18+'2ºtrimestre'!AU18+'3º trimestre'!AU18+'4º trimestre'!AU18 -> 0 | AW18: 0101108 | AX18: Consulta integral de especialidades en Cirugía, Ginecología y Obstetricia, Ortopedia y Traumatología (en CDT) | AY18: ='1trimestre'!AY18+'2ºtrimestre'!AY18+'3º trimestre'!AY18+'4º trimestre'!AY18 -> 0 | AZ18: ='1trimestre'!AZ18+'2ºtrimestre'!AZ18+'3º trimestre'!AZ18+'4º trimestre'!AZ18 -> 0 | BA18: ='1trimestre'!BA18+'2ºtrimestre'!BA18+'3º trimestre'!BA18+'4º trimestre'!BA18 -> 0 | BC18: 0101108 | BD18: Consulta integral de especialidades en Cirugía, Ginecología y Obstetricia, Ortopedia y Traumatología (en CDT) | BE18: ='1trimestre'!BE18+'2ºtrimestre'!BE18+'3º trimestre'!BE18+'4º trimestre'!BE18 -> 0 | BF18: ='1trimestre'!BF18+'2ºtrimestre'!BF18+'3º trimestre'!BF18+'4º trimestre'!BF18 -> 0 | BG18: ='1trimestre'!BG18+'2ºtrimestre'!BG18+'3º trimestre'!BG18+'4º trimestre'!BG18 -> 0 | BI18: 0101108 | BJ18: Consulta integral de especialidades en Cirugía, Ginecología y Obstetricia, Ortopedia y Traumatología (en CDT) | BK18: ='1trimestre'!BK18+'2ºtrimestre'!BK18+'3º trimestre'!BK18+'4º trimestre'!BK18 -> 0 | BL18: ='1trimestre'!BL18+'2ºtrimestre'!BL18+'3º trimestre'!BL18+'4º trimestre'!BL18 -> 0 | BM18: ='1trimestre'!BM18+'2ºtrimestre'!BM18+'3º trimestre'!BM18+'4º trimestre'!BM18 -> 0 | BO18: 0101108 | BP18: Consulta integral de especialidades en Cirugía, Ginecología y Obstetricia, Ortopedia y Traumatología (en CDT) | BQ18: ='1trimestre'!BQ18+'2ºtrimestre'!BQ18+'3º trimestre'!BQ18+'4º trimestre'!BQ18 -> 0 | BR18: ='1trimestre'!BR18+'2ºtrimestre'!BR18+'3º trimestre'!BR18+'4º trimestre'!BR18 -> 0 | BS18: ='1trimestre'!BS18+'2ºtrimestre'!BS18+'3º trimestre'!BS18+'4º trimestre'!BS18 -> 0
A19: 0101109 | B19: Consulta integral de especialidades en Urología, Otorrinolaringología, Medicina Fisica y Rehabilitación, Dermatología, Pediatría y Subespecialidades (en CDT) | C19: 0 | D19: 0 | E19: 0 | G19: 0101109 | H19: Consulta integral de especialidades en Urología, Otorrinolaringología, Medicina Fisica y Rehabilitación, Dermatología, Pediatría y Subespecialidades (en CDT) | I19: ='1trimestre'!I19+'2ºtrimestre'!I19+'3º trimestre'!I19+'4º trimestre'!I19 -> 0 | J19: ='1trimestre'!J19+'2ºtrimestre'!J19+'3º trimestre'!J19+'4º trimestre'!J19 -> 0 | K19: ='1trimestre'!K19+'2ºtrimestre'!K19+'3º trimestre'!K19+'4º trimestre'!K19 -> 0 | M19: 0101109 | N19: Consulta integral de especialidades en Urología, Otorrinolaringología, Medicina Fisica y Rehabilitación, Dermatología, Pediatría y Subespecialidades (en CDT) | O19: ='1trimestre'!O19+'2ºtrimestre'!O19+'3º trimestre'!O19+'4º trimestre'!O19 -> 0 | P19: ='1trimestre'!P19+'2ºtrimestre'!P19+'3º trimestre'!P19+'4º trimestre'!P19 -> 0 | Q19: ='1trimestre'!Q19+'2ºtrimestre'!Q19+'3º trimestre'!Q19+'4º trimestre'!Q19 -> 0 | S19: 0101109 | T19: Consulta integral de especialidades en Urología, Otorrinolaringología, Medicina Fisica y Rehabilitación, Dermatología, Pediatría y Subespecialidades (en CDT) | U19: ='1trimestre'!U19+'2ºtrimestre'!U19+'3º trimestre'!U19+'4º trimestre'!U19 -> 0 | V19: ='1trimestre'!V19+'2ºtrimestre'!V19+'3º trimestre'!V19+'4º trimestre'!V19 -> 0 | W19: ='1trimestre'!W19+'2ºtrimestre'!W19+'3º trimestre'!W19+'4º trimestre'!W19 -> 0 | Y19: 0101109 | Z19: Consulta integral de especialidades en Urología, Otorrinolaringología, Medicina Fisica y Rehabilitación, Dermatología, Pediatría y Subespecialidades (en CDT) | AA19: ='1trimestre'!AA19+'2ºtrimestre'!AA19+'3º trimestre'!AA19+'4º trimestre'!AA19 -> 0 | AB19: ='1trimestre'!AB19+'2ºtrimestre'!AB19+'3º trimestre'!AB19+'4º trimestre'!AB19 -> 0 | AC19: ='1trimestre'!AC19+'2ºtrimestre'!AC19+'3º trimestre'!AC19+'4º trimestre'!AC19 -> 0 | AE19: 0101109 | AF19: Consulta integral de especialidades en Urología, Otorrinolaringología, Medicina Fisica y Rehabilitación, Dermatología, Pediatría y Subespecialidades (en CDT) | AG19: ='1trimestre'!AG19+'2ºtrimestre'!AG19+'3º trimestre'!AG19+'4º trimestre'!AG19 -> 0 | AH19: ='1trimestre'!AH19+'2ºtrimestre'!AH19+'3º trimestre'!AH19+'4º trimestre'!AH19 -> 0 | AI19: ='1trimestre'!AI19+'2ºtrimestre'!AI19+'3º trimestre'!AI19+'4º trimestre'!AI19 -> 0 | AK19: 0101109 | AL19: Consulta integral de especialidades en Urología, Otorrinolaringología, Medicina Fisica y Rehabilitación, Dermatología, Pediatría y Subespecialidades (en CDT) | AM19: ='1trimestre'!AM19+'2ºtrimestre'!AM19+'3º trimestre'!AM19+'4º trimestre'!AM19 -> 0 | AN19: ='1trimestre'!AN19+'2ºtrimestre'!AN19+'3º trimestre'!AN19+'4º trimestre'!AN19 -> 0 | AO19: ='1trimestre'!AO19+'2ºtrimestre'!AO19+'3º trimestre'!AO19+'4º trimestre'!AO19 -> 0 | AQ19: 0101109 | AR19: Consulta integral de especialidades en Urología, Otorrinolaringología, Medicina Fisica y Rehabilitación, Dermatología, Pediatría y Subespecialidades (en CDT) | AS19: ='1trimestre'!AS19+'2ºtrimestre'!AS19+'3º trimestre'!AS19+'4º trimestre'!AS19 -> 0 | AT19: ='1trimestre'!AT19+'2ºtrimestre'!AT19+'3º trimestre'!AT19+'4º trimestre'!AT19 -> 0 | AU19: ='1trimestre'!AU19+'2ºtrimestre'!AU19+'3º trimestre'!AU19+'4º trimestre'!AU19 -> 0 | AW19: 0101109 | AX19: Consulta integral de especialidades en Urología, Otorrinolaringología, Medicina Fisica y Rehabilitación, Dermatología, Pediatría y Subespecialidades (en CDT) | AY19: ='1trimestre'!AY19+'2ºtrimestre'!AY19+'3º trimestre'!AY19+'4º trimestre'!AY19 -> 0 | AZ19: ='1trimestre'!AZ19+'2ºtrimestre'!AZ19+'3º trimestre'!AZ19+'4º trimestre'!AZ19 -> 0 | BA19: ='1trimestre'!BA19+'2ºtrimestre'!BA19+'3º trimestre'!BA19+'4º trimestre'!BA19 -> 0 | BC19: 0101109 | BD19: Consulta integral de especialidades en Urología, Otorrinolaringología, Medicina Fisica y Rehabilitación, Dermatología, Pediatría y Subespecialidades (en CDT) | BE19: ='1trimestre'!BE19+'2ºtrimestre'!BE19+'3º trimestre'!BE19+'4º trimestre'!BE19 -> 0 | BF19: ='1trimestre'!BF19+'2ºtrimestre'!BF19+'3º trimestre'!BF19+'4º trimestre'!BF19 -> 0 | BG19: ='1trimestre'!BG19+'2ºtrimestre'!BG19+'3º trimestre'!BG19+'4º trimestre'!BG19 -> 0 | BI19: 0101109 | BJ19: Consulta integral de especialidades en Urología, Otorrinolaringología, Medicina Fisica y Rehabilitación, Dermatología, Pediatría y Subespecialidades (en CDT) | BK19: ='1trimestre'!BK19+'2ºtrimestre'!BK19+'3º trimestre'!BK19+'4º trimestre'!BK19 -> 0 | BL19: ='1trimestre'!BL19+'2ºtrimestre'!BL19+'3º trimestre'!BL19+'4º trimestre'!BL19 -> 0 | BM19: ='1trimestre'!BM19+'2ºtrimestre'!BM19+'3º trimestre'!BM19+'4º trimestre'!BM19 -> 0 | BO19: 0101109 | BP19: Consulta integral de especialidades en Urología, Otorrinolaringología, Medicina Fisica y Rehabilitación, Dermatología, Pediatría y Subespecialidades (en CDT) | BQ19: ='1trimestre'!BQ19+'2ºtrimestre'!BQ19+'3º trimestre'!BQ19+'4º trimestre'!BQ19 -> 0 | BR19: ='1trimestre'!BR19+'2ºtrimestre'!BR19+'3º trimestre'!BR19+'4º trimestre'!BR19 -> 0 | BS19: ='1trimestre'!BS19+'2ºtrimestre'!BS19+'3º trimestre'!BS19+'4º trimestre'!BS19 -> 0
A20: 0101110 | B20: Consulta integral de especialidades en Medicina Interna y Subespecialidades, Oftalmología, Neurología, Oncología (en CDT) | C20: 0 | D20: 0 | E20: 0 | G20: 0101110 | H20: Consulta integral de especialidades en Medicina Interna y Subespecialidades, Oftalmología, Neurología, Oncología (en CDT) | I20: ='1trimestre'!I20+'2ºtrimestre'!I20+'3º trimestre'!I20+'4º trimestre'!I20 -> 0 | J20: ='1trimestre'!J20+'2ºtrimestre'!J20+'3º trimestre'!J20+'4º trimestre'!J20 -> 0 | K20: ='1trimestre'!K20+'2ºtrimestre'!K20+'3º trimestre'!K20+'4º trimestre'!K20 -> 0 | M20: 0101110 | N20: Consulta integral de especialidades en Medicina Interna y Subespecialidades, Oftalmología, Neurología, Oncología (en CDT) | O20: ='1trimestre'!O20+'2ºtrimestre'!O20+'3º trimestre'!O20+'4º trimestre'!O20 -> 0 | P20: ='1trimestre'!P20+'2ºtrimestre'!P20+'3º trimestre'!P20+'4º trimestre'!P20 -> 0 | Q20: ='1trimestre'!Q20+'2ºtrimestre'!Q20+'3º trimestre'!Q20+'4º trimestre'!Q20 -> 0 | S20: 0101110 | T20: Consulta integral de especialidades en Medicina Interna y Subespecialidades, Oftalmología, Neurología, Oncología (en CDT) | U20: ='1trimestre'!U20+'2ºtrimestre'!U20+'3º trimestre'!U20+'4º trimestre'!U20 -> 0 | V20: ='1trimestre'!V20+'2ºtrimestre'!V20+'3º trimestre'!V20+'4º trimestre'!V20 -> 0 | W20: ='1trimestre'!W20+'2ºtrimestre'!W20+'3º trimestre'!W20+'4º trimestre'!W20 -> 0 | Y20: 0101110 | Z20: Consulta integral de especialidades en Medicina Interna y Subespecialidades, Oftalmología, Neurología, Oncología (en CDT) | AA20: ='1trimestre'!AA20+'2ºtrimestre'!AA20+'3º trimestre'!AA20+'4º trimestre'!AA20 -> 0 | AB20: ='1trimestre'!AB20+'2ºtrimestre'!AB20+'3º trimestre'!AB20+'4º trimestre'!AB20 -> 0 | AC20: ='1trimestre'!AC20+'2ºtrimestre'!AC20+'3º trimestre'!AC20+'4º trimestre'!AC20 -> 0 | AE20: 0101110 | AF20: Consulta integral de especialidades en Medicina Interna y Subespecialidades, Oftalmología, Neurología, Oncología (en CDT) | AG20: ='1trimestre'!AG20+'2ºtrimestre'!AG20+'3º trimestre'!AG20+'4º trimestre'!AG20 -> 0 | AH20: ='1trimestre'!AH20+'2ºtrimestre'!AH20+'3º trimestre'!AH20+'4º trimestre'!AH20 -> 0 | AI20: ='1trimestre'!AI20+'2ºtrimestre'!AI20+'3º trimestre'!AI20+'4º trimestre'!AI20 -> 0 | AK20: 0101110 | AL20: Consulta integral de especialidades en Medicina Interna y Subespecialidades, Oftalmología, Neurología, Oncología (en CDT) | AM20: ='1trimestre'!AM20+'2ºtrimestre'!AM20+'3º trimestre'!AM20+'4º trimestre'!AM20 -> 0 | AN20: ='1trimestre'!AN20+'2ºtrimestre'!AN20+'3º trimestre'!AN20+'4º trimestre'!AN20 -> 0 | AO20: ='1trimestre'!AO20+'2ºtrimestre'!AO20+'3º trimestre'!AO20+'4º trimestre'!AO20 -> 0 | AQ20: 0101110 | AR20: Consulta integral de especialidades en Medicina Interna y Subespecialidades, Oftalmología, Neurología, Oncología (en CDT) | AS20: ='1trimestre'!AS20+'2ºtrimestre'!AS20+'3º trimestre'!AS20+'4º trimestre'!AS20 -> 0 | AT20: ='1trimestre'!AT20+'2ºtrimestre'!AT20+'3º trimestre'!AT20+'4º trimestre'!AT20 -> 0 | AU20: ='1trimestre'!AU20+'2ºtrimestre'!AU20+'3º trimestre'!AU20+'4º trimestre'!AU20 -> 0 | AW20: 0101110 | AX20: Consulta integral de especialidades en Medicina Interna y Subespecialidades, Oftalmología, Neurología, Oncología (en CDT) | AY20: ='1trimestre'!AY20+'2ºtrimestre'!AY20+'3º trimestre'!AY20+'4º trimestre'!AY20 -> 0 | AZ20: ='1trimestre'!AZ20+'2ºtrimestre'!AZ20+'3º trimestre'!AZ20+'4º trimestre'!AZ20 -> 0 | BA20: ='1trimestre'!BA20+'2ºtrimestre'!BA20+'3º trimestre'!BA20+'4º trimestre'!BA20 -> 0 | BC20: 0101110 | BD20: Consulta integral de especialidades en Medicina Interna y Subespecialidades, Oftalmología, Neurología, Oncología (en CDT) | BE20: ='1trimestre'!BE20+'2ºtrimestre'!BE20+'3º trimestre'!BE20+'4º trimestre'!BE20 -> 0 | BF20: ='1trimestre'!BF20+'2ºtrimestre'!BF20+'3º trimestre'!BF20+'4º trimestre'!BF20 -> 0 | BG20: ='1trimestre'!BG20+'2ºtrimestre'!BG20+'3º trimestre'!BG20+'4º trimestre'!BG20 -> 0 | BI20: 0101110 | BJ20: Consulta integral de especialidades en Medicina Interna y Subespecialidades, Oftalmología, Neurología, Oncología (en CDT) | BK20: ='1trimestre'!BK20+'2ºtrimestre'!BK20+'3º trimestre'!BK20+'4º trimestre'!BK20 -> 0 | BL20: ='1trimestre'!BL20+'2ºtrimestre'!BL20+'3º trimestre'!BL20+'4º trimestre'!BL20 -> 0 | BM20: ='1trimestre'!BM20+'2ºtrimestre'!BM20+'3º trimestre'!BM20+'4º trimestre'!BM20 -> 0 | BO20: 0101110 | BP20: Consulta integral de especialidades en Medicina Interna y Subespecialidades, Oftalmología, Neurología, Oncología (en CDT) | BQ20: ='1trimestre'!BQ20+'2ºtrimestre'!BQ20+'3º trimestre'!BQ20+'4º trimestre'!BQ20 -> 0 | BR20: ='1trimestre'!BR20+'2ºtrimestre'!BR20+'3º trimestre'!BR20+'4º trimestre'!BR20 -> 0 | BS20: ='1trimestre'!BS20+'2ºtrimestre'!BS20+'3º trimestre'!BS20+'4º trimestre'!BS20 -> 0
A21: 0101111 | B21: Consulta integral de especialidades en Cirugía, Ginecología y Obstetricia, Ortopedia y Traumatología (Hosp. Alta Complejidad) | C21: 94425 | D21: 94125 | E21: 604282500 | G21: 0101111 | H21: Consulta integral de especialidades en Cirugía, Ginecología y Obstetricia, Ortopedia y Traumatología (Hosp. Alta Complejidad) | I21: ='1trimestre'!I21+'2ºtrimestre'!I21+'3º trimestre'!I21+'4º trimestre'!I21 -> 23672 | J21: ='1trimestre'!J21+'2ºtrimestre'!J21+'3º trimestre'!J21+'4º trimestre'!J21 -> 23549 | K21: ='1trimestre'!K21+'2ºtrimestre'!K21+'3º trimestre'!K21+'4º trimestre'!K21 -> 151184580 | M21: 0101111 | N21: Consulta integral de especialidades en Cirugía, Ginecología y Obstetricia, Ortopedia y Traumatología (Hosp. Alta Complejidad) | O21: ='1trimestre'!O21+'2ºtrimestre'!O21+'3º trimestre'!O21+'4º trimestre'!O21 -> 42260 | P21: ='1trimestre'!P21+'2ºtrimestre'!P21+'3º trimestre'!P21+'4º trimestre'!P21 -> 42260 | Q21: ='1trimestre'!Q21+'2ºtrimestre'!Q21+'3º trimestre'!Q21+'4º trimestre'!Q21 -> 271309200 | S21: 0101111 | T21: Consulta integral de especialidades en Cirugía, Ginecología y Obstetricia, Ortopedia y Traumatología (Hosp. Alta Complejidad) | U21: ='1trimestre'!U21+'2ºtrimestre'!U21+'3º trimestre'!U21+'4º trimestre'!U21 -> 28493 | V21: ='1trimestre'!V21+'2ºtrimestre'!V21+'3º trimestre'!V21+'4º trimestre'!V21 -> 28316 | W21: ='1trimestre'!W21+'2ºtrimestre'!W21+'3º trimestre'!W21+'4º trimestre'!W21 -> 181788720 | Y21: 0101111 | Z21: Consulta integral de especialidades en Cirugía, Ginecología y Obstetricia, Ortopedia y Traumatología (Hosp. Alta Complejidad) | AA21: ='1trimestre'!AA21+'2ºtrimestre'!AA21+'3º trimestre'!AA21+'4º trimestre'!AA21 -> 0 | AB21: ='1trimestre'!AB21+'2ºtrimestre'!AB21+'3º trimestre'!AB21+'4º trimestre'!AB21 -> 0 | AC21: ='1trimestre'!AC21+'2ºtrimestre'!AC21+'3º trimestre'!AC21+'4º trimestre'!AC21 -> 0 | AE21: 0101111 | AF21: Consulta integral de especialidades en Cirugía, Ginecología y Obstetricia, Ortopedia y Traumatología (Hosp. Alta Complejidad) | AG21: ='1trimestre'!AG21+'2ºtrimestre'!AG21+'3º trimestre'!AG21+'4º trimestre'!AG21 -> 0 | AH21: ='1trimestre'!AH21+'2ºtrimestre'!AH21+'3º trimestre'!AH21+'4º trimestre'!AH21 -> 0 | AI21: ='1trimestre'!AI21+'2ºtrimestre'!AI21+'3º trimestre'!AI21+'4º trimestre'!AI21 -> 0 | AK21: 0101111 | AL21: Consulta integral de especialidades en Cirugía, Ginecología y Obstetricia, Ortopedia y Traumatología (Hosp. Alta Complejidad) | AM21: ='1trimestre'!AM21+'2ºtrimestre'!AM21+'3º trimestre'!AM21+'4º trimestre'!AM21 -> 0 | AN21: ='1trimestre'!AN21+'2ºtrimestre'!AN21+'3º trimestre'!AN21+'4º trimestre'!AN21 -> 0 | AO21: ='1trimestre'!AO21+'2ºtrimestre'!AO21+'3º trimestre'!AO21+'4º trimestre'!AO21 -> 0 | AQ21: 0101111 | AR21: Consulta integral de especialidades en Cirugía, Ginecología y Obstetricia, Ortopedia y Traumatología (Hosp. Alta Complejidad) | AS21: ='1trimestre'!AS21+'2ºtrimestre'!AS21+'3º trimestre'!AS21+'4º trimestre'!AS21 -> 0 | AT21: ='1trimestre'!AT21+'2ºtrimestre'!AT21+'3º trimestre'!AT21+'4º trimestre'!AT21 -> 0 | AU21: ='1trimestre'!AU21+'2ºtrimestre'!AU21+'3º trimestre'!AU21+'4º trimestre'!AU21 -> 0 | AW21: 0101111 | AX21: Consulta integral de especialidades en Cirugía, Ginecología y Obstetricia, Ortopedia y Traumatología (Hosp. Alta Complejidad) | AY21: ='1trimestre'!AY21+'2ºtrimestre'!AY21+'3º trimestre'!AY21+'4º trimestre'!AY21 -> 0 | AZ21: ='1trimestre'!AZ21+'2ºtrimestre'!AZ21+'3º trimestre'!AZ21+'4º trimestre'!AZ21 -> 0 | BA21: ='1trimestre'!BA21+'2ºtrimestre'!BA21+'3º trimestre'!BA21+'4º trimestre'!BA21 -> 0 | BC21: 0101111 | BD21: Consulta integral de especialidades en Cirugía, Ginecología y Obstetricia, Ortopedia y Traumatología (Hosp. Alta Complejidad) | BE21: ='1trimestre'!BE21+'2ºtrimestre'!BE21+'3º trimestre'!BE21+'4º trimestre'!BE21 -> 0 | BF21: ='1trimestre'!BF21+'2ºtrimestre'!BF21+'3º trimestre'!BF21+'4º trimestre'!BF21 -> 0 | BG21: ='1trimestre'!BG21+'2ºtrimestre'!BG21+'3º trimestre'!BG21+'4º trimestre'!BG21 -> 0 | BI21: 0101111 | BJ21: Consulta integral de especialidades en Cirugía, Ginecología y Obstetricia, Ortopedia y Traumatología (Hosp. Alta Complejidad) | BK21: ='1trimestre'!BK21+'2ºtrimestre'!BK21+'3º trimestre'!BK21+'4º trimestre'!BK21 -> 0 | BL21: ='1trimestre'!BL21+'2ºtrimestre'!BL21+'3º trimestre'!BL21+'4º trimestre'!BL21 -> 0 | BM21: ='1trimestre'!BM21+'2ºtrimestre'!BM21+'3º trimestre'!BM21+'4º trimestre'!BM21 -> 0 | BO21: 0101111 | BP21: Consulta integral de especialidades en Cirugía, Ginecología y Obstetricia, Ortopedia y Traumatología (Hosp. Alta Complejidad) | BQ21: ='1trimestre'!BQ21+'2ºtrimestre'!BQ21+'3º trimestre'!BQ21+'4º trimestre'!BQ21 -> 0 | BR21: ='1trimestre'!BR21+'2ºtrimestre'!BR21+'3º trimestre'!BR21+'4º trimestre'!BR21 -> 0 | BS21: ='1trimestre'!BS21+'2ºtrimestre'!BS21+'3º trimestre'!BS21+'4º trimestre'!BS21 -> 0
A22: 0101112 | B22: Consulta integral de especialidades en Urología, Otorrinolaringología, Medicina Física y Rehabilitación, Dermatología, Pediatría y Subespecialidades (Hosp. Alta Complejidad) | C22: 77901 | D22: 77666 | E22: 598804860 | G22: 0101112 | H22: Consulta integral de especialidades en Urología, Otorrinolaringología, Medicina Física y Rehabilitación, Dermatología, Pediatría y Subespecialidades (Hosp. Alta Complejidad) | I22: ='1trimestre'!I22+'2ºtrimestre'!I22+'3º trimestre'!I22+'4º trimestre'!I22 -> 32343 | J22: ='1trimestre'!J22+'2ºtrimestre'!J22+'3º trimestre'!J22+'4º trimestre'!J22 -> 32133 | K22: ='1trimestre'!K22+'2ºtrimestre'!K22+'3º trimestre'!K22+'4º trimestre'!K22 -> 247745430 | M22: 0101112 | N22: Consulta integral de especialidades en Urología, Otorrinolaringología, Medicina Física y Rehabilitación, Dermatología, Pediatría y Subespecialidades (Hosp. Alta Complejidad) | O22: ='1trimestre'!O22+'2ºtrimestre'!O22+'3º trimestre'!O22+'4º trimestre'!O22 -> 24681 | P22: ='1trimestre'!P22+'2ºtrimestre'!P22+'3º trimestre'!P22+'4º trimestre'!P22 -> 24681 | Q22: ='1trimestre'!Q22+'2ºtrimestre'!Q22+'3º trimestre'!Q22+'4º trimestre'!Q22 -> 190290510 | S22: 0101112 | T22: Consulta integral de especialidades en Urología, Otorrinolaringología, Medicina Física y Rehabilitación, Dermatología, Pediatría y Subespecialidades (Hosp. Alta Complejidad) | U22: ='1trimestre'!U22+'2ºtrimestre'!U22+'3º trimestre'!U22+'4º trimestre'!U22 -> 20877 | V22: ='1trimestre'!V22+'2ºtrimestre'!V22+'3º trimestre'!V22+'4º trimestre'!V22 -> 20852 | W22: ='1trimestre'!W22+'2ºtrimestre'!W22+'3º trimestre'!W22+'4º trimestre'!W22 -> 160768920 | Y22: 0101112 | Z22: Consulta integral de especialidades en Urología, Otorrinolaringología, Medicina Física y Rehabilitación, Dermatología, Pediatría y Subespecialidades (Hosp. Alta Complejidad) | AA22: ='1trimestre'!AA22+'2ºtrimestre'!AA22+'3º trimestre'!AA22+'4º trimestre'!AA22 -> 0 | AB22: ='1trimestre'!AB22+'2ºtrimestre'!AB22+'3º trimestre'!AB22+'4º trimestre'!AB22 -> 0 | AC22: ='1trimestre'!AC22+'2ºtrimestre'!AC22+'3º trimestre'!AC22+'4º trimestre'!AC22 -> 0 | AE22: 0101112 | AF22: Consulta integral de especialidades en Urología, Otorrinolaringología, Medicina Física y Rehabilitación, Dermatología, Pediatría y Subespecialidades (Hosp. Alta Complejidad) | AG22: ='1trimestre'!AG22+'2ºtrimestre'!AG22+'3º trimestre'!AG22+'4º trimestre'!AG22 -> 0 | AH22: ='1trimestre'!AH22+'2ºtrimestre'!AH22+'3º trimestre'!AH22+'4º trimestre'!AH22 -> 0 | AI22: ='1trimestre'!AI22+'2ºtrimestre'!AI22+'3º trimestre'!AI22+'4º trimestre'!AI22 -> 0 | AK22: 0101112 | AL22: Consulta integral de especialidades en Urología, Otorrinolaringología, Medicina Física y Rehabilitación, Dermatología, Pediatría y Subespecialidades (Hosp. Alta Complejidad) | AM22: ='1trimestre'!AM22+'2ºtrimestre'!AM22+'3º trimestre'!AM22+'4º trimestre'!AM22 -> 0 | AN22: ='1trimestre'!AN22+'2ºtrimestre'!AN22+'3º trimestre'!AN22+'4º trimestre'!AN22 -> 0 | AO22: ='1trimestre'!AO22+'2ºtrimestre'!AO22+'3º trimestre'!AO22+'4º trimestre'!AO22 -> 0 | AQ22: 0101112 | AR22: Consulta integral de especialidades en Urología, Otorrinolaringología, Medicina Física y Rehabilitación, Dermatología, Pediatría y Subespecialidades (Hosp. Alta Complejidad) | AS22: ='1trimestre'!AS22+'2ºtrimestre'!AS22+'3º trimestre'!AS22+'4º trimestre'!AS22 -> 0 | AT22: ='1trimestre'!AT22+'2ºtrimestre'!AT22+'3º trimestre'!AT22+'4º trimestre'!AT22 -> 0 | AU22: ='1trimestre'!AU22+'2ºtrimestre'!AU22+'3º trimestre'!AU22+'4º trimestre'!AU22 -> 0 | AW22: 0101112 | AX22: Consulta integral de especialidades en Urología, Otorrinolaringología, Medicina Física y Rehabilitación, Dermatología, Pediatría y Subespecialidades (Hosp. Alta Complejidad) | AY22: ='1trimestre'!AY22+'2ºtrimestre'!AY22+'3º trimestre'!AY22+'4º trimestre'!AY22 -> 0 | AZ22: ='1trimestre'!AZ22+'2ºtrimestre'!AZ22+'3º trimestre'!AZ22+'4º trimestre'!AZ22 -> 0 | BA22: ='1trimestre'!BA22+'2ºtrimestre'!BA22+'3º trimestre'!BA22+'4º trimestre'!BA22 -> 0 | BC22: 0101112 | BD22: Consulta integral de especialidades en Urología, Otorrinolaringología, Medicina Física y Rehabilitación, Dermatología, Pediatría y Subespecialidades (Hosp. Alta Complejidad) | BE22: ='1trimestre'!BE22+'2ºtrimestre'!BE22+'3º trimestre'!BE22+'4º trimestre'!BE22 -> 0 | BF22: ='1trimestre'!BF22+'2ºtrimestre'!BF22+'3º trimestre'!BF22+'4º trimestre'!BF22 -> 0 | BG22: ='1trimestre'!BG22+'2ºtrimestre'!BG22+'3º trimestre'!BG22+'4º trimestre'!BG22 -> 0 | BI22: 0101112 | BJ22: Consulta integral de especialidades en Urología, Otorrinolaringología, Medicina Física y Rehabilitación, Dermatología, Pediatría y Subespecialidades (Hosp. Alta Complejidad) | BK22: ='1trimestre'!BK22+'2ºtrimestre'!BK22+'3º trimestre'!BK22+'4º trimestre'!BK22 -> 0 | BL22: ='1trimestre'!BL22+'2ºtrimestre'!BL22+'3º trimestre'!BL22+'4º trimestre'!BL22 -> 0 | BM22: ='1trimestre'!BM22+'2ºtrimestre'!BM22+'3º trimestre'!BM22+'4º trimestre'!BM22 -> 0 | BO22: 0101112 | BP22: Consulta integral de especialidades en Urología, Otorrinolaringología, Medicina Física y Rehabilitación, Dermatología, Pediatría y Subespecialidades (Hosp. Alta Complejidad) | BQ22: ='1trimestre'!BQ22+'2ºtrimestre'!BQ22+'3º trimestre'!BQ22+'4º trimestre'!BQ22 -> 0 | BR22: ='1trimestre'!BR22+'2ºtrimestre'!BR22+'3º trimestre'!BR22+'4º trimestre'!BR22 -> 0 | BS22: ='1trimestre'!BS22+'2ºtrimestre'!BS22+'3º trimestre'!BS22+'4º trimestre'!BS22 -> 0
A23: 0101113 | B23: Consulta integral de especialidades en Medicina Interna y Subespecialidades, Oftalmología, Neurología, Oncología (Hosp. Alta Complejidad) | C23: 152459 | D23: 151164 | E23: 1443616200 | G23: 0101113 | H23: Consulta integral de especialidades en Medicina Interna y Subespecialidades, Oftalmología, Neurología, Oncología (Hosp. Alta Complejidad) | I23: ='1trimestre'!I23+'2ºtrimestre'!I23+'3º trimestre'!I23+'4º trimestre'!I23 -> 80534 | J23: ='1trimestre'!J23+'2ºtrimestre'!J23+'3º trimestre'!J23+'4º trimestre'!J23 -> 79264 | K23: ='1trimestre'!K23+'2ºtrimestre'!K23+'3º trimestre'!K23+'4º trimestre'!K23 -> 756971200 | M23: 0101113 | N23: Consulta integral de especialidades en Medicina Interna y Subespecialidades, Oftalmología, Neurología, Oncología (Hosp. Alta Complejidad) | O23: ='1trimestre'!O23+'2ºtrimestre'!O23+'3º trimestre'!O23+'4º trimestre'!O23 -> 40133 | P23: ='1trimestre'!P23+'2ºtrimestre'!P23+'3º trimestre'!P23+'4º trimestre'!P23 -> 40133 | Q23: ='1trimestre'!Q23+'2ºtrimestre'!Q23+'3º trimestre'!Q23+'4º trimestre'!Q23 -> 383270150 | S23: 0101113 | T23: Consulta integral de especialidades en Medicina Interna y Subespecialidades, Oftalmología, Neurología, Oncología (Hosp. Alta Complejidad) | U23: ='1trimestre'!U23+'2ºtrimestre'!U23+'3º trimestre'!U23+'4º trimestre'!U23 -> 31792 | V23: ='1trimestre'!V23+'2ºtrimestre'!V23+'3º trimestre'!V23+'4º trimestre'!V23 -> 31767 | W23: ='1trimestre'!W23+'2ºtrimestre'!W23+'3º trimestre'!W23+'4º trimestre'!W23 -> 303374850 | Y23: 0101113 | Z23: Consulta integral de especialidades en Medicina Interna y Subespecialidades, Oftalmología, Neurología, Oncología (Hosp. Alta Complejidad) | AA23: ='1trimestre'!AA23+'2ºtrimestre'!AA23+'3º trimestre'!AA23+'4º trimestre'!AA23 -> 0 | AB23: ='1trimestre'!AB23+'2ºtrimestre'!AB23+'3º trimestre'!AB23+'4º trimestre'!AB23 -> 0 | AC23: ='1trimestre'!AC23+'2ºtrimestre'!AC23+'3º trimestre'!AC23+'4º trimestre'!AC23 -> 0 | AE23: 0101113 | AF23: Consulta integral de especialidades en Medicina Interna y Subespecialidades, Oftalmología, Neurología, Oncología (Hosp. Alta Complejidad) | AG23: ='1trimestre'!AG23+'2ºtrimestre'!AG23+'3º trimestre'!AG23+'4º trimestre'!AG23 -> 0 | AH23: ='1trimestre'!AH23+'2ºtrimestre'!AH23+'3º trimestre'!AH23+'4º trimestre'!AH23 -> 0 | AI23: ='1trimestre'!AI23+'2ºtrimestre'!AI23+'3º trimestre'!AI23+'4º trimestre'!AI23 -> 0 | AK23: 0101113 | AL23: Consulta integral de especialidades en Medicina Interna y Subespecialidades, Oftalmología, Neurología, Oncología (Hosp. Alta Complejidad) | AM23: ='1trimestre'!AM23+'2ºtrimestre'!AM23+'3º trimestre'!AM23+'4º trimestre'!AM23 -> 0 | AN23: ='1trimestre'!AN23+'2ºtrimestre'!AN23+'3º trimestre'!AN23+'4º trimestre'!AN23 -> 0 | AO23: ='1trimestre'!AO23+'2ºtrimestre'!AO23+'3º trimestre'!AO23+'4º trimestre'!AO23 -> 0 | AQ23: 0101113 | AR23: Consulta integral de especialidades en Medicina Interna y Subespecialidades, Oftalmología, Neurología, Oncología (Hosp. Alta Complejidad) | AS23: ='1trimestre'!AS23+'2ºtrimestre'!AS23+'3º trimestre'!AS23+'4º trimestre'!AS23 -> 0 | AT23: ='1trimestre'!AT23+'2ºtrimestre'!AT23+'3º trimestre'!AT23+'4º trimestre'!AT23 -> 0 | AU23: ='1trimestre'!AU23+'2ºtrimestre'!AU23+'3º trimestre'!AU23+'4º trimestre'!AU23 -> 0 | AW23: 0101113 | AX23: Consulta integral de especialidades en Medicina Interna y Subespecialidades, Oftalmología, Neurología, Oncología (Hosp. Alta Complejidad) | AY23: ='1trimestre'!AY23+'2ºtrimestre'!AY23+'3º trimestre'!AY23+'4º trimestre'!AY23 -> 0 | AZ23: ='1trimestre'!AZ23+'2ºtrimestre'!AZ23+'3º trimestre'!AZ23+'4º trimestre'!AZ23 -> 0 | BA23: ='1trimestre'!BA23+'2ºtrimestre'!BA23+'3º trimestre'!BA23+'4º trimestre'!BA23 -> 0 | BC23: 0101113 | BD23: Consulta integral de especialidades en Medicina Interna y Subespecialidades, Oftalmología, Neurología, Oncología (Hosp. Alta Complejidad) | BE23: ='1trimestre'!BE23+'2ºtrimestre'!BE23+'3º trimestre'!BE23+'4º trimestre'!BE23 -> 0 | BF23: ='1trimestre'!BF23+'2ºtrimestre'!BF23+'3º trimestre'!BF23+'4º trimestre'!BF23 -> 0 | BG23: ='1trimestre'!BG23+'2ºtrimestre'!BG23+'3º trimestre'!BG23+'4º trimestre'!BG23 -> 0 | BI23: 0101113 | BJ23: Consulta integral de especialidades en Medicina Interna y Subespecialidades, Oftalmología, Neurología, Oncología (Hosp. Alta Complejidad) | BK23: ='1trimestre'!BK23+'2ºtrimestre'!BK23+'3º trimestre'!BK23+'4º trimestre'!BK23 -> 0 | BL23: ='1trimestre'!BL23+'2ºtrimestre'!BL23+'3º trimestre'!BL23+'4º trimestre'!BL23 -> 0 | BM23: ='1trimestre'!BM23+'2ºtrimestre'!BM23+'3º trimestre'!BM23+'4º trimestre'!BM23 -> 0 | BO23: 0101113 | BP23: Consulta integral de especialidades en Medicina Interna y Subespecialidades, Oftalmología, Neurología, Oncología (Hosp. Alta Complejidad) | BQ23: ='1trimestre'!BQ23+'2ºtrimestre'!BQ23+'3º trimestre'!BQ23+'4º trimestre'!BQ23 -> 0 | BR23: ='1trimestre'!BR23+'2ºtrimestre'!BR23+'3º trimestre'!BR23+'4º trimestre'!BR23 -> 0 | BS23: ='1trimestre'!BS23+'2ºtrimestre'!BS23+'3º trimestre'!BS23+'4º trimestre'!BS23 -> 0
A24: 0903006 | B24: Consultoría de salud mental por psiquiatra (sesión 4 hrs.) (mínimo 8 pacientes) | C24: 300 | D24: 300 | E24: 9690000 | G24: 0903006 | H24: Consultoría de salud mental por psiquiatra (sesión 4 hrs.) (mínimo 8 pacientes) | I24: ='1trimestre'!I24+'2ºtrimestre'!I24+'3º trimestre'!I24+'4º trimestre'!I24 -> 105 | J24: ='1trimestre'!J24+'2ºtrimestre'!J24+'3º trimestre'!J24+'4º trimestre'!J24 -> 105 | K24: ='1trimestre'!K24+'2ºtrimestre'!K24+'3º trimestre'!K24+'4º trimestre'!K24 -> 3391500 | M24: 0903006 | N24: Consultoría de salud mental por psiquiatra (sesión 4 hrs.) (mínimo 8 pacientes) | O24: ='1trimestre'!O24+'2ºtrimestre'!O24+'3º trimestre'!O24+'4º trimestre'!O24 -> 35 | P24: ='1trimestre'!P24+'2ºtrimestre'!P24+'3º trimestre'!P24+'4º trimestre'!P24 -> 35 | Q24: ='1trimestre'!Q24+'2ºtrimestre'!Q24+'3º trimestre'!Q24+'4º trimestre'!Q24 -> 1130500 | S24: 0903006 | T24: Consultoría de salud mental por psiquiatra (sesión 4 hrs.) (mínimo 8 pacientes) | U24: ='1trimestre'!U24+'2ºtrimestre'!U24+'3º trimestre'!U24+'4º trimestre'!U24 -> 150 | V24: ='1trimestre'!V24+'2ºtrimestre'!V24+'3º trimestre'!V24+'4º trimestre'!V24 -> 150 | W24: ='1trimestre'!W24+'2ºtrimestre'!W24+'3º trimestre'!W24+'4º trimestre'!W24 -> 4845000 | Y24: 0903006 | Z24: Consultoría de salud mental por psiquiatra (sesión 4 hrs.) (mínimo 8 pacientes) | AA24: ='1trimestre'!AA24+'2ºtrimestre'!AA24+'3º trimestre'!AA24+'4º trimestre'!AA24 -> 10 | AB24: ='1trimestre'!AB24+'2ºtrimestre'!AB24+'3º trimestre'!AB24+'4º trimestre'!AB24 -> 10 | AC24: ='1trimestre'!AC24+'2ºtrimestre'!AC24+'3º trimestre'!AC24+'4º trimestre'!AC24 -> 323000 | AE24: 0903006 | AF24: Consultoría de salud mental por psiquiatra (sesión 4 hrs.) (mínimo 8 pacientes) | AG24: ='1trimestre'!AG24+'2ºtrimestre'!AG24+'3º trimestre'!AG24+'4º trimestre'!AG24 -> 0 | AH24: ='1trimestre'!AH24+'2ºtrimestre'!AH24+'3º trimestre'!AH24+'4º trimestre'!AH24 -> 0 | AI24: ='1trimestre'!AI24+'2ºtrimestre'!AI24+'3º trimestre'!AI24+'4º trimestre'!AI24 -> 0 | AK24: 0903006 | AL24: Consultoría de salud mental por psiquiatra (sesión 4 hrs.) (mínimo 8 pacientes) | AM24: ='1trimestre'!AM24+'2ºtrimestre'!AM24+'3º trimestre'!AM24+'4º trimestre'!AM24 -> 0 | AN24: ='1trimestre'!AN24+'2ºtrimestre'!AN24+'3º trimestre'!AN24+'4º trimestre'!AN24 -> 0 | AO24: ='1trimestre'!AO24+'2ºtrimestre'!AO24+'3º trimestre'!AO24+'4º trimestre'!AO24 -> 0 | AQ24: 0903006 | AR24: Consultoría de salud mental por psiquiatra (sesión 4 hrs.) (mínimo 8 pacientes) | AS24: ='1trimestre'!AS24+'2ºtrimestre'!AS24+'3º trimestre'!AS24+'4º trimestre'!AS24 -> 0 | AT24: ='1trimestre'!AT24+'2ºtrimestre'!AT24+'3º trimestre'!AT24+'4º trimestre'!AT24 -> 0 | AU24: ='1trimestre'!AU24+'2ºtrimestre'!AU24+'3º trimestre'!AU24+'4º trimestre'!AU24 -> 0 | AW24: 0903006 | AX24: Consultoría de salud mental por psiquiatra (sesión 4 hrs.) (mínimo 8 pacientes) | AY24: ='1trimestre'!AY24+'2ºtrimestre'!AY24+'3º trimestre'!AY24+'4º trimestre'!AY24 -> 0 | AZ24: ='1trimestre'!AZ24+'2ºtrimestre'!AZ24+'3º trimestre'!AZ24+'4º trimestre'!AZ24 -> 0 | BA24: ='1trimestre'!BA24+'2ºtrimestre'!BA24+'3º trimestre'!BA24+'4º trimestre'!BA24 -> 0 | BC24: 0903006 | BD24: Consultoría de salud mental por psiquiatra (sesión 4 hrs.) (mínimo 8 pacientes) | BE24: ='1trimestre'!BE24+'2ºtrimestre'!BE24+'3º trimestre'!BE24+'4º trimestre'!BE24 -> 0 | BF24: ='1trimestre'!BF24+'2ºtrimestre'!BF24+'3º trimestre'!BF24+'4º trimestre'!BF24 -> 0 | BG24: ='1trimestre'!BG24+'2ºtrimestre'!BG24+'3º trimestre'!BG24+'4º trimestre'!BG24 -> 0 | BI24: 0903006 | BJ24: Consultoría de salud mental por psiquiatra (sesión 4 hrs.) (mínimo 8 pacientes) | BK24: ='1trimestre'!BK24+'2ºtrimestre'!BK24+'3º trimestre'!BK24+'4º trimestre'!BK24 -> 0 | BL24: ='1trimestre'!BL24+'2ºtrimestre'!BL24+'3º trimestre'!BL24+'4º trimestre'!BL24 -> 0 | BM24: ='1trimestre'!BM24+'2ºtrimestre'!BM24+'3º trimestre'!BM24+'4º trimestre'!BM24 -> 0 | BO24: 0903006 | BP24: Consultoría de salud mental por psiquiatra (sesión 4 hrs.) (mínimo 8 pacientes) | BQ24: ='1trimestre'!BQ24+'2ºtrimestre'!BQ24+'3º trimestre'!BQ24+'4º trimestre'!BQ24 -> 0 | BR24: ='1trimestre'!BR24+'2ºtrimestre'!BR24+'3º trimestre'!BR24+'4º trimestre'!BR24 -> 0 | BS24: ='1trimestre'!BS24+'2ºtrimestre'!BS24+'3º trimestre'!BS24+'4º trimestre'!BS24 -> 0
B25: OTRAS CONSULTAS Y ATENCION MEDICA | C25: =SUM(C26:C31) -> 191504 | H25: OTRAS CONSULTAS Y ATENCION MEDICA | I25: =SUM(I26:I31) -> 11232 | N25: OTRAS CONSULTAS Y ATENCION MEDICA | O25: =SUM(O26:O31) -> 0 | T25: OTRAS CONSULTAS Y ATENCION MEDICA | U25: =SUM(U26:U31) -> 0 | Z25: OTRAS CONSULTAS Y ATENCION MEDICA | AA25: =SUM(AA26:AA31) -> 1506 | AF25: OTRAS CONSULTAS Y ATENCION MEDICA | AG25: =SUM(AG26:AG31) -> 47304 | AL25: OTRAS CONSULTAS Y ATENCION MEDICA | AM25: =SUM(AM26:AM31) -> 20397 | AR25: OTRAS CONSULTAS Y ATENCION MEDICA | AS25: =SUM(AS26:AS31) -> 22309 | AX25: OTRAS CONSULTAS Y ATENCION MEDICA | AY25: =SUM(AY26:AY31) -> 39623 | BD25: OTRAS CONSULTAS Y ATENCION MEDICA | BE25: =SUM(BE26:BE31) -> 49133 | BJ25: OTRAS CONSULTAS Y ATENCION MEDICA | BK25: =SUM(BK26:BK31) -> 0 | BP25: OTRAS CONSULTAS Y ATENCION MEDICA | BQ25: =SUM(BQ26:BQ31) -> 0
A26: 0101001 | B26: Consulta médica general | C26: =SUM(I26+O26+U26+AA26+AG26+AM26+AS26+AY26+BE26+BK26+BQ26) -> 80394 | G26: 0101001 | H26: Consulta médica general | I26: ='1trimestre'!I26+'2ºtrimestre'!I26+'3º trimestre'!I26+'4º trimestre'!I26 -> 0 | M26: 0101001 | N26: Consulta médica general | O26: ='1trimestre'!O26+'2ºtrimestre'!O26+'3º trimestre'!O26+'4º trimestre'!O26 -> 0 | S26: 0101001 | T26: Consulta médica general | U26: ='1trimestre'!U26+'2ºtrimestre'!U26+'3º trimestre'!U26+'4º trimestre'!U26 -> 0 | Y26: 0101001 | Z26: Consulta médica general | AA26: ='1trimestre'!AA26+'2ºtrimestre'!AA26+'3º trimestre'!AA26+'4º trimestre'!AA26 -> 0 | AE26: 0101001 | AF26: Consulta médica general | AG26: ='1trimestre'!AG26+'2ºtrimestre'!AG26+'3º trimestre'!AG26+'4º trimestre'!AG26 -> 14373 | AK26: 0101001 | AL26: Consulta médica general | AM26: ='1trimestre'!AM26+'2ºtrimestre'!AM26+'3º trimestre'!AM26+'4º trimestre'!AM26 -> 16222 | AQ26: 0101001 | AR26: Consulta médica general | AS26: ='1trimestre'!AS26+'2ºtrimestre'!AS26+'3º trimestre'!AS26+'4º trimestre'!AS26 -> 13048 | AW26: 0101001 | AX26: Consulta médica general | AY26: ='1trimestre'!AY26+'2ºtrimestre'!AY26+'3º trimestre'!AY26+'4º trimestre'!AY26 -> 13227 | BC26: 0101001 | BD26: Consulta médica general | BE26: ='1trimestre'!BE26+'2ºtrimestre'!BE26+'3º trimestre'!BE26+'4º trimestre'!BE26 -> 23524 | BI26: 0101001 | BJ26: Consulta médica general | BK26: ='1trimestre'!BK26+'2ºtrimestre'!BK26+'3º trimestre'!BK26+'4º trimestre'!BK26 -> 0 | BO26: 0101001 | BP26: Consulta médica general | BQ26: ='1trimestre'!BQ26+'2ºtrimestre'!BQ26+'3º trimestre'!BQ26+'4º trimestre'!BQ26 -> 0
B27: Consultas de urgencia en Hospitales de baja complejidad | C27: 94997 | H27: Consultas de urgencia en Hospitales de baja complejidad | I27: ='1trimestre'!I27+'2ºtrimestre'!I27+'3º trimestre'!I27+'4º trimestre'!I27 -> 0 | N27: Consultas de urgencia en Hospitales de baja complejidad | O27: ='1trimestre'!O27+'2ºtrimestre'!O27+'3º trimestre'!O27+'4º trimestre'!O27 -> 0 | T27: Consultas de urgencia en Hospitales de baja complejidad | U27: ='1trimestre'!U27+'2ºtrimestre'!U27+'3º trimestre'!U27+'4º trimestre'!U27 -> 0 | Z27: Consultas de urgencia en Hospitales de baja complejidad | AA27: ='1trimestre'!AA27+'2ºtrimestre'!AA27+'3º trimestre'!AA27+'4º trimestre'!AA27 -> 0 | AF27: Consultas de urgencia en Hospitales de baja complejidad | AG27: ='1trimestre'!AG27+'2ºtrimestre'!AG27+'3º trimestre'!AG27+'4º trimestre'!AG27 -> 32648 | AL27: Consultas de urgencia en Hospitales de baja complejidad | AM27: ='1trimestre'!AM27+'2ºtrimestre'!AM27+'3º trimestre'!AM27+'4º trimestre'!AM27 -> 4074 | AR27: Consultas de urgencia en Hospitales de baja complejidad | AS27: ='1trimestre'!AS27+'2ºtrimestre'!AS27+'3º trimestre'!AS27+'4º trimestre'!AS27 -> 9261 | AX27: Consultas de urgencia en Hospitales de baja complejidad | AY27: ='1trimestre'!AY27+'2ºtrimestre'!AY27+'3º trimestre'!AY27+'4º trimestre'!AY27 -> 26396 | BD27: Consultas de urgencia en Hospitales de baja complejidad | BE27: ='1trimestre'!BE27+'2ºtrimestre'!BE27+'3º trimestre'!BE27+'4º trimestre'!BE27 -> 22618 | BJ27: Consultas de urgencia en Hospitales de baja complejidad | BK27: ='1trimestre'!BK27+'2ºtrimestre'!BK27+'3º trimestre'!BK27+'4º trimestre'!BK27 -> 0 | BP27: Consultas de urgencia en Hospitales de baja complejidad | BQ27: ='1trimestre'!BQ27+'2ºtrimestre'!BQ27+'3º trimestre'!BQ27+'4º trimestre'!BQ27 -> 0
B28: Consultas de especialidad en hospitales de baja complejidad y establecimientos de APS | C28: 612 | H28: Consultas de especialidad en hospitales de baja complejidad y establecimientos de APS | I28: ='1trimestre'!I28+'2ºtrimestre'!I28+'3º trimestre'!I28+'4º trimestre'!I28 -> 0 | N28: Consultas de especialidad en hospitales de baja complejidad y establecimientos de APS | O28: ='1trimestre'!O28+'2ºtrimestre'!O28+'3º trimestre'!O28+'4º trimestre'!O28 -> 0 | T28: Consultas de especialidad en hospitales de baja complejidad y establecimientos de APS | U28: ='1trimestre'!U28+'2ºtrimestre'!U28+'3º trimestre'!U28+'4º trimestre'!U28 -> 0 | Z28: Consultas de especialidad en hospitales de baja complejidad y establecimientos de APS | AA28: ='1trimestre'!AA28+'2ºtrimestre'!AA28+'3º trimestre'!AA28+'4º trimestre'!AA28 -> 0 | AF28: Consultas de especialidad en hospitales de baja complejidad y establecimientos de APS | AG28: ='1trimestre'!AG28+'2ºtrimestre'!AG28+'3º trimestre'!AG28+'4º trimestre'!AG28 -> 283 | AL28: Consultas de especialidad en hospitales de baja complejidad y establecimientos de APS | AM28: ='1trimestre'!AM28+'2ºtrimestre'!AM28+'3º trimestre'!AM28+'4º trimestre'!AM28 -> 101 | AR28: Consultas de especialidad en hospitales de baja complejidad y establecimientos de APS | AS28: ='1trimestre'!AS28+'2ºtrimestre'!AS28+'3º trimestre'!AS28+'4º trimestre'!AS28 -> 0 | AX28: Consultas de especialidad en hospitales de baja complejidad y establecimientos de APS | AY28: ='1trimestre'!AY28+'2ºtrimestre'!AY28+'3º trimestre'!AY28+'4º trimestre'!AY28 -> 0 | BD28: Consultas de especialidad en hospitales de baja complejidad y establecimientos de APS | BE28: ='1trimestre'!BE28+'2ºtrimestre'!BE28+'3º trimestre'!BE28+'4º trimestre'!BE28 -> 228 | BJ28: Consultas de especialidad en hospitales de baja complejidad y establecimientos de APS | BK28: ='1trimestre'!BK28+'2ºtrimestre'!BK28+'3º trimestre'!BK28+'4º trimestre'!BK28 -> 0 | BP28: Consultas de especialidad en hospitales de baja complejidad y establecimientos de APS | BQ28: ='1trimestre'!BQ28+'2ºtrimestre'!BQ28+'3º trimestre'!BQ28+'4º trimestre'!BQ28 -> 0
B29: Otras consulta médica de especialidades | C29: 0 | H29: Otras consulta médica de especialidades | I29: ='1trimestre'!I29+'2ºtrimestre'!I29+'3º trimestre'!I29+'4º trimestre'!I29 -> 0 | N29: Otras consulta médica de especialidades | O29: ='1trimestre'!O29+'2ºtrimestre'!O29+'3º trimestre'!O29+'4º trimestre'!O29 -> 0 | T29: Otras consulta médica de especialidades | U29: ='1trimestre'!U29+'2ºtrimestre'!U29+'3º trimestre'!U29+'4º trimestre'!U29 -> 0 | Z29: Otras consulta médica de especialidades | AA29: ='1trimestre'!AA29+'2ºtrimestre'!AA29+'3º trimestre'!AA29+'4º trimestre'!AA29 -> 0 | AF29: Otras consulta médica de especialidades | AG29: ='1trimestre'!AG29+'2ºtrimestre'!AG29+'3º trimestre'!AG29+'4º trimestre'!AG29 -> 0 | AL29: Otras consulta médica de especialidades | AM29: ='1trimestre'!AM29+'2ºtrimestre'!AM29+'3º trimestre'!AM29+'4º trimestre'!AM29 -> 0 | AR29: Otras consulta médica de especialidades | AS29: ='1trimestre'!AS29+'2ºtrimestre'!AS29+'3º trimestre'!AS29+'4º trimestre'!AS29 -> 0 | AX29: Otras consulta médica de especialidades | AY29: ='1trimestre'!AY29+'2ºtrimestre'!AY29+'3º trimestre'!AY29+'4º trimestre'!AY29 -> 0 | BD29: Otras consulta médica de especialidades | BE29: ='1trimestre'!BE29+'2ºtrimestre'!BE29+'3º trimestre'!BE29+'4º trimestre'!BE29 -> 0 | BJ29: Otras consulta médica de especialidades | BK29: ='1trimestre'!BK29+'2ºtrimestre'!BK29+'3º trimestre'!BK29+'4º trimestre'!BK29 -> 0 | BP29: Otras consulta médica de especialidades | BQ29: ='1trimestre'!BQ29+'2ºtrimestre'!BQ29+'3º trimestre'!BQ29+'4º trimestre'!BQ29 -> 0
B30: Consulta médica de especialidad en servicio de urgencia | C30: 12280 | H30: Consulta médica de especialidad en servicio de urgencia | I30: ='1trimestre'!I30+'2ºtrimestre'!I30+'3º trimestre'!I30+'4º trimestre'!I30 -> 11232 | N30: Consulta médica de especialidad en servicio de urgencia | O30: ='1trimestre'!O30+'2ºtrimestre'!O30+'3º trimestre'!O30+'4º trimestre'!O30 -> 0 | T30: Consulta médica de especialidad en servicio de urgencia | U30: ='1trimestre'!U30+'2ºtrimestre'!U30+'3º trimestre'!U30+'4º trimestre'!U30 -> 0 | Z30: Consulta médica de especialidad en servicio de urgencia | AA30: ='1trimestre'!AA30+'2ºtrimestre'!AA30+'3º trimestre'!AA30+'4º trimestre'!AA30 -> 1048 | AF30: Consulta médica de especialidad en servicio de urgencia | AG30: ='1trimestre'!AG30+'2ºtrimestre'!AG30+'3º trimestre'!AG30+'4º trimestre'!AG30 -> 0 | AL30: Consulta médica de especialidad en servicio de urgencia | AM30: ='1trimestre'!AM30+'2ºtrimestre'!AM30+'3º trimestre'!AM30+'4º trimestre'!AM30 -> 0 | AR30: Consulta médica de especialidad en servicio de urgencia | AS30: ='1trimestre'!AS30+'2ºtrimestre'!AS30+'3º trimestre'!AS30+'4º trimestre'!AS30 -> 0 | AX30: Consulta médica de especialidad en servicio de urgencia | AY30: ='1trimestre'!AY30+'2ºtrimestre'!AY30+'3º trimestre'!AY30+'4º trimestre'!AY30 -> 0 | BD30: Consulta médica de especialidad en servicio de urgencia | BE30: ='1trimestre'!BE30+'2ºtrimestre'!BE30+'3º trimestre'!BE30+'4º trimestre'!BE30 -> 0 | BJ30: Consulta médica de especialidad en servicio de urgencia | BK30: ='1trimestre'!BK30+'2ºtrimestre'!BK30+'3º trimestre'!BK30+'4º trimestre'!BK30 -> 0 | BP30: Consulta médica de especialidad en servicio de urgencia | BQ30: ='1trimestre'!BQ30+'2ºtrimestre'!BQ30+'3º trimestre'!BQ30+'4º trimestre'!BQ30 -> 0
A31: 101308 | B31: Consulta Médica de Especialidad en Obstetricia y Ginecología | C31: 3221 | G31: 101308 | H31: Consulta Médica de Especialidad en Obstetricia y Ginecología | I31: ='1trimestre'!I31+'2ºtrimestre'!I31+'3º trimestre'!I31+'4º trimestre'!I31 -> 0 | M31: 101308 | N31: Consulta Médica de Especialidad en Obstetricia y Ginecología | O31: ='1trimestre'!O31+'2ºtrimestre'!O31+'3º trimestre'!O31+'4º trimestre'!O31 -> 0 | S31: 101308 | T31: Consulta Médica de Especialidad en Obstetricia y Ginecología | U31: ='1trimestre'!U31+'2ºtrimestre'!U31+'3º trimestre'!U31+'4º trimestre'!U31 -> 0 | Y31: 101308 | Z31: Consulta Médica de Especialidad en Obstetricia y Ginecología | AA31: ='1trimestre'!AA31+'2ºtrimestre'!AA31+'3º trimestre'!AA31+'4º trimestre'!AA31 -> 458 | AE31: 101308 | AF31: Consulta Médica de Especialidad en Obstetricia y Ginecología | AG31: ='1trimestre'!AG31+'2ºtrimestre'!AG31+'3º trimestre'!AG31+'4º trimestre'!AG31 -> 0 | AK31: 101308 | AL31: Consulta Médica de Especialidad en Obstetricia y Ginecología | AM31: ='1trimestre'!AM31+'2ºtrimestre'!AM31+'3º trimestre'!AM31+'4º trimestre'!AM31 -> 0 | AQ31: 101308 | AR31: Consulta Médica de Especialidad en Obstetricia y Ginecología | AS31: ='1trimestre'!AS31+'2ºtrimestre'!AS31+'3º trimestre'!AS31+'4º trimestre'!AS31 -> 0 | AW31: 101308 | AX31: Consulta Médica de Especialidad en Obstetricia y Ginecología | AY31: ='1trimestre'!AY31+'2ºtrimestre'!AY31+'3º trimestre'!AY31+'4º trimestre'!AY31 -> 0 | BC31: 101308 | BD31: Consulta Médica de Especialidad en Obstetricia y Ginecología | BE31: ='1trimestre'!BE31+'2ºtrimestre'!BE31+'3º trimestre'!BE31+'4º trimestre'!BE31 -> 2763 | BI31: 101308 | BJ31: Consulta Médica de Especialidad en Obstetricia y Ginecología | BK31: ='1trimestre'!BK31+'2ºtrimestre'!BK31+'3º trimestre'!BK31+'4º trimestre'!BK31 -> 0 | BO31: 101308 | BP31: Consulta Médica de Especialidad en Obstetricia y Ginecología | BQ31: ='1trimestre'!BQ31+'2ºtrimestre'!BQ31+'3º trimestre'!BQ31+'4º trimestre'!BQ31 -> 0
B32: CONSULTAS POR OTROS PROFESIONALES DE LA SALUD | C32: =SUM(C33:C43) -> 340859 | D32: =SUM(D33:D43) -> 340440 | E32: 670547940 | H32: CONSULTAS POR OTROS PROFESIONALES DE LA SALUD | I32: =SUM(I33:I43) -> 52460 | J32: =SUM(J33:J43) -> 52307 | K32: 135217050 | N32: CONSULTAS POR OTROS PROFESIONALES DE LA SALUD | O32: =SUM(O33:O43) -> 62949 | P32: =SUM(P33:P43) -> 62949 | Q32: 186095080 | T32: CONSULTAS POR OTROS PROFESIONALES DE LA SALUD | U32: =SUM(U33:U43) -> 48308 | V32: =SUM(V33:V43) -> 48262 | W32: 102904810 | Z32: CONSULTAS POR OTROS PROFESIONALES DE LA SALUD | AA32: =SUM(AA33:AA43) -> 18999 | AB32: =SUM(AB33:AB43) -> 18995 | AC32: 50070260 | AF32: CONSULTAS POR OTROS PROFESIONALES DE LA SALUD | AG32: =SUM(AG33:AG43) -> 69895 | AH32: =SUM(AH33:AH43) -> 69895 | AI32: 74266770 | AL32: CONSULTAS POR OTROS PROFESIONALES DE LA SALUD | AM32: =SUM(AM33:AM43) -> 26715 | AN32: =SUM(AN33:AN43) -> 26499 | AO32: 33259460 | AR32: CONSULTAS POR OTROS PROFESIONALES DE LA SALUD | AS32: =SUM(AS33:AS43) -> 22273 | AT32: =SUM(AT33:AT43) -> 22273 | AU32: 29752050 | AX32: CONSULTAS POR OTROS PROFESIONALES DE LA SALUD | AY32: =SUM(AY33:AY43) -> 18388 | AZ32: =SUM(AZ33:AZ43) -> 18388 | BA32: 29733400 | BD32: CONSULTAS POR OTROS PROFESIONALES DE LA SALUD | BE32: =SUM(BE33:BE43) -> 20872 | BF32: =SUM(BF33:BF43) -> 20872 | BG32: 29249060 | BJ32: CONSULTAS POR OTROS PROFESIONALES DE LA SALUD | BK32: =SUM(BK33:BK43) -> 0 | BL32: =SUM(BL33:BL43) -> 0 | BM32: 0 | BP32: CONSULTAS POR OTROS PROFESIONALES DE LA SALUD | BQ32: =SUM(BQ33:BQ43) -> 0 | BR32: =SUM(BR33:BR43) -> 0 | BS32: 0
A33: 0102001 | B33: Consulta o control por enfermera, matrona o nutricionista | C33: =SUM(I33+O33+U33+AA33+AG33+AM33+AS33+AY33+BE33+BK33+BQ33) -> 141890 | D33: =SUM(J33+P33+V33+AB33+AH33+AN33+AT33+AZ33+BF33+BL33+BR33) -> 141757 | E33: =SUM(K33+Q33+W33+AC33+AI33+AO33+AU33+BA33+BG33+BM33+BS33) -> 177196250 | G33: 0102001 | H33: Consulta o control por enfermera, matrona o nutricionista | I33: ='1trimestre'!I33+'2ºtrimestre'!I33+'3º trimestre'!I33+'4º trimestre'!I33 -> 20039 | J33: ='1trimestre'!J33+'2ºtrimestre'!J33+'3º trimestre'!J33+'4º trimestre'!J33 -> 19943 | K33: ='1trimestre'!K33+'2ºtrimestre'!K33+'3º trimestre'!K33+'4º trimestre'!K33 -> 24928750 | M33: 0102001 | N33: Consulta o control por enfermera, matrona o nutricionista | O33: ='1trimestre'!O33+'2ºtrimestre'!O33+'3º trimestre'!O33+'4º trimestre'!O33 -> 24881 | P33: ='1trimestre'!P33+'2ºtrimestre'!P33+'3º trimestre'!P33+'4º trimestre'!P33 -> 24881 | Q33: ='1trimestre'!Q33+'2ºtrimestre'!Q33+'3º trimestre'!Q33+'4º trimestre'!Q33 -> 31101250 | S33: 0102001 | T33: Consulta o control por enfermera, matrona o nutricionista | U33: ='1trimestre'!U33+'2ºtrimestre'!U33+'3º trimestre'!U33+'4º trimestre'!U33 -> 28429 | V33: ='1trimestre'!V33+'2ºtrimestre'!V33+'3º trimestre'!V33+'4º trimestre'!V33 -> 28403 | W33: ='1trimestre'!W33+'2ºtrimestre'!W33+'3º trimestre'!W33+'4º trimestre'!W33 -> 35503750 | Y33: 0102001 | Z33: Consulta o control por enfermera, matrona o nutricionista | AA33: ='1trimestre'!AA33+'2ºtrimestre'!AA33+'3º trimestre'!AA33+'4º trimestre'!AA33 -> 3665 | AB33: ='1trimestre'!AB33+'2ºtrimestre'!AB33+'3º trimestre'!AB33+'4º trimestre'!AB33 -> 3665 | AC33: ='1trimestre'!AC33+'2ºtrimestre'!AC33+'3º trimestre'!AC33+'4º trimestre'!AC33 -> 4581250 | AE33: 0102001 | AF33: Consulta o control por enfermera, matrona o nutricionista | AG33: ='1trimestre'!AG33+'2ºtrimestre'!AG33+'3º trimestre'!AG33+'4º trimestre'!AG33 -> 18350 | AH33: ='1trimestre'!AH33+'2ºtrimestre'!AH33+'3º trimestre'!AH33+'4º trimestre'!AH33 -> 18350 | AI33: ='1trimestre'!AI33+'2ºtrimestre'!AI33+'3º trimestre'!AI33+'4º trimestre'!AI33 -> 22937500 | AK33: 0102001 | AL33: Consulta o control por enfermera, matrona o nutricionista | AM33: ='1trimestre'!AM33+'2ºtrimestre'!AM33+'3º trimestre'!AM33+'4º trimestre'!AM33 -> 8621 | AN33: ='1trimestre'!AN33+'2ºtrimestre'!AN33+'3º trimestre'!AN33+'4º trimestre'!AN33 -> 8610 | AO33: ='1trimestre'!AO33+'2ºtrimestre'!AO33+'3º trimestre'!AO33+'4º trimestre'!AO33 -> 10762500 | AQ33: 0102001 | AR33: Consulta o control por enfermera, matrona o nutricionista | AS33: ='1trimestre'!AS33+'2ºtrimestre'!AS33+'3º trimestre'!AS33+'4º trimestre'!AS33 -> 13815 | AT33: ='1trimestre'!AT33+'2ºtrimestre'!AT33+'3º trimestre'!AT33+'4º trimestre'!AT33 -> 13815 | AU33: ='1trimestre'!AU33+'2ºtrimestre'!AU33+'3º trimestre'!AU33+'4º trimestre'!AU33 -> 17268750 | AW33: 0102001 | AX33: Consulta o control por enfermera, matrona o nutricionista | AY33: ='1trimestre'!AY33+'2ºtrimestre'!AY33+'3º trimestre'!AY33+'4º trimestre'!AY33 -> 10256 | AZ33: ='1trimestre'!AZ33+'2ºtrimestre'!AZ33+'3º trimestre'!AZ33+'4º trimestre'!AZ33 -> 10256 | BA33: ='1trimestre'!BA33+'2ºtrimestre'!BA33+'3º trimestre'!BA33+'4º trimestre'!BA33 -> 12820000 | BC33: 0102001 | BD33: Consulta o control por enfermera, matrona o nutricionista | BE33: ='1trimestre'!BE33+'2ºtrimestre'!BE33+'3º trimestre'!BE33+'4º trimestre'!BE33 -> 13834 | BF33: ='1trimestre'!BF33+'2ºtrimestre'!BF33+'3º trimestre'!BF33+'4º trimestre'!BF33 -> 13834 | BG33: ='1trimestre'!BG33+'2ºtrimestre'!BG33+'3º trimestre'!BG33+'4º trimestre'!BG33 -> 17292500 | BI33: 0102001 | BJ33: Consulta o control por enfermera, matrona o nutricionista | BK33: ='1trimestre'!BK33+'2ºtrimestre'!BK33+'3º trimestre'!BK33+'4º trimestre'!BK33 -> 0 | BL33: ='1trimestre'!BL33+'2ºtrimestre'!BL33+'3º trimestre'!BL33+'4º trimestre'!BL33 -> 0 | BM33: ='1trimestre'!BM33+'2ºtrimestre'!BM33+'3º trimestre'!BM33+'4º trimestre'!BM33 -> 0 | BO33: 0102001 | BP33: Consulta o control por enfermera, matrona o nutricionista | BQ33: ='1trimestre'!BQ33+'2ºtrimestre'!BQ33+'3º trimestre'!BQ33+'4º trimestre'!BQ33 -> 0 | BR33: ='1trimestre'!BR33+'2ºtrimestre'!BR33+'3º trimestre'!BR33+'4º trimestre'!BR33 -> 0 | BS33: ='1trimestre'!BS33+'2ºtrimestre'!BS33+'3º trimestre'!BS33+'4º trimestre'!BS33 -> 0
A34: 0102002 | B34: Control de salud niño con EDP por enfermera | C34: 1976 | D34: 1976 | E34: 4228640 | G34: 0102002 | H34: Control de salud niño con EDP por enfermera | I34: ='1trimestre'!I34+'2ºtrimestre'!I34+'3º trimestre'!I34+'4º trimestre'!I34 -> 0 | J34: ='1trimestre'!J34+'2ºtrimestre'!J34+'3º trimestre'!J34+'4º trimestre'!J34 -> 0 | K34: ='1trimestre'!K34+'2ºtrimestre'!K34+'3º trimestre'!K34+'4º trimestre'!K34 -> 0 | M34: 0102002 | N34: Control de salud niño con EDP por enfermera | O34: ='1trimestre'!O34+'2ºtrimestre'!O34+'3º trimestre'!O34+'4º trimestre'!O34 -> 0 | P34: ='1trimestre'!P34+'2ºtrimestre'!P34+'3º trimestre'!P34+'4º trimestre'!P34 -> 0 | Q34: ='1trimestre'!Q34+'2ºtrimestre'!Q34+'3º trimestre'!Q34+'4º trimestre'!Q34 -> 0 | S34: 0102002 | T34: Control de salud niño con EDP por enfermera | U34: ='1trimestre'!U34+'2ºtrimestre'!U34+'3º trimestre'!U34+'4º trimestre'!U34 -> 0 | V34: ='1trimestre'!V34+'2ºtrimestre'!V34+'3º trimestre'!V34+'4º trimestre'!V34 -> 0 | W34: ='1trimestre'!W34+'2ºtrimestre'!W34+'3º trimestre'!W34+'4º trimestre'!W34 -> 0 | Y34: 0102002 | Z34: Control de salud niño con EDP por enfermera | AA34: ='1trimestre'!AA34+'2ºtrimestre'!AA34+'3º trimestre'!AA34+'4º trimestre'!AA34 -> 0 | AB34: ='1trimestre'!AB34+'2ºtrimestre'!AB34+'3º trimestre'!AB34+'4º trimestre'!AB34 -> 0 | AC34: ='1trimestre'!AC34+'2ºtrimestre'!AC34+'3º trimestre'!AC34+'4º trimestre'!AC34 -> 0 | AE34: 0102002 | AF34: Control de salud niño con EDP por enfermera | AG34: ='1trimestre'!AG34+'2ºtrimestre'!AG34+'3º trimestre'!AG34+'4º trimestre'!AG34 -> 315 | AH34: ='1trimestre'!AH34+'2ºtrimestre'!AH34+'3º trimestre'!AH34+'4º trimestre'!AH34 -> 315 | AI34: ='1trimestre'!AI34+'2ºtrimestre'!AI34+'3º trimestre'!AI34+'4º trimestre'!AI34 -> 674100 | AK34: 0102002 | AL34: Control de salud niño con EDP por enfermera | AM34: ='1trimestre'!AM34+'2ºtrimestre'!AM34+'3º trimestre'!AM34+'4º trimestre'!AM34 -> 223 | AN34: ='1trimestre'!AN34+'2ºtrimestre'!AN34+'3º trimestre'!AN34+'4º trimestre'!AN34 -> 223 | AO34: ='1trimestre'!AO34+'2ºtrimestre'!AO34+'3º trimestre'!AO34+'4º trimestre'!AO34 -> 477220 | AQ34: 0102002 | AR34: Control de salud niño con EDP por enfermera | AS34: ='1trimestre'!AS34+'2ºtrimestre'!AS34+'3º trimestre'!AS34+'4º trimestre'!AS34 -> 306 | AT34: ='1trimestre'!AT34+'2ºtrimestre'!AT34+'3º trimestre'!AT34+'4º trimestre'!AT34 -> 306 | AU34: ='1trimestre'!AU34+'2ºtrimestre'!AU34+'3º trimestre'!AU34+'4º trimestre'!AU34 -> 654840 | AW34: 0102002 | AX34: Control de salud niño con EDP por enfermera | AY34: ='1trimestre'!AY34+'2ºtrimestre'!AY34+'3º trimestre'!AY34+'4º trimestre'!AY34 -> 384 | AZ34: ='1trimestre'!AZ34+'2ºtrimestre'!AZ34+'3º trimestre'!AZ34+'4º trimestre'!AZ34 -> 384 | BA34: ='1trimestre'!BA34+'2ºtrimestre'!BA34+'3º trimestre'!BA34+'4º trimestre'!BA34 -> 821760 | BC34: 0102002 | BD34: Control de salud niño con EDP por enfermera | BE34: ='1trimestre'!BE34+'2ºtrimestre'!BE34+'3º trimestre'!BE34+'4º trimestre'!BE34 -> 748 | BF34: ='1trimestre'!BF34+'2ºtrimestre'!BF34+'3º trimestre'!BF34+'4º trimestre'!BF34 -> 748 | BG34: ='1trimestre'!BG34+'2ºtrimestre'!BG34+'3º trimestre'!BG34+'4º trimestre'!BG34 -> 1600720 | BI34: 0102002 | BJ34: Control de salud niño con EDP por enfermera | BK34: ='1trimestre'!BK34+'2ºtrimestre'!BK34+'3º trimestre'!BK34+'4º trimestre'!BK34 -> 0 | BL34: ='1trimestre'!BL34+'2ºtrimestre'!BL34+'3º trimestre'!BL34+'4º trimestre'!BL34 -> 0 | BM34: ='1trimestre'!BM34+'2ºtrimestre'!BM34+'3º trimestre'!BM34+'4º trimestre'!BM34 -> 0 | BO34: 0102002 | BP34: Control de salud niño con EDP por enfermera | BQ34: ='1trimestre'!BQ34+'2ºtrimestre'!BQ34+'3º trimestre'!BQ34+'4º trimestre'!BQ34 -> 0 | BR34: ='1trimestre'!BR34+'2ºtrimestre'!BR34+'3º trimestre'!BR34+'4º trimestre'!BR34 -> 0 | BS34: ='1trimestre'!BS34+'2ºtrimestre'!BS34+'3º trimestre'!BS34+'4º trimestre'!BS34 -> 0
A35: 0102003 | B35: Consulta o control por auxiliar de enfermería | C35: 55487 | D35: 55282 | E35: 38144580 | G35: 0102003 | H35: Consulta o control por auxiliar de enfermería | I35: ='1trimestre'!I35+'2ºtrimestre'!I35+'3º trimestre'!I35+'4º trimestre'!I35 -> 0 | J35: ='1trimestre'!J35+'2ºtrimestre'!J35+'3º trimestre'!J35+'4º trimestre'!J35 -> 0 | K35: ='1trimestre'!K35+'2ºtrimestre'!K35+'3º trimestre'!K35+'4º trimestre'!K35 -> 0 | M35: 0102003 | N35: Consulta o control por auxiliar de enfermería | O35: ='1trimestre'!O35+'2ºtrimestre'!O35+'3º trimestre'!O35+'4º trimestre'!O35 -> 0 | P35: ='1trimestre'!P35+'2ºtrimestre'!P35+'3º trimestre'!P35+'4º trimestre'!P35 -> 0 | Q35: ='1trimestre'!Q35+'2ºtrimestre'!Q35+'3º trimestre'!Q35+'4º trimestre'!Q35 -> 0 | S35: 0102003 | T35: Consulta o control por auxiliar de enfermería | U35: ='1trimestre'!U35+'2ºtrimestre'!U35+'3º trimestre'!U35+'4º trimestre'!U35 -> 0 | V35: ='1trimestre'!V35+'2ºtrimestre'!V35+'3º trimestre'!V35+'4º trimestre'!V35 -> 0 | W35: ='1trimestre'!W35+'2ºtrimestre'!W35+'3º trimestre'!W35+'4º trimestre'!W35 -> 0 | Y35: 0102003 | Z35: Consulta o control por auxiliar de enfermería | AA35: ='1trimestre'!AA35+'2ºtrimestre'!AA35+'3º trimestre'!AA35+'4º trimestre'!AA35 -> 0 | AB35: ='1trimestre'!AB35+'2ºtrimestre'!AB35+'3º trimestre'!AB35+'4º trimestre'!AB35 -> 0 | AC35: ='1trimestre'!AC35+'2ºtrimestre'!AC35+'3º trimestre'!AC35+'4º trimestre'!AC35 -> 0 | AE35: 0102003 | AF35: Consulta o control por auxiliar de enfermería | AG35: ='1trimestre'!AG35+'2ºtrimestre'!AG35+'3º trimestre'!AG35+'4º trimestre'!AG35 -> 38916 | AH35: ='1trimestre'!AH35+'2ºtrimestre'!AH35+'3º trimestre'!AH35+'4º trimestre'!AH35 -> 38916 | AI35: ='1trimestre'!AI35+'2ºtrimestre'!AI35+'3º trimestre'!AI35+'4º trimestre'!AI35 -> 26852040 | AK35: 0102003 | AL35: Consulta o control por auxiliar de enfermería | AM35: ='1trimestre'!AM35+'2ºtrimestre'!AM35+'3º trimestre'!AM35+'4º trimestre'!AM35 -> 9049 | AN35: ='1trimestre'!AN35+'2ºtrimestre'!AN35+'3º trimestre'!AN35+'4º trimestre'!AN35 -> 8844 | AO35: ='1trimestre'!AO35+'2ºtrimestre'!AO35+'3º trimestre'!AO35+'4º trimestre'!AO35 -> 6102360 | AQ35: 0102003 | AR35: Consulta o control por auxiliar de enfermería | AS35: ='1trimestre'!AS35+'2ºtrimestre'!AS35+'3º trimestre'!AS35+'4º trimestre'!AS35 -> 3264 | AT35: ='1trimestre'!AT35+'2ºtrimestre'!AT35+'3º trimestre'!AT35+'4º trimestre'!AT35 -> 3264 | AU35: ='1trimestre'!AU35+'2ºtrimestre'!AU35+'3º trimestre'!AU35+'4º trimestre'!AU35 -> 2252160 | AW35: 0102003 | AX35: Consulta o control por auxiliar de enfermería | AY35: ='1trimestre'!AY35+'2ºtrimestre'!AY35+'3º trimestre'!AY35+'4º trimestre'!AY35 -> 2028 | AZ35: ='1trimestre'!AZ35+'2ºtrimestre'!AZ35+'3º trimestre'!AZ35+'4º trimestre'!AZ35 -> 2028 | BA35: ='1trimestre'!BA35+'2ºtrimestre'!BA35+'3º trimestre'!BA35+'4º trimestre'!BA35 -> 1399320 | BC35: 0102003 | BD35: Consulta o control por auxiliar de enfermería | BE35: ='1trimestre'!BE35+'2ºtrimestre'!BE35+'3º trimestre'!BE35+'4º trimestre'!BE35 -> 2230 | BF35: ='1trimestre'!BF35+'2ºtrimestre'!BF35+'3º trimestre'!BF35+'4º trimestre'!BF35 -> 2230 | BG35: ='1trimestre'!BG35+'2ºtrimestre'!BG35+'3º trimestre'!BG35+'4º trimestre'!BG35 -> 1538700 | BI35: 0102003 | BJ35: Consulta o control por auxiliar de enfermería | BK35: ='1trimestre'!BK35+'2ºtrimestre'!BK35+'3º trimestre'!BK35+'4º trimestre'!BK35 -> 0 | BL35: ='1trimestre'!BL35+'2ºtrimestre'!BL35+'3º trimestre'!BL35+'4º trimestre'!BL35 -> 0 | BM35: ='1trimestre'!BM35+'2ºtrimestre'!BM35+'3º trimestre'!BM35+'4º trimestre'!BM35 -> 0 | BO35: 0102003 | BP35: Consulta o control por auxiliar de enfermería | BQ35: ='1trimestre'!BQ35+'2ºtrimestre'!BQ35+'3º trimestre'!BQ35+'4º trimestre'!BQ35 -> 0 | BR35: ='1trimestre'!BR35+'2ºtrimestre'!BR35+'3º trimestre'!BR35+'4º trimestre'!BR35 -> 0 | BS35: ='1trimestre'!BS35+'2ºtrimestre'!BS35+'3º trimestre'!BS35+'4º trimestre'!BS35 -> 0
A36: 0102005 | B36: Consulta por fonoaudiólogo | C36: 8409 | D36: 8386 | E36: 14256200 | G36: 0102005 | H36: Consulta por fonoaudiólogo | I36: ='1trimestre'!I36+'2ºtrimestre'!I36+'3º trimestre'!I36+'4º trimestre'!I36 -> 2896 | J36: ='1trimestre'!J36+'2ºtrimestre'!J36+'3º trimestre'!J36+'4º trimestre'!J36 -> 2890 | K36: ='1trimestre'!K36+'2ºtrimestre'!K36+'3º trimestre'!K36+'4º trimestre'!K36 -> 4913000 | M36: 0102005 | N36: Consulta por fonoaudiólogo | O36: ='1trimestre'!O36+'2ºtrimestre'!O36+'3º trimestre'!O36+'4º trimestre'!O36 -> 491 | P36: ='1trimestre'!P36+'2ºtrimestre'!P36+'3º trimestre'!P36+'4º trimestre'!P36 -> 491 | Q36: ='1trimestre'!Q36+'2ºtrimestre'!Q36+'3º trimestre'!Q36+'4º trimestre'!Q36 -> 834700 | S36: 0102005 | T36: Consulta por fonoaudiólogo | U36: ='1trimestre'!U36+'2ºtrimestre'!U36+'3º trimestre'!U36+'4º trimestre'!U36 -> 3371 | V36: ='1trimestre'!V36+'2ºtrimestre'!V36+'3º trimestre'!V36+'4º trimestre'!V36 -> 3354 | W36: ='1trimestre'!W36+'2ºtrimestre'!W36+'3º trimestre'!W36+'4º trimestre'!W36 -> 5701800 | Y36: 0102005 | Z36: Consulta por fonoaudiólogo | AA36: ='1trimestre'!AA36+'2ºtrimestre'!AA36+'3º trimestre'!AA36+'4º trimestre'!AA36 -> 260 | AB36: ='1trimestre'!AB36+'2ºtrimestre'!AB36+'3º trimestre'!AB36+'4º trimestre'!AB36 -> 260 | AC36: ='1trimestre'!AC36+'2ºtrimestre'!AC36+'3º trimestre'!AC36+'4º trimestre'!AC36 -> 442000 | AE36: 0102005 | AF36: Consulta por fonoaudiólogo | AG36: ='1trimestre'!AG36+'2ºtrimestre'!AG36+'3º trimestre'!AG36+'4º trimestre'!AG36 -> 478 | AH36: ='1trimestre'!AH36+'2ºtrimestre'!AH36+'3º trimestre'!AH36+'4º trimestre'!AH36 -> 478 | AI36: ='1trimestre'!AI36+'2ºtrimestre'!AI36+'3º trimestre'!AI36+'4º trimestre'!AI36 -> 812600 | AK36: 0102005 | AL36: Consulta por fonoaudiólogo | AM36: ='1trimestre'!AM36+'2ºtrimestre'!AM36+'3º trimestre'!AM36+'4º trimestre'!AM36 -> 707 | AN36: ='1trimestre'!AN36+'2ºtrimestre'!AN36+'3º trimestre'!AN36+'4º trimestre'!AN36 -> 707 | AO36: ='1trimestre'!AO36+'2ºtrimestre'!AO36+'3º trimestre'!AO36+'4º trimestre'!AO36 -> 1201900 | AQ36: 0102005 | AR36: Consulta por fonoaudiólogo | AS36: ='1trimestre'!AS36+'2ºtrimestre'!AS36+'3º trimestre'!AS36+'4º trimestre'!AS36 -> 28 | AT36: ='1trimestre'!AT36+'2ºtrimestre'!AT36+'3º trimestre'!AT36+'4º trimestre'!AT36 -> 28 | AU36: ='1trimestre'!AU36+'2ºtrimestre'!AU36+'3º trimestre'!AU36+'4º trimestre'!AU36 -> 47600 | AW36: 0102005 | AX36: Consulta por fonoaudiólogo | AY36: ='1trimestre'!AY36+'2ºtrimestre'!AY36+'3º trimestre'!AY36+'4º trimestre'!AY36 -> 178 | AZ36: ='1trimestre'!AZ36+'2ºtrimestre'!AZ36+'3º trimestre'!AZ36+'4º trimestre'!AZ36 -> 178 | BA36: ='1trimestre'!BA36+'2ºtrimestre'!BA36+'3º trimestre'!BA36+'4º trimestre'!BA36 -> 302600 | BC36: 0102005 | BD36: Consulta por fonoaudiólogo | BE36: ='1trimestre'!BE36+'2ºtrimestre'!BE36+'3º trimestre'!BE36+'4º trimestre'!BE36 -> 0 | BF36: ='1trimestre'!BF36+'2ºtrimestre'!BF36+'3º trimestre'!BF36+'4º trimestre'!BF36 -> 0 | BG36: ='1trimestre'!BG36+'2ºtrimestre'!BG36+'3º trimestre'!BG36+'4º trimestre'!BG36 -> 0 | BI36: 0102005 | BJ36: Consulta por fonoaudiólogo | BK36: ='1trimestre'!BK36+'2ºtrimestre'!BK36+'3º trimestre'!BK36+'4º trimestre'!BK36 -> 0 | BL36: ='1trimestre'!BL36+'2ºtrimestre'!BL36+'3º trimestre'!BL36+'4º trimestre'!BL36 -> 0 | BM36: ='1trimestre'!BM36+'2ºtrimestre'!BM36+'3º trimestre'!BM36+'4º trimestre'!BM36 -> 0 | BO36: 0102005 | BP36: Consulta por fonoaudiólogo | BQ36: ='1trimestre'!BQ36+'2ºtrimestre'!BQ36+'3º trimestre'!BQ36+'4º trimestre'!BQ36 -> 0 | BR36: ='1trimestre'!BR36+'2ºtrimestre'!BR36+'3º trimestre'!BR36+'4º trimestre'!BR36 -> 0 | BS36: ='1trimestre'!BS36+'2ºtrimestre'!BS36+'3º trimestre'!BS36+'4º trimestre'!BS36 -> 0
A37: 0102006 | B37: Atención kinesiológica integral ambulatoria | C37: 58497 | D37: 58476 | E37: 80112120 | G37: 0102006 | H37: Atención kinesiológica integral ambulatoria | I37: ='1trimestre'!I37+'2ºtrimestre'!I37+'3º trimestre'!I37+'4º trimestre'!I37 -> 12864 | J37: ='1trimestre'!J37+'2ºtrimestre'!J37+'3º trimestre'!J37+'4º trimestre'!J37 -> 12845 | K37: ='1trimestre'!K37+'2ºtrimestre'!K37+'3º trimestre'!K37+'4º trimestre'!K37 -> 17597650 | M37: 0102006 | N37: Atención kinesiológica integral ambulatoria | O37: ='1trimestre'!O37+'2ºtrimestre'!O37+'3º trimestre'!O37+'4º trimestre'!O37 -> 10995 | P37: ='1trimestre'!P37+'2ºtrimestre'!P37+'3º trimestre'!P37+'4º trimestre'!P37 -> 10995 | Q37: ='1trimestre'!Q37+'2ºtrimestre'!Q37+'3º trimestre'!Q37+'4º trimestre'!Q37 -> 15063150 | S37: 0102006 | T37: Atención kinesiológica integral ambulatoria | U37: ='1trimestre'!U37+'2ºtrimestre'!U37+'3º trimestre'!U37+'4º trimestre'!U37 -> 8615 | V37: ='1trimestre'!V37+'2ºtrimestre'!V37+'3º trimestre'!V37+'4º trimestre'!V37 -> 8613 | W37: ='1trimestre'!W37+'2ºtrimestre'!W37+'3º trimestre'!W37+'4º trimestre'!W37 -> 11799810 | Y37: 0102006 | Z37: Atención kinesiológica integral ambulatoria | AA37: ='1trimestre'!AA37+'2ºtrimestre'!AA37+'3º trimestre'!AA37+'4º trimestre'!AA37 -> 5525 | AB37: ='1trimestre'!AB37+'2ºtrimestre'!AB37+'3º trimestre'!AB37+'4º trimestre'!AB37 -> 5525 | AC37: ='1trimestre'!AC37+'2ºtrimestre'!AC37+'3º trimestre'!AC37+'4º trimestre'!AC37 -> 7569250 | AE37: 0102006 | AF37: Atención kinesiológica integral ambulatoria | AG37: ='1trimestre'!AG37+'2ºtrimestre'!AG37+'3º trimestre'!AG37+'4º trimestre'!AG37 -> 7827 | AH37: ='1trimestre'!AH37+'2ºtrimestre'!AH37+'3º trimestre'!AH37+'4º trimestre'!AH37 -> 7827 | AI37: ='1trimestre'!AI37+'2ºtrimestre'!AI37+'3º trimestre'!AI37+'4º trimestre'!AI37 -> 10722990 | AK37: 0102006 | AL37: Atención kinesiológica integral ambulatoria | AM37: ='1trimestre'!AM37+'2ºtrimestre'!AM37+'3º trimestre'!AM37+'4º trimestre'!AM37 -> 6270 | AN37: ='1trimestre'!AN37+'2ºtrimestre'!AN37+'3º trimestre'!AN37+'4º trimestre'!AN37 -> 6270 | AO37: ='1trimestre'!AO37+'2ºtrimestre'!AO37+'3º trimestre'!AO37+'4º trimestre'!AO37 -> 8589900 | AQ37: 0102006 | AR37: Atención kinesiológica integral ambulatoria | AS37: ='1trimestre'!AS37+'2ºtrimestre'!AS37+'3º trimestre'!AS37+'4º trimestre'!AS37 -> 2747 | AT37: ='1trimestre'!AT37+'2ºtrimestre'!AT37+'3º trimestre'!AT37+'4º trimestre'!AT37 -> 2747 | AU37: ='1trimestre'!AU37+'2ºtrimestre'!AU37+'3º trimestre'!AU37+'4º trimestre'!AU37 -> 3763390 | AW37: 0102006 | AX37: Atención kinesiológica integral ambulatoria | AY37: ='1trimestre'!AY37+'2ºtrimestre'!AY37+'3º trimestre'!AY37+'4º trimestre'!AY37 -> 1520 | AZ37: ='1trimestre'!AZ37+'2ºtrimestre'!AZ37+'3º trimestre'!AZ37+'4º trimestre'!AZ37 -> 1520 | BA37: ='1trimestre'!BA37+'2ºtrimestre'!BA37+'3º trimestre'!BA37+'4º trimestre'!BA37 -> 2082400 | BC37: 0102006 | BD37: Atención kinesiológica integral ambulatoria | BE37: ='1trimestre'!BE37+'2ºtrimestre'!BE37+'3º trimestre'!BE37+'4º trimestre'!BE37 -> 2134 | BF37: ='1trimestre'!BF37+'2ºtrimestre'!BF37+'3º trimestre'!BF37+'4º trimestre'!BF37 -> 2134 | BG37: ='1trimestre'!BG37+'2ºtrimestre'!BG37+'3º trimestre'!BG37+'4º trimestre'!BG37 -> 2923580 | BI37: 0102006 | BJ37: Atención kinesiológica integral ambulatoria | BK37: ='1trimestre'!BK37+'2ºtrimestre'!BK37+'3º trimestre'!BK37+'4º trimestre'!BK37 -> 0 | BL37: ='1trimestre'!BL37+'2ºtrimestre'!BL37+'3º trimestre'!BL37+'4º trimestre'!BL37 -> 0 | BM37: ='1trimestre'!BM37+'2ºtrimestre'!BM37+'3º trimestre'!BM37+'4º trimestre'!BM37 -> 0 | BO37: 0102006 | BP37: Atención kinesiológica integral ambulatoria | BQ37: ='1trimestre'!BQ37+'2ºtrimestre'!BQ37+'3º trimestre'!BQ37+'4º trimestre'!BQ37 -> 0 | BR37: ='1trimestre'!BR37+'2ºtrimestre'!BR37+'3º trimestre'!BR37+'4º trimestre'!BR37 -> 0 | BS37: ='1trimestre'!BS37+'2ºtrimestre'!BS37+'3º trimestre'!BS37+'4º trimestre'!BS37 -> 0
A38: 0102007 | B38: Atención integral por terapeuta ocupacional | C38: 3289 | D38: 3287 | E38: 4108750 | G38: 0102007 | H38: Atención integral por terapeuta ocupacional | I38: ='1trimestre'!I38+'2ºtrimestre'!I38+'3º trimestre'!I38+'4º trimestre'!I38 -> 225 | J38: ='1trimestre'!J38+'2ºtrimestre'!J38+'3º trimestre'!J38+'4º trimestre'!J38 -> 224 | K38: ='1trimestre'!K38+'2ºtrimestre'!K38+'3º trimestre'!K38+'4º trimestre'!K38 -> 280000 | M38: 0102007 | N38: Atención integral por terapeuta ocupacional | O38: ='1trimestre'!O38+'2ºtrimestre'!O38+'3º trimestre'!O38+'4º trimestre'!O38 -> 2625 | P38: ='1trimestre'!P38+'2ºtrimestre'!P38+'3º trimestre'!P38+'4º trimestre'!P38 -> 2625 | Q38: ='1trimestre'!Q38+'2ºtrimestre'!Q38+'3º trimestre'!Q38+'4º trimestre'!Q38 -> 3281250 | S38: 0102007 | T38: Atención integral por terapeuta ocupacional | U38: ='1trimestre'!U38+'2ºtrimestre'!U38+'3º trimestre'!U38+'4º trimestre'!U38 -> 0 | V38: ='1trimestre'!V38+'2ºtrimestre'!V38+'3º trimestre'!V38+'4º trimestre'!V38 -> 0 | W38: ='1trimestre'!W38+'2ºtrimestre'!W38+'3º trimestre'!W38+'4º trimestre'!W38 -> 0 | Y38: 0102007 | Z38: Atención integral por terapeuta ocupacional | AA38: ='1trimestre'!AA38+'2ºtrimestre'!AA38+'3º trimestre'!AA38+'4º trimestre'!AA38 -> 52 | AB38: ='1trimestre'!AB38+'2ºtrimestre'!AB38+'3º trimestre'!AB38+'4º trimestre'!AB38 -> 51 | AC38: ='1trimestre'!AC38+'2ºtrimestre'!AC38+'3º trimestre'!AC38+'4º trimestre'!AC38 -> 63750 | AE38: 0102007 | AF38: Atención integral por terapeuta ocupacional | AG38: ='1trimestre'!AG38+'2ºtrimestre'!AG38+'3º trimestre'!AG38+'4º trimestre'!AG38 -> 0 | AH38: ='1trimestre'!AH38+'2ºtrimestre'!AH38+'3º trimestre'!AH38+'4º trimestre'!AH38 -> 0 | AI38: ='1trimestre'!AI38+'2ºtrimestre'!AI38+'3º trimestre'!AI38+'4º trimestre'!AI38 -> 0 | AK38: 0102007 | AL38: Atención integral por terapeuta ocupacional | AM38: ='1trimestre'!AM38+'2ºtrimestre'!AM38+'3º trimestre'!AM38+'4º trimestre'!AM38 -> 0 | AN38: ='1trimestre'!AN38+'2ºtrimestre'!AN38+'3º trimestre'!AN38+'4º trimestre'!AN38 -> 0 | AO38: ='1trimestre'!AO38+'2ºtrimestre'!AO38+'3º trimestre'!AO38+'4º trimestre'!AO38 -> 0 | AQ38: 0102007 | AR38: Atención integral por terapeuta ocupacional | AS38: ='1trimestre'!AS38+'2ºtrimestre'!AS38+'3º trimestre'!AS38+'4º trimestre'!AS38 -> 387 | AT38: ='1trimestre'!AT38+'2ºtrimestre'!AT38+'3º trimestre'!AT38+'4º trimestre'!AT38 -> 387 | AU38: ='1trimestre'!AU38+'2ºtrimestre'!AU38+'3º trimestre'!AU38+'4º trimestre'!AU38 -> 483750 | AW38: 0102007 | AX38: Atención integral por terapeuta ocupacional | AY38: ='1trimestre'!AY38+'2ºtrimestre'!AY38+'3º trimestre'!AY38+'4º trimestre'!AY38 -> 0 | AZ38: ='1trimestre'!AZ38+'2ºtrimestre'!AZ38+'3º trimestre'!AZ38+'4º trimestre'!AZ38 -> 0 | BA38: ='1trimestre'!BA38+'2ºtrimestre'!BA38+'3º trimestre'!BA38+'4º trimestre'!BA38 -> 0 | BC38: 0102007 | BD38: Atención integral por terapeuta ocupacional | BE38: ='1trimestre'!BE38+'2ºtrimestre'!BE38+'3º trimestre'!BE38+'4º trimestre'!BE38 -> 0 | BF38: ='1trimestre'!BF38+'2ºtrimestre'!BF38+'3º trimestre'!BF38+'4º trimestre'!BF38 -> 0 | BG38: ='1trimestre'!BG38+'2ºtrimestre'!BG38+'3º trimestre'!BG38+'4º trimestre'!BG38 -> 0 | BI38: 0102007 | BJ38: Atención integral por terapeuta ocupacional | BK38: ='1trimestre'!BK38+'2ºtrimestre'!BK38+'3º trimestre'!BK38+'4º trimestre'!BK38 -> 0 | BL38: ='1trimestre'!BL38+'2ºtrimestre'!BL38+'3º trimestre'!BL38+'4º trimestre'!BL38 -> 0 | BM38: ='1trimestre'!BM38+'2ºtrimestre'!BM38+'3º trimestre'!BM38+'4º trimestre'!BM38 -> 0 | BO38: 0102007 | BP38: Atención integral por terapeuta ocupacional | BQ38: ='1trimestre'!BQ38+'2ºtrimestre'!BQ38+'3º trimestre'!BQ38+'4º trimestre'!BQ38 -> 0 | BR38: ='1trimestre'!BR38+'2ºtrimestre'!BR38+'3º trimestre'!BR38+'4º trimestre'!BR38 -> 0 | BS38: ='1trimestre'!BS38+'2ºtrimestre'!BS38+'3º trimestre'!BS38+'4º trimestre'!BS38 -> 0
A39: 0903002 | B39: Consulta o control psicológico clínico | C39: 20664 | D39: 20632 | E39: 63133920 | G39: 0903002 | H39: Consulta o control psicológico clínico | I39: ='1trimestre'!I39+'2ºtrimestre'!I39+'3º trimestre'!I39+'4º trimestre'!I39 -> 1707 | J39: ='1trimestre'!J39+'2ºtrimestre'!J39+'3º trimestre'!J39+'4º trimestre'!J39 -> 1676 | K39: ='1trimestre'!K39+'2ºtrimestre'!K39+'3º trimestre'!K39+'4º trimestre'!K39 -> 5128560 | M39: 0903002 | N39: Consulta o control psicológico clínico | O39: ='1trimestre'!O39+'2ºtrimestre'!O39+'3º trimestre'!O39+'4º trimestre'!O39 -> 4940 | P39: ='1trimestre'!P39+'2ºtrimestre'!P39+'3º trimestre'!P39+'4º trimestre'!P39 -> 4940 | Q39: ='1trimestre'!Q39+'2ºtrimestre'!Q39+'3º trimestre'!Q39+'4º trimestre'!Q39 -> 15116400 | S39: 0903002 | T39: Consulta o control psicológico clínico | U39: ='1trimestre'!U39+'2ºtrimestre'!U39+'3º trimestre'!U39+'4º trimestre'!U39 -> 2368 | V39: ='1trimestre'!V39+'2ºtrimestre'!V39+'3º trimestre'!V39+'4º trimestre'!V39 -> 2367 | W39: ='1trimestre'!W39+'2ºtrimestre'!W39+'3º trimestre'!W39+'4º trimestre'!W39 -> 7243020 | Y39: 0903002 | Z39: Consulta o control psicológico clínico | AA39: ='1trimestre'!AA39+'2ºtrimestre'!AA39+'3º trimestre'!AA39+'4º trimestre'!AA39 -> 1423 | AB39: ='1trimestre'!AB39+'2ºtrimestre'!AB39+'3º trimestre'!AB39+'4º trimestre'!AB39 -> 1423 | AC39: ='1trimestre'!AC39+'2ºtrimestre'!AC39+'3º trimestre'!AC39+'4º trimestre'!AC39 -> 4354380 | AE39: 0903002 | AF39: Consulta o control psicológico clínico | AG39: ='1trimestre'!AG39+'2ºtrimestre'!AG39+'3º trimestre'!AG39+'4º trimestre'!AG39 -> 2788 | AH39: ='1trimestre'!AH39+'2ºtrimestre'!AH39+'3º trimestre'!AH39+'4º trimestre'!AH39 -> 2788 | AI39: ='1trimestre'!AI39+'2ºtrimestre'!AI39+'3º trimestre'!AI39+'4º trimestre'!AI39 -> 8531280 | AK39: 0903002 | AL39: Consulta o control psicológico clínico | AM39: ='1trimestre'!AM39+'2ºtrimestre'!AM39+'3º trimestre'!AM39+'4º trimestre'!AM39 -> 1413 | AN39: ='1trimestre'!AN39+'2ºtrimestre'!AN39+'3º trimestre'!AN39+'4º trimestre'!AN39 -> 1413 | AO39: ='1trimestre'!AO39+'2ºtrimestre'!AO39+'3º trimestre'!AO39+'4º trimestre'!AO39 -> 4323780 | AQ39: 0903002 | AR39: Consulta o control psicológico clínico | AS39: ='1trimestre'!AS39+'2ºtrimestre'!AS39+'3º trimestre'!AS39+'4º trimestre'!AS39 -> 1050 | AT39: ='1trimestre'!AT39+'2ºtrimestre'!AT39+'3º trimestre'!AT39+'4º trimestre'!AT39 -> 1050 | AU39: ='1trimestre'!AU39+'2ºtrimestre'!AU39+'3º trimestre'!AU39+'4º trimestre'!AU39 -> 3213000 | AW39: 0903002 | AX39: Consulta o control psicológico clínico | AY39: ='1trimestre'!AY39+'2ºtrimestre'!AY39+'3º trimestre'!AY39+'4º trimestre'!AY39 -> 3315 | AZ39: ='1trimestre'!AZ39+'2ºtrimestre'!AZ39+'3º trimestre'!AZ39+'4º trimestre'!AZ39 -> 3315 | BA39: ='1trimestre'!BA39+'2ºtrimestre'!BA39+'3º trimestre'!BA39+'4º trimestre'!BA39 -> 10143900 | BC39: 0903002 | BD39: Consulta o control psicológico clínico | BE39: ='1trimestre'!BE39+'2ºtrimestre'!BE39+'3º trimestre'!BE39+'4º trimestre'!BE39 -> 1660 | BF39: ='1trimestre'!BF39+'2ºtrimestre'!BF39+'3º trimestre'!BF39+'4º trimestre'!BF39 -> 1660 | BG39: ='1trimestre'!BG39+'2ºtrimestre'!BG39+'3º trimestre'!BG39+'4º trimestre'!BG39 -> 5079600 | BI39: 0903002 | BJ39: Consulta o control psicológico clínico | BK39: ='1trimestre'!BK39+'2ºtrimestre'!BK39+'3º trimestre'!BK39+'4º trimestre'!BK39 -> 0 | BL39: ='1trimestre'!BL39+'2ºtrimestre'!BL39+'3º trimestre'!BL39+'4º trimestre'!BL39 -> 0 | BM39: ='1trimestre'!BM39+'2ºtrimestre'!BM39+'3º trimestre'!BM39+'4º trimestre'!BM39 -> 0 | BO39: 0903002 | BP39: Consulta o control psicológico clínico | BQ39: ='1trimestre'!BQ39+'2ºtrimestre'!BQ39+'3º trimestre'!BQ39+'4º trimestre'!BQ39 -> 0 | BR39: ='1trimestre'!BR39+'2ºtrimestre'!BR39+'3º trimestre'!BR39+'4º trimestre'!BR39 -> 0 | BS39: ='1trimestre'!BS39+'2ºtrimestre'!BS39+'3º trimestre'!BS39+'4º trimestre'!BS39 -> 0
A40: 0903003 | B40: Consulta de salud mental por otros profesionales | C40: 25886 | D40: 25886 | E40: 79211160 | G40: 0903003 | H40: Consulta de salud mental por otros profesionales | I40: ='1trimestre'!I40+'2ºtrimestre'!I40+'3º trimestre'!I40+'4º trimestre'!I40 -> 7558 | J40: ='1trimestre'!J40+'2ºtrimestre'!J40+'3º trimestre'!J40+'4º trimestre'!J40 -> 7558 | K40: ='1trimestre'!K40+'2ºtrimestre'!K40+'3º trimestre'!K40+'4º trimestre'!K40 -> 23127480 | M40: 0903003 | N40: Consulta de salud mental por otros profesionales | O40: ='1trimestre'!O40+'2ºtrimestre'!O40+'3º trimestre'!O40+'4º trimestre'!O40 -> 7472 | P40: ='1trimestre'!P40+'2ºtrimestre'!P40+'3º trimestre'!P40+'4º trimestre'!P40 -> 7472 | Q40: ='1trimestre'!Q40+'2ºtrimestre'!Q40+'3º trimestre'!Q40+'4º trimestre'!Q40 -> 22864320 | S40: 0903003 | T40: Consulta de salud mental por otros profesionales | U40: ='1trimestre'!U40+'2ºtrimestre'!U40+'3º trimestre'!U40+'4º trimestre'!U40 -> 871 | V40: ='1trimestre'!V40+'2ºtrimestre'!V40+'3º trimestre'!V40+'4º trimestre'!V40 -> 871 | W40: ='1trimestre'!W40+'2ºtrimestre'!W40+'3º trimestre'!W40+'4º trimestre'!W40 -> 2665260 | Y40: 0903003 | Z40: Consulta de salud mental por otros profesionales | AA40: ='1trimestre'!AA40+'2ºtrimestre'!AA40+'3º trimestre'!AA40+'4º trimestre'!AA40 -> 6728 | AB40: ='1trimestre'!AB40+'2ºtrimestre'!AB40+'3º trimestre'!AB40+'4º trimestre'!AB40 -> 6728 | AC40: ='1trimestre'!AC40+'2ºtrimestre'!AC40+'3º trimestre'!AC40+'4º trimestre'!AC40 -> 20587680 | AE40: 0903003 | AF40: Consulta de salud mental por otros profesionales | AG40: ='1trimestre'!AG40+'2ºtrimestre'!AG40+'3º trimestre'!AG40+'4º trimestre'!AG40 -> 1221 | AH40: ='1trimestre'!AH40+'2ºtrimestre'!AH40+'3º trimestre'!AH40+'4º trimestre'!AH40 -> 1221 | AI40: ='1trimestre'!AI40+'2ºtrimestre'!AI40+'3º trimestre'!AI40+'4º trimestre'!AI40 -> 3736260 | AK40: 0903003 | AL40: Consulta de salud mental por otros profesionales | AM40: ='1trimestre'!AM40+'2ºtrimestre'!AM40+'3º trimestre'!AM40+'4º trimestre'!AM40 -> 387 | AN40: ='1trimestre'!AN40+'2ºtrimestre'!AN40+'3º trimestre'!AN40+'4º trimestre'!AN40 -> 387 | AO40: ='1trimestre'!AO40+'2ºtrimestre'!AO40+'3º trimestre'!AO40+'4º trimestre'!AO40 -> 1184220 | AQ40: 0903003 | AR40: Consulta de salud mental por otros profesionales | AS40: ='1trimestre'!AS40+'2ºtrimestre'!AS40+'3º trimestre'!AS40+'4º trimestre'!AS40 -> 676 | AT40: ='1trimestre'!AT40+'2ºtrimestre'!AT40+'3º trimestre'!AT40+'4º trimestre'!AT40 -> 676 | AU40: ='1trimestre'!AU40+'2ºtrimestre'!AU40+'3º trimestre'!AU40+'4º trimestre'!AU40 -> 2068560 | AW40: 0903003 | AX40: Consulta de salud mental por otros profesionales | AY40: ='1trimestre'!AY40+'2ºtrimestre'!AY40+'3º trimestre'!AY40+'4º trimestre'!AY40 -> 707 | AZ40: ='1trimestre'!AZ40+'2ºtrimestre'!AZ40+'3º trimestre'!AZ40+'4º trimestre'!AZ40 -> 707 | BA40: ='1trimestre'!BA40+'2ºtrimestre'!BA40+'3º trimestre'!BA40+'4º trimestre'!BA40 -> 2163420 | BC40: 0903003 | BD40: Consulta de salud mental por otros profesionales | BE40: ='1trimestre'!BE40+'2ºtrimestre'!BE40+'3º trimestre'!BE40+'4º trimestre'!BE40 -> 266 | BF40: ='1trimestre'!BF40+'2ºtrimestre'!BF40+'3º trimestre'!BF40+'4º trimestre'!BF40 -> 266 | BG40: ='1trimestre'!BG40+'2ºtrimestre'!BG40+'3º trimestre'!BG40+'4º trimestre'!BG40 -> 813960 | BI40: 0903003 | BJ40: Consulta de salud mental por otros profesionales | BK40: ='1trimestre'!BK40+'2ºtrimestre'!BK40+'3º trimestre'!BK40+'4º trimestre'!BK40 -> 0 | BL40: ='1trimestre'!BL40+'2ºtrimestre'!BL40+'3º trimestre'!BL40+'4º trimestre'!BL40 -> 0 | BM40: ='1trimestre'!BM40+'2ºtrimestre'!BM40+'3º trimestre'!BM40+'4º trimestre'!BM40 -> 0 | BO40: 0903003 | BP40: Consulta de salud mental por otros profesionales | BQ40: ='1trimestre'!BQ40+'2ºtrimestre'!BQ40+'3º trimestre'!BQ40+'4º trimestre'!BQ40 -> 0 | BR40: ='1trimestre'!BR40+'2ºtrimestre'!BR40+'3º trimestre'!BR40+'4º trimestre'!BR40 -> 0 | BS40: ='1trimestre'!BS40+'2ºtrimestre'!BS40+'3º trimestre'!BS40+'4º trimestre'!BS40 -> 0
A41: 0903004 | B41: Intervención psicosocial grupal (4 a 8 pacientes, familiares o cuidadores) | C41: 2340 | D41: 2340 | E41: 28454400 | G41: 0903004 | H41: Intervención psicosocial grupal (4 a 8 pacientes, familiares o cuidadores) | I41: ='1trimestre'!I41+'2ºtrimestre'!I41+'3º trimestre'!I41+'4º trimestre'!I41 -> 418 | J41: ='1trimestre'!J41+'2ºtrimestre'!J41+'3º trimestre'!J41+'4º trimestre'!J41 -> 418 | K41: ='1trimestre'!K41+'2ºtrimestre'!K41+'3º trimestre'!K41+'4º trimestre'!K41 -> 5082880 | M41: 0903004 | N41: Intervención psicosocial grupal (4 a 8 pacientes, familiares o cuidadores) | O41: ='1trimestre'!O41+'2ºtrimestre'!O41+'3º trimestre'!O41+'4º trimestre'!O41 -> 943 | P41: ='1trimestre'!P41+'2ºtrimestre'!P41+'3º trimestre'!P41+'4º trimestre'!P41 -> 943 | Q41: ='1trimestre'!Q41+'2ºtrimestre'!Q41+'3º trimestre'!Q41+'4º trimestre'!Q41 -> 11466880 | S41: 0903004 | T41: Intervención psicosocial grupal (4 a 8 pacientes, familiares o cuidadores) | U41: ='1trimestre'!U41+'2ºtrimestre'!U41+'3º trimestre'!U41+'4º trimestre'!U41 -> 836 | V41: ='1trimestre'!V41+'2ºtrimestre'!V41+'3º trimestre'!V41+'4º trimestre'!V41 -> 836 | W41: ='1trimestre'!W41+'2ºtrimestre'!W41+'3º trimestre'!W41+'4º trimestre'!W41 -> 10165760 | Y41: 0903004 | Z41: Intervención psicosocial grupal (4 a 8 pacientes, familiares o cuidadores) | AA41: ='1trimestre'!AA41+'2ºtrimestre'!AA41+'3º trimestre'!AA41+'4º trimestre'!AA41 -> 132 | AB41: ='1trimestre'!AB41+'2ºtrimestre'!AB41+'3º trimestre'!AB41+'4º trimestre'!AB41 -> 132 | AC41: ='1trimestre'!AC41+'2ºtrimestre'!AC41+'3º trimestre'!AC41+'4º trimestre'!AC41 -> 1605120 | AE41: 0903004 | AF41: Intervención psicosocial grupal (4 a 8 pacientes, familiares o cuidadores) | AG41: ='1trimestre'!AG41+'2ºtrimestre'!AG41+'3º trimestre'!AG41+'4º trimestre'!AG41 -> 0 | AH41: ='1trimestre'!AH41+'2ºtrimestre'!AH41+'3º trimestre'!AH41+'4º trimestre'!AH41 -> 0 | AI41: ='1trimestre'!AI41+'2ºtrimestre'!AI41+'3º trimestre'!AI41+'4º trimestre'!AI41 -> 0 | AK41: 0903004 | AL41: Intervención psicosocial grupal (4 a 8 pacientes, familiares o cuidadores) | AM41: ='1trimestre'!AM41+'2ºtrimestre'!AM41+'3º trimestre'!AM41+'4º trimestre'!AM41 -> 11 | AN41: ='1trimestre'!AN41+'2ºtrimestre'!AN41+'3º trimestre'!AN41+'4º trimestre'!AN41 -> 11 | AO41: ='1trimestre'!AO41+'2ºtrimestre'!AO41+'3º trimestre'!AO41+'4º trimestre'!AO41 -> 133760 | AQ41: 0903004 | AR41: Intervención psicosocial grupal (4 a 8 pacientes, familiares o cuidadores) | AS41: ='1trimestre'!AS41+'2ºtrimestre'!AS41+'3º trimestre'!AS41+'4º trimestre'!AS41 -> 0 | AT41: ='1trimestre'!AT41+'2ºtrimestre'!AT41+'3º trimestre'!AT41+'4º trimestre'!AT41 -> 0 | AU41: ='1trimestre'!AU41+'2ºtrimestre'!AU41+'3º trimestre'!AU41+'4º trimestre'!AU41 -> 0 | AW41: 0903004 | AX41: Intervención psicosocial grupal (4 a 8 pacientes, familiares o cuidadores) | AY41: ='1trimestre'!AY41+'2ºtrimestre'!AY41+'3º trimestre'!AY41+'4º trimestre'!AY41 -> 0 | AZ41: ='1trimestre'!AZ41+'2ºtrimestre'!AZ41+'3º trimestre'!AZ41+'4º trimestre'!AZ41 -> 0 | BA41: ='1trimestre'!BA41+'2ºtrimestre'!BA41+'3º trimestre'!BA41+'4º trimestre'!BA41 -> 0 | BC41: 0903004 | BD41: Intervención psicosocial grupal (4 a 8 pacientes, familiares o cuidadores) | BE41: ='1trimestre'!BE41+'2ºtrimestre'!BE41+'3º trimestre'!BE41+'4º trimestre'!BE41 -> 0 | BF41: ='1trimestre'!BF41+'2ºtrimestre'!BF41+'3º trimestre'!BF41+'4º trimestre'!BF41 -> 0 | BG41: ='1trimestre'!BG41+'2ºtrimestre'!BG41+'3º trimestre'!BG41+'4º trimestre'!BG41 -> 0 | BI41: 0903004 | BJ41: Intervención psicosocial grupal (4 a 8 pacientes, familiares o cuidadores) | BK41: ='1trimestre'!BK41+'2ºtrimestre'!BK41+'3º trimestre'!BK41+'4º trimestre'!BK41 -> 0 | BL41: ='1trimestre'!BL41+'2ºtrimestre'!BL41+'3º trimestre'!BL41+'4º trimestre'!BL41 -> 0 | BM41: ='1trimestre'!BM41+'2ºtrimestre'!BM41+'3º trimestre'!BM41+'4º trimestre'!BM41 -> 0 | BO41: 0903004 | BP41: Intervención psicosocial grupal (4 a 8 pacientes, familiares o cuidadores) | BQ41: ='1trimestre'!BQ41+'2ºtrimestre'!BQ41+'3º trimestre'!BQ41+'4º trimestre'!BQ41 -> 0 | BR41: ='1trimestre'!BR41+'2ºtrimestre'!BR41+'3º trimestre'!BR41+'4º trimestre'!BR41 -> 0 | BS41: ='1trimestre'!BS41+'2ºtrimestre'!BS41+'3º trimestre'!BS41+'4º trimestre'!BS41 -> 0
A42: 0903005 | B42: Psicoterapia de grupo (por psicólogo o psiquiatra) (4 a 8 pacientes) | C42: 1064 | D42: 1064 | E42: 15140720 | G42: 0903005 | H42: Psicoterapia de grupo (por psicólogo o psiquiatra) (4 a 8 pacientes) | I42: ='1trimestre'!I42+'2ºtrimestre'!I42+'3º trimestre'!I42+'4º trimestre'!I42 -> 231 | J42: ='1trimestre'!J42+'2ºtrimestre'!J42+'3º trimestre'!J42+'4º trimestre'!J42 -> 231 | K42: ='1trimestre'!K42+'2ºtrimestre'!K42+'3º trimestre'!K42+'4º trimestre'!K42 -> 3287130 | M42: 0903005 | N42: Psicoterapia de grupo (por psicólogo o psiquiatra) (4 a 8 pacientes) | O42: ='1trimestre'!O42+'2ºtrimestre'!O42+'3º trimestre'!O42+'4º trimestre'!O42 -> 571 | P42: ='1trimestre'!P42+'2ºtrimestre'!P42+'3º trimestre'!P42+'4º trimestre'!P42 -> 571 | Q42: ='1trimestre'!Q42+'2ºtrimestre'!Q42+'3º trimestre'!Q42+'4º trimestre'!Q42 -> 8125330 | S42: 0903005 | T42: Psicoterapia de grupo (por psicólogo o psiquiatra) (4 a 8 pacientes) | U42: ='1trimestre'!U42+'2ºtrimestre'!U42+'3º trimestre'!U42+'4º trimestre'!U42 -> 7 | V42: ='1trimestre'!V42+'2ºtrimestre'!V42+'3º trimestre'!V42+'4º trimestre'!V42 -> 7 | W42: ='1trimestre'!W42+'2ºtrimestre'!W42+'3º trimestre'!W42+'4º trimestre'!W42 -> 99610 | Y42: 0903005 | Z42: Psicoterapia de grupo (por psicólogo o psiquiatra) (4 a 8 pacientes) | AA42: ='1trimestre'!AA42+'2ºtrimestre'!AA42+'3º trimestre'!AA42+'4º trimestre'!AA42 -> 221 | AB42: ='1trimestre'!AB42+'2ºtrimestre'!AB42+'3º trimestre'!AB42+'4º trimestre'!AB42 -> 221 | AC42: ='1trimestre'!AC42+'2ºtrimestre'!AC42+'3º trimestre'!AC42+'4º trimestre'!AC42 -> 3144830 | AE42: 0903005 | AF42: Psicoterapia de grupo (por psicólogo o psiquiatra) (4 a 8 pacientes) | AG42: ='1trimestre'!AG42+'2ºtrimestre'!AG42+'3º trimestre'!AG42+'4º trimestre'!AG42 -> 0 | AH42: ='1trimestre'!AH42+'2ºtrimestre'!AH42+'3º trimestre'!AH42+'4º trimestre'!AH42 -> 0 | AI42: ='1trimestre'!AI42+'2ºtrimestre'!AI42+'3º trimestre'!AI42+'4º trimestre'!AI42 -> 0 | AK42: 0903005 | AL42: Psicoterapia de grupo (por psicólogo o psiquiatra) (4 a 8 pacientes) | AM42: ='1trimestre'!AM42+'2ºtrimestre'!AM42+'3º trimestre'!AM42+'4º trimestre'!AM42 -> 34 | AN42: ='1trimestre'!AN42+'2ºtrimestre'!AN42+'3º trimestre'!AN42+'4º trimestre'!AN42 -> 34 | AO42: ='1trimestre'!AO42+'2ºtrimestre'!AO42+'3º trimestre'!AO42+'4º trimestre'!AO42 -> 483820 | AQ42: 0903005 | AR42: Psicoterapia de grupo (por psicólogo o psiquiatra) (4 a 8 pacientes) | AS42: ='1trimestre'!AS42+'2ºtrimestre'!AS42+'3º trimestre'!AS42+'4º trimestre'!AS42 -> 0 | AT42: ='1trimestre'!AT42+'2ºtrimestre'!AT42+'3º trimestre'!AT42+'4º trimestre'!AT42 -> 0 | AU42: ='1trimestre'!AU42+'2ºtrimestre'!AU42+'3º trimestre'!AU42+'4º trimestre'!AU42 -> 0 | AW42: 0903005 | AX42: Psicoterapia de grupo (por psicólogo o psiquiatra) (4 a 8 pacientes) | AY42: ='1trimestre'!AY42+'2ºtrimestre'!AY42+'3º trimestre'!AY42+'4º trimestre'!AY42 -> 0 | AZ42: ='1trimestre'!AZ42+'2ºtrimestre'!AZ42+'3º trimestre'!AZ42+'4º trimestre'!AZ42 -> 0 | BA42: ='1trimestre'!BA42+'2ºtrimestre'!BA42+'3º trimestre'!BA42+'4º trimestre'!BA42 -> 0 | BC42: 0903005 | BD42: Psicoterapia de grupo (por psicólogo o psiquiatra) (4 a 8 pacientes) | BE42: ='1trimestre'!BE42+'2ºtrimestre'!BE42+'3º trimestre'!BE42+'4º trimestre'!BE42 -> 0 | BF42: ='1trimestre'!BF42+'2ºtrimestre'!BF42+'3º trimestre'!BF42+'4º trimestre'!BF42 -> 0 | BG42: ='1trimestre'!BG42+'2ºtrimestre'!BG42+'3º trimestre'!BG42+'4º trimestre'!BG42 -> 0 | BI42: 0903005 | BJ42: Psicoterapia de grupo (por psicólogo o psiquiatra) (4 a 8 pacientes) | BK42: ='1trimestre'!BK42+'2ºtrimestre'!BK42+'3º trimestre'!BK42+'4º trimestre'!BK42 -> 0 | BL42: ='1trimestre'!BL42+'2ºtrimestre'!BL42+'3º trimestre'!BL42+'4º trimestre'!BL42 -> 0 | BM42: ='1trimestre'!BM42+'2ºtrimestre'!BM42+'3º trimestre'!BM42+'4º trimestre'!BM42 -> 0 | BO42: 0903005 | BP42: Psicoterapia de grupo (por psicólogo o psiquiatra) (4 a 8 pacientes) | BQ42: ='1trimestre'!BQ42+'2ºtrimestre'!BQ42+'3º trimestre'!BQ42+'4º trimestre'!BQ42 -> 0 | BR42: ='1trimestre'!BR42+'2ºtrimestre'!BR42+'3º trimestre'!BR42+'4º trimestre'!BR42 -> 0 | BS42: ='1trimestre'!BS42+'2ºtrimestre'!BS42+'3º trimestre'!BS42+'4º trimestre'!BS42 -> 0
A43: 0903001 | B43: Consulta de psiquiatría | C43: 21357 | D43: 21354 | E43: 166561200 | G43: 0903001 | H43: Consulta de psiquiatría | I43: ='1trimestre'!I43+'2ºtrimestre'!I43+'3º trimestre'!I43+'4º trimestre'!I43 -> 6522 | J43: ='1trimestre'!J43+'2ºtrimestre'!J43+'3º trimestre'!J43+'4º trimestre'!J43 -> 6522 | K43: ='1trimestre'!K43+'2ºtrimestre'!K43+'3º trimestre'!K43+'4º trimestre'!K43 -> 50871600 | M43: 0903001 | N43: Consulta de psiquiatría | O43: ='1trimestre'!O43+'2ºtrimestre'!O43+'3º trimestre'!O43+'4º trimestre'!O43 -> 10031 | P43: ='1trimestre'!P43+'2ºtrimestre'!P43+'3º trimestre'!P43+'4º trimestre'!P43 -> 10031 | Q43: ='1trimestre'!Q43+'2ºtrimestre'!Q43+'3º trimestre'!Q43+'4º trimestre'!Q43 -> 78241800 | S43: 0903001 | T43: Consulta de psiquiatría | U43: ='1trimestre'!U43+'2ºtrimestre'!U43+'3º trimestre'!U43+'4º trimestre'!U43 -> 3811 | V43: ='1trimestre'!V43+'2ºtrimestre'!V43+'3º trimestre'!V43+'4º trimestre'!V43 -> 3811 | W43: ='1trimestre'!W43+'2ºtrimestre'!W43+'3º trimestre'!W43+'4º trimestre'!W43 -> 29725800 | Y43: 0903001 | Z43: Consulta de psiquiatría | AA43: ='1trimestre'!AA43+'2ºtrimestre'!AA43+'3º trimestre'!AA43+'4º trimestre'!AA43 -> 993 | AB43: ='1trimestre'!AB43+'2ºtrimestre'!AB43+'3º trimestre'!AB43+'4º trimestre'!AB43 -> 990 | AC43: ='1trimestre'!AC43+'2ºtrimestre'!AC43+'3º trimestre'!AC43+'4º trimestre'!AC43 -> 7722000 | AE43: 0903001 | AF43: Consulta de psiquiatría | AG43: ='1trimestre'!AG43+'2ºtrimestre'!AG43+'3º trimestre'!AG43+'4º trimestre'!AG43 -> 0 | AH43: ='1trimestre'!AH43+'2ºtrimestre'!AH43+'3º trimestre'!AH43+'4º trimestre'!AH43 -> 0 | AI43: ='1trimestre'!AI43+'2ºtrimestre'!AI43+'3º trimestre'!AI43+'4º trimestre'!AI43 -> 0 | AK43: 0903001 | AL43: Consulta de psiquiatría | AM43: ='1trimestre'!AM43+'2ºtrimestre'!AM43+'3º trimestre'!AM43+'4º trimestre'!AM43 -> 0 | AN43: ='1trimestre'!AN43+'2ºtrimestre'!AN43+'3º trimestre'!AN43+'4º trimestre'!AN43 -> 0 | AO43: ='1trimestre'!AO43+'2ºtrimestre'!AO43+'3º trimestre'!AO43+'4º trimestre'!AO43 -> 0 | AQ43: 0903001 | AR43: Consulta de psiquiatría | AS43: ='1trimestre'!AS43+'2ºtrimestre'!AS43+'3º trimestre'!AS43+'4º trimestre'!AS43 -> 0 | AT43: ='1trimestre'!AT43+'2ºtrimestre'!AT43+'3º trimestre'!AT43+'4º trimestre'!AT43 -> 0 | AU43: ='1trimestre'!AU43+'2ºtrimestre'!AU43+'3º trimestre'!AU43+'4º trimestre'!AU43 -> 0 | AW43: 0903001 | AX43: Consulta de psiquiatría | AY43: ='1trimestre'!AY43+'2ºtrimestre'!AY43+'3º trimestre'!AY43+'4º trimestre'!AY43 -> 0 | AZ43: ='1trimestre'!AZ43+'2ºtrimestre'!AZ43+'3º trimestre'!AZ43+'4º trimestre'!AZ43 -> 0 | BA43: ='1trimestre'!BA43+'2ºtrimestre'!BA43+'3º trimestre'!BA43+'4º trimestre'!BA43 -> 0 | BC43: 0903001 | BD43: Consulta de psiquiatría | BE43: ='1trimestre'!BE43+'2ºtrimestre'!BE43+'3º trimestre'!BE43+'4º trimestre'!BE43 -> 0 | BF43: ='1trimestre'!BF43+'2ºtrimestre'!BF43+'3º trimestre'!BF43+'4º trimestre'!BF43 -> 0 | BG43: ='1trimestre'!BG43+'2ºtrimestre'!BG43+'3º trimestre'!BG43+'4º trimestre'!BG43 -> 0 | BI43: 0903001 | BJ43: Consulta de psiquiatría | BK43: ='1trimestre'!BK43+'2ºtrimestre'!BK43+'3º trimestre'!BK43+'4º trimestre'!BK43 -> 0 | BL43: ='1trimestre'!BL43+'2ºtrimestre'!BL43+'3º trimestre'!BL43+'4º trimestre'!BL43 -> 0 | BM43: ='1trimestre'!BM43+'2ºtrimestre'!BM43+'3º trimestre'!BM43+'4º trimestre'!BM43 -> 0 | BO43: 0903001 | BP43: Consulta de psiquiatría | BQ43: ='1trimestre'!BQ43+'2ºtrimestre'!BQ43+'3º trimestre'!BQ43+'4º trimestre'!BQ43 -> 0 | BR43: ='1trimestre'!BR43+'2ºtrimestre'!BR43+'3º trimestre'!BR43+'4º trimestre'!BR43 -> 0 | BS43: ='1trimestre'!BS43+'2ºtrimestre'!BS43+'3º trimestre'!BS43+'4º trimestre'!BS43 -> 0
B44: OTRAS CONSULTAS Y ATENCION MEDICA | C44: =SUM(C45:C49) -> 82868 | H44: OTRAS CONSULTAS Y ATENCION MEDICA | I44: =SUM(I45:I49) -> 625 | N44: OTRAS CONSULTAS Y ATENCION MEDICA | O44: =SUM(O45:O49) -> 9036 | T44: OTRAS CONSULTAS Y ATENCION MEDICA | U44: =SUM(U45:U49) -> 24453 | Z44: OTRAS CONSULTAS Y ATENCION MEDICA | AA44: =SUM(AA45:AA49) -> 13243 | AF44: OTRAS CONSULTAS Y ATENCION MEDICA | AG44: =SUM(AG45:AG49) -> 279 | AL44: OTRAS CONSULTAS Y ATENCION MEDICA | AM44: =SUM(AM45:AM49) -> 9352 | AR44: OTRAS CONSULTAS Y ATENCION MEDICA | AS44: =SUM(AS45:AS49) -> 3815 | AX44: OTRAS CONSULTAS Y ATENCION MEDICA | AY44: =SUM(AY45:AY49) -> 8848 | BD44: OTRAS CONSULTAS Y ATENCION MEDICA | BE44: =SUM(BE45:BE49) -> 13217 | BJ44: OTRAS CONSULTAS Y ATENCION MEDICA | BK44: =SUM(BK45:BK49) -> 0 | BP44: OTRAS CONSULTAS Y ATENCION MEDICA | BQ44: =SUM(BQ45:BQ49) -> 0
B45: Consulta por otros profesionales | C45: =SUM(I45+O45+U45+AA45+AG45+AM45+AS45+AY45+BE45+BK45+BQ45) -> 4430 | H45: Consulta por otros profesionales | I45: ='1trimestre'!I45+'2ºtrimestre'!I45+'3º trimestre'!I45+'4º trimestre'!I45 -> 399 | N45: Consulta por otros profesionales | O45: ='1trimestre'!O45+'2ºtrimestre'!O45+'3º trimestre'!O45+'4º trimestre'!O45 -> 0 | T45: Consulta por otros profesionales | U45: ='1trimestre'!U45+'2ºtrimestre'!U45+'3º trimestre'!U45+'4º trimestre'!U45 -> 1063 | Z45: Consulta por otros profesionales | AA45: ='1trimestre'!AA45+'2ºtrimestre'!AA45+'3º trimestre'!AA45+'4º trimestre'!AA45 -> 52 | AF45: Consulta por otros profesionales | AG45: ='1trimestre'!AG45+'2ºtrimestre'!AG45+'3º trimestre'!AG45+'4º trimestre'!AG45 -> 0 | AL45: Consulta por otros profesionales | AM45: ='1trimestre'!AM45+'2ºtrimestre'!AM45+'3º trimestre'!AM45+'4º trimestre'!AM45 -> 729 | AR45: Consulta por otros profesionales | AS45: ='1trimestre'!AS45+'2ºtrimestre'!AS45+'3º trimestre'!AS45+'4º trimestre'!AS45 -> 491 | AX45: Consulta por otros profesionales | AY45: ='1trimestre'!AY45+'2ºtrimestre'!AY45+'3º trimestre'!AY45+'4º trimestre'!AY45 -> 1109 | BD45: Consulta por otros profesionales | BE45: ='1trimestre'!BE45+'2ºtrimestre'!BE45+'3º trimestre'!BE45+'4º trimestre'!BE45 -> 587 | BJ45: Consulta por otros profesionales | BK45: ='1trimestre'!BK45+'2ºtrimestre'!BK45+'3º trimestre'!BK45+'4º trimestre'!BK45 -> 0 | BP45: Consulta por otros profesionales | BQ45: ='1trimestre'!BQ45+'2ºtrimestre'!BQ45+'3º trimestre'!BQ45+'4º trimestre'!BQ45 -> 0
B46: Consulta por Asistente Social | C46: 17352 | H46: Consulta por Asistente Social | I46: ='1trimestre'!I46+'2ºtrimestre'!I46+'3º trimestre'!I46+'4º trimestre'!I46 -> 226 | N46: Consulta por Asistente Social | O46: ='1trimestre'!O46+'2ºtrimestre'!O46+'3º trimestre'!O46+'4º trimestre'!O46 -> 0 | T46: Consulta por Asistente Social | U46: ='1trimestre'!U46+'2ºtrimestre'!U46+'3º trimestre'!U46+'4º trimestre'!U46 -> 10385 | Z46: Consulta por Asistente Social | AA46: ='1trimestre'!AA46+'2ºtrimestre'!AA46+'3º trimestre'!AA46+'4º trimestre'!AA46 -> 334 | AF46: Consulta por Asistente Social | AG46: ='1trimestre'!AG46+'2ºtrimestre'!AG46+'3º trimestre'!AG46+'4º trimestre'!AG46 -> 279 | AL46: Consulta por Asistente Social | AM46: ='1trimestre'!AM46+'2ºtrimestre'!AM46+'3º trimestre'!AM46+'4º trimestre'!AM46 -> 1846 | AR46: Consulta por Asistente Social | AS46: ='1trimestre'!AS46+'2ºtrimestre'!AS46+'3º trimestre'!AS46+'4º trimestre'!AS46 -> 1183 | AX46: Consulta por Asistente Social | AY46: ='1trimestre'!AY46+'2ºtrimestre'!AY46+'3º trimestre'!AY46+'4º trimestre'!AY46 -> 1397 | BD46: Consulta por Asistente Social | BE46: ='1trimestre'!BE46+'2ºtrimestre'!BE46+'3º trimestre'!BE46+'4º trimestre'!BE46 -> 1702 | BJ46: Consulta por Asistente Social | BK46: ='1trimestre'!BK46+'2ºtrimestre'!BK46+'3º trimestre'!BK46+'4º trimestre'!BK46 -> 0 | BP46: Consulta por Asistente Social | BQ46: ='1trimestre'!BQ46+'2ºtrimestre'!BQ46+'3º trimestre'!BQ46+'4º trimestre'!BQ46 -> 0
B47: Consultas/ Controles de Especialidades Odontológica | C47: 26298 | H47: Consultas/ Controles de Especialidades Odontológica | I47: ='1trimestre'!I47+'2ºtrimestre'!I47+'3º trimestre'!I47+'4º trimestre'!I47 -> 0 | N47: Consultas/ Controles de Especialidades Odontológica | O47: ='1trimestre'!O47+'2ºtrimestre'!O47+'3º trimestre'!O47+'4º trimestre'!O47 -> 6312 | T47: Consultas/ Controles de Especialidades Odontológica | U47: ='1trimestre'!U47+'2ºtrimestre'!U47+'3º trimestre'!U47+'4º trimestre'!U47 -> 7220 | Z47: Consultas/ Controles de Especialidades Odontológica | AA47: ='1trimestre'!AA47+'2ºtrimestre'!AA47+'3º trimestre'!AA47+'4º trimestre'!AA47 -> 12766 | AF47: Consultas/ Controles de Especialidades Odontológica | AG47: ='1trimestre'!AG47+'2ºtrimestre'!AG47+'3º trimestre'!AG47+'4º trimestre'!AG47 -> 0 | AL47: Consultas/ Controles de Especialidades Odontológica | AM47: ='1trimestre'!AM47+'2ºtrimestre'!AM47+'3º trimestre'!AM47+'4º trimestre'!AM47 -> 0 | AR47: Consultas/ Controles de Especialidades Odontológica | AS47: ='1trimestre'!AS47+'2ºtrimestre'!AS47+'3º trimestre'!AS47+'4º trimestre'!AS47 -> 0 | AX47: Consultas/ Controles de Especialidades Odontológica | AY47: ='1trimestre'!AY47+'2ºtrimestre'!AY47+'3º trimestre'!AY47+'4º trimestre'!AY47 -> 0 | BD47: Consultas/ Controles de Especialidades Odontológica | BE47: ='1trimestre'!BE47+'2ºtrimestre'!BE47+'3º trimestre'!BE47+'4º trimestre'!BE47 -> 0 | BJ47: Consultas/ Controles de Especialidades Odontológica | BK47: ='1trimestre'!BK47+'2ºtrimestre'!BK47+'3º trimestre'!BK47+'4º trimestre'!BK47 -> 0 | BP47: Consultas/ Controles de Especialidades Odontológica | BQ47: ='1trimestre'!BQ47+'2ºtrimestre'!BQ47+'3º trimestre'!BQ47+'4º trimestre'!BQ47 -> 0
B48: Consultas de morbilidad odontológica | C48: 28374 | H48: Consultas de morbilidad odontológica | I48: ='1trimestre'!I48+'2ºtrimestre'!I48+'3º trimestre'!I48+'4º trimestre'!I48 -> 0 | N48: Consultas de morbilidad odontológica | O48: ='1trimestre'!O48+'2ºtrimestre'!O48+'3º trimestre'!O48+'4º trimestre'!O48 -> 2657 | T48: Consultas de morbilidad odontológica | U48: ='1trimestre'!U48+'2ºtrimestre'!U48+'3º trimestre'!U48+'4º trimestre'!U48 -> 4573 | Z48: Consultas de morbilidad odontológica | AA48: ='1trimestre'!AA48+'2ºtrimestre'!AA48+'3º trimestre'!AA48+'4º trimestre'!AA48 -> 0 | AF48: Consultas de morbilidad odontológica | AG48: ='1trimestre'!AG48+'2ºtrimestre'!AG48+'3º trimestre'!AG48+'4º trimestre'!AG48 -> 0 | AL48: Consultas de morbilidad odontológica | AM48: ='1trimestre'!AM48+'2ºtrimestre'!AM48+'3º trimestre'!AM48+'4º trimestre'!AM48 -> 6374 | AR48: Consultas de morbilidad odontológica | AS48: ='1trimestre'!AS48+'2ºtrimestre'!AS48+'3º trimestre'!AS48+'4º trimestre'!AS48 -> 1638 | AX48: Consultas de morbilidad odontológica | AY48: ='1trimestre'!AY48+'2ºtrimestre'!AY48+'3º trimestre'!AY48+'4º trimestre'!AY48 -> 4401 | BD48: Consultas de morbilidad odontológica | BE48: ='1trimestre'!BE48+'2ºtrimestre'!BE48+'3º trimestre'!BE48+'4º trimestre'!BE48 -> 8731 | BJ48: Consultas de morbilidad odontológica | BK48: ='1trimestre'!BK48+'2ºtrimestre'!BK48+'3º trimestre'!BK48+'4º trimestre'!BK48 -> 0 | BP48: Consultas de morbilidad odontológica | BQ48: ='1trimestre'!BQ48+'2ºtrimestre'!BQ48+'3º trimestre'!BQ48+'4º trimestre'!BQ48 -> 0
B49: Consultas de urgencia odontológica | C49: 6414 | H49: Consultas de urgencia odontológica | I49: ='1trimestre'!I49+'2ºtrimestre'!I49+'3º trimestre'!I49+'4º trimestre'!I49 -> 0 | N49: Consultas de urgencia odontológica | O49: ='1trimestre'!O49+'2ºtrimestre'!O49+'3º trimestre'!O49+'4º trimestre'!O49 -> 67 | T49: Consultas de urgencia odontológica | U49: ='1trimestre'!U49+'2ºtrimestre'!U49+'3º trimestre'!U49+'4º trimestre'!U49 -> 1212 | Z49: Consultas de urgencia odontológica | AA49: ='1trimestre'!AA49+'2ºtrimestre'!AA49+'3º trimestre'!AA49+'4º trimestre'!AA49 -> 91 | AF49: Consultas de urgencia odontológica | AG49: ='1trimestre'!AG49+'2ºtrimestre'!AG49+'3º trimestre'!AG49+'4º trimestre'!AG49 -> 0 | AL49: Consultas de urgencia odontológica | AM49: ='1trimestre'!AM49+'2ºtrimestre'!AM49+'3º trimestre'!AM49+'4º trimestre'!AM49 -> 403 | AR49: Consultas de urgencia odontológica | AS49: ='1trimestre'!AS49+'2ºtrimestre'!AS49+'3º trimestre'!AS49+'4º trimestre'!AS49 -> 503 | AX49: Consultas de urgencia odontológica | AY49: ='1trimestre'!AY49+'2ºtrimestre'!AY49+'3º trimestre'!AY49+'4º trimestre'!AY49 -> 1941 | BD49: Consultas de urgencia odontológica | BE49: ='1trimestre'!BE49+'2ºtrimestre'!BE49+'3º trimestre'!BE49+'4º trimestre'!BE49 -> 2197 | BJ49: Consultas de urgencia odontológica | BK49: ='1trimestre'!BK49+'2ºtrimestre'!BK49+'3º trimestre'!BK49+'4º trimestre'!BK49 -> 0 | BP49: Consultas de urgencia odontológica | BQ49: ='1trimestre'!BQ49+'2ºtrimestre'!BQ49+'3º trimestre'!BQ49+'4º trimestre'!BQ49 -> 0
B50: PROGRAMAS DE REHABILITACION | C50: =SUM(C51:C52) -> 569 | D50: =SUM(D51:D52) -> 569 | E50: =SUM(E51:E52) -> 18754000 | H50: PROGRAMAS DE REHABILITACION | I50: =SUM(I51:I52) -> 0 | J50: =SUM(J51:J52) -> 0 | K50: =SUM(K51:K52) -> 0 | N50: PROGRAMAS DE REHABILITACION | O50: =SUM(O51:O52) -> 87 | P50: =SUM(P51:P52) -> 87 | Q50: =SUM(Q51:Q52) -> 1592496 | T50: PROGRAMAS DE REHABILITACION | U50: =SUM(U51:U52) -> 476 | V50: =SUM(V51:V52) -> 476 | W50: =SUM(W51:W52) -> 17128768 | Z50: PROGRAMAS DE REHABILITACION | AA50: =SUM(AA51:AA52) -> 6 | AB50: =SUM(AB51:AB52) -> 6 | AC50: =SUM(AC51:AC52) -> 32736 | AF50: PROGRAMAS DE REHABILITACION | AG50: =SUM(AG51:AG52) -> 0 | AH50: =SUM(AH51:AH52) -> 0 | AI50: =SUM(AI51:AI52) -> 0 | AL50: PROGRAMAS DE REHABILITACION | AM50: =SUM(AM51:AM52) -> 0 | AN50: =SUM(AN51:AN52) -> 0 | AO50: =SUM(AO51:AO52) -> 0 | AR50: PROGRAMAS DE REHABILITACION | AS50: =SUM(AS51:AS52) -> 0 | AT50: =SUM(AT51:AT52) -> 0 | AU50: =SUM(AU51:AU52) -> 0 | AX50: PROGRAMAS DE REHABILITACION | AY50: =SUM(AY51:AY52) -> 0 | AZ50: =SUM(AZ51:AZ52) -> 0 | BA50: =SUM(BA51:BA52) -> 0 | BD50: PROGRAMAS DE REHABILITACION | BE50: =SUM(BE51:BE52) -> 0 | BF50: =SUM(BF51:BF52) -> 0 | BG50: =SUM(BG51:BG52) -> 0 | BJ50: PROGRAMAS DE REHABILITACION | BK50: =SUM(BK51:BK52) -> 0 | BL50: =SUM(BL51:BL52) -> 0 | BM50: =SUM(BM51:BM52) -> 0 | BP50: PROGRAMAS DE REHABILITACION | BQ50: =SUM(BQ51:BQ52) -> 0 | BR50: =SUM(BR51:BR52) -> 0 | BS50: =SUM(BS51:BS52) -> 0
A51: 0903007 | B51: Programa de rehabilitación tipo 1 (mensual, grupo 6 a 10 pers.) | C51: =SUM(I51+O51+U51+AA51+AG51+AM51+AS51+AY51+BE51+BK51+BQ51) -> 569 | D51: =SUM(J51+P51+V51+AB51+AH51+AN51+AT51+AZ51+BF51+BL51+BR51) -> 569 | E51: =SUM(K51+Q51+W51+AC51+AI51+AO51+AU51+BA51+BG51+BM51+BS51) -> 18754000 | G51: 0903007 | H51: Programa de rehabilitación tipo 1 (mensual, grupo 6 a 10 pers.) | I51: ='1trimestre'!I51+'2ºtrimestre'!I51+'3º trimestre'!I51+'4º trimestre'!I51 -> 0 | J51: ='1trimestre'!J51+'2ºtrimestre'!J51+'3º trimestre'!J51+'4º trimestre'!J51 -> 0 | K51: ='1trimestre'!K51+'2ºtrimestre'!K51+'3º trimestre'!K51+'4º trimestre'!K51 -> 0 | M51: 0903007 | N51: Programa de rehabilitación tipo 1 (mensual, grupo 6 a 10 pers.) | O51: ='1trimestre'!O51+'2ºtrimestre'!O51+'3º trimestre'!O51+'4º trimestre'!O51 -> 87 | P51: ='1trimestre'!P51+'2ºtrimestre'!P51+'3º trimestre'!P51+'4º trimestre'!P51 -> 87 | Q51: ='1trimestre'!Q51+'2ºtrimestre'!Q51+'3º trimestre'!Q51+'4º trimestre'!Q51 -> 1592496 | S51: 0903007 | T51: Programa de rehabilitación tipo 1 (mensual, grupo 6 a 10 pers.) | U51: ='1trimestre'!U51+'2ºtrimestre'!U51+'3º trimestre'!U51+'4º trimestre'!U51 -> 476 | V51: ='1trimestre'!V51+'2ºtrimestre'!V51+'3º trimestre'!V51+'4º trimestre'!V51 -> 476 | W51: ='1trimestre'!W51+'2ºtrimestre'!W51+'3º trimestre'!W51+'4º trimestre'!W51 -> 17128768 | Y51: 0903007 | Z51: Programa de rehabilitación tipo 1 (mensual, grupo 6 a 10 pers.) | AA51: ='1trimestre'!AA51+'2ºtrimestre'!AA51+'3º trimestre'!AA51+'4º trimestre'!AA51 -> 6 | AB51: ='1trimestre'!AB51+'2ºtrimestre'!AB51+'3º trimestre'!AB51+'4º trimestre'!AB51 -> 6 | AC51: ='1trimestre'!AC51+'2ºtrimestre'!AC51+'3º trimestre'!AC51+'4º trimestre'!AC51 -> 32736 | AE51: 0903007 | AF51: Programa de rehabilitación tipo 1 (mensual, grupo 6 a 10 pers.) | AG51: ='1trimestre'!AG51+'2ºtrimestre'!AG51+'3º trimestre'!AG51+'4º trimestre'!AG51 -> 0 | AH51: ='1trimestre'!AH51+'2ºtrimestre'!AH51+'3º trimestre'!AH51+'4º trimestre'!AH51 -> 0 | AI51: ='1trimestre'!AI51+'2ºtrimestre'!AI51+'3º trimestre'!AI51+'4º trimestre'!AI51 -> 0 | AK51: 0903007 | AL51: Programa de rehabilitación tipo 1 (mensual, grupo 6 a 10 pers.) | AM51: ='1trimestre'!AM51+'2ºtrimestre'!AM51+'3º trimestre'!AM51+'4º trimestre'!AM51 -> 0 | AN51: ='1trimestre'!AN51+'2ºtrimestre'!AN51+'3º trimestre'!AN51+'4º trimestre'!AN51 -> 0 | AO51: ='1trimestre'!AO51+'2ºtrimestre'!AO51+'3º trimestre'!AO51+'4º trimestre'!AO51 -> 0 | AQ51: 0903007 | AR51: Programa de rehabilitación tipo 1 (mensual, grupo 6 a 10 pers.) | AS51: ='1trimestre'!AS51+'2ºtrimestre'!AS51+'3º trimestre'!AS51+'4º trimestre'!AS51 -> 0 | AT51: ='1trimestre'!AT51+'2ºtrimestre'!AT51+'3º trimestre'!AT51+'4º trimestre'!AT51 -> 0 | AU51: ='1trimestre'!AU51+'2ºtrimestre'!AU51+'3º trimestre'!AU51+'4º trimestre'!AU51 -> 0 | AW51: 0903007 | AX51: Programa de rehabilitación tipo 1 (mensual, grupo 6 a 10 pers.) | AY51: ='1trimestre'!AY51+'2ºtrimestre'!AY51+'3º trimestre'!AY51+'4º trimestre'!AY51 -> 0 | AZ51: ='1trimestre'!AZ51+'2ºtrimestre'!AZ51+'3º trimestre'!AZ51+'4º trimestre'!AZ51 -> 0 | BA51: ='1trimestre'!BA51+'2ºtrimestre'!BA51+'3º trimestre'!BA51+'4º trimestre'!BA51 -> 0 | BC51: 0903007 | BD51: Programa de rehabilitación tipo 1 (mensual, grupo 6 a 10 pers.) | BE51: ='1trimestre'!BE51+'2ºtrimestre'!BE51+'3º trimestre'!BE51+'4º trimestre'!BE51 -> 0 | BF51: ='1trimestre'!BF51+'2ºtrimestre'!BF51+'3º trimestre'!BF51+'4º trimestre'!BF51 -> 0 | BG51: ='1trimestre'!BG51+'2ºtrimestre'!BG51+'3º trimestre'!BG51+'4º trimestre'!BG51 -> 0 | BI51: 0903007 | BJ51: Programa de rehabilitación tipo 1 (mensual, grupo 6 a 10 pers.) | BK51: ='1trimestre'!BK51+'2ºtrimestre'!BK51+'3º trimestre'!BK51+'4º trimestre'!BK51 -> 0 | BL51: ='1trimestre'!BL51+'2ºtrimestre'!BL51+'3º trimestre'!BL51+'4º trimestre'!BL51 -> 0 | BM51: ='1trimestre'!BM51+'2ºtrimestre'!BM51+'3º trimestre'!BM51+'4º trimestre'!BM51 -> 0 | BO51: 0903007 | BP51: Programa de rehabilitación tipo 1 (mensual, grupo 6 a 10 pers.) | BQ51: ='1trimestre'!BQ51+'2ºtrimestre'!BQ51+'3º trimestre'!BQ51+'4º trimestre'!BQ51 -> 0 | BR51: ='1trimestre'!BR51+'2ºtrimestre'!BR51+'3º trimestre'!BR51+'4º trimestre'!BR51 -> 0 | BS51: ='1trimestre'!BS51+'2ºtrimestre'!BS51+'3º trimestre'!BS51+'4º trimestre'!BS51 -> 0
A52: 0903008 | B52: Programa de rehabilitación tipo 2 (mensual, grupo 5 a 7 pers.) | C52: 0 | D52: 0 | E52: 0 | G52: 0903008 | H52: Programa de rehabilitación tipo 2 (mensual, grupo 5 a 7 pers.) | I52: ='1trimestre'!I52+'2ºtrimestre'!I52+'3º trimestre'!I52+'4º trimestre'!I52 -> 0 | J52: ='1trimestre'!J52+'2ºtrimestre'!J52+'3º trimestre'!J52+'4º trimestre'!J52 -> 0 | K52: ='1trimestre'!K52+'2ºtrimestre'!K52+'3º trimestre'!K52+'4º trimestre'!K52 -> 0 | M52: 0903008 | N52: Programa de rehabilitación tipo 2 (mensual, grupo 5 a 7 pers.) | O52: ='1trimestre'!O52+'2ºtrimestre'!O52+'3º trimestre'!O52+'4º trimestre'!O52 -> 0 | P52: ='1trimestre'!P52+'2ºtrimestre'!P52+'3º trimestre'!P52+'4º trimestre'!P52 -> 0 | Q52: ='1trimestre'!Q52+'2ºtrimestre'!Q52+'3º trimestre'!Q52+'4º trimestre'!Q52 -> 0 | S52: 0903008 | T52: Programa de rehabilitación tipo 2 (mensual, grupo 5 a 7 pers.) | U52: ='1trimestre'!U52+'2ºtrimestre'!U52+'3º trimestre'!U52+'4º trimestre'!U52 -> 0 | V52: ='1trimestre'!V52+'2ºtrimestre'!V52+'3º trimestre'!V52+'4º trimestre'!V52 -> 0 | W52: ='1trimestre'!W52+'2ºtrimestre'!W52+'3º trimestre'!W52+'4º trimestre'!W52 -> 0 | Y52: 0903008 | Z52: Programa de rehabilitación tipo 2 (mensual, grupo 5 a 7 pers.) | AA52: ='1trimestre'!AA52+'2ºtrimestre'!AA52+'3º trimestre'!AA52+'4º trimestre'!AA52 -> 0 | AB52: ='1trimestre'!AB52+'2ºtrimestre'!AB52+'3º trimestre'!AB52+'4º trimestre'!AB52 -> 0 | AC52: ='1trimestre'!AC52+'2ºtrimestre'!AC52+'3º trimestre'!AC52+'4º trimestre'!AC52 -> 0 | AE52: 0903008 | AF52: Programa de rehabilitación tipo 2 (mensual, grupo 5 a 7 pers.) | AG52: ='1trimestre'!AG52+'2ºtrimestre'!AG52+'3º trimestre'!AG52+'4º trimestre'!AG52 -> 0 | AH52: ='1trimestre'!AH52+'2ºtrimestre'!AH52+'3º trimestre'!AH52+'4º trimestre'!AH52 -> 0 | AI52: ='1trimestre'!AI52+'2ºtrimestre'!AI52+'3º trimestre'!AI52+'4º trimestre'!AI52 -> 0 | AK52: 0903008 | AL52: Programa de rehabilitación tipo 2 (mensual, grupo 5 a 7 pers.) | AM52: ='1trimestre'!AM52+'2ºtrimestre'!AM52+'3º trimestre'!AM52+'4º trimestre'!AM52 -> 0 | AN52: ='1trimestre'!AN52+'2ºtrimestre'!AN52+'3º trimestre'!AN52+'4º trimestre'!AN52 -> 0 | AO52: ='1trimestre'!AO52+'2ºtrimestre'!AO52+'3º trimestre'!AO52+'4º trimestre'!AO52 -> 0 | AQ52: 0903008 | AR52: Programa de rehabilitación tipo 2 (mensual, grupo 5 a 7 pers.) | AS52: ='1trimestre'!AS52+'2ºtrimestre'!AS52+'3º trimestre'!AS52+'4º trimestre'!AS52 -> 0 | AT52: ='1trimestre'!AT52+'2ºtrimestre'!AT52+'3º trimestre'!AT52+'4º trimestre'!AT52 -> 0 | AU52: ='1trimestre'!AU52+'2ºtrimestre'!AU52+'3º trimestre'!AU52+'4º trimestre'!AU52 -> 0 | AW52: 0903008 | AX52: Programa de rehabilitación tipo 2 (mensual, grupo 5 a 7 pers.) | AY52: ='1trimestre'!AY52+'2ºtrimestre'!AY52+'3º trimestre'!AY52+'4º trimestre'!AY52 -> 0 | AZ52: ='1trimestre'!AZ52+'2ºtrimestre'!AZ52+'3º trimestre'!AZ52+'4º trimestre'!AZ52 -> 0 | BA52: ='1trimestre'!BA52+'2ºtrimestre'!BA52+'3º trimestre'!BA52+'4º trimestre'!BA52 -> 0 | BC52: 0903008 | BD52: Programa de rehabilitación tipo 2 (mensual, grupo 5 a 7 pers.) | BE52: ='1trimestre'!BE52+'2ºtrimestre'!BE52+'3º trimestre'!BE52+'4º trimestre'!BE52 -> 0 | BF52: ='1trimestre'!BF52+'2ºtrimestre'!BF52+'3º trimestre'!BF52+'4º trimestre'!BF52 -> 0 | BG52: ='1trimestre'!BG52+'2ºtrimestre'!BG52+'3º trimestre'!BG52+'4º trimestre'!BG52 -> 0 | BI52: 0903008 | BJ52: Programa de rehabilitación tipo 2 (mensual, grupo 5 a 7 pers.) | BK52: ='1trimestre'!BK52+'2ºtrimestre'!BK52+'3º trimestre'!BK52+'4º trimestre'!BK52 -> 0 | BL52: ='1trimestre'!BL52+'2ºtrimestre'!BL52+'3º trimestre'!BL52+'4º trimestre'!BL52 -> 0 | BM52: ='1trimestre'!BM52+'2ºtrimestre'!BM52+'3º trimestre'!BM52+'4º trimestre'!BM52 -> 0 | BO52: 0903008 | BP52: Programa de rehabilitación tipo 2 (mensual, grupo 5 a 7 pers.) | BQ52: ='1trimestre'!BQ52+'2ºtrimestre'!BQ52+'3º trimestre'!BQ52+'4º trimestre'!BQ52 -> 0 | BR52: ='1trimestre'!BR52+'2ºtrimestre'!BR52+'3º trimestre'!BR52+'4º trimestre'!BR52 -> 0 | BS52: ='1trimestre'!BS52+'2ºtrimestre'!BS52+'3º trimestre'!BS52+'4º trimestre'!BS52 -> 0
B53: OTROS PROGRAMAS | C53: =C54 -> 206 | H53: OTROS PROGRAMAS | I53: =I54 -> 0 | N53: OTROS PROGRAMAS | O53: =O54 -> 206 | T53: OTROS PROGRAMAS | U53: =U54 -> 0 | Z53: OTROS PROGRAMAS | AA53: =AA54 -> 0 | AF53: OTROS PROGRAMAS | AG53: =AG54 -> 0 | AL53: OTROS PROGRAMAS | AM53: =AM54 -> 0 | AR53: OTROS PROGRAMAS | AS53: =AS54 -> 0 | AX53: OTROS PROGRAMAS | AY53: =AY54 -> 0 | BD53: OTROS PROGRAMAS | BE53: =BE54 -> 0 | BJ53: OTROS PROGRAMAS | BK53: =BK54 -> 0 | BP53: OTROS PROGRAMAS | BQ53: =BQ54 -> 0
A54: 0901003 | B54: Electroshocks e insulino-terapia (efectuada y controlada por el médico psiquiatra, incluye trat. de las complicaciones medicas, c/s miorrelajantes); cada sesión (max.6) | C54: =SUM(I54+O54+U54+AA54+AG54+AM54+AS54+AY54+BE54+BK54+BQ54) -> 206 | G54: 0901003 | H54: Electroshocks e insulino-terapia (efectuada y controlada por el médico psiquiatra, incluye trat. de las complicaciones medicas, c/s miorrelajantes); cada sesión (max.6) | I54: ='1trimestre'!I54+'2ºtrimestre'!I54+'3º trimestre'!I54+'4º trimestre'!I54 -> 0 | M54: 0901003 | N54: Electroshocks e insulino-terapia (efectuada y controlada por el médico psiquiatra, incluye trat. de las complicaciones medicas, c/s miorrelajantes); cada sesión (max.6) | O54: ='1trimestre'!O54+'2ºtrimestre'!O54+'3º trimestre'!O54+'4º trimestre'!O54 -> 206 | S54: 0901003 | T54: Electroshocks e insulino-terapia (efectuada y controlada por el médico psiquiatra, incluye trat. de las complicaciones medicas, c/s miorrelajantes); cada sesión (max.6) | U54: ='1trimestre'!U54+'2ºtrimestre'!U54+'3º trimestre'!U54+'4º trimestre'!U54 -> 0 | Y54: 0901003 | Z54: Electroshocks e insulino-terapia (efectuada y controlada por el médico psiquiatra, incluye trat. de las complicaciones medicas, c/s miorrelajantes); cada sesión (max.6) | AA54: ='1trimestre'!AA54+'2ºtrimestre'!AA54+'3º trimestre'!AA54+'4º trimestre'!AA54 -> 0 | AE54: 0901003 | AF54: Electroshocks e insulino-terapia (efectuada y controlada por el médico psiquiatra, incluye trat. de las complicaciones medicas, c/s miorrelajantes); cada sesión (max.6) | AG54: ='1trimestre'!AG54+'2ºtrimestre'!AG54+'3º trimestre'!AG54+'4º trimestre'!AG54 -> 0 | AK54: 0901003 | AL54: Electroshocks e insulino-terapia (efectuada y controlada por el médico psiquiatra, incluye trat. de las complicaciones medicas, c/s miorrelajantes); cada sesión (max.6) | AM54: ='1trimestre'!AM54+'2ºtrimestre'!AM54+'3º trimestre'!AM54+'4º trimestre'!AM54 -> 0 | AQ54: 0901003 | AR54: Electroshocks e insulino-terapia (efectuada y controlada por el médico psiquiatra, incluye trat. de las complicaciones medicas, c/s miorrelajantes); cada sesión (max.6) | AS54: ='1trimestre'!AS54+'2ºtrimestre'!AS54+'3º trimestre'!AS54+'4º trimestre'!AS54 -> 0 | AW54: 0901003 | AX54: Electroshocks e insulino-terapia (efectuada y controlada por el médico psiquiatra, incluye trat. de las complicaciones medicas, c/s miorrelajantes); cada sesión (max.6) | AY54: ='1trimestre'!AY54+'2ºtrimestre'!AY54+'3º trimestre'!AY54+'4º trimestre'!AY54 -> 0 | BC54: 0901003 | BD54: Electroshocks e insulino-terapia (efectuada y controlada por el médico psiquiatra, incluye trat. de las complicaciones medicas, c/s miorrelajantes); cada sesión (max.6) | BE54: ='1trimestre'!BE54+'2ºtrimestre'!BE54+'3º trimestre'!BE54+'4º trimestre'!BE54 -> 0 | BI54: 0901003 | BJ54: Electroshocks e insulino-terapia (efectuada y controlada por el médico psiquiatra, incluye trat. de las complicaciones medicas, c/s miorrelajantes); cada sesión (max.6) | BK54: ='1trimestre'!BK54+'2ºtrimestre'!BK54+'3º trimestre'!BK54+'4º trimestre'!BK54 -> 0 | BO54: 0901003 | BP54: Electroshocks e insulino-terapia (efectuada y controlada por el médico psiquiatra, incluye trat. de las complicaciones medicas, c/s miorrelajantes); cada sesión (max.6) | BQ54: ='1trimestre'!BQ54+'2ºtrimestre'!BQ54+'3º trimestre'!BQ54+'4º trimestre'!BQ54 -> 0
B55: EDUCACION DE GRUPO | C55: =SUM(C56:C59) -> 2942 | D55: =SUM(D56:D59) -> 2332 | E55: =SUM(E56:E59) -> 5221700 | H55: EDUCACION DE GRUPO | I55: =SUM(I56:I59) -> 272 | J55: =SUM(J56:J59) -> 272 | K55: =SUM(K56:K59) -> 536220 | N55: EDUCACION DE GRUPO | O55: =SUM(O56:O59) -> 34 | P55: =SUM(P56:P59) -> 34 | Q55: =SUM(Q56:Q59) -> 76840 | T55: EDUCACION DE GRUPO | U55: =SUM(U56:U59) -> 1340 | V55: =SUM(V56:V59) -> 730 | W55: =SUM(W56:W59) -> 1648230 | Z55: EDUCACION DE GRUPO | AA55: =SUM(AA56:AA59) -> 20 | AB55: =SUM(AB56:AB59) -> 20 | AC55: =SUM(AC56:AC59) -> 45200 | AF55: EDUCACION DE GRUPO | AG55: =SUM(AG56:AG59) -> 189 | AH55: =SUM(AH56:AH59) -> 189 | AI55: =SUM(AI56:AI59) -> 427140 | AL55: EDUCACION DE GRUPO | AM55: =SUM(AM56:AM59) -> 71 | AN55: =SUM(AN56:AN59) -> 71 | AO55: =SUM(AO56:AO59) -> 160460 | AR55: EDUCACION DE GRUPO | AS55: =SUM(AS56:AS59) -> 153 | AT55: =SUM(AT56:AT59) -> 153 | AU55: =SUM(AU56:AU59) -> 345780 | AX55: EDUCACION DE GRUPO | AY55: =SUM(AY56:AY59) -> 8 | AZ55: =SUM(AZ56:AZ59) -> 8 | BA55: =SUM(BA56:BA59) -> 18080 | BD55: EDUCACION DE GRUPO | BE55: =SUM(BE56:BE59) -> 855 | BF55: =SUM(BF56:BF59) -> 855 | BG55: =SUM(BG56:BG59) -> 1963750 | BJ55: EDUCACION DE GRUPO | BK55: =SUM(BK56:BK59) -> 0 | BL55: =SUM(BL56:BL59) -> 0 | BM55: =SUM(BM56:BM59) -> 0 | BP55: EDUCACION DE GRUPO | BQ55: =SUM(BQ56:BQ59) -> 0 | BR55: =SUM(BR56:BR59) -> 0 | BS55: =SUM(BS56:BS59) -> 0
A56: 0103001 | B56: Educación de grupo por médico | C56: =SUM(I56+O56+U56+AA56+AG56+AM56+AS56+AY56+BE56+BK56+BQ56) -> 17 | D56: =SUM(J56+P56+V56+AB56+AH56+AN56+AT56+AZ56+BF56+BL56+BR56) -> 17 | E56: =SUM(K56+Q56+W56+AC56+AI56+AO56+AU56+BA56+BG56+BM56+BS56) -> 69870 | G56: 0103001 | H56: Educación de grupo por médico | I56: ='1trimestre'!I56+'2ºtrimestre'!I56+'3º trimestre'!I56+'4º trimestre'!I56 -> 0 | J56: ='1trimestre'!J56+'2ºtrimestre'!J56+'3º trimestre'!J56+'4º trimestre'!J56 -> 0 | K56: ='1trimestre'!K56+'2ºtrimestre'!K56+'3º trimestre'!K56+'4º trimestre'!K56 -> 0 | M56: 0103001 | N56: Educación de grupo por médico | O56: ='1trimestre'!O56+'2ºtrimestre'!O56+'3º trimestre'!O56+'4º trimestre'!O56 -> 0 | P56: ='1trimestre'!P56+'2ºtrimestre'!P56+'3º trimestre'!P56+'4º trimestre'!P56 -> 0 | Q56: ='1trimestre'!Q56+'2ºtrimestre'!Q56+'3º trimestre'!Q56+'4º trimestre'!Q56 -> 0 | S56: 0103001 | T56: Educación de grupo por médico | U56: ='1trimestre'!U56+'2ºtrimestre'!U56+'3º trimestre'!U56+'4º trimestre'!U56 -> 0 | V56: ='1trimestre'!V56+'2ºtrimestre'!V56+'3º trimestre'!V56+'4º trimestre'!V56 -> 0 | W56: ='1trimestre'!W56+'2ºtrimestre'!W56+'3º trimestre'!W56+'4º trimestre'!W56 -> 0 | Y56: 0103001 | Z56: Educación de grupo por médico | AA56: ='1trimestre'!AA56+'2ºtrimestre'!AA56+'3º trimestre'!AA56+'4º trimestre'!AA56 -> 0 | AB56: ='1trimestre'!AB56+'2ºtrimestre'!AB56+'3º trimestre'!AB56+'4º trimestre'!AB56 -> 0 | AC56: ='1trimestre'!AC56+'2ºtrimestre'!AC56+'3º trimestre'!AC56+'4º trimestre'!AC56 -> 0 | AE56: 0103001 | AF56: Educación de grupo por médico | AG56: ='1trimestre'!AG56+'2ºtrimestre'!AG56+'3º trimestre'!AG56+'4º trimestre'!AG56 -> 0 | AH56: ='1trimestre'!AH56+'2ºtrimestre'!AH56+'3º trimestre'!AH56+'4º trimestre'!AH56 -> 0 | AI56: ='1trimestre'!AI56+'2ºtrimestre'!AI56+'3º trimestre'!AI56+'4º trimestre'!AI56 -> 0 | AK56: 0103001 | AL56: Educación de grupo por médico | AM56: ='1trimestre'!AM56+'2ºtrimestre'!AM56+'3º trimestre'!AM56+'4º trimestre'!AM56 -> 0 | AN56: ='1trimestre'!AN56+'2ºtrimestre'!AN56+'3º trimestre'!AN56+'4º trimestre'!AN56 -> 0 | AO56: ='1trimestre'!AO56+'2ºtrimestre'!AO56+'3º trimestre'!AO56+'4º trimestre'!AO56 -> 0 | AQ56: 0103001 | AR56: Educación de grupo por médico | AS56: ='1trimestre'!AS56+'2ºtrimestre'!AS56+'3º trimestre'!AS56+'4º trimestre'!AS56 -> 0 | AT56: ='1trimestre'!AT56+'2ºtrimestre'!AT56+'3º trimestre'!AT56+'4º trimestre'!AT56 -> 0 | AU56: ='1trimestre'!AU56+'2ºtrimestre'!AU56+'3º trimestre'!AU56+'4º trimestre'!AU56 -> 0 | AW56: 0103001 | AX56: Educación de grupo por médico | AY56: ='1trimestre'!AY56+'2ºtrimestre'!AY56+'3º trimestre'!AY56+'4º trimestre'!AY56 -> 0 | AZ56: ='1trimestre'!AZ56+'2ºtrimestre'!AZ56+'3º trimestre'!AZ56+'4º trimestre'!AZ56 -> 0 | BA56: ='1trimestre'!BA56+'2ºtrimestre'!BA56+'3º trimestre'!BA56+'4º trimestre'!BA56 -> 0 | BC56: 0103001 | BD56: Educación de grupo por médico | BE56: ='1trimestre'!BE56+'2ºtrimestre'!BE56+'3º trimestre'!BE56+'4º trimestre'!BE56 -> 17 | BF56: ='1trimestre'!BF56+'2ºtrimestre'!BF56+'3º trimestre'!BF56+'4º trimestre'!BF56 -> 17 | BG56: ='1trimestre'!BG56+'2ºtrimestre'!BG56+'3º trimestre'!BG56+'4º trimestre'!BG56 -> 69870 | BI56: 0103001 | BJ56: Educación de grupo por médico | BK56: ='1trimestre'!BK56+'2ºtrimestre'!BK56+'3º trimestre'!BK56+'4º trimestre'!BK56 -> 0 | BL56: ='1trimestre'!BL56+'2ºtrimestre'!BL56+'3º trimestre'!BL56+'4º trimestre'!BL56 -> 0 | BM56: ='1trimestre'!BM56+'2ºtrimestre'!BM56+'3º trimestre'!BM56+'4º trimestre'!BM56 -> 0 | BO56: 0103001 | BP56: Educación de grupo por médico | BQ56: ='1trimestre'!BQ56+'2ºtrimestre'!BQ56+'3º trimestre'!BQ56+'4º trimestre'!BQ56 -> 0 | BR56: ='1trimestre'!BR56+'2ºtrimestre'!BR56+'3º trimestre'!BR56+'4º trimestre'!BR56 -> 0 | BS56: ='1trimestre'!BS56+'2ºtrimestre'!BS56+'3º trimestre'!BS56+'4º trimestre'!BS56 -> 0
A57: 0103002 | B57: Educación de grupo por enfermera, matrona o nutricionista | C57: 2479 | D57: 1870 | E57: 4226200 | G57: 0103002 | H57: Educación de grupo por enfermera, matrona o nutricionista | I57: ='1trimestre'!I57+'2ºtrimestre'!I57+'3º trimestre'!I57+'4º trimestre'!I57 -> 209 | J57: ='1trimestre'!J57+'2ºtrimestre'!J57+'3º trimestre'!J57+'4º trimestre'!J57 -> 209 | K57: ='1trimestre'!K57+'2ºtrimestre'!K57+'3º trimestre'!K57+'4º trimestre'!K57 -> 472340 | M57: 0103002 | N57: Educación de grupo por enfermera, matrona o nutricionista | O57: ='1trimestre'!O57+'2ºtrimestre'!O57+'3º trimestre'!O57+'4º trimestre'!O57 -> 34 | P57: ='1trimestre'!P57+'2ºtrimestre'!P57+'3º trimestre'!P57+'4º trimestre'!P57 -> 34 | Q57: ='1trimestre'!Q57+'2ºtrimestre'!Q57+'3º trimestre'!Q57+'4º trimestre'!Q57 -> 76840 | S57: 0103002 | T57: Educación de grupo por enfermera, matrona o nutricionista | U57: ='1trimestre'!U57+'2ºtrimestre'!U57+'3º trimestre'!U57+'4º trimestre'!U57 -> 1338 | V57: ='1trimestre'!V57+'2ºtrimestre'!V57+'3º trimestre'!V57+'4º trimestre'!V57 -> 729 | W57: ='1trimestre'!W57+'2ºtrimestre'!W57+'3º trimestre'!W57+'4º trimestre'!W57 -> 1647540 | Y57: 0103002 | Z57: Educación de grupo por enfermera, matrona o nutricionista | AA57: ='1trimestre'!AA57+'2ºtrimestre'!AA57+'3º trimestre'!AA57+'4º trimestre'!AA57 -> 8 | AB57: ='1trimestre'!AB57+'2ºtrimestre'!AB57+'3º trimestre'!AB57+'4º trimestre'!AB57 -> 8 | AC57: ='1trimestre'!AC57+'2ºtrimestre'!AC57+'3º trimestre'!AC57+'4º trimestre'!AC57 -> 18080 | AE57: 0103002 | AF57: Educación de grupo por enfermera, matrona o nutricionista | AG57: ='1trimestre'!AG57+'2ºtrimestre'!AG57+'3º trimestre'!AG57+'4º trimestre'!AG57 -> 106 | AH57: ='1trimestre'!AH57+'2ºtrimestre'!AH57+'3º trimestre'!AH57+'4º trimestre'!AH57 -> 106 | AI57: ='1trimestre'!AI57+'2ºtrimestre'!AI57+'3º trimestre'!AI57+'4º trimestre'!AI57 -> 239560 | AK57: 0103002 | AL57: Educación de grupo por enfermera, matrona o nutricionista | AM57: ='1trimestre'!AM57+'2ºtrimestre'!AM57+'3º trimestre'!AM57+'4º trimestre'!AM57 -> 5 | AN57: ='1trimestre'!AN57+'2ºtrimestre'!AN57+'3º trimestre'!AN57+'4º trimestre'!AN57 -> 5 | AO57: ='1trimestre'!AO57+'2ºtrimestre'!AO57+'3º trimestre'!AO57+'4º trimestre'!AO57 -> 11300 | AQ57: 0103002 | AR57: Educación de grupo por enfermera, matrona o nutricionista | AS57: ='1trimestre'!AS57+'2ºtrimestre'!AS57+'3º trimestre'!AS57+'4º trimestre'!AS57 -> 77 | AT57: ='1trimestre'!AT57+'2ºtrimestre'!AT57+'3º trimestre'!AT57+'4º trimestre'!AT57 -> 77 | AU57: ='1trimestre'!AU57+'2ºtrimestre'!AU57+'3º trimestre'!AU57+'4º trimestre'!AU57 -> 174020 | AW57: 0103002 | AX57: Educación de grupo por enfermera, matrona o nutricionista | AY57: ='1trimestre'!AY57+'2ºtrimestre'!AY57+'3º trimestre'!AY57+'4º trimestre'!AY57 -> 4 | AZ57: ='1trimestre'!AZ57+'2ºtrimestre'!AZ57+'3º trimestre'!AZ57+'4º trimestre'!AZ57 -> 4 | BA57: ='1trimestre'!BA57+'2ºtrimestre'!BA57+'3º trimestre'!BA57+'4º trimestre'!BA57 -> 9040 | BC57: 0103002 | BD57: Educación de grupo por enfermera, matrona o nutricionista | BE57: ='1trimestre'!BE57+'2ºtrimestre'!BE57+'3º trimestre'!BE57+'4º trimestre'!BE57 -> 698 | BF57: ='1trimestre'!BF57+'2ºtrimestre'!BF57+'3º trimestre'!BF57+'4º trimestre'!BF57 -> 698 | BG57: ='1trimestre'!BG57+'2ºtrimestre'!BG57+'3º trimestre'!BG57+'4º trimestre'!BG57 -> 1577480 | BI57: 0103002 | BJ57: Educación de grupo por enfermera, matrona o nutricionista | BK57: ='1trimestre'!BK57+'2ºtrimestre'!BK57+'3º trimestre'!BK57+'4º trimestre'!BK57 -> 0 | BL57: ='1trimestre'!BL57+'2ºtrimestre'!BL57+'3º trimestre'!BL57+'4º trimestre'!BL57 -> 0 | BM57: ='1trimestre'!BM57+'2ºtrimestre'!BM57+'3º trimestre'!BM57+'4º trimestre'!BM57 -> 0 | BO57: 0103002 | BP57: Educación de grupo por enfermera, matrona o nutricionista | BQ57: ='1trimestre'!BQ57+'2ºtrimestre'!BQ57+'3º trimestre'!BQ57+'4º trimestre'!BQ57 -> 0 | BR57: ='1trimestre'!BR57+'2ºtrimestre'!BR57+'3º trimestre'!BR57+'4º trimestre'!BR57 -> 0 | BS57: ='1trimestre'!BS57+'2ºtrimestre'!BS57+'3º trimestre'!BS57+'4º trimestre'!BS57 -> 0
A58: 0103003 | B58: Educación de grupo por asistente social | C58: 394 | D58: 394 | E58: 890440 | G58: 0103003 | H58: Educación de grupo por asistente social | I58: ='1trimestre'!I58+'2ºtrimestre'!I58+'3º trimestre'!I58+'4º trimestre'!I58 -> 13 | J58: ='1trimestre'!J58+'2ºtrimestre'!J58+'3º trimestre'!J58+'4º trimestre'!J58 -> 13 | K58: ='1trimestre'!K58+'2ºtrimestre'!K58+'3º trimestre'!K58+'4º trimestre'!K58 -> 29380 | M58: 0103003 | N58: Educación de grupo por asistente social | O58: ='1trimestre'!O58+'2ºtrimestre'!O58+'3º trimestre'!O58+'4º trimestre'!O58 -> 0 | P58: ='1trimestre'!P58+'2ºtrimestre'!P58+'3º trimestre'!P58+'4º trimestre'!P58 -> 0 | Q58: ='1trimestre'!Q58+'2ºtrimestre'!Q58+'3º trimestre'!Q58+'4º trimestre'!Q58 -> 0 | S58: 0103003 | T58: Educación de grupo por asistente social | U58: ='1trimestre'!U58+'2ºtrimestre'!U58+'3º trimestre'!U58+'4º trimestre'!U58 -> 0 | V58: ='1trimestre'!V58+'2ºtrimestre'!V58+'3º trimestre'!V58+'4º trimestre'!V58 -> 0 | W58: ='1trimestre'!W58+'2ºtrimestre'!W58+'3º trimestre'!W58+'4º trimestre'!W58 -> 0 | Y58: 0103003 | Z58: Educación de grupo por asistente social | AA58: ='1trimestre'!AA58+'2ºtrimestre'!AA58+'3º trimestre'!AA58+'4º trimestre'!AA58 -> 12 | AB58: ='1trimestre'!AB58+'2ºtrimestre'!AB58+'3º trimestre'!AB58+'4º trimestre'!AB58 -> 12 | AC58: ='1trimestre'!AC58+'2ºtrimestre'!AC58+'3º trimestre'!AC58+'4º trimestre'!AC58 -> 27120 | AE58: 0103003 | AF58: Educación de grupo por asistente social | AG58: ='1trimestre'!AG58+'2ºtrimestre'!AG58+'3º trimestre'!AG58+'4º trimestre'!AG58 -> 83 | AH58: ='1trimestre'!AH58+'2ºtrimestre'!AH58+'3º trimestre'!AH58+'4º trimestre'!AH58 -> 83 | AI58: ='1trimestre'!AI58+'2ºtrimestre'!AI58+'3º trimestre'!AI58+'4º trimestre'!AI58 -> 187580 | AK58: 0103003 | AL58: Educación de grupo por asistente social | AM58: ='1trimestre'!AM58+'2ºtrimestre'!AM58+'3º trimestre'!AM58+'4º trimestre'!AM58 -> 66 | AN58: ='1trimestre'!AN58+'2ºtrimestre'!AN58+'3º trimestre'!AN58+'4º trimestre'!AN58 -> 66 | AO58: ='1trimestre'!AO58+'2ºtrimestre'!AO58+'3º trimestre'!AO58+'4º trimestre'!AO58 -> 149160 | AQ58: 0103003 | AR58: Educación de grupo por asistente social | AS58: ='1trimestre'!AS58+'2ºtrimestre'!AS58+'3º trimestre'!AS58+'4º trimestre'!AS58 -> 76 | AT58: ='1trimestre'!AT58+'2ºtrimestre'!AT58+'3º trimestre'!AT58+'4º trimestre'!AT58 -> 76 | AU58: ='1trimestre'!AU58+'2ºtrimestre'!AU58+'3º trimestre'!AU58+'4º trimestre'!AU58 -> 171760 | AW58: 0103003 | AX58: Educación de grupo por asistente social | AY58: ='1trimestre'!AY58+'2ºtrimestre'!AY58+'3º trimestre'!AY58+'4º trimestre'!AY58 -> 4 | AZ58: ='1trimestre'!AZ58+'2ºtrimestre'!AZ58+'3º trimestre'!AZ58+'4º trimestre'!AZ58 -> 4 | BA58: ='1trimestre'!BA58+'2ºtrimestre'!BA58+'3º trimestre'!BA58+'4º trimestre'!BA58 -> 9040 | BC58: 0103003 | BD58: Educación de grupo por asistente social | BE58: ='1trimestre'!BE58+'2ºtrimestre'!BE58+'3º trimestre'!BE58+'4º trimestre'!BE58 -> 140 | BF58: ='1trimestre'!BF58+'2ºtrimestre'!BF58+'3º trimestre'!BF58+'4º trimestre'!BF58 -> 140 | BG58: ='1trimestre'!BG58+'2ºtrimestre'!BG58+'3º trimestre'!BG58+'4º trimestre'!BG58 -> 316400 | BI58: 0103003 | BJ58: Educación de grupo por asistente social | BK58: ='1trimestre'!BK58+'2ºtrimestre'!BK58+'3º trimestre'!BK58+'4º trimestre'!BK58 -> 0 | BL58: ='1trimestre'!BL58+'2ºtrimestre'!BL58+'3º trimestre'!BL58+'4º trimestre'!BL58 -> 0 | BM58: ='1trimestre'!BM58+'2ºtrimestre'!BM58+'3º trimestre'!BM58+'4º trimestre'!BM58 -> 0 | BO58: 0103003 | BP58: Educación de grupo por asistente social | BQ58: ='1trimestre'!BQ58+'2ºtrimestre'!BQ58+'3º trimestre'!BQ58+'4º trimestre'!BQ58 -> 0 | BR58: ='1trimestre'!BR58+'2ºtrimestre'!BR58+'3º trimestre'!BR58+'4º trimestre'!BR58 -> 0 | BS58: ='1trimestre'!BS58+'2ºtrimestre'!BS58+'3º trimestre'!BS58+'4º trimestre'!BS58 -> 0
A59: 0103004 | B59: Educación de grupo por auxiliar de enfermería | C59: 52 | D59: 51 | E59: 35190 | G59: 0103004 | H59: Educación de grupo por auxiliar de enfermería | I59: ='1trimestre'!I59+'2ºtrimestre'!I59+'3º trimestre'!I59+'4º trimestre'!I59 -> 50 | J59: ='1trimestre'!J59+'2ºtrimestre'!J59+'3º trimestre'!J59+'4º trimestre'!J59 -> 50 | K59: ='1trimestre'!K59+'2ºtrimestre'!K59+'3º trimestre'!K59+'4º trimestre'!K59 -> 34500 | M59: 0103004 | N59: Educación de grupo por auxiliar de enfermería | O59: ='1trimestre'!O59+'2ºtrimestre'!O59+'3º trimestre'!O59+'4º trimestre'!O59 -> 0 | P59: ='1trimestre'!P59+'2ºtrimestre'!P59+'3º trimestre'!P59+'4º trimestre'!P59 -> 0 | Q59: ='1trimestre'!Q59+'2ºtrimestre'!Q59+'3º trimestre'!Q59+'4º trimestre'!Q59 -> 0 | S59: 0103004 | T59: Educación de grupo por auxiliar de enfermería | U59: ='1trimestre'!U59+'2ºtrimestre'!U59+'3º trimestre'!U59+'4º trimestre'!U59 -> 2 | V59: ='1trimestre'!V59+'2ºtrimestre'!V59+'3º trimestre'!V59+'4º trimestre'!V59 -> 1 | W59: ='1trimestre'!W59+'2ºtrimestre'!W59+'3º trimestre'!W59+'4º trimestre'!W59 -> 690 | Y59: 0103004 | Z59: Educación de grupo por auxiliar de enfermería | AA59: ='1trimestre'!AA59+'2ºtrimestre'!AA59+'3º trimestre'!AA59+'4º trimestre'!AA59 -> 0 | AB59: ='1trimestre'!AB59+'2ºtrimestre'!AB59+'3º trimestre'!AB59+'4º trimestre'!AB59 -> 0 | AC59: ='1trimestre'!AC59+'2ºtrimestre'!AC59+'3º trimestre'!AC59+'4º trimestre'!AC59 -> 0 | AE59: 0103004 | AF59: Educación de grupo por auxiliar de enfermería | AG59: ='1trimestre'!AG59+'2ºtrimestre'!AG59+'3º trimestre'!AG59+'4º trimestre'!AG59 -> 0 | AH59: ='1trimestre'!AH59+'2ºtrimestre'!AH59+'3º trimestre'!AH59+'4º trimestre'!AH59 -> 0 | AI59: ='1trimestre'!AI59+'2ºtrimestre'!AI59+'3º trimestre'!AI59+'4º trimestre'!AI59 -> 0 | AK59: 0103004 | AL59: Educación de grupo por auxiliar de enfermería | AM59: ='1trimestre'!AM59+'2ºtrimestre'!AM59+'3º trimestre'!AM59+'4º trimestre'!AM59 -> 0 | AN59: ='1trimestre'!AN59+'2ºtrimestre'!AN59+'3º trimestre'!AN59+'4º trimestre'!AN59 -> 0 | AO59: ='1trimestre'!AO59+'2ºtrimestre'!AO59+'3º trimestre'!AO59+'4º trimestre'!AO59 -> 0 | AQ59: 0103004 | AR59: Educación de grupo por auxiliar de enfermería | AS59: ='1trimestre'!AS59+'2ºtrimestre'!AS59+'3º trimestre'!AS59+'4º trimestre'!AS59 -> 0 | AT59: ='1trimestre'!AT59+'2ºtrimestre'!AT59+'3º trimestre'!AT59+'4º trimestre'!AT59 -> 0 | AU59: ='1trimestre'!AU59+'2ºtrimestre'!AU59+'3º trimestre'!AU59+'4º trimestre'!AU59 -> 0 | AW59: 0103004 | AX59: Educación de grupo por auxiliar de enfermería | AY59: ='1trimestre'!AY59+'2ºtrimestre'!AY59+'3º trimestre'!AY59+'4º trimestre'!AY59 -> 0 | AZ59: ='1trimestre'!AZ59+'2ºtrimestre'!AZ59+'3º trimestre'!AZ59+'4º trimestre'!AZ59 -> 0 | BA59: ='1trimestre'!BA59+'2ºtrimestre'!BA59+'3º trimestre'!BA59+'4º trimestre'!BA59 -> 0 | BC59: 0103004 | BD59: Educación de grupo por auxiliar de enfermería | BE59: ='1trimestre'!BE59+'2ºtrimestre'!BE59+'3º trimestre'!BE59+'4º trimestre'!BE59 -> 0 | BF59: ='1trimestre'!BF59+'2ºtrimestre'!BF59+'3º trimestre'!BF59+'4º trimestre'!BF59 -> 0 | BG59: ='1trimestre'!BG59+'2ºtrimestre'!BG59+'3º trimestre'!BG59+'4º trimestre'!BG59 -> 0 | BI59: 0103004 | BJ59: Educación de grupo por auxiliar de enfermería | BK59: ='1trimestre'!BK59+'2ºtrimestre'!BK59+'3º trimestre'!BK59+'4º trimestre'!BK59 -> 0 | BL59: ='1trimestre'!BL59+'2ºtrimestre'!BL59+'3º trimestre'!BL59+'4º trimestre'!BL59 -> 0 | BM59: ='1trimestre'!BM59+'2ºtrimestre'!BM59+'3º trimestre'!BM59+'4º trimestre'!BM59 -> 0 | BO59: 0103004 | BP59: Educación de grupo por auxiliar de enfermería | BQ59: ='1trimestre'!BQ59+'2ºtrimestre'!BQ59+'3º trimestre'!BQ59+'4º trimestre'!BQ59 -> 0 | BR59: ='1trimestre'!BR59+'2ºtrimestre'!BR59+'3º trimestre'!BR59+'4º trimestre'!BR59 -> 0 | BS59: ='1trimestre'!BS59+'2ºtrimestre'!BS59+'3º trimestre'!BS59+'4º trimestre'!BS59 -> 0
B60: OTRA EDUCADION DE GRUPO | C60: =C61 -> 204 | H60: OTRA EDUCADION DE GRUPO | I60: =I61 -> 0 | N60: OTRA EDUCADION DE GRUPO | O60: =O61 -> 0 | T60: OTRA EDUCADION DE GRUPO | U60: =U61 -> 0 | Z60: OTRA EDUCADION DE GRUPO | AA60: =AA61 -> 0 | AF60: OTRA EDUCADION DE GRUPO | AG60: =AG61 -> 0 | AL60: OTRA EDUCADION DE GRUPO | AM60: =AM61 -> 16 | AR60: OTRA EDUCADION DE GRUPO | AS60: =AS61 -> 88 | AX60: OTRA EDUCADION DE GRUPO | AY60: =AY61 -> 96 | BD60: OTRA EDUCADION DE GRUPO | BE60: =BE61 -> 4 | BJ60: OTRA EDUCADION DE GRUPO | BK60: =BK61 -> 0 | BP60: OTRA EDUCADION DE GRUPO | BQ60: =BQ61 -> 0
B61: Educación de grupo por otro integrante del equipo de salud | C61: =SUM(I61+O61+U61+AA61+AG61+AM61+AS61+AY61+BE61+BK61+BQ61) -> 204 | H61: Educación de grupo por otro integrante del equipo de salud | I61: ='1trimestre'!I61+'2ºtrimestre'!I61+'3º trimestre'!I61+'4º trimestre'!I61 -> 0 | N61: Educación de grupo por otro integrante del equipo de salud | O61: ='1trimestre'!O61+'2ºtrimestre'!O61+'3º trimestre'!O61+'4º trimestre'!O61 -> 0 | T61: Educación de grupo por otro integrante del equipo de salud | U61: ='1trimestre'!U61+'2ºtrimestre'!U61+'3º trimestre'!U61+'4º trimestre'!U61 -> 0 | Z61: Educación de grupo por otro integrante del equipo de salud | AA61: ='1trimestre'!AA61+'2ºtrimestre'!AA61+'3º trimestre'!AA61+'4º trimestre'!AA61 -> 0 | AF61: Educación de grupo por otro integrante del equipo de salud | AG61: ='1trimestre'!AG61+'2ºtrimestre'!AG61+'3º trimestre'!AG61+'4º trimestre'!AG61 -> 0 | AL61: Educación de grupo por otro integrante del equipo de salud | AM61: ='1trimestre'!AM61+'2ºtrimestre'!AM61+'3º trimestre'!AM61+'4º trimestre'!AM61 -> 16 | AR61: Educación de grupo por otro integrante del equipo de salud | AS61: ='1trimestre'!AS61+'2ºtrimestre'!AS61+'3º trimestre'!AS61+'4º trimestre'!AS61 -> 88 | AX61: Educación de grupo por otro integrante del equipo de salud | AY61: ='1trimestre'!AY61+'2ºtrimestre'!AY61+'3º trimestre'!AY61+'4º trimestre'!AY61 -> 96 | BD61: Educación de grupo por otro integrante del equipo de salud | BE61: ='1trimestre'!BE61+'2ºtrimestre'!BE61+'3º trimestre'!BE61+'4º trimestre'!BE61 -> 4 | BJ61: Educación de grupo por otro integrante del equipo de salud | BK61: ='1trimestre'!BK61+'2ºtrimestre'!BK61+'3º trimestre'!BK61+'4º trimestre'!BK61 -> 0 | BP61: Educación de grupo por otro integrante del equipo de salud | BQ61: ='1trimestre'!BQ61+'2ºtrimestre'!BQ61+'3º trimestre'!BQ61+'4º trimestre'!BQ61 -> 0
B62: VISITAS DOMICILIARIAS | C62: =SUM(C63:C65) -> 14918 | D62: =SUM(D63:D65) -> 14917 | E62: =SUM(E63:E65) -> 27920110 | H62: VISITAS DOMICILIARIAS | I62: =SUM(I63:I65) -> 1517 | J62: =SUM(J63:J65) -> 1516 | K62: =SUM(K63:K65) -> 2884210 | N62: VISITAS DOMICILIARIAS | O62: =SUM(O63:O65) -> 3372 | P62: =SUM(P63:P65) -> 3372 | Q62: =SUM(Q63:Q65) -> 6564300 | T62: VISITAS DOMICILIARIAS | U62: =SUM(U63:U65) -> 3815 | V62: =SUM(V63:V65) -> 3815 | W62: =SUM(W63:W65) -> 7452500 | Z62: VISITAS DOMICILIARIAS | AA62: =SUM(AA63:AA65) -> 801 | AB62: =SUM(AB63:AB65) -> 801 | AC62: =SUM(AC63:AC65) -> 1569960 | AF62: VISITAS DOMICILIARIAS | AG62: =SUM(AG63:AG65) -> 649 | AH62: =SUM(AH63:AH65) -> 649 | AI62: =SUM(AI63:AI65) -> 1272040 | AL62: VISITAS DOMICILIARIAS | AM62: =SUM(AM63:AM65) -> 677 | AN62: =SUM(AN63:AN65) -> 677 | AO62: =SUM(AO63:AO65) -> 1326920 | AR62: VISITAS DOMICILIARIAS | AS62: =SUM(AS63:AS65) -> 1647 | AT62: =SUM(AT63:AT65) -> 1647 | AU62: =SUM(AU63:AU65) -> 2312630 | AX62: VISITAS DOMICILIARIAS | AY62: =SUM(AY63:AY65) -> 560 | AZ62: =SUM(AZ63:AZ65) -> 560 | BA62: =SUM(BA63:BA65) -> 926620 | BD62: VISITAS DOMICILIARIAS | BE62: =SUM(BE63:BE65) -> 1880 | BF62: =SUM(BF63:BF65) -> 1880 | BG62: =SUM(BG63:BG65) -> 3610930 | BJ62: VISITAS DOMICILIARIAS | BK62: =SUM(BK63:BK65) -> 0 | BL62: =SUM(BL63:BL65) -> 0 | BM62: =SUM(BM63:BM65) -> 0 | BP62: VISITAS DOMICILIARIAS | BQ62: =SUM(BQ63:BQ65) -> 0 | BR62: =SUM(BR63:BR65) -> 0 | BS62: =SUM(BS63:BS65) -> 0
A63: 0104001 | B63: Visita a domicilio por enfermera, matrona o nutricionista | C63: =SUM(I63+O63+U63+AA63+AG63+AM63+AS63+AY63+BE63+BK63+BQ63) -> 10925 | D63: =SUM(J63+P63+V63+AB63+AH63+AN63+AT63+AZ63+BF63+BL63+BR63) -> 10925 | E63: =SUM(K63+Q63+W63+AC63+AI63+AO63+AU63+BA63+BG63+BM63+BS63) -> 21413000 | G63: 0104001 | H63: Visita a domicilio por enfermera, matrona o nutricionista | I63: ='1trimestre'!I63+'2ºtrimestre'!I63+'3º trimestre'!I63+'4º trimestre'!I63 -> 673 | J63: ='1trimestre'!J63+'2ºtrimestre'!J63+'3º trimestre'!J63+'4º trimestre'!J63 -> 673 | K63: ='1trimestre'!K63+'2ºtrimestre'!K63+'3º trimestre'!K63+'4º trimestre'!K63 -> 1319080 | M63: 0104001 | N63: Visita a domicilio por enfermera, matrona o nutricionista | O63: ='1trimestre'!O63+'2ºtrimestre'!O63+'3º trimestre'!O63+'4º trimestre'!O63 -> 3318 | P63: ='1trimestre'!P63+'2ºtrimestre'!P63+'3º trimestre'!P63+'4º trimestre'!P63 -> 3318 | Q63: ='1trimestre'!Q63+'2ºtrimestre'!Q63+'3º trimestre'!Q63+'4º trimestre'!Q63 -> 6503280 | S63: 0104001 | T63: Visita a domicilio por enfermera, matrona o nutricionista | U63: ='1trimestre'!U63+'2ºtrimestre'!U63+'3º trimestre'!U63+'4º trimestre'!U63 -> 3766 | V63: ='1trimestre'!V63+'2ºtrimestre'!V63+'3º trimestre'!V63+'4º trimestre'!V63 -> 3766 | W63: ='1trimestre'!W63+'2ºtrimestre'!W63+'3º trimestre'!W63+'4º trimestre'!W63 -> 7381360 | Y63: 0104001 | Z63: Visita a domicilio por enfermera, matrona o nutricionista | AA63: ='1trimestre'!AA63+'2ºtrimestre'!AA63+'3º trimestre'!AA63+'4º trimestre'!AA63 -> 315 | AB63: ='1trimestre'!AB63+'2ºtrimestre'!AB63+'3º trimestre'!AB63+'4º trimestre'!AB63 -> 315 | AC63: ='1trimestre'!AC63+'2ºtrimestre'!AC63+'3º trimestre'!AC63+'4º trimestre'!AC63 -> 617400 | AE63: 0104001 | AF63: Visita a domicilio por enfermera, matrona o nutricionista | AG63: ='1trimestre'!AG63+'2ºtrimestre'!AG63+'3º trimestre'!AG63+'4º trimestre'!AG63 -> 372 | AH63: ='1trimestre'!AH63+'2ºtrimestre'!AH63+'3º trimestre'!AH63+'4º trimestre'!AH63 -> 372 | AI63: ='1trimestre'!AI63+'2ºtrimestre'!AI63+'3º trimestre'!AI63+'4º trimestre'!AI63 -> 729120 | AK63: 0104001 | AL63: Visita a domicilio por enfermera, matrona o nutricionista | AM63: ='1trimestre'!AM63+'2ºtrimestre'!AM63+'3º trimestre'!AM63+'4º trimestre'!AM63 -> 361 | AN63: ='1trimestre'!AN63+'2ºtrimestre'!AN63+'3º trimestre'!AN63+'4º trimestre'!AN63 -> 361 | AO63: ='1trimestre'!AO63+'2ºtrimestre'!AO63+'3º trimestre'!AO63+'4º trimestre'!AO63 -> 707560 | AQ63: 0104001 | AR63: Visita a domicilio por enfermera, matrona o nutricionista | AS63: ='1trimestre'!AS63+'2ºtrimestre'!AS63+'3º trimestre'!AS63+'4º trimestre'!AS63 -> 283 | AT63: ='1trimestre'!AT63+'2ºtrimestre'!AT63+'3º trimestre'!AT63+'4º trimestre'!AT63 -> 283 | AU63: ='1trimestre'!AU63+'2ºtrimestre'!AU63+'3º trimestre'!AU63+'4º trimestre'!AU63 -> 554680 | AW63: 0104001 | AX63: Visita a domicilio por enfermera, matrona o nutricionista | AY63: ='1trimestre'!AY63+'2ºtrimestre'!AY63+'3º trimestre'!AY63+'4º trimestre'!AY63 -> 261 | AZ63: ='1trimestre'!AZ63+'2ºtrimestre'!AZ63+'3º trimestre'!AZ63+'4º trimestre'!AZ63 -> 261 | BA63: ='1trimestre'!BA63+'2ºtrimestre'!BA63+'3º trimestre'!BA63+'4º trimestre'!BA63 -> 511560 | BC63: 0104001 | BD63: Visita a domicilio por enfermera, matrona o nutricionista | BE63: ='1trimestre'!BE63+'2ºtrimestre'!BE63+'3º trimestre'!BE63+'4º trimestre'!BE63 -> 1576 | BF63: ='1trimestre'!BF63+'2ºtrimestre'!BF63+'3º trimestre'!BF63+'4º trimestre'!BF63 -> 1576 | BG63: ='1trimestre'!BG63+'2ºtrimestre'!BG63+'3º trimestre'!BG63+'4º trimestre'!BG63 -> 3088960 | BI63: 0104001 | BJ63: Visita a domicilio por enfermera, matrona o nutricionista | BK63: ='1trimestre'!BK63+'2ºtrimestre'!BK63+'3º trimestre'!BK63+'4º trimestre'!BK63 -> 0 | BL63: ='1trimestre'!BL63+'2ºtrimestre'!BL63+'3º trimestre'!BL63+'4º trimestre'!BL63 -> 0 | BM63: ='1trimestre'!BM63+'2ºtrimestre'!BM63+'3º trimestre'!BM63+'4º trimestre'!BM63 -> 0 | BO63: 0104001 | BP63: Visita a domicilio por enfermera, matrona o nutricionista | BQ63: ='1trimestre'!BQ63+'2ºtrimestre'!BQ63+'3º trimestre'!BQ63+'4º trimestre'!BQ63 -> 0 | BR63: ='1trimestre'!BR63+'2ºtrimestre'!BR63+'3º trimestre'!BR63+'4º trimestre'!BR63 -> 0 | BS63: ='1trimestre'!BS63+'2ºtrimestre'!BS63+'3º trimestre'!BS63+'4º trimestre'!BS63 -> 0
A64: 0104002 | B64: Visita a domicilio por asistente social | C64: 2406 | D64: 2405 | E64: 4713800 | G64: 0104002 | H64: Visita a domicilio por asistente social | I64: ='1trimestre'!I64+'2ºtrimestre'!I64+'3º trimestre'!I64+'4º trimestre'!I64 -> 739 | J64: ='1trimestre'!J64+'2ºtrimestre'!J64+'3º trimestre'!J64+'4º trimestre'!J64 -> 738 | K64: ='1trimestre'!K64+'2ºtrimestre'!K64+'3º trimestre'!K64+'4º trimestre'!K64 -> 1446480 | M64: 0104002 | N64: Visita a domicilio por asistente social | O64: ='1trimestre'!O64+'2ºtrimestre'!O64+'3º trimestre'!O64+'4º trimestre'!O64 -> 0 | P64: ='1trimestre'!P64+'2ºtrimestre'!P64+'3º trimestre'!P64+'4º trimestre'!P64 -> 0 | Q64: ='1trimestre'!Q64+'2ºtrimestre'!Q64+'3º trimestre'!Q64+'4º trimestre'!Q64 -> 0 | S64: 0104002 | T64: Visita a domicilio por asistente social | U64: ='1trimestre'!U64+'2ºtrimestre'!U64+'3º trimestre'!U64+'4º trimestre'!U64 -> 19 | V64: ='1trimestre'!V64+'2ºtrimestre'!V64+'3º trimestre'!V64+'4º trimestre'!V64 -> 19 | W64: ='1trimestre'!W64+'2ºtrimestre'!W64+'3º trimestre'!W64+'4º trimestre'!W64 -> 37240 | Y64: 0104002 | Z64: Visita a domicilio por asistente social | AA64: ='1trimestre'!AA64+'2ºtrimestre'!AA64+'3º trimestre'!AA64+'4º trimestre'!AA64 -> 486 | AB64: ='1trimestre'!AB64+'2ºtrimestre'!AB64+'3º trimestre'!AB64+'4º trimestre'!AB64 -> 486 | AC64: ='1trimestre'!AC64+'2ºtrimestre'!AC64+'3º trimestre'!AC64+'4º trimestre'!AC64 -> 952560 | AE64: 0104002 | AF64: Visita a domicilio por asistente social | AG64: ='1trimestre'!AG64+'2ºtrimestre'!AG64+'3º trimestre'!AG64+'4º trimestre'!AG64 -> 277 | AH64: ='1trimestre'!AH64+'2ºtrimestre'!AH64+'3º trimestre'!AH64+'4º trimestre'!AH64 -> 277 | AI64: ='1trimestre'!AI64+'2ºtrimestre'!AI64+'3º trimestre'!AI64+'4º trimestre'!AI64 -> 542920 | AK64: 0104002 | AL64: Visita a domicilio por asistente social | AM64: ='1trimestre'!AM64+'2ºtrimestre'!AM64+'3º trimestre'!AM64+'4º trimestre'!AM64 -> 316 | AN64: ='1trimestre'!AN64+'2ºtrimestre'!AN64+'3º trimestre'!AN64+'4º trimestre'!AN64 -> 316 | AO64: ='1trimestre'!AO64+'2ºtrimestre'!AO64+'3º trimestre'!AO64+'4º trimestre'!AO64 -> 619360 | AQ64: 0104002 | AR64: Visita a domicilio por asistente social | AS64: ='1trimestre'!AS64+'2ºtrimestre'!AS64+'3º trimestre'!AS64+'4º trimestre'!AS64 -> 261 | AT64: ='1trimestre'!AT64+'2ºtrimestre'!AT64+'3º trimestre'!AT64+'4º trimestre'!AT64 -> 261 | AU64: ='1trimestre'!AU64+'2ºtrimestre'!AU64+'3º trimestre'!AU64+'4º trimestre'!AU64 -> 511560 | AW64: 0104002 | AX64: Visita a domicilio por asistente social | AY64: ='1trimestre'!AY64+'2ºtrimestre'!AY64+'3º trimestre'!AY64+'4º trimestre'!AY64 -> 93 | AZ64: ='1trimestre'!AZ64+'2ºtrimestre'!AZ64+'3º trimestre'!AZ64+'4º trimestre'!AZ64 -> 93 | BA64: ='1trimestre'!BA64+'2ºtrimestre'!BA64+'3º trimestre'!BA64+'4º trimestre'!BA64 -> 182280 | BC64: 0104002 | BD64: Visita a domicilio por asistente social | BE64: ='1trimestre'!BE64+'2ºtrimestre'!BE64+'3º trimestre'!BE64+'4º trimestre'!BE64 -> 215 | BF64: ='1trimestre'!BF64+'2ºtrimestre'!BF64+'3º trimestre'!BF64+'4º trimestre'!BF64 -> 215 | BG64: ='1trimestre'!BG64+'2ºtrimestre'!BG64+'3º trimestre'!BG64+'4º trimestre'!BG64 -> 421400 | BI64: 0104002 | BJ64: Visita a domicilio por asistente social | BK64: ='1trimestre'!BK64+'2ºtrimestre'!BK64+'3º trimestre'!BK64+'4º trimestre'!BK64 -> 0 | BL64: ='1trimestre'!BL64+'2ºtrimestre'!BL64+'3º trimestre'!BL64+'4º trimestre'!BL64 -> 0 | BM64: ='1trimestre'!BM64+'2ºtrimestre'!BM64+'3º trimestre'!BM64+'4º trimestre'!BM64 -> 0 | BO64: 0104002 | BP64: Visita a domicilio por asistente social | BQ64: ='1trimestre'!BQ64+'2ºtrimestre'!BQ64+'3º trimestre'!BQ64+'4º trimestre'!BQ64 -> 0 | BR64: ='1trimestre'!BR64+'2ºtrimestre'!BR64+'3º trimestre'!BR64+'4º trimestre'!BR64 -> 0 | BS64: ='1trimestre'!BS64+'2ºtrimestre'!BS64+'3º trimestre'!BS64+'4º trimestre'!BS64 -> 0
A65: 0104003 | B65: Visita a domicilio por auxiliar de enfermería | C65: 1587 | D65: 1587 | E65: 1793310 | G65: 0104003 | H65: Visita a domicilio por auxiliar de enfermería | I65: ='1trimestre'!I65+'2ºtrimestre'!I65+'3º trimestre'!I65+'4º trimestre'!I65 -> 105 | J65: ='1trimestre'!J65+'2ºtrimestre'!J65+'3º trimestre'!J65+'4º trimestre'!J65 -> 105 | K65: ='1trimestre'!K65+'2ºtrimestre'!K65+'3º trimestre'!K65+'4º trimestre'!K65 -> 118650 | M65: 0104003 | N65: Visita a domicilio por auxiliar de enfermería | O65: ='1trimestre'!O65+'2ºtrimestre'!O65+'3º trimestre'!O65+'4º trimestre'!O65 -> 54 | P65: ='1trimestre'!P65+'2ºtrimestre'!P65+'3º trimestre'!P65+'4º trimestre'!P65 -> 54 | Q65: ='1trimestre'!Q65+'2ºtrimestre'!Q65+'3º trimestre'!Q65+'4º trimestre'!Q65 -> 61020 | S65: 0104003 | T65: Visita a domicilio por auxiliar de enfermería | U65: ='1trimestre'!U65+'2ºtrimestre'!U65+'3º trimestre'!U65+'4º trimestre'!U65 -> 30 | V65: ='1trimestre'!V65+'2ºtrimestre'!V65+'3º trimestre'!V65+'4º trimestre'!V65 -> 30 | W65: ='1trimestre'!W65+'2ºtrimestre'!W65+'3º trimestre'!W65+'4º trimestre'!W65 -> 33900 | Y65: 0104003 | Z65: Visita a domicilio por auxiliar de enfermería | AA65: ='1trimestre'!AA65+'2ºtrimestre'!AA65+'3º trimestre'!AA65+'4º trimestre'!AA65 -> 0 | AB65: ='1trimestre'!AB65+'2ºtrimestre'!AB65+'3º trimestre'!AB65+'4º trimestre'!AB65 -> 0 | AC65: ='1trimestre'!AC65+'2ºtrimestre'!AC65+'3º trimestre'!AC65+'4º trimestre'!AC65 -> 0 | AE65: 0104003 | AF65: Visita a domicilio por auxiliar de enfermería | AG65: ='1trimestre'!AG65+'2ºtrimestre'!AG65+'3º trimestre'!AG65+'4º trimestre'!AG65 -> 0 | AH65: ='1trimestre'!AH65+'2ºtrimestre'!AH65+'3º trimestre'!AH65+'4º trimestre'!AH65 -> 0 | AI65: ='1trimestre'!AI65+'2ºtrimestre'!AI65+'3º trimestre'!AI65+'4º trimestre'!AI65 -> 0 | AK65: 0104003 | AL65: Visita a domicilio por auxiliar de enfermería | AM65: ='1trimestre'!AM65+'2ºtrimestre'!AM65+'3º trimestre'!AM65+'4º trimestre'!AM65 -> 0 | AN65: ='1trimestre'!AN65+'2ºtrimestre'!AN65+'3º trimestre'!AN65+'4º trimestre'!AN65 -> 0 | AO65: ='1trimestre'!AO65+'2ºtrimestre'!AO65+'3º trimestre'!AO65+'4º trimestre'!AO65 -> 0 | AQ65: 0104003 | AR65: Visita a domicilio por auxiliar de enfermería | AS65: ='1trimestre'!AS65+'2ºtrimestre'!AS65+'3º trimestre'!AS65+'4º trimestre'!AS65 -> 1103 | AT65: ='1trimestre'!AT65+'2ºtrimestre'!AT65+'3º trimestre'!AT65+'4º trimestre'!AT65 -> 1103 | AU65: ='1trimestre'!AU65+'2ºtrimestre'!AU65+'3º trimestre'!AU65+'4º trimestre'!AU65 -> 1246390 | AW65: 0104003 | AX65: Visita a domicilio por auxiliar de enfermería | AY65: ='1trimestre'!AY65+'2ºtrimestre'!AY65+'3º trimestre'!AY65+'4º trimestre'!AY65 -> 206 | AZ65: ='1trimestre'!AZ65+'2ºtrimestre'!AZ65+'3º trimestre'!AZ65+'4º trimestre'!AZ65 -> 206 | BA65: ='1trimestre'!BA65+'2ºtrimestre'!BA65+'3º trimestre'!BA65+'4º trimestre'!BA65 -> 232780 | BC65: 0104003 | BD65: Visita a domicilio por auxiliar de enfermería | BE65: ='1trimestre'!BE65+'2ºtrimestre'!BE65+'3º trimestre'!BE65+'4º trimestre'!BE65 -> 89 | BF65: ='1trimestre'!BF65+'2ºtrimestre'!BF65+'3º trimestre'!BF65+'4º trimestre'!BF65 -> 89 | BG65: ='1trimestre'!BG65+'2ºtrimestre'!BG65+'3º trimestre'!BG65+'4º trimestre'!BG65 -> 100570 | BI65: 0104003 | BJ65: Visita a domicilio por auxiliar de enfermería | BK65: ='1trimestre'!BK65+'2ºtrimestre'!BK65+'3º trimestre'!BK65+'4º trimestre'!BK65 -> 0 | BL65: ='1trimestre'!BL65+'2ºtrimestre'!BL65+'3º trimestre'!BL65+'4º trimestre'!BL65 -> 0 | BM65: ='1trimestre'!BM65+'2ºtrimestre'!BM65+'3º trimestre'!BM65+'4º trimestre'!BM65 -> 0 | BO65: 0104003 | BP65: Visita a domicilio por auxiliar de enfermería | BQ65: ='1trimestre'!BQ65+'2ºtrimestre'!BQ65+'3º trimestre'!BQ65+'4º trimestre'!BQ65 -> 0 | BR65: ='1trimestre'!BR65+'2ºtrimestre'!BR65+'3º trimestre'!BR65+'4º trimestre'!BR65 -> 0 | BS65: ='1trimestre'!BS65+'2ºtrimestre'!BS65+'3º trimestre'!BS65+'4º trimestre'!BS65 -> 0
B66: OTRAS VISITAS DOMICILIARIAS | C66: =SUM(C67:C68) -> 1999 | H66: OTRAS VISITAS DOMICILIARIAS | I66: =SUM(I67:I68) -> 6 | N66: OTRAS VISITAS DOMICILIARIAS | O66: =SUM(O67:O68) -> 0 | T66: OTRAS VISITAS DOMICILIARIAS | U66: =SUM(U67:U68) -> 0 | Z66: OTRAS VISITAS DOMICILIARIAS | AA66: =SUM(AA67:AA68) -> 0 | AF66: OTRAS VISITAS DOMICILIARIAS | AG66: =SUM(AG67:AG68) -> 0 | AL66: OTRAS VISITAS DOMICILIARIAS | AM66: =SUM(AM67:AM68) -> 155 | AR66: OTRAS VISITAS DOMICILIARIAS | AS66: =SUM(AS67:AS68) -> 508 | AX66: OTRAS VISITAS DOMICILIARIAS | AY66: =SUM(AY67:AY68) -> 1243 | BD66: OTRAS VISITAS DOMICILIARIAS | BE66: =SUM(BE67:BE68) -> 87 | BJ66: OTRAS VISITAS DOMICILIARIAS | BK66: =SUM(BK67:BK68) -> 0 | BP66: OTRAS VISITAS DOMICILIARIAS | BQ66: =SUM(BQ67:BQ68) -> 0
B67: Visita a domicilio por otro integrante del equipo de salud | C67: =SUM(I67+O67+U67+AA67+AG67+AM67+AS67+AY67+BE67+BK67+BQ67) -> 1162 | H67: Visita a domicilio por otro integrante del equipo de salud | I67: ='1trimestre'!I67+'2ºtrimestre'!I67+'3º trimestre'!I67+'4º trimestre'!I67 -> 6 | N67: Visita a domicilio por otro integrante del equipo de salud | O67: ='1trimestre'!O67+'2ºtrimestre'!O67+'3º trimestre'!O67+'4º trimestre'!O67 -> 0 | T67: Visita a domicilio por otro integrante del equipo de salud | U67: ='1trimestre'!U67+'2ºtrimestre'!U67+'3º trimestre'!U67+'4º trimestre'!U67 -> 0 | Z67: Visita a domicilio por otro integrante del equipo de salud | AA67: ='1trimestre'!AA67+'2ºtrimestre'!AA67+'3º trimestre'!AA67+'4º trimestre'!AA67 -> 0 | AF67: Visita a domicilio por otro integrante del equipo de salud | AG67: ='1trimestre'!AG67+'2ºtrimestre'!AG67+'3º trimestre'!AG67+'4º trimestre'!AG67 -> 0 | AL67: Visita a domicilio por otro integrante del equipo de salud | AM67: ='1trimestre'!AM67+'2ºtrimestre'!AM67+'3º trimestre'!AM67+'4º trimestre'!AM67 -> 155 | AR67: Visita a domicilio por otro integrante del equipo de salud | AS67: ='1trimestre'!AS67+'2ºtrimestre'!AS67+'3º trimestre'!AS67+'4º trimestre'!AS67 -> 263 | AX67: Visita a domicilio por otro integrante del equipo de salud | AY67: ='1trimestre'!AY67+'2ºtrimestre'!AY67+'3º trimestre'!AY67+'4º trimestre'!AY67 -> 710 | BD67: Visita a domicilio por otro integrante del equipo de salud | BE67: ='1trimestre'!BE67+'2ºtrimestre'!BE67+'3º trimestre'!BE67+'4º trimestre'!BE67 -> 28 | BJ67: Visita a domicilio por otro integrante del equipo de salud | BK67: ='1trimestre'!BK67+'2ºtrimestre'!BK67+'3º trimestre'!BK67+'4º trimestre'!BK67 -> 0 | BP67: Visita a domicilio por otro integrante del equipo de salud | BQ67: ='1trimestre'!BQ67+'2ºtrimestre'!BQ67+'3º trimestre'!BQ67+'4º trimestre'!BQ67 -> 0
B68: Visita domiciaria por profesional y técnico paramédico | C68: 837 | H68: Visita domiciaria por profesional y técnico paramédico | I68: ='1trimestre'!I68+'2ºtrimestre'!I68+'3º trimestre'!I68+'4º trimestre'!I68 -> 0 | N68: Visita domiciaria por profesional y técnico paramédico | O68: ='1trimestre'!O68+'2ºtrimestre'!O68+'3º trimestre'!O68+'4º trimestre'!O68 -> 0 | T68: Visita domiciaria por profesional y técnico paramédico | U68: ='1trimestre'!U68+'2ºtrimestre'!U68+'3º trimestre'!U68+'4º trimestre'!U68 -> 0 | Z68: Visita domiciaria por profesional y técnico paramédico | AA68: ='1trimestre'!AA68+'2ºtrimestre'!AA68+'3º trimestre'!AA68+'4º trimestre'!AA68 -> 0 | AF68: Visita domiciaria por profesional y técnico paramédico | AG68: ='1trimestre'!AG68+'2ºtrimestre'!AG68+'3º trimestre'!AG68+'4º trimestre'!AG68 -> 0 | AL68: Visita domiciaria por profesional y técnico paramédico | AM68: ='1trimestre'!AM68+'2ºtrimestre'!AM68+'3º trimestre'!AM68+'4º trimestre'!AM68 -> 0 | AR68: Visita domiciaria por profesional y técnico paramédico | AS68: ='1trimestre'!AS68+'2ºtrimestre'!AS68+'3º trimestre'!AS68+'4º trimestre'!AS68 -> 245 | AX68: Visita domiciaria por profesional y técnico paramédico | AY68: ='1trimestre'!AY68+'2ºtrimestre'!AY68+'3º trimestre'!AY68+'4º trimestre'!AY68 -> 533 | BD68: Visita domiciaria por profesional y técnico paramédico | BE68: ='1trimestre'!BE68+'2ºtrimestre'!BE68+'3º trimestre'!BE68+'4º trimestre'!BE68 -> 59 | BJ68: Visita domiciaria por profesional y técnico paramédico | BK68: ='1trimestre'!BK68+'2ºtrimestre'!BK68+'3º trimestre'!BK68+'4º trimestre'!BK68 -> 0 | BP68: Visita domiciaria por profesional y técnico paramédico | BQ68: ='1trimestre'!BQ68+'2ºtrimestre'!BQ68+'3º trimestre'!BQ68+'4º trimestre'!BQ68 -> 0
B69: TOTAL | C69: =C10+C32+C50+C55+C62+C24+C25+C44+C53+C60+C66 -> 1417675 | D69: =D10+D32+D50+D55+D62+D24 -> 1126857 | E69: =E10+E32+E50+E55+E62+E24 -> 7158861030 | H69: TOTAL | I69: =I10+I32+I50+I55+I62+I24+I25+I44+I53+I60+I66 -> 264659 | J69: =J10+J32+J50+J55+J62+J24 -> 250678 | K69: =K10+K32+K50+K55+K62+K24 -> 2089056550 | N69: TOTAL | O69: =O10+O32+O50+O55+O62+O24+O25+O44+O53+O60+O66 -> 258681 | P69: =P10+P32+P50+P55+P62+P24 -> 244649 | Q69: =Q10+Q32+Q50+Q55+Q62+Q24 -> 1951013916 | T69: TOTAL | U69: =U10+U32+U50+U55+U62+U24+U25+U44+U53+U60+U66 -> 220061 | V69: =V10+V32+V50+V55+V62+V24 -> 189144 | W69: =W10+W32+W50+W55+W62+W24 -> 1479399158 | Z69: TOTAL | AA69: =AA10+AA32+AA50+AA55+AA62+AA24+AA25+AA44+AA53+AA60+AA66 -> 101322 | AB69: =AB10+AB32+AB50+AB55+AB62+AB24 -> 86339 | AC69: =AC10+AC32+AC50+AC55+AC62+AC24 -> 528453106 | AF69: TOTAL | AG69: =AG10+AG32+AG50+AG55+AG62+AG24+AG25+AG44+AG53+AG60+AG66 -> 172505 | AH69: =AH10+AH32+AH50+AH55+AH62+AH24 -> 124922 | AI69: =AI10+AI32+AI50+AI55+AI62+AI24 -> 331196140 | AL69: TOTAL | AM69: =AM10+AM32+AM50+AM55+AM62+AM24+AM25+AM44+AM53+AM60+AM66 -> 77679 | AN69: =AN10+AN32+AN50+AN55+AN62+AN24 -> 47328 | AO69: =AO10+AO32+AO50+AO55+AO62+AO24 -> 129328350 | AR69: TOTAL | AS69: =AS10+AS32+AS50+AS55+AS62+AS24+AS25+AS44+AS53+AS60+AS66 -> 75851 | AT69: =AT10+AT32+AT50+AT55+AT62+AT24 -> 49131 | AU69: =AU10+AU32+AU50+AU55+AU62+AU24 -> 150433640 | AX69: TOTAL | AY69: =AY10+AY32+AY50+AY55+AY62+AY24+AY25+AY44+AY53+AY60+AY66 -> 110305 | AZ69: =AZ10+AZ32+AZ50+AZ55+AZ62+AZ24 -> 60495 | BA69: =BA10+BA32+BA50+BA55+BA62+BA24 -> 226326790 | BD69: TOTAL | BE69: =BE10+BE32+BE50+BE55+BE62+BE24+BE25+BE44+BE53+BE60+BE66 -> 136612 | BF69: =BF10+BF32+BF50+BF55+BF62+BF24 -> 74171 | BG69: =BG10+BG32+BG50+BG55+BG62+BG24 -> 273653380 | BJ69: TOTAL | BK69: =BK10+BK32+BK50+BK55+BK62+BK24+BK25+BK44+BK53+BK60+BK66 -> 0 | BL69: =BL10+BL32+BL50+BL55+BL62+BL24 -> 0 | BM69: =BM10+BM32+BM50+BM55+BM62+BM24 -> 0 | BP69: TOTAL | BQ69: =BQ10+BQ32+BQ50+BQ55+BQ62+BQ24+BQ25+BQ44+BQ53+BQ60+BQ66 -> 0 | BR69: =BR10+BR32+BR50+BR55+BR62+BR24 -> 0 | BS69: =BS10+BS32+BS50+BS55+BS62+BS24 -> 0
A70: SECCION B: EXÁMENES DE DIAGNÓSTICO | C70: =C72+C78+C86+C90+C94+C95+C96 -> 3792846 | D70: =D72+D78+D86+D90+D94+D95+D96 -> 3558475 | E70: 13830912340 | G70: SECCION B: EXÁMENES DE DIAGNÓSTICO | I70: =I72+I78+I86+I90+I94+I95+I96 -> 1010670 | J70: =J72+J78+J86+J90+J94+J95+J96 -> 964648 | K70: 4274972070 | M70: SECCION B: EXÁMENES DE DIAGNÓSTICO | O70: =O72+O78+O86+O90+O94+O95+O96 -> 992083 | P70: =P72+P78+P86+P90+P94+P95+P96 -> 970874 | Q70: 4483189000 | S70: SECCION B: EXÁMENES DE DIAGNÓSTICO | U70: =U72+U78+U86+U90+U94+U95+U96 -> 946804 | V70: =V72+V78+V86+V90+V94+V95+V96 -> 857832 | W70: 3098710290 | Y70: SECCION B: EXÁMENES DE DIAGNÓSTICO | AA70: =AA72+AA78+AA86+AA90+AA94+AA95+AA96 -> 208338 | AB70: =AB72+AB78+AB86+AB90+AB94+AB95+AB96 -> 130170 | AC70: 421301050 | AE70: SECCION B: EXÁMENES DE DIAGNÓSTICO | AG70: =AG72+AG78+AG86+AG90+AG94+AG95+AG96 -> 138028 | AH70: =AH72+AH78+AH86+AH90+AH94+AH95+AH96 -> 138028 | AI70: 336490230 | AK70: SECCION B: EXÁMENES DE DIAGNÓSTICO | AM70: =AM72+AM78+AM86+AM90+AM94+AM95+AM96 -> 55337 | AN70: =AN72+AN78+AN86+AN90+AN94+AN95+AN96 -> 55337 | AO70: 117731450 | AQ70: SECCION B: EXÁMENES DE DIAGNÓSTICO | AS70: =AS72+AS78+AS86+AS90+AS94+AS95+AS96 -> 78478 | AT70: =AT72+AT78+AT86+AT90+AT94+AT95+AT96 -> 78478 | AU70: 284682230 | AW70: SECCION B: EXÁMENES DE DIAGNÓSTICO | AY70: =AY72+AY78+AY86+AY90+AY94+AY95+AY96 -> 187742 | AZ70: =AZ72+AZ78+AZ86+AZ90+AZ94+AZ95+AZ96 -> 187742 | BA70: 396725090 | BC70: SECCION B: EXÁMENES DE DIAGNÓSTICO | BE70: =BE72+BE78+BE86+BE90+BE94+BE95+BE96 -> 175366 | BF70: =BF72+BF78+BF86+BF90+BF94+BF95+BF96 -> 175366 | BG70: 417110930 | BI70: SECCION B: EXÁMENES DE DIAGNÓSTICO | BK70: =BK72+BK78+BK86+BK90+BK94+BK95+BK96 -> 0 | BL70: =BL72+BL78+BL86+BL90+BL94+BL95+BL96 -> 0 | BM70: 0 | BO70: SECCION B: EXÁMENES DE DIAGNÓSTICO | BQ70: =BQ72+BQ78+BQ86+BQ90+BQ94+BQ95+BQ96 -> 0 | BR70: =BR72+BR78+BR86+BR90+BR94+BR95+BR96 -> 0 | BS70: 0
A71: TIPO DE EXAMEN | C71: TOTAL PRODUCCIÓN | D71: TOTAL BENEFICIARIOS MAI | E71: PAGO POR PRESTACIONES ($) | G71: TIPO DE EXAMEN | I71: TOTAL PRODUCCIÓN | J71: TOTAL BENEFICIARIOS MAI | K71: PAGO POR PRESTACIONES ($) | M71: TIPO DE EXAMEN | O71: TOTAL PRODUCCIÓN | P71: TOTAL BENEFICIARIOS MAI | Q71: PAGO POR PRESTACIONES ($) | S71: TIPO DE EXAMEN | U71: TOTAL PRODUCCIÓN | V71: TOTAL BENEFICIARIOS MAI | W71: PAGO POR PRESTACIONES ($) | Y71: TIPO DE EXAMEN | AA71: TOTAL PRODUCCIÓN | AB71: TOTAL BENEFICIARIOS MAI | AC71: PAGO POR PRESTACIONES ($) | AE71: TIPO DE EXAMEN | AG71: TOTAL PRODUCCIÓN | AH71: TOTAL BENEFICIARIOS MAI | AI71: PAGO POR PRESTACIONES ($) | AK71: TIPO DE EXAMEN | AM71: TOTAL PRODUCCIÓN | AN71: TOTAL BENEFICIARIOS MAI | AO71: PAGO POR PRESTACIONES ($) | AQ71: TIPO DE EXAMEN | AS71: TOTAL PRODUCCIÓN | AT71: TOTAL BENEFICIARIOS MAI | AU71: PAGO POR PRESTACIONES ($) | AW71: TIPO DE EXAMEN | AY71: TOTAL PRODUCCIÓN | AZ71: TOTAL BENEFICIARIOS MAI | BA71: PAGO POR PRESTACIONES ($) | BC71: TIPO DE EXAMEN | BE71: TOTAL PRODUCCIÓN | BF71: TOTAL BENEFICIARIOS MAI | BG71: PAGO POR PRESTACIONES ($) | BI71: TIPO DE EXAMEN | BK71: TOTAL PRODUCCIÓN | BL71: TOTAL BENEFICIARIOS MAI | BM71: PAGO POR PRESTACIONES ($) | BO71: TIPO DE EXAMEN | BQ71: TOTAL PRODUCCIÓN | BR71: TOTAL BENEFICIARIOS MAI | BS71: PAGO POR PRESTACIONES ($)
A72: TOTAL EXAMENES LABORATORIO | C72: =SUM(C73:C78,C82:C85) -> 3170544 | D72: =SUM(D73:D77,D78,D82:D85) -> 2962370 | E72: =SUM(E73:E77,E78,E82:E84) -> 6464513780 | G72: TOTAL EXAMENES LABORATORIO | I72: =SUM(I73:I78,I82:I85) -> 812971 | J72: =SUM(J73:J77,J78,J82:J85) -> 774231 | K72: =SUM(K73:K77,K78,K82:K84) -> 1975539010 | M72: TOTAL EXAMENES LABORATORIO | O72: =SUM(O73:O78,O82:O85) -> 807703 | P72: =SUM(P73:P77,P78,P82:P85) -> 791660 | Q72: =SUM(Q73:Q77,Q78,Q82:Q84) -> 1764133930 | S72: TOTAL EXAMENES LABORATORIO | U72: =SUM(U73:U78,U82:U85) -> 813398 | V72: =SUM(V73:V77,V78,V82:V85) -> 731458 | W72: =SUM(W73:W77,W78,W82:W84) -> 1509389680 | Y72: TOTAL EXAMENES LABORATORIO | AA72: =SUM(AA73:AA78,AA82:AA85) -> 177704 | AB72: =SUM(AB73:AB77,AB78,AB82:AB85) -> 106253 | AC72: =SUM(AC73:AC77,AC78,AC82:AC84) -> 179453750 | AE72: TOTAL EXAMENES LABORATORIO | AG72: =SUM(AG73:AG78,AG82:AG85) -> 118427 | AH72: =SUM(AH73:AH77,AH78,AH82:AH85) -> 118427 | AI72: =SUM(AI73:AI77,AI78,AI82:AI84) -> 208131000 | AK72: TOTAL EXAMENES LABORATORIO | AM72: =SUM(AM73:AM78,AM82:AM85) -> 49029 | AN72: =SUM(AN73:AN77,AN78,AN82:AN85) -> 49029 | AO72: =SUM(AO73:AO77,AO78,AO82:AO84) -> 79481530 | AQ72: TOTAL EXAMENES LABORATORIO | AS72: =SUM(AS73:AS78,AS82:AS85) -> 67014 | AT72: =SUM(AT73:AT77,AT78,AT82:AT85) -> 67014 | AU72: =SUM(AU73:AU77,AU78,AU82:AU84) -> 206211010 | AW72: TOTAL EXAMENES LABORATORIO | AY72: =SUM(AY73:AY78,AY82:AY85) -> 173649 | AZ72: =SUM(AZ73:AZ77,AZ78,AZ82:AZ85) -> 173649 | BA72: =SUM(BA73:BA77,BA78,BA82:BA84) -> 295195250 | BC72: TOTAL EXAMENES LABORATORIO | BE72: =SUM(BE73:BE78,BE82:BE85) -> 150649 | BF72: =SUM(BF73:BF77,BF78,BF82:BF85) -> 150649 | BG72: =SUM(BG73:BG77,BG78,BG82:BG84) -> 246978620 | BI72: TOTAL EXAMENES LABORATORIO | BK72: =SUM(BK73:BK78,BK82:BK85) -> 0 | BL72: =SUM(BL73:BL77,BL78,BL82:BL85) -> 0 | BM72: =SUM(BM73:BM77,BM78,BM82:BM84) -> 0 | BO72: TOTAL EXAMENES LABORATORIO | BQ72: =SUM(BQ73:BQ78,BQ82:BQ85) -> 0 | BR72: =SUM(BR73:BR77,BR78,BR82:BR85) -> 0 | BS72: =SUM(BS73:BS77,BS78,BS82:BS84) -> 0
A73: I | B73: HEMATOLOGICOS | C73: =SUM(I73+O73+U73+AA73+AG73+AM73+AS73+AY73+BE73+BK73+BQ73) -> 835992 | D73: =SUM(J73+P73+V73+AB73+AH73+AN73+AT73+AZ73+BF73+BL73+BR73) -> 789043 | E73: =SUM(K73+Q73+W73+AC73+AI73+AO73+AU73+BA73+BG73+BM73+BS73) -> 1334519610 | G73: I | H73: HEMATOLOGICOS | I73: ='1trimestre'!I73+'2ºtrimestre'!I73+'3º trimestre'!I73+'4º trimestre'!I73 -> 208499 | J73: ='1trimestre'!J73+'2ºtrimestre'!J73+'3º trimestre'!J73+'4º trimestre'!J73 -> 201774 | K73: ='1trimestre'!K73+'2ºtrimestre'!K73+'3º trimestre'!K73+'4º trimestre'!K73 -> 394578040 | M73: I | N73: HEMATOLOGICOS | O73: ='1trimestre'!O73+'2ºtrimestre'!O73+'3º trimestre'!O73+'4º trimestre'!O73 -> 216722 | P73: ='1trimestre'!P73+'2ºtrimestre'!P73+'3º trimestre'!P73+'4º trimestre'!P73 -> 213478 | Q73: ='1trimestre'!Q73+'2ºtrimestre'!Q73+'3º trimestre'!Q73+'4º trimestre'!Q73 -> 373821900 | S73: I | T73: HEMATOLOGICOS | U73: ='1trimestre'!U73+'2ºtrimestre'!U73+'3º trimestre'!U73+'4º trimestre'!U73 -> 276554 | V73: ='1trimestre'!V73+'2ºtrimestre'!V73+'3º trimestre'!V73+'4º trimestre'!V73 -> 248133 | W73: ='1trimestre'!W73+'2ºtrimestre'!W73+'3º trimestre'!W73+'4º trimestre'!W73 -> 327444400 | Y73: I | Z73: HEMATOLOGICOS | AA73: ='1trimestre'!AA73+'2ºtrimestre'!AA73+'3º trimestre'!AA73+'4º trimestre'!AA73 -> 26660 | AB73: ='1trimestre'!AB73+'2ºtrimestre'!AB73+'3º trimestre'!AB73+'4º trimestre'!AB73 -> 18101 | AC73: ='1trimestre'!AC73+'2ºtrimestre'!AC73+'3º trimestre'!AC73+'4º trimestre'!AC73 -> 34210010 | AE73: I | AF73: HEMATOLOGICOS | AG73: ='1trimestre'!AG73+'2ºtrimestre'!AG73+'3º trimestre'!AG73+'4º trimestre'!AG73 -> 28263 | AH73: ='1trimestre'!AH73+'2ºtrimestre'!AH73+'3º trimestre'!AH73+'4º trimestre'!AH73 -> 28263 | AI73: ='1trimestre'!AI73+'2ºtrimestre'!AI73+'3º trimestre'!AI73+'4º trimestre'!AI73 -> 47240560 | AK73: I | AL73: HEMATOLOGICOS | AM73: ='1trimestre'!AM73+'2ºtrimestre'!AM73+'3º trimestre'!AM73+'4º trimestre'!AM73 -> 6042 | AN73: ='1trimestre'!AN73+'2ºtrimestre'!AN73+'3º trimestre'!AN73+'4º trimestre'!AN73 -> 6042 | AO73: ='1trimestre'!AO73+'2ºtrimestre'!AO73+'3º trimestre'!AO73+'4º trimestre'!AO73 -> 13073830 | AQ73: I | AR73: HEMATOLOGICOS | AS73: ='1trimestre'!AS73+'2ºtrimestre'!AS73+'3º trimestre'!AS73+'4º trimestre'!AS73 -> 21988 | AT73: ='1trimestre'!AT73+'2ºtrimestre'!AT73+'3º trimestre'!AT73+'4º trimestre'!AT73 -> 21988 | AU73: ='1trimestre'!AU73+'2ºtrimestre'!AU73+'3º trimestre'!AU73+'4º trimestre'!AU73 -> 44894410 | AW73: I | AX73: HEMATOLOGICOS | AY73: ='1trimestre'!AY73+'2ºtrimestre'!AY73+'3º trimestre'!AY73+'4º trimestre'!AY73 -> 31511 | AZ73: ='1trimestre'!AZ73+'2ºtrimestre'!AZ73+'3º trimestre'!AZ73+'4º trimestre'!AZ73 -> 31511 | BA73: ='1trimestre'!BA73+'2ºtrimestre'!BA73+'3º trimestre'!BA73+'4º trimestre'!BA73 -> 60578350 | BC73: I | BD73: HEMATOLOGICOS | BE73: ='1trimestre'!BE73+'2ºtrimestre'!BE73+'3º trimestre'!BE73+'4º trimestre'!BE73 -> 19753 | BF73: ='1trimestre'!BF73+'2ºtrimestre'!BF73+'3º trimestre'!BF73+'4º trimestre'!BF73 -> 19753 | BG73: ='1trimestre'!BG73+'2ºtrimestre'!BG73+'3º trimestre'!BG73+'4º trimestre'!BG73 -> 38678110 | BI73: I | BJ73: HEMATOLOGICOS | BK73: ='1trimestre'!BK73+'2ºtrimestre'!BK73+'3º trimestre'!BK73+'4º trimestre'!BK73 -> 0 | BL73: ='1trimestre'!BL73+'2ºtrimestre'!BL73+'3º trimestre'!BL73+'4º trimestre'!BL73 -> 0 | BM73: ='1trimestre'!BM73+'2ºtrimestre'!BM73+'3º trimestre'!BM73+'4º trimestre'!BM73 -> 0 | BO73: I | BP73: HEMATOLOGICOS | BQ73: ='1trimestre'!BQ73+'2ºtrimestre'!BQ73+'3º trimestre'!BQ73+'4º trimestre'!BQ73 -> 0 | BR73: ='1trimestre'!BR73+'2ºtrimestre'!BR73+'3º trimestre'!BR73+'4º trimestre'!BR73 -> 0 | BS73: ='1trimestre'!BS73+'2ºtrimestre'!BS73+'3º trimestre'!BS73+'4º trimestre'!BS73 -> 0
A74: II | B74: BIOQUIMICOS | C74: 1658554 | D74: 1563046 | E74: 2910159080 | G74: II | H74: BIOQUIMICOS | I74: ='1trimestre'!I74+'2ºtrimestre'!I74+'3º trimestre'!I74+'4º trimestre'!I74 -> 380893 | J74: ='1trimestre'!J74+'2ºtrimestre'!J74+'3º trimestre'!J74+'4º trimestre'!J74 -> 362635 | K74: ='1trimestre'!K74+'2ºtrimestre'!K74+'3º trimestre'!K74+'4º trimestre'!K74 -> 759325360 | M74: II | N74: BIOQUIMICOS | O74: ='1trimestre'!O74+'2ºtrimestre'!O74+'3º trimestre'!O74+'4º trimestre'!O74 -> 455271 | P74: ='1trimestre'!P74+'2ºtrimestre'!P74+'3º trimestre'!P74+'4º trimestre'!P74 -> 451395 | Q74: ='1trimestre'!Q74+'2ºtrimestre'!Q74+'3º trimestre'!Q74+'4º trimestre'!Q74 -> 897522800 | S74: II | T74: BIOQUIMICOS | U74: ='1trimestre'!U74+'2ºtrimestre'!U74+'3º trimestre'!U74+'4º trimestre'!U74 -> 353545 | V74: ='1trimestre'!V74+'2ºtrimestre'!V74+'3º trimestre'!V74+'4º trimestre'!V74 -> 329349 | W74: ='1trimestre'!W74+'2ºtrimestre'!W74+'3º trimestre'!W74+'4º trimestre'!W74 -> 579541640 | Y74: II | Z74: BIOQUIMICOS | AA74: ='1trimestre'!AA74+'2ºtrimestre'!AA74+'3º trimestre'!AA74+'4º trimestre'!AA74 -> 119129 | AB74: ='1trimestre'!AB74+'2ºtrimestre'!AB74+'3º trimestre'!AB74+'4º trimestre'!AB74 -> 69951 | AC74: ='1trimestre'!AC74+'2ºtrimestre'!AC74+'3º trimestre'!AC74+'4º trimestre'!AC74 -> 91932250 | AE74: II | AF74: BIOQUIMICOS | AG74: ='1trimestre'!AG74+'2ºtrimestre'!AG74+'3º trimestre'!AG74+'4º trimestre'!AG74 -> 68199 | AH74: ='1trimestre'!AH74+'2ºtrimestre'!AH74+'3º trimestre'!AH74+'4º trimestre'!AH74 -> 68199 | AI74: ='1trimestre'!AI74+'2ºtrimestre'!AI74+'3º trimestre'!AI74+'4º trimestre'!AI74 -> 105763340 | AK74: II | AL74: BIOQUIMICOS | AM74: ='1trimestre'!AM74+'2ºtrimestre'!AM74+'3º trimestre'!AM74+'4º trimestre'!AM74 -> 36218 | AN74: ='1trimestre'!AN74+'2ºtrimestre'!AN74+'3º trimestre'!AN74+'4º trimestre'!AN74 -> 36218 | AO74: ='1trimestre'!AO74+'2ºtrimestre'!AO74+'3º trimestre'!AO74+'4º trimestre'!AO74 -> 49971420 | AQ74: II | AR74: BIOQUIMICOS | AS74: ='1trimestre'!AS74+'2ºtrimestre'!AS74+'3º trimestre'!AS74+'4º trimestre'!AS74 -> 35432 | AT74: ='1trimestre'!AT74+'2ºtrimestre'!AT74+'3º trimestre'!AT74+'4º trimestre'!AT74 -> 35432 | AU74: ='1trimestre'!AU74+'2ºtrimestre'!AU74+'3º trimestre'!AU74+'4º trimestre'!AU74 -> 138878080 | AW74: II | AX74: BIOQUIMICOS | AY74: ='1trimestre'!AY74+'2ºtrimestre'!AY74+'3º trimestre'!AY74+'4º trimestre'!AY74 -> 110152 | AZ74: ='1trimestre'!AZ74+'2ºtrimestre'!AZ74+'3º trimestre'!AZ74+'4º trimestre'!AZ74 -> 110152 | BA74: ='1trimestre'!BA74+'2ºtrimestre'!BA74+'3º trimestre'!BA74+'4º trimestre'!BA74 -> 151936020 | BC74: II | BD74: BIOQUIMICOS | BE74: ='1trimestre'!BE74+'2ºtrimestre'!BE74+'3º trimestre'!BE74+'4º trimestre'!BE74 -> 99715 | BF74: ='1trimestre'!BF74+'2ºtrimestre'!BF74+'3º trimestre'!BF74+'4º trimestre'!BF74 -> 99715 | BG74: ='1trimestre'!BG74+'2ºtrimestre'!BG74+'3º trimestre'!BG74+'4º trimestre'!BG74 -> 135288170 | BI74: II | BJ74: BIOQUIMICOS | BK74: ='1trimestre'!BK74+'2ºtrimestre'!BK74+'3º trimestre'!BK74+'4º trimestre'!BK74 -> 0 | BL74: ='1trimestre'!BL74+'2ºtrimestre'!BL74+'3º trimestre'!BL74+'4º trimestre'!BL74 -> 0 | BM74: ='1trimestre'!BM74+'2ºtrimestre'!BM74+'3º trimestre'!BM74+'4º trimestre'!BM74 -> 0 | BO74: II | BP74: BIOQUIMICOS | BQ74: ='1trimestre'!BQ74+'2ºtrimestre'!BQ74+'3º trimestre'!BQ74+'4º trimestre'!BQ74 -> 0 | BR74: ='1trimestre'!BR74+'2ºtrimestre'!BR74+'3º trimestre'!BR74+'4º trimestre'!BR74 -> 0 | BS74: ='1trimestre'!BS74+'2ºtrimestre'!BS74+'3º trimestre'!BS74+'4º trimestre'!BS74 -> 0
A75: III | B75: HORMONALES | C75: 113824 | D75: 105114 | E75: 444178910 | G75: III | H75: HORMONALES | I75: ='1trimestre'!I75+'2ºtrimestre'!I75+'3º trimestre'!I75+'4º trimestre'!I75 -> 54818 | J75: ='1trimestre'!J75+'2ºtrimestre'!J75+'3º trimestre'!J75+'4º trimestre'!J75 -> 52863 | K75: ='1trimestre'!K75+'2ºtrimestre'!K75+'3º trimestre'!K75+'4º trimestre'!K75 -> 217165080 | M75: III | N75: HORMONALES | O75: ='1trimestre'!O75+'2ºtrimestre'!O75+'3º trimestre'!O75+'4º trimestre'!O75 -> 17868 | P75: ='1trimestre'!P75+'2ºtrimestre'!P75+'3º trimestre'!P75+'4º trimestre'!P75 -> 17336 | Q75: ='1trimestre'!Q75+'2ºtrimestre'!Q75+'3º trimestre'!Q75+'4º trimestre'!Q75 -> 72694450 | S75: III | T75: HORMONALES | U75: ='1trimestre'!U75+'2ºtrimestre'!U75+'3º trimestre'!U75+'4º trimestre'!U75 -> 34201 | V75: ='1trimestre'!V75+'2ºtrimestre'!V75+'3º trimestre'!V75+'4º trimestre'!V75 -> 28061 | W75: ='1trimestre'!W75+'2ºtrimestre'!W75+'3º trimestre'!W75+'4º trimestre'!W75 -> 126651270 | Y75: III | Z75: HORMONALES | AA75: ='1trimestre'!AA75+'2ºtrimestre'!AA75+'3º trimestre'!AA75+'4º trimestre'!AA75 -> 326 | AB75: ='1trimestre'!AB75+'2ºtrimestre'!AB75+'3º trimestre'!AB75+'4º trimestre'!AB75 -> 243 | AC75: ='1trimestre'!AC75+'2ºtrimestre'!AC75+'3º trimestre'!AC75+'4º trimestre'!AC75 -> 1061910 | AE75: III | AF75: HORMONALES | AG75: ='1trimestre'!AG75+'2ºtrimestre'!AG75+'3º trimestre'!AG75+'4º trimestre'!AG75 -> 0 | AH75: ='1trimestre'!AH75+'2ºtrimestre'!AH75+'3º trimestre'!AH75+'4º trimestre'!AH75 -> 0 | AI75: ='1trimestre'!AI75+'2ºtrimestre'!AI75+'3º trimestre'!AI75+'4º trimestre'!AI75 -> 0 | AK75: III | AL75: HORMONALES | AM75: ='1trimestre'!AM75+'2ºtrimestre'!AM75+'3º trimestre'!AM75+'4º trimestre'!AM75 -> 0 | AN75: ='1trimestre'!AN75+'2ºtrimestre'!AN75+'3º trimestre'!AN75+'4º trimestre'!AN75 -> 0 | AO75: ='1trimestre'!AO75+'2ºtrimestre'!AO75+'3º trimestre'!AO75+'4º trimestre'!AO75 -> 0 | AQ75: III | AR75: HORMONALES | AS75: ='1trimestre'!AS75+'2ºtrimestre'!AS75+'3º trimestre'!AS75+'4º trimestre'!AS75 -> 0 | AT75: ='1trimestre'!AT75+'2ºtrimestre'!AT75+'3º trimestre'!AT75+'4º trimestre'!AT75 -> 0 | AU75: ='1trimestre'!AU75+'2ºtrimestre'!AU75+'3º trimestre'!AU75+'4º trimestre'!AU75 -> 0 | AW75: III | AX75: HORMONALES | AY75: ='1trimestre'!AY75+'2ºtrimestre'!AY75+'3º trimestre'!AY75+'4º trimestre'!AY75 -> 5417 | AZ75: ='1trimestre'!AZ75+'2ºtrimestre'!AZ75+'3º trimestre'!AZ75+'4º trimestre'!AZ75 -> 5417 | BA75: ='1trimestre'!BA75+'2ºtrimestre'!BA75+'3º trimestre'!BA75+'4º trimestre'!BA75 -> 21776350 | BC75: III | BD75: HORMONALES | BE75: ='1trimestre'!BE75+'2ºtrimestre'!BE75+'3º trimestre'!BE75+'4º trimestre'!BE75 -> 1194 | BF75: ='1trimestre'!BF75+'2ºtrimestre'!BF75+'3º trimestre'!BF75+'4º trimestre'!BF75 -> 1194 | BG75: ='1trimestre'!BG75+'2ºtrimestre'!BG75+'3º trimestre'!BG75+'4º trimestre'!BG75 -> 4829850 | BI75: III | BJ75: HORMONALES | BK75: ='1trimestre'!BK75+'2ºtrimestre'!BK75+'3º trimestre'!BK75+'4º trimestre'!BK75 -> 0 | BL75: ='1trimestre'!BL75+'2ºtrimestre'!BL75+'3º trimestre'!BL75+'4º trimestre'!BL75 -> 0 | BM75: ='1trimestre'!BM75+'2ºtrimestre'!BM75+'3º trimestre'!BM75+'4º trimestre'!BM75 -> 0 | BO75: III | BP75: HORMONALES | BQ75: ='1trimestre'!BQ75+'2ºtrimestre'!BQ75+'3º trimestre'!BQ75+'4º trimestre'!BQ75 -> 0 | BR75: ='1trimestre'!BR75+'2ºtrimestre'!BR75+'3º trimestre'!BR75+'4º trimestre'!BR75 -> 0 | BS75: ='1trimestre'!BS75+'2ºtrimestre'!BS75+'3º trimestre'!BS75+'4º trimestre'!BS75 -> 0
A76: IV | B76: GENETICA | C76: 1 | D76: 1 | E76: 38590 | G76: IV | H76: GENETICA | I76: ='1trimestre'!I76+'2ºtrimestre'!I76+'3º trimestre'!I76+'4º trimestre'!I76 -> 1 | J76: ='1trimestre'!J76+'2ºtrimestre'!J76+'3º trimestre'!J76+'4º trimestre'!J76 -> 1 | K76: ='1trimestre'!K76+'2ºtrimestre'!K76+'3º trimestre'!K76+'4º trimestre'!K76 -> 38590 | M76: IV | N76: GENETICA | O76: ='1trimestre'!O76+'2ºtrimestre'!O76+'3º trimestre'!O76+'4º trimestre'!O76 -> 0 | P76: ='1trimestre'!P76+'2ºtrimestre'!P76+'3º trimestre'!P76+'4º trimestre'!P76 -> 0 | Q76: ='1trimestre'!Q76+'2ºtrimestre'!Q76+'3º trimestre'!Q76+'4º trimestre'!Q76 -> 0 | S76: IV | T76: GENETICA | U76: ='1trimestre'!U76+'2ºtrimestre'!U76+'3º trimestre'!U76+'4º trimestre'!U76 -> 0 | V76: ='1trimestre'!V76+'2ºtrimestre'!V76+'3º trimestre'!V76+'4º trimestre'!V76 -> 0 | W76: ='1trimestre'!W76+'2ºtrimestre'!W76+'3º trimestre'!W76+'4º trimestre'!W76 -> 0 | Y76: IV | Z76: GENETICA | AA76: ='1trimestre'!AA76+'2ºtrimestre'!AA76+'3º trimestre'!AA76+'4º trimestre'!AA76 -> 0 | AB76: ='1trimestre'!AB76+'2ºtrimestre'!AB76+'3º trimestre'!AB76+'4º trimestre'!AB76 -> 0 | AC76: ='1trimestre'!AC76+'2ºtrimestre'!AC76+'3º trimestre'!AC76+'4º trimestre'!AC76 -> 0 | AE76: IV | AF76: GENETICA | AG76: ='1trimestre'!AG76+'2ºtrimestre'!AG76+'3º trimestre'!AG76+'4º trimestre'!AG76 -> 0 | AH76: ='1trimestre'!AH76+'2ºtrimestre'!AH76+'3º trimestre'!AH76+'4º trimestre'!AH76 -> 0 | AI76: ='1trimestre'!AI76+'2ºtrimestre'!AI76+'3º trimestre'!AI76+'4º trimestre'!AI76 -> 0 | AK76: IV | AL76: GENETICA | AM76: ='1trimestre'!AM76+'2ºtrimestre'!AM76+'3º trimestre'!AM76+'4º trimestre'!AM76 -> 0 | AN76: ='1trimestre'!AN76+'2ºtrimestre'!AN76+'3º trimestre'!AN76+'4º trimestre'!AN76 -> 0 | AO76: ='1trimestre'!AO76+'2ºtrimestre'!AO76+'3º trimestre'!AO76+'4º trimestre'!AO76 -> 0 | AQ76: IV | AR76: GENETICA | AS76: ='1trimestre'!AS76+'2ºtrimestre'!AS76+'3º trimestre'!AS76+'4º trimestre'!AS76 -> 0 | AT76: ='1trimestre'!AT76+'2ºtrimestre'!AT76+'3º trimestre'!AT76+'4º trimestre'!AT76 -> 0 | AU76: ='1trimestre'!AU76+'2ºtrimestre'!AU76+'3º trimestre'!AU76+'4º trimestre'!AU76 -> 0 | AW76: IV | AX76: GENETICA | AY76: ='1trimestre'!AY76+'2ºtrimestre'!AY76+'3º trimestre'!AY76+'4º trimestre'!AY76 -> 0 | AZ76: ='1trimestre'!AZ76+'2ºtrimestre'!AZ76+'3º trimestre'!AZ76+'4º trimestre'!AZ76 -> 0 | BA76: ='1trimestre'!BA76+'2ºtrimestre'!BA76+'3º trimestre'!BA76+'4º trimestre'!BA76 -> 0 | BC76: IV | BD76: GENETICA | BE76: ='1trimestre'!BE76+'2ºtrimestre'!BE76+'3º trimestre'!BE76+'4º trimestre'!BE76 -> 0 | BF76: ='1trimestre'!BF76+'2ºtrimestre'!BF76+'3º trimestre'!BF76+'4º trimestre'!BF76 -> 0 | BG76: ='1trimestre'!BG76+'2ºtrimestre'!BG76+'3º trimestre'!BG76+'4º trimestre'!BG76 -> 0 | BI76: IV | BJ76: GENETICA | BK76: ='1trimestre'!BK76+'2ºtrimestre'!BK76+'3º trimestre'!BK76+'4º trimestre'!BK76 -> 0 | BL76: ='1trimestre'!BL76+'2ºtrimestre'!BL76+'3º trimestre'!BL76+'4º trimestre'!BL76 -> 0 | BM76: ='1trimestre'!BM76+'2ºtrimestre'!BM76+'3º trimestre'!BM76+'4º trimestre'!BM76 -> 0 | BO76: IV | BP76: GENETICA | BQ76: ='1trimestre'!BQ76+'2ºtrimestre'!BQ76+'3º trimestre'!BQ76+'4º trimestre'!BQ76 -> 0 | BR76: ='1trimestre'!BR76+'2ºtrimestre'!BR76+'3º trimestre'!BR76+'4º trimestre'!BR76 -> 0 | BS76: ='1trimestre'!BS76+'2ºtrimestre'!BS76+'3º trimestre'!BS76+'4º trimestre'!BS76 -> 0
A77: V | B77: INMUNOLOGICOS | C77: 143425 | D77: 140855 | E77: 737493060 | G77: V | H77: INMUNOLOGICOS | I77: ='1trimestre'!I77+'2ºtrimestre'!I77+'3º trimestre'!I77+'4º trimestre'!I77 -> 53683 | J77: ='1trimestre'!J77+'2ºtrimestre'!J77+'3º trimestre'!J77+'4º trimestre'!J77 -> 52471 | K77: ='1trimestre'!K77+'2ºtrimestre'!K77+'3º trimestre'!K77+'4º trimestre'!K77 -> 284286430 | M77: V | N77: INMUNOLOGICOS | O77: ='1trimestre'!O77+'2ºtrimestre'!O77+'3º trimestre'!O77+'4º trimestre'!O77 -> 37987 | P77: ='1trimestre'!P77+'2ºtrimestre'!P77+'3º trimestre'!P77+'4º trimestre'!P77 -> 37669 | Q77: ='1trimestre'!Q77+'2ºtrimestre'!Q77+'3º trimestre'!Q77+'4º trimestre'!Q77 -> 205320280 | S77: V | T77: INMUNOLOGICOS | U77: ='1trimestre'!U77+'2ºtrimestre'!U77+'3º trimestre'!U77+'4º trimestre'!U77 -> 35474 | V77: ='1trimestre'!V77+'2ºtrimestre'!V77+'3º trimestre'!V77+'4º trimestre'!V77 -> 34534 | W77: ='1trimestre'!W77+'2ºtrimestre'!W77+'3º trimestre'!W77+'4º trimestre'!W77 -> 172841150 | Y77: V | Z77: INMUNOLOGICOS | AA77: ='1trimestre'!AA77+'2ºtrimestre'!AA77+'3º trimestre'!AA77+'4º trimestre'!AA77 -> 4465 | AB77: ='1trimestre'!AB77+'2ºtrimestre'!AB77+'3º trimestre'!AB77+'4º trimestre'!AB77 -> 4365 | AC77: ='1trimestre'!AC77+'2ºtrimestre'!AC77+'3º trimestre'!AC77+'4º trimestre'!AC77 -> 20561950 | AE77: V | AF77: INMUNOLOGICOS | AG77: ='1trimestre'!AG77+'2ºtrimestre'!AG77+'3º trimestre'!AG77+'4º trimestre'!AG77 -> 3034 | AH77: ='1trimestre'!AH77+'2ºtrimestre'!AH77+'3º trimestre'!AH77+'4º trimestre'!AH77 -> 3034 | AI77: ='1trimestre'!AI77+'2ºtrimestre'!AI77+'3º trimestre'!AI77+'4º trimestre'!AI77 -> 15065140 | AK77: V | AL77: INMUNOLOGICOS | AM77: ='1trimestre'!AM77+'2ºtrimestre'!AM77+'3º trimestre'!AM77+'4º trimestre'!AM77 -> 597 | AN77: ='1trimestre'!AN77+'2ºtrimestre'!AN77+'3º trimestre'!AN77+'4º trimestre'!AN77 -> 597 | AO77: ='1trimestre'!AO77+'2ºtrimestre'!AO77+'3º trimestre'!AO77+'4º trimestre'!AO77 -> 2706560 | AQ77: V | AR77: INMUNOLOGICOS | AS77: ='1trimestre'!AS77+'2ºtrimestre'!AS77+'3º trimestre'!AS77+'4º trimestre'!AS77 -> 1440 | AT77: ='1trimestre'!AT77+'2ºtrimestre'!AT77+'3º trimestre'!AT77+'4º trimestre'!AT77 -> 1440 | AU77: ='1trimestre'!AU77+'2ºtrimestre'!AU77+'3º trimestre'!AU77+'4º trimestre'!AU77 -> 6811970 | AW77: V | AX77: INMUNOLOGICOS | AY77: ='1trimestre'!AY77+'2ºtrimestre'!AY77+'3º trimestre'!AY77+'4º trimestre'!AY77 -> 3225 | AZ77: ='1trimestre'!AZ77+'2ºtrimestre'!AZ77+'3º trimestre'!AZ77+'4º trimestre'!AZ77 -> 3225 | BA77: ='1trimestre'!BA77+'2ºtrimestre'!BA77+'3º trimestre'!BA77+'4º trimestre'!BA77 -> 16313250 | BC77: V | BD77: INMUNOLOGICOS | BE77: ='1trimestre'!BE77+'2ºtrimestre'!BE77+'3º trimestre'!BE77+'4º trimestre'!BE77 -> 3520 | BF77: ='1trimestre'!BF77+'2ºtrimestre'!BF77+'3º trimestre'!BF77+'4º trimestre'!BF77 -> 3520 | BG77: ='1trimestre'!BG77+'2ºtrimestre'!BG77+'3º trimestre'!BG77+'4º trimestre'!BG77 -> 13586330 | BI77: V | BJ77: INMUNOLOGICOS | BK77: ='1trimestre'!BK77+'2ºtrimestre'!BK77+'3º trimestre'!BK77+'4º trimestre'!BK77 -> 0 | BL77: ='1trimestre'!BL77+'2ºtrimestre'!BL77+'3º trimestre'!BL77+'4º trimestre'!BL77 -> 0 | BM77: ='1trimestre'!BM77+'2ºtrimestre'!BM77+'3º trimestre'!BM77+'4º trimestre'!BM77 -> 0 | BO77: V | BP77: INMUNOLOGICOS | BQ77: ='1trimestre'!BQ77+'2ºtrimestre'!BQ77+'3º trimestre'!BQ77+'4º trimestre'!BQ77 -> 0 | BR77: ='1trimestre'!BR77+'2ºtrimestre'!BR77+'3º trimestre'!BR77+'4º trimestre'!BR77 -> 0 | BS77: ='1trimestre'!BS77+'2ºtrimestre'!BS77+'3º trimestre'!BS77+'4º trimestre'!BS77 -> 0
A78: VI | B78: MICROBIOLOGICOS | C78: =SUM(C79:C81) -> 207812 | D78: =SUM(D79:D81) -> 188883 | E78: =SUM(E79:E81) -> 765069650 | G78: VI | H78: MICROBIOLOGICOS | I78: =SUM(I79:I81) -> 64046 | J78: =SUM(J79:J81) -> 58167 | K78: =SUM(K79:K81) -> 262100960 | M78: VI | N78: MICROBIOLOGICOS | O78: =SUM(O79:O81) -> 39312 | P78: =SUM(P79:P81) -> 35754 | Q78: =SUM(Q79:Q81) -> 150763580 | S78: VI | T78: MICROBIOLOGICOS | U78: =SUM(U79:U81) -> 61493 | V78: =SUM(V79:V81) -> 58099 | W78: =SUM(W79:W81) -> 248955740 | Y78: VI | Z78: MICROBIOLOGICOS | AA78: =SUM(AA79:AA81) -> 13753 | AB78: =SUM(AB79:AB81) -> 7655 | AC78: =SUM(AC79:AC81) -> 22639470 | AE78: VI | AF78: MICROBIOLOGICOS | AG78: =SUM(AG79:AG81) -> 7469 | AH78: =SUM(AH79:AH81) -> 7469 | AI78: =SUM(AI79:AI81) -> 20882830 | AK78: VI | AL78: MICROBIOLOGICOS | AM78: =SUM(AM79:AM81) -> 3199 | AN78: =SUM(AN79:AN81) -> 3199 | AO78: =SUM(AO79:AO81) -> 9088890 | AQ78: VI | AR78: MICROBIOLOGICOS | AS78: =SUM(AS79:AS81) -> 3246 | AT78: =SUM(AT79:AT81) -> 3246 | AU78: =SUM(AU79:AU81) -> 8135900 | AW78: VI | AX78: MICROBIOLOGICOS | AY78: =SUM(AY79:AY81) -> 6663 | AZ78: =SUM(AZ79:AZ81) -> 6663 | BA78: =SUM(BA79:BA81) -> 18579600 | BC78: VI | BD78: MICROBIOLOGICOS | BE78: =SUM(BE79:BE81) -> 8631 | BF78: =SUM(BF79:BF81) -> 8631 | BG78: =SUM(BG79:BG81) -> 23922680 | BI78: VI | BJ78: MICROBIOLOGICOS | BK78: =SUM(BK79:BK81) -> 0 | BL78: =SUM(BL79:BL81) -> 0 | BM78: =SUM(BM79:BM81) -> 0 | BO78: VI | BP78: MICROBIOLOGICOS | BQ78: =SUM(BQ79:BQ81) -> 0 | BR78: =SUM(BR79:BR81) -> 0 | BS78: =SUM(BS79:BS81) -> 0
B79: a) BACTERIAS Y HONGOS | C79: =SUM(I79+O79+U79+AA79+AG79+AM79+AS79+AY79+BE79+BK79+BQ79) -> 127208 | D79: =SUM(J79+P79+V79+AB79+AH79+AN79+AT79+AZ79+BF79+BL79+BR79) -> 112844 | E79: =SUM(K79+Q79+W79+AC79+AI79+AO79+AU79+BA79+BG79+BM79+BS79) -> 397611490 | H79: a) BACTERIAS Y HONGOS | I79: ='1trimestre'!I79+'2ºtrimestre'!I79+'3º trimestre'!I79+'4º trimestre'!I79 -> 34255 | J79: ='1trimestre'!J79+'2ºtrimestre'!J79+'3º trimestre'!J79+'4º trimestre'!J79 -> 32360 | K79: ='1trimestre'!K79+'2ºtrimestre'!K79+'3º trimestre'!K79+'4º trimestre'!K79 -> 129441810 | N79: a) BACTERIAS Y HONGOS | O79: ='1trimestre'!O79+'2ºtrimestre'!O79+'3º trimestre'!O79+'4º trimestre'!O79 -> 31516 | P79: ='1trimestre'!P79+'2ºtrimestre'!P79+'3º trimestre'!P79+'4º trimestre'!P79 -> 27987 | Q79: ='1trimestre'!Q79+'2ºtrimestre'!Q79+'3º trimestre'!Q79+'4º trimestre'!Q79 -> 111663180 | T79: a) BACTERIAS Y HONGOS | U79: ='1trimestre'!U79+'2ºtrimestre'!U79+'3º trimestre'!U79+'4º trimestre'!U79 -> 22653 | V79: ='1trimestre'!V79+'2ºtrimestre'!V79+'3º trimestre'!V79+'4º trimestre'!V79 -> 19406 | W79: ='1trimestre'!W79+'2ºtrimestre'!W79+'3º trimestre'!W79+'4º trimestre'!W79 -> 68773630 | Z79: a) BACTERIAS Y HONGOS | AA79: ='1trimestre'!AA79+'2ºtrimestre'!AA79+'3º trimestre'!AA79+'4º trimestre'!AA79 -> 12933 | AB79: ='1trimestre'!AB79+'2ºtrimestre'!AB79+'3º trimestre'!AB79+'4º trimestre'!AB79 -> 7240 | AC79: ='1trimestre'!AC79+'2ºtrimestre'!AC79+'3º trimestre'!AC79+'4º trimestre'!AC79 -> 20805540 | AF79: a) BACTERIAS Y HONGOS | AG79: ='1trimestre'!AG79+'2ºtrimestre'!AG79+'3º trimestre'!AG79+'4º trimestre'!AG79 -> 6458 | AH79: ='1trimestre'!AH79+'2ºtrimestre'!AH79+'3º trimestre'!AH79+'4º trimestre'!AH79 -> 6458 | AI79: ='1trimestre'!AI79+'2ºtrimestre'!AI79+'3º trimestre'!AI79+'4º trimestre'!AI79 -> 16645250 | AL79: a) BACTERIAS Y HONGOS | AM79: ='1trimestre'!AM79+'2ºtrimestre'!AM79+'3º trimestre'!AM79+'4º trimestre'!AM79 -> 2993 | AN79: ='1trimestre'!AN79+'2ºtrimestre'!AN79+'3º trimestre'!AN79+'4º trimestre'!AN79 -> 2993 | AO79: ='1trimestre'!AO79+'2ºtrimestre'!AO79+'3º trimestre'!AO79+'4º trimestre'!AO79 -> 8429230 | AR79: a) BACTERIAS Y HONGOS | AS79: ='1trimestre'!AS79+'2ºtrimestre'!AS79+'3º trimestre'!AS79+'4º trimestre'!AS79 -> 2817 | AT79: ='1trimestre'!AT79+'2ºtrimestre'!AT79+'3º trimestre'!AT79+'4º trimestre'!AT79 -> 2817 | AU79: ='1trimestre'!AU79+'2ºtrimestre'!AU79+'3º trimestre'!AU79+'4º trimestre'!AU79 -> 6466480 | AX79: a) BACTERIAS Y HONGOS | AY79: ='1trimestre'!AY79+'2ºtrimestre'!AY79+'3º trimestre'!AY79+'4º trimestre'!AY79 -> 5628 | AZ79: ='1trimestre'!AZ79+'2ºtrimestre'!AZ79+'3º trimestre'!AZ79+'4º trimestre'!AZ79 -> 5628 | BA79: ='1trimestre'!BA79+'2ºtrimestre'!BA79+'3º trimestre'!BA79+'4º trimestre'!BA79 -> 14164050 | BD79: a) BACTERIAS Y HONGOS | BE79: ='1trimestre'!BE79+'2ºtrimestre'!BE79+'3º trimestre'!BE79+'4º trimestre'!BE79 -> 7955 | BF79: ='1trimestre'!BF79+'2ºtrimestre'!BF79+'3º trimestre'!BF79+'4º trimestre'!BF79 -> 7955 | BG79: ='1trimestre'!BG79+'2ºtrimestre'!BG79+'3º trimestre'!BG79+'4º trimestre'!BG79 -> 21222320 | BJ79: a) BACTERIAS Y HONGOS | BK79: ='1trimestre'!BK79+'2ºtrimestre'!BK79+'3º trimestre'!BK79+'4º trimestre'!BK79 -> 0 | BL79: ='1trimestre'!BL79+'2ºtrimestre'!BL79+'3º trimestre'!BL79+'4º trimestre'!BL79 -> 0 | BM79: ='1trimestre'!BM79+'2ºtrimestre'!BM79+'3º trimestre'!BM79+'4º trimestre'!BM79 -> 0 | BP79: a) BACTERIAS Y HONGOS | BQ79: ='1trimestre'!BQ79+'2ºtrimestre'!BQ79+'3º trimestre'!BQ79+'4º trimestre'!BQ79 -> 0 | BR79: ='1trimestre'!BR79+'2ºtrimestre'!BR79+'3º trimestre'!BR79+'4º trimestre'!BR79 -> 0 | BS79: ='1trimestre'!BS79+'2ºtrimestre'!BS79+'3º trimestre'!BS79+'4º trimestre'!BS79 -> 0
B80: b) PARASITOS | C80: 31077 | D80: 30565 | E80: 143747080 | H80: b) PARASITOS | I80: ='1trimestre'!I80+'2ºtrimestre'!I80+'3º trimestre'!I80+'4º trimestre'!I80 -> 3362 | J80: ='1trimestre'!J80+'2ºtrimestre'!J80+'3º trimestre'!J80+'4º trimestre'!J80 -> 3355 | K80: ='1trimestre'!K80+'2ºtrimestre'!K80+'3º trimestre'!K80+'4º trimestre'!K80 -> 23113690 | N80: b) PARASITOS | O80: ='1trimestre'!O80+'2ºtrimestre'!O80+'3º trimestre'!O80+'4º trimestre'!O80 -> 2618 | P80: ='1trimestre'!P80+'2ºtrimestre'!P80+'3º trimestre'!P80+'4º trimestre'!P80 -> 2615 | Q80: ='1trimestre'!Q80+'2ºtrimestre'!Q80+'3º trimestre'!Q80+'4º trimestre'!Q80 -> 11707830 | T80: b) PARASITOS | U80: ='1trimestre'!U80+'2ºtrimestre'!U80+'3º trimestre'!U80+'4º trimestre'!U80 -> 21537 | V80: ='1trimestre'!V80+'2ºtrimestre'!V80+'3º trimestre'!V80+'4º trimestre'!V80 -> 21434 | W80: ='1trimestre'!W80+'2ºtrimestre'!W80+'3º trimestre'!W80+'4º trimestre'!W80 -> 96189000 | Z80: b) PARASITOS | AA80: ='1trimestre'!AA80+'2ºtrimestre'!AA80+'3º trimestre'!AA80+'4º trimestre'!AA80 -> 606 | AB80: ='1trimestre'!AB80+'2ºtrimestre'!AB80+'3º trimestre'!AB80+'4º trimestre'!AB80 -> 207 | AC80: ='1trimestre'!AC80+'2ºtrimestre'!AC80+'3º trimestre'!AC80+'4º trimestre'!AC80 -> 875770 | AF80: b) PARASITOS | AG80: ='1trimestre'!AG80+'2ºtrimestre'!AG80+'3º trimestre'!AG80+'4º trimestre'!AG80 -> 948 | AH80: ='1trimestre'!AH80+'2ºtrimestre'!AH80+'3º trimestre'!AH80+'4º trimestre'!AH80 -> 948 | AI80: ='1trimestre'!AI80+'2ºtrimestre'!AI80+'3º trimestre'!AI80+'4º trimestre'!AI80 -> 3919260 | AL80: b) PARASITOS | AM80: ='1trimestre'!AM80+'2ºtrimestre'!AM80+'3º trimestre'!AM80+'4º trimestre'!AM80 -> 206 | AN80: ='1trimestre'!AN80+'2ºtrimestre'!AN80+'3º trimestre'!AN80+'4º trimestre'!AN80 -> 206 | AO80: ='1trimestre'!AO80+'2ºtrimestre'!AO80+'3º trimestre'!AO80+'4º trimestre'!AO80 -> 659660 | AR80: b) PARASITOS | AS80: ='1trimestre'!AS80+'2ºtrimestre'!AS80+'3º trimestre'!AS80+'4º trimestre'!AS80 -> 398 | AT80: ='1trimestre'!AT80+'2ºtrimestre'!AT80+'3º trimestre'!AT80+'4º trimestre'!AT80 -> 398 | AU80: ='1trimestre'!AU80+'2ºtrimestre'!AU80+'3º trimestre'!AU80+'4º trimestre'!AU80 -> 1532810 | AX80: b) PARASITOS | AY80: ='1trimestre'!AY80+'2ºtrimestre'!AY80+'3º trimestre'!AY80+'4º trimestre'!AY80 -> 808 | AZ80: ='1trimestre'!AZ80+'2ºtrimestre'!AZ80+'3º trimestre'!AZ80+'4º trimestre'!AZ80 -> 808 | BA80: ='1trimestre'!BA80+'2ºtrimestre'!BA80+'3º trimestre'!BA80+'4º trimestre'!BA80 -> 3426360 | BD80: b) PARASITOS | BE80: ='1trimestre'!BE80+'2ºtrimestre'!BE80+'3º trimestre'!BE80+'4º trimestre'!BE80 -> 594 | BF80: ='1trimestre'!BF80+'2ºtrimestre'!BF80+'3º trimestre'!BF80+'4º trimestre'!BF80 -> 594 | BG80: ='1trimestre'!BG80+'2ºtrimestre'!BG80+'3º trimestre'!BG80+'4º trimestre'!BG80 -> 2322700 | BJ80: b) PARASITOS | BK80: ='1trimestre'!BK80+'2ºtrimestre'!BK80+'3º trimestre'!BK80+'4º trimestre'!BK80 -> 0 | BL80: ='1trimestre'!BL80+'2ºtrimestre'!BL80+'3º trimestre'!BL80+'4º trimestre'!BL80 -> 0 | BM80: ='1trimestre'!BM80+'2ºtrimestre'!BM80+'3º trimestre'!BM80+'4º trimestre'!BM80 -> 0 | BP80: b) PARASITOS | BQ80: ='1trimestre'!BQ80+'2ºtrimestre'!BQ80+'3º trimestre'!BQ80+'4º trimestre'!BQ80 -> 0 | BR80: ='1trimestre'!BR80+'2ºtrimestre'!BR80+'3º trimestre'!BR80+'4º trimestre'!BR80 -> 0 | BS80: ='1trimestre'!BS80+'2ºtrimestre'!BS80+'3º trimestre'!BS80+'4º trimestre'!BS80 -> 0
B81: c) VIRUS | C81: 49527 | D81: 45474 | E81: 223711080 | H81: c) VIRUS | I81: ='1trimestre'!I81+'2ºtrimestre'!I81+'3º trimestre'!I81+'4º trimestre'!I81 -> 26429 | J81: ='1trimestre'!J81+'2ºtrimestre'!J81+'3º trimestre'!J81+'4º trimestre'!J81 -> 22452 | K81: ='1trimestre'!K81+'2ºtrimestre'!K81+'3º trimestre'!K81+'4º trimestre'!K81 -> 109545460 | N81: c) VIRUS | O81: ='1trimestre'!O81+'2ºtrimestre'!O81+'3º trimestre'!O81+'4º trimestre'!O81 -> 5178 | P81: ='1trimestre'!P81+'2ºtrimestre'!P81+'3º trimestre'!P81+'4º trimestre'!P81 -> 5152 | Q81: ='1trimestre'!Q81+'2ºtrimestre'!Q81+'3º trimestre'!Q81+'4º trimestre'!Q81 -> 27392570 | T81: c) VIRUS | U81: ='1trimestre'!U81+'2ºtrimestre'!U81+'3º trimestre'!U81+'4º trimestre'!U81 -> 17303 | V81: ='1trimestre'!V81+'2ºtrimestre'!V81+'3º trimestre'!V81+'4º trimestre'!V81 -> 17259 | W81: ='1trimestre'!W81+'2ºtrimestre'!W81+'3º trimestre'!W81+'4º trimestre'!W81 -> 83993110 | Z81: c) VIRUS | AA81: ='1trimestre'!AA81+'2ºtrimestre'!AA81+'3º trimestre'!AA81+'4º trimestre'!AA81 -> 214 | AB81: ='1trimestre'!AB81+'2ºtrimestre'!AB81+'3º trimestre'!AB81+'4º trimestre'!AB81 -> 208 | AC81: ='1trimestre'!AC81+'2ºtrimestre'!AC81+'3º trimestre'!AC81+'4º trimestre'!AC81 -> 958160 | AF81: c) VIRUS | AG81: ='1trimestre'!AG81+'2ºtrimestre'!AG81+'3º trimestre'!AG81+'4º trimestre'!AG81 -> 63 | AH81: ='1trimestre'!AH81+'2ºtrimestre'!AH81+'3º trimestre'!AH81+'4º trimestre'!AH81 -> 63 | AI81: ='1trimestre'!AI81+'2ºtrimestre'!AI81+'3º trimestre'!AI81+'4º trimestre'!AI81 -> 318320 | AL81: c) VIRUS | AM81: ='1trimestre'!AM81+'2ºtrimestre'!AM81+'3º trimestre'!AM81+'4º trimestre'!AM81 -> 0 | AN81: ='1trimestre'!AN81+'2ºtrimestre'!AN81+'3º trimestre'!AN81+'4º trimestre'!AN81 -> 0 | AO81: ='1trimestre'!AO81+'2ºtrimestre'!AO81+'3º trimestre'!AO81+'4º trimestre'!AO81 -> 0 | AR81: c) VIRUS | AS81: ='1trimestre'!AS81+'2ºtrimestre'!AS81+'3º trimestre'!AS81+'4º trimestre'!AS81 -> 31 | AT81: ='1trimestre'!AT81+'2ºtrimestre'!AT81+'3º trimestre'!AT81+'4º trimestre'!AT81 -> 31 | AU81: ='1trimestre'!AU81+'2ºtrimestre'!AU81+'3º trimestre'!AU81+'4º trimestre'!AU81 -> 136610 | AX81: c) VIRUS | AY81: ='1trimestre'!AY81+'2ºtrimestre'!AY81+'3º trimestre'!AY81+'4º trimestre'!AY81 -> 227 | AZ81: ='1trimestre'!AZ81+'2ºtrimestre'!AZ81+'3º trimestre'!AZ81+'4º trimestre'!AZ81 -> 227 | BA81: ='1trimestre'!BA81+'2ºtrimestre'!BA81+'3º trimestre'!BA81+'4º trimestre'!BA81 -> 989190 | BD81: c) VIRUS | BE81: ='1trimestre'!BE81+'2ºtrimestre'!BE81+'3º trimestre'!BE81+'4º trimestre'!BE81 -> 82 | BF81: ='1trimestre'!BF81+'2ºtrimestre'!BF81+'3º trimestre'!BF81+'4º trimestre'!BF81 -> 82 | BG81: ='1trimestre'!BG81+'2ºtrimestre'!BG81+'3º trimestre'!BG81+'4º trimestre'!BG81 -> 377660 | BJ81: c) VIRUS | BK81: ='1trimestre'!BK81+'2ºtrimestre'!BK81+'3º trimestre'!BK81+'4º trimestre'!BK81 -> 0 | BL81: ='1trimestre'!BL81+'2ºtrimestre'!BL81+'3º trimestre'!BL81+'4º trimestre'!BL81 -> 0 | BM81: ='1trimestre'!BM81+'2ºtrimestre'!BM81+'3º trimestre'!BM81+'4º trimestre'!BM81 -> 0 | BP81: c) VIRUS | BQ81: ='1trimestre'!BQ81+'2ºtrimestre'!BQ81+'3º trimestre'!BQ81+'4º trimestre'!BQ81 -> 0 | BR81: ='1trimestre'!BR81+'2ºtrimestre'!BR81+'3º trimestre'!BR81+'4º trimestre'!BR81 -> 0 | BS81: ='1trimestre'!BS81+'2ºtrimestre'!BS81+'3º trimestre'!BS81+'4º trimestre'!BS81 -> 0
A82: VII | B82: PROCEDIMIENTO O DETERMINACION DIRECTA C/PACIENTE | C82: 5854 | D82: 5854 | E82: 17052980 | G82: VII | H82: PROCEDIMIENTO O DETERMINACION DIRECTA C/PACIENTE | I82: ='1trimestre'!I82+'2ºtrimestre'!I82+'3º trimestre'!I82+'4º trimestre'!I82 -> 6 | J82: ='1trimestre'!J82+'2ºtrimestre'!J82+'3º trimestre'!J82+'4º trimestre'!J82 -> 6 | K82: ='1trimestre'!K82+'2ºtrimestre'!K82+'3º trimestre'!K82+'4º trimestre'!K82 -> 29520 | M82: VII | N82: PROCEDIMIENTO O DETERMINACION DIRECTA C/PACIENTE | O82: ='1trimestre'!O82+'2ºtrimestre'!O82+'3º trimestre'!O82+'4º trimestre'!O82 -> 776 | P82: ='1trimestre'!P82+'2ºtrimestre'!P82+'3º trimestre'!P82+'4º trimestre'!P82 -> 776 | Q82: ='1trimestre'!Q82+'2ºtrimestre'!Q82+'3º trimestre'!Q82+'4º trimestre'!Q82 -> 7234500 | S82: VII | T82: PROCEDIMIENTO O DETERMINACION DIRECTA C/PACIENTE | U82: ='1trimestre'!U82+'2ºtrimestre'!U82+'3º trimestre'!U82+'4º trimestre'!U82 -> 5072 | V82: ='1trimestre'!V82+'2ºtrimestre'!V82+'3º trimestre'!V82+'4º trimestre'!V82 -> 5072 | W82: ='1trimestre'!W82+'2ºtrimestre'!W82+'3º trimestre'!W82+'4º trimestre'!W82 -> 9788960 | Y82: VII | Z82: PROCEDIMIENTO O DETERMINACION DIRECTA C/PACIENTE | AA82: ='1trimestre'!AA82+'2ºtrimestre'!AA82+'3º trimestre'!AA82+'4º trimestre'!AA82 -> 0 | AB82: ='1trimestre'!AB82+'2ºtrimestre'!AB82+'3º trimestre'!AB82+'4º trimestre'!AB82 -> 0 | AC82: ='1trimestre'!AC82+'2ºtrimestre'!AC82+'3º trimestre'!AC82+'4º trimestre'!AC82 -> 0 | AE82: VII | AF82: PROCEDIMIENTO O DETERMINACION DIRECTA C/PACIENTE | AG82: ='1trimestre'!AG82+'2ºtrimestre'!AG82+'3º trimestre'!AG82+'4º trimestre'!AG82 -> 0 | AH82: ='1trimestre'!AH82+'2ºtrimestre'!AH82+'3º trimestre'!AH82+'4º trimestre'!AH82 -> 0 | AI82: ='1trimestre'!AI82+'2ºtrimestre'!AI82+'3º trimestre'!AI82+'4º trimestre'!AI82 -> 0 | AK82: VII | AL82: PROCEDIMIENTO O DETERMINACION DIRECTA C/PACIENTE | AM82: ='1trimestre'!AM82+'2ºtrimestre'!AM82+'3º trimestre'!AM82+'4º trimestre'!AM82 -> 0 | AN82: ='1trimestre'!AN82+'2ºtrimestre'!AN82+'3º trimestre'!AN82+'4º trimestre'!AN82 -> 0 | AO82: ='1trimestre'!AO82+'2ºtrimestre'!AO82+'3º trimestre'!AO82+'4º trimestre'!AO82 -> 0 | AQ82: VII | AR82: PROCEDIMIENTO O DETERMINACION DIRECTA C/PACIENTE | AS82: ='1trimestre'!AS82+'2ºtrimestre'!AS82+'3º trimestre'!AS82+'4º trimestre'!AS82 -> 0 | AT82: ='1trimestre'!AT82+'2ºtrimestre'!AT82+'3º trimestre'!AT82+'4º trimestre'!AT82 -> 0 | AU82: ='1trimestre'!AU82+'2ºtrimestre'!AU82+'3º trimestre'!AU82+'4º trimestre'!AU82 -> 0 | AW82: VII | AX82: PROCEDIMIENTO O DETERMINACION DIRECTA C/PACIENTE | AY82: ='1trimestre'!AY82+'2ºtrimestre'!AY82+'3º trimestre'!AY82+'4º trimestre'!AY82 -> 0 | AZ82: ='1trimestre'!AZ82+'2ºtrimestre'!AZ82+'3º trimestre'!AZ82+'4º trimestre'!AZ82 -> 0 | BA82: ='1trimestre'!BA82+'2ºtrimestre'!BA82+'3º trimestre'!BA82+'4º trimestre'!BA82 -> 0 | BC82: VII | BD82: PROCEDIMIENTO O DETERMINACION DIRECTA C/PACIENTE | BE82: ='1trimestre'!BE82+'2ºtrimestre'!BE82+'3º trimestre'!BE82+'4º trimestre'!BE82 -> 0 | BF82: ='1trimestre'!BF82+'2ºtrimestre'!BF82+'3º trimestre'!BF82+'4º trimestre'!BF82 -> 0 | BG82: ='1trimestre'!BG82+'2ºtrimestre'!BG82+'3º trimestre'!BG82+'4º trimestre'!BG82 -> 0 | BI82: VII | BJ82: PROCEDIMIENTO O DETERMINACION DIRECTA C/PACIENTE | BK82: ='1trimestre'!BK82+'2ºtrimestre'!BK82+'3º trimestre'!BK82+'4º trimestre'!BK82 -> 0 | BL82: ='1trimestre'!BL82+'2ºtrimestre'!BL82+'3º trimestre'!BL82+'4º trimestre'!BL82 -> 0 | BM82: ='1trimestre'!BM82+'2ºtrimestre'!BM82+'3º trimestre'!BM82+'4º trimestre'!BM82 -> 0 | BO82: VII | BP82: PROCEDIMIENTO O DETERMINACION DIRECTA C/PACIENTE | BQ82: ='1trimestre'!BQ82+'2ºtrimestre'!BQ82+'3º trimestre'!BQ82+'4º trimestre'!BQ82 -> 0 | BR82: ='1trimestre'!BR82+'2ºtrimestre'!BR82+'3º trimestre'!BR82+'4º trimestre'!BR82 -> 0 | BS82: ='1trimestre'!BS82+'2ºtrimestre'!BS82+'3º trimestre'!BS82+'4º trimestre'!BS82 -> 0
A83: VIII | B83: EX. DE DEPOSICIONES EXUDADOS. SECREC. Y OTROS LIQ. | C83: 7541 | D83: 7199 | E83: 13940440 | G83: VIII | H83: EX. DE DEPOSICIONES EXUDADOS. SECREC. Y OTROS LIQ. | I83: ='1trimestre'!I83+'2ºtrimestre'!I83+'3º trimestre'!I83+'4º trimestre'!I83 -> 1592 | J83: ='1trimestre'!J83+'2ºtrimestre'!J83+'3º trimestre'!J83+'4º trimestre'!J83 -> 1457 | K83: ='1trimestre'!K83+'2ºtrimestre'!K83+'3º trimestre'!K83+'4º trimestre'!K83 -> 3059090 | M83: VIII | N83: EX. DE DEPOSICIONES EXUDADOS. SECREC. Y OTROS LIQ. | O83: ='1trimestre'!O83+'2ºtrimestre'!O83+'3º trimestre'!O83+'4º trimestre'!O83 -> 2360 | P83: ='1trimestre'!P83+'2ºtrimestre'!P83+'3º trimestre'!P83+'4º trimestre'!P83 -> 2348 | Q83: ='1trimestre'!Q83+'2ºtrimestre'!Q83+'3º trimestre'!Q83+'4º trimestre'!Q83 -> 4484160 | S83: VIII | T83: EX. DE DEPOSICIONES EXUDADOS. SECREC. Y OTROS LIQ. | U83: ='1trimestre'!U83+'2ºtrimestre'!U83+'3º trimestre'!U83+'4º trimestre'!U83 -> 1473 | V83: ='1trimestre'!V83+'2ºtrimestre'!V83+'3º trimestre'!V83+'4º trimestre'!V83 -> 1450 | W83: ='1trimestre'!W83+'2ºtrimestre'!W83+'3º trimestre'!W83+'4º trimestre'!W83 -> 2107420 | Y83: VIII | Z83: EX. DE DEPOSICIONES EXUDADOS. SECREC. Y OTROS LIQ. | AA83: ='1trimestre'!AA83+'2ºtrimestre'!AA83+'3º trimestre'!AA83+'4º trimestre'!AA83 -> 529 | AB83: ='1trimestre'!AB83+'2ºtrimestre'!AB83+'3º trimestre'!AB83+'4º trimestre'!AB83 -> 357 | AC83: ='1trimestre'!AC83+'2ºtrimestre'!AC83+'3º trimestre'!AC83+'4º trimestre'!AC83 -> 541240 | AE83: VIII | AF83: EX. DE DEPOSICIONES EXUDADOS. SECREC. Y OTROS LIQ. | AG83: ='1trimestre'!AG83+'2ºtrimestre'!AG83+'3º trimestre'!AG83+'4º trimestre'!AG83 -> 603 | AH83: ='1trimestre'!AH83+'2ºtrimestre'!AH83+'3º trimestre'!AH83+'4º trimestre'!AH83 -> 603 | AI83: ='1trimestre'!AI83+'2ºtrimestre'!AI83+'3º trimestre'!AI83+'4º trimestre'!AI83 -> 1356770 | AK83: VIII | AL83: EX. DE DEPOSICIONES EXUDADOS. SECREC. Y OTROS LIQ. | AM83: ='1trimestre'!AM83+'2ºtrimestre'!AM83+'3º trimestre'!AM83+'4º trimestre'!AM83 -> 119 | AN83: ='1trimestre'!AN83+'2ºtrimestre'!AN83+'3º trimestre'!AN83+'4º trimestre'!AN83 -> 119 | AO83: ='1trimestre'!AO83+'2ºtrimestre'!AO83+'3º trimestre'!AO83+'4º trimestre'!AO83 -> 117150 | AQ83: VIII | AR83: EX. DE DEPOSICIONES EXUDADOS. SECREC. Y OTROS LIQ. | AS83: ='1trimestre'!AS83+'2ºtrimestre'!AS83+'3º trimestre'!AS83+'4º trimestre'!AS83 -> 432 | AT83: ='1trimestre'!AT83+'2ºtrimestre'!AT83+'3º trimestre'!AT83+'4º trimestre'!AT83 -> 432 | AU83: ='1trimestre'!AU83+'2ºtrimestre'!AU83+'3º trimestre'!AU83+'4º trimestre'!AU83 -> 1763790 | AW83: VIII | AX83: EX. DE DEPOSICIONES EXUDADOS. SECREC. Y OTROS LIQ. | AY83: ='1trimestre'!AY83+'2ºtrimestre'!AY83+'3º trimestre'!AY83+'4º trimestre'!AY83 -> 303 | AZ83: ='1trimestre'!AZ83+'2ºtrimestre'!AZ83+'3º trimestre'!AZ83+'4º trimestre'!AZ83 -> 303 | BA83: ='1trimestre'!BA83+'2ºtrimestre'!BA83+'3º trimestre'!BA83+'4º trimestre'!BA83 -> 364160 | BC83: VIII | BD83: EX. DE DEPOSICIONES EXUDADOS. SECREC. Y OTROS LIQ. | BE83: ='1trimestre'!BE83+'2ºtrimestre'!BE83+'3º trimestre'!BE83+'4º trimestre'!BE83 -> 130 | BF83: ='1trimestre'!BF83+'2ºtrimestre'!BF83+'3º trimestre'!BF83+'4º trimestre'!BF83 -> 130 | BG83: ='1trimestre'!BG83+'2ºtrimestre'!BG83+'3º trimestre'!BG83+'4º trimestre'!BG83 -> 146660 | BI83: VIII | BJ83: EX. DE DEPOSICIONES EXUDADOS. SECREC. Y OTROS LIQ. | BK83: ='1trimestre'!BK83+'2ºtrimestre'!BK83+'3º trimestre'!BK83+'4º trimestre'!BK83 -> 0 | BL83: ='1trimestre'!BL83+'2ºtrimestre'!BL83+'3º trimestre'!BL83+'4º trimestre'!BL83 -> 0 | BM83: ='1trimestre'!BM83+'2ºtrimestre'!BM83+'3º trimestre'!BM83+'4º trimestre'!BM83 -> 0 | BO83: VIII | BP83: EX. DE DEPOSICIONES EXUDADOS. SECREC. Y OTROS LIQ. | BQ83: ='1trimestre'!BQ83+'2ºtrimestre'!BQ83+'3º trimestre'!BQ83+'4º trimestre'!BQ83 -> 0 | BR83: ='1trimestre'!BR83+'2ºtrimestre'!BR83+'3º trimestre'!BR83+'4º trimestre'!BR83 -> 0 | BS83: ='1trimestre'!BS83+'2ºtrimestre'!BS83+'3º trimestre'!BS83+'4º trimestre'!BS83 -> 0
A84: IX | B84: ORINA | C84: 187789 | D84: 162375 | E84: 242061460 | G84: IX | H84: ORINA | I84: ='1trimestre'!I84+'2ºtrimestre'!I84+'3º trimestre'!I84+'4º trimestre'!I84 -> 49321 | J84: ='1trimestre'!J84+'2ºtrimestre'!J84+'3º trimestre'!J84+'4º trimestre'!J84 -> 44857 | K84: ='1trimestre'!K84+'2ºtrimestre'!K84+'3º trimestre'!K84+'4º trimestre'!K84 -> 54955940 | M84: IX | N84: ORINA | O84: ='1trimestre'!O84+'2ºtrimestre'!O84+'3º trimestre'!O84+'4º trimestre'!O84 -> 33224 | P84: ='1trimestre'!P84+'2ºtrimestre'!P84+'3º trimestre'!P84+'4º trimestre'!P84 -> 32904 | Q84: ='1trimestre'!Q84+'2ºtrimestre'!Q84+'3º trimestre'!Q84+'4º trimestre'!Q84 -> 52292260 | S84: IX | T84: ORINA | U84: ='1trimestre'!U84+'2ºtrimestre'!U84+'3º trimestre'!U84+'4º trimestre'!U84 -> 40129 | V84: ='1trimestre'!V84+'2ºtrimestre'!V84+'3º trimestre'!V84+'4º trimestre'!V84 -> 26760 | W84: ='1trimestre'!W84+'2ºtrimestre'!W84+'3º trimestre'!W84+'4º trimestre'!W84 -> 42059100 | Y84: IX | Z84: ORINA | AA84: ='1trimestre'!AA84+'2ºtrimestre'!AA84+'3º trimestre'!AA84+'4º trimestre'!AA84 -> 12842 | AB84: ='1trimestre'!AB84+'2ºtrimestre'!AB84+'3º trimestre'!AB84+'4º trimestre'!AB84 -> 5581 | AC84: ='1trimestre'!AC84+'2ºtrimestre'!AC84+'3º trimestre'!AC84+'4º trimestre'!AC84 -> 8506920 | AE84: IX | AF84: ORINA | AG84: ='1trimestre'!AG84+'2ºtrimestre'!AG84+'3º trimestre'!AG84+'4º trimestre'!AG84 -> 10859 | AH84: ='1trimestre'!AH84+'2ºtrimestre'!AH84+'3º trimestre'!AH84+'4º trimestre'!AH84 -> 10859 | AI84: ='1trimestre'!AI84+'2ºtrimestre'!AI84+'3º trimestre'!AI84+'4º trimestre'!AI84 -> 17822360 | AK84: IX | AL84: ORINA | AM84: ='1trimestre'!AM84+'2ºtrimestre'!AM84+'3º trimestre'!AM84+'4º trimestre'!AM84 -> 2854 | AN84: ='1trimestre'!AN84+'2ºtrimestre'!AN84+'3º trimestre'!AN84+'4º trimestre'!AN84 -> 2854 | AO84: ='1trimestre'!AO84+'2ºtrimestre'!AO84+'3º trimestre'!AO84+'4º trimestre'!AO84 -> 4523680 | AQ84: IX | AR84: ORINA | AS84: ='1trimestre'!AS84+'2ºtrimestre'!AS84+'3º trimestre'!AS84+'4º trimestre'!AS84 -> 4476 | AT84: ='1trimestre'!AT84+'2ºtrimestre'!AT84+'3º trimestre'!AT84+'4º trimestre'!AT84 -> 4476 | AU84: ='1trimestre'!AU84+'2ºtrimestre'!AU84+'3º trimestre'!AU84+'4º trimestre'!AU84 -> 5726860 | AW84: IX | AX84: ORINA | AY84: ='1trimestre'!AY84+'2ºtrimestre'!AY84+'3º trimestre'!AY84+'4º trimestre'!AY84 -> 16378 | AZ84: ='1trimestre'!AZ84+'2ºtrimestre'!AZ84+'3º trimestre'!AZ84+'4º trimestre'!AZ84 -> 16378 | BA84: ='1trimestre'!BA84+'2ºtrimestre'!BA84+'3º trimestre'!BA84+'4º trimestre'!BA84 -> 25647520 | BC84: IX | BD84: ORINA | BE84: ='1trimestre'!BE84+'2ºtrimestre'!BE84+'3º trimestre'!BE84+'4º trimestre'!BE84 -> 17706 | BF84: ='1trimestre'!BF84+'2ºtrimestre'!BF84+'3º trimestre'!BF84+'4º trimestre'!BF84 -> 17706 | BG84: ='1trimestre'!BG84+'2ºtrimestre'!BG84+'3º trimestre'!BG84+'4º trimestre'!BG84 -> 30526820 | BI84: IX | BJ84: ORINA | BK84: ='1trimestre'!BK84+'2ºtrimestre'!BK84+'3º trimestre'!BK84+'4º trimestre'!BK84 -> 0 | BL84: ='1trimestre'!BL84+'2ºtrimestre'!BL84+'3º trimestre'!BL84+'4º trimestre'!BL84 -> 0 | BM84: ='1trimestre'!BM84+'2ºtrimestre'!BM84+'3º trimestre'!BM84+'4º trimestre'!BM84 -> 0 | BO84: IX | BP84: ORINA | BQ84: ='1trimestre'!BQ84+'2ºtrimestre'!BQ84+'3º trimestre'!BQ84+'4º trimestre'!BQ84 -> 0 | BR84: ='1trimestre'!BR84+'2ºtrimestre'!BR84+'3º trimestre'!BR84+'4º trimestre'!BR84 -> 0 | BS84: ='1trimestre'!BS84+'2ºtrimestre'!BS84+'3º trimestre'!BS84+'4º trimestre'!BS84 -> 0
A85: X | B85: OTROS EXAMENES DE LABORATORIO | C85: =SUM(I85+O85+U85+AA85+AG85+AM85+AS85+AY85+BE85+BK85+BQ85) -> 9752 | G85: X | H85: OTROS EXAMENES DE LABORATORIO | I85: ='1trimestre'!I85+'2ºtrimestre'!I85+'3º trimestre'!I85+'4º trimestre'!I85 -> 112 | J85: =[2]B!$E$2939 -> 0 | M85: X | N85: OTROS EXAMENES DE LABORATORIO | O85: ='1trimestre'!O85+'2ºtrimestre'!O85+'3º trimestre'!O85+'4º trimestre'!O85 -> 4183 | P85: =[2]B!$E$2939 -> 0 | S85: X | T85: OTROS EXAMENES DE LABORATORIO | U85: ='1trimestre'!U85+'2ºtrimestre'!U85+'3º trimestre'!U85+'4º trimestre'!U85 -> 5457 | V85: =[2]B!$E$2939 -> 0 | Y85: X | Z85: OTROS EXAMENES DE LABORATORIO | AA85: ='1trimestre'!AA85+'2ºtrimestre'!AA85+'3º trimestre'!AA85+'4º trimestre'!AA85 -> 0 | AB85: =[2]B!$E$2939 -> 0 | AE85: X | AF85: OTROS EXAMENES DE LABORATORIO | AG85: ='1trimestre'!AG85+'2ºtrimestre'!AG85+'3º trimestre'!AG85+'4º trimestre'!AG85 -> 0 | AH85: =[2]B!$E$2939 -> 0 | AK85: X | AL85: OTROS EXAMENES DE LABORATORIO | AM85: ='1trimestre'!AM85+'2ºtrimestre'!AM85+'3º trimestre'!AM85+'4º trimestre'!AM85 -> 0 | AN85: =[2]B!$E$2939 -> 0 | AQ85: X | AR85: OTROS EXAMENES DE LABORATORIO | AS85: ='1trimestre'!AS85+'2ºtrimestre'!AS85+'3º trimestre'!AS85+'4º trimestre'!AS85 -> 0 | AT85: =[2]B!$E$2939 -> 0 | AW85: X | AX85: OTROS EXAMENES DE LABORATORIO | AY85: ='1trimestre'!AY85+'2ºtrimestre'!AY85+'3º trimestre'!AY85+'4º trimestre'!AY85 -> 0 | AZ85: =[2]B!$E$2939 -> 0 | BC85: X | BD85: OTROS EXAMENES DE LABORATORIO | BE85: ='1trimestre'!BE85+'2ºtrimestre'!BE85+'3º trimestre'!BE85+'4º trimestre'!BE85 -> 0 | BF85: =[2]B!$E$2939 -> 0 | BI85: X | BJ85: OTROS EXAMENES DE LABORATORIO | BK85: ='1trimestre'!BK85+'2ºtrimestre'!BK85+'3º trimestre'!BK85+'4º trimestre'!BK85 -> 0 | BL85: =[2]B!$E$2939 -> 0 | BO85: X | BP85: OTROS EXAMENES DE LABORATORIO | BQ85: ='1trimestre'!BQ85+'2ºtrimestre'!BQ85+'3º trimestre'!BQ85+'4º trimestre'!BQ85 -> 0 | BR85: =[2]B!$E$2939 -> 0
A86: TOTAL EXAMENES IMAGENOLOGIA | C86: =+C87+C88+C89+C90+C94+C95 -> 273803 | D86: =+D87+D88+D89+D90+D94 -> 267728 | E86: =+E87+E88+E89+E90+E94 -> 4863981390 | G86: TOTAL EXAMENES IMAGENOLOGIA | I86: =+I87+I88+I89+I90+I94+I95 -> 70412 | J86: =+J87+J88+J89+J90+J94 -> 69494 | K86: =+K87+K88+K89+K90+K94 -> 1462816460 | M86: TOTAL EXAMENES IMAGENOLOGIA | O86: =+O87+O88+O89+O90+O94+O95 -> 97054 | P86: =+P87+P88+P89+P90+P94 -> 96059 | Q86: =+Q87+Q88+Q89+Q90+Q94 -> 1894529260 | S86: TOTAL EXAMENES IMAGENOLOGIA | U86: =+U87+U88+U89+U90+U94+U95 -> 50788 | V86: =+V87+V88+V89+V90+V94 -> 47234 | W86: =+W87+W88+W89+W90+W94 -> 954184170 | Y86: TOTAL EXAMENES IMAGENOLOGIA | AA86: =+AA87+AA88+AA89+AA90+AA94+AA95 -> 13030 | AB86: =+AB87+AB88+AB89+AB90+AB94 -> 12422 | AC86: =+AC87+AC88+AC89+AC90+AC94 -> 150717490 | AE86: TOTAL EXAMENES IMAGENOLOGIA | AG86: =+AG87+AG88+AG89+AG90+AG94+AG95 -> 10649 | AH86: =+AH87+AH88+AH89+AH90+AH94 -> 10649 | AI86: =+AI87+AI88+AI89+AI90+AI94 -> 98949150 | AK86: TOTAL EXAMENES IMAGENOLOGIA | AM86: =+AM87+AM88+AM89+AM90+AM94+AM95 -> 2905 | AN86: =+AN87+AN88+AN89+AN90+AN94 -> 2905 | AO86: =+AO87+AO88+AO89+AO90+AO94 -> 27988030 | AQ86: TOTAL EXAMENES IMAGENOLOGIA | AS86: =+AS87+AS88+AS89+AS90+AS94+AS95 -> 8218 | AT86: =+AT87+AT88+AT89+AT90+AT94 -> 8218 | AU86: =+AU87+AU88+AU89+AU90+AU94 -> 70335320 | AW86: TOTAL EXAMENES IMAGENOLOGIA | AY86: =+AY87+AY88+AY89+AY90+AY94+AY95 -> 7055 | AZ86: =+AZ87+AZ88+AZ89+AZ90+AZ94 -> 7055 | BA86: =+BA87+BA88+BA89+BA90+BA94 -> 78236870 | BC86: TOTAL EXAMENES IMAGENOLOGIA | BE86: =+BE87+BE88+BE89+BE90+BE94+BE95 -> 13692 | BF86: =+BF87+BF88+BF89+BF90+BF94 -> 13692 | BG86: =+BG87+BG88+BG89+BG90+BG94 -> 126224640 | BI86: TOTAL EXAMENES IMAGENOLOGIA | BK86: =+BK87+BK88+BK89+BK90+BK94+BK95 -> 0 | BL86: =+BL87+BL88+BL89+BL90+BL94 -> 0 | BM86: =+BM87+BM88+BM89+BM90+BM94 -> 0 | BO86: TOTAL EXAMENES IMAGENOLOGIA | BQ86: =+BQ87+BQ88+BQ89+BQ90+BQ94+BQ95 -> 0 | BR86: =+BR87+BR88+BR89+BR90+BR94 -> 0 | BS86: =+BS87+BS88+BS89+BS90+BS94 -> 0
A87: I. a) | B87: EX. RADIOLOGICOS SIMPLES | C87: =SUM(I87+O87+U87+AA87+AG87+AM87+AS87+AY87+BE87+BK87+BQ87) -> 173097 | D87: =SUM(J87+P87+V87+AB87+AH87+AN87+AT87+AZ87+BF87+BL87+BR87) -> 168826 | E87: =SUM(K87+Q87+W87+AC87+AI87+AO87+AU87+BA87+BG87+BM87+BS87) -> 1599337140 | G87: I. a) | H87: EX. RADIOLOGICOS SIMPLES | I87: ='1trimestre'!I87+'2ºtrimestre'!I87+'3º trimestre'!I87+'4º trimestre'!I87 -> 38510 | J87: ='1trimestre'!J87+'2ºtrimestre'!J87+'3º trimestre'!J87+'4º trimestre'!J87 -> 38289 | K87: ='1trimestre'!K87+'2ºtrimestre'!K87+'3º trimestre'!K87+'4º trimestre'!K87 -> 377294230 | M87: I. a) | N87: EX. RADIOLOGICOS SIMPLES | O87: ='1trimestre'!O87+'2ºtrimestre'!O87+'3º trimestre'!O87+'4º trimestre'!O87 -> 57793 | P87: ='1trimestre'!P87+'2ºtrimestre'!P87+'3º trimestre'!P87+'4º trimestre'!P87 -> 57516 | Q87: ='1trimestre'!Q87+'2ºtrimestre'!Q87+'3º trimestre'!Q87+'4º trimestre'!Q87 -> 518593840 | S87: I. a) | T87: EX. RADIOLOGICOS SIMPLES | U87: ='1trimestre'!U87+'2ºtrimestre'!U87+'3º trimestre'!U87+'4º trimestre'!U87 -> 29552 | V87: ='1trimestre'!V87+'2ºtrimestre'!V87+'3º trimestre'!V87+'4º trimestre'!V87 -> 26376 | W87: ='1trimestre'!W87+'2ºtrimestre'!W87+'3º trimestre'!W87+'4º trimestre'!W87 -> 253886520 | Y87: I. a) | Z87: EX. RADIOLOGICOS SIMPLES | AA87: ='1trimestre'!AA87+'2ºtrimestre'!AA87+'3º trimestre'!AA87+'4º trimestre'!AA87 -> 9179 | AB87: ='1trimestre'!AB87+'2ºtrimestre'!AB87+'3º trimestre'!AB87+'4º trimestre'!AB87 -> 8582 | AC87: ='1trimestre'!AC87+'2ºtrimestre'!AC87+'3º trimestre'!AC87+'4º trimestre'!AC87 -> 82227150 | AE87: I. a) | AF87: EX. RADIOLOGICOS SIMPLES | AG87: ='1trimestre'!AG87+'2ºtrimestre'!AG87+'3º trimestre'!AG87+'4º trimestre'!AG87 -> 9166 | AH87: ='1trimestre'!AH87+'2ºtrimestre'!AH87+'3º trimestre'!AH87+'4º trimestre'!AH87 -> 9166 | AI87: ='1trimestre'!AI87+'2ºtrimestre'!AI87+'3º trimestre'!AI87+'4º trimestre'!AI87 -> 90421900 | AK87: I. a) | AL87: EX. RADIOLOGICOS SIMPLES | AM87: ='1trimestre'!AM87+'2ºtrimestre'!AM87+'3º trimestre'!AM87+'4º trimestre'!AM87 -> 2701 | AN87: ='1trimestre'!AN87+'2ºtrimestre'!AN87+'3º trimestre'!AN87+'4º trimestre'!AN87 -> 2701 | AO87: ='1trimestre'!AO87+'2ºtrimestre'!AO87+'3º trimestre'!AO87+'4º trimestre'!AO87 -> 26815030 | AQ87: I. a) | AR87: EX. RADIOLOGICOS SIMPLES | AS87: ='1trimestre'!AS87+'2ºtrimestre'!AS87+'3º trimestre'!AS87+'4º trimestre'!AS87 -> 8218 | AT87: ='1trimestre'!AT87+'2ºtrimestre'!AT87+'3º trimestre'!AT87+'4º trimestre'!AT87 -> 8218 | AU87: ='1trimestre'!AU87+'2ºtrimestre'!AU87+'3º trimestre'!AU87+'4º trimestre'!AU87 -> 70335320 | AW87: I. a) | AX87: EX. RADIOLOGICOS SIMPLES | AY87: ='1trimestre'!AY87+'2ºtrimestre'!AY87+'3º trimestre'!AY87+'4º trimestre'!AY87 -> 6680 | AZ87: ='1trimestre'!AZ87+'2ºtrimestre'!AZ87+'3º trimestre'!AZ87+'4º trimestre'!AZ87 -> 6680 | BA87: ='1trimestre'!BA87+'2ºtrimestre'!BA87+'3º trimestre'!BA87+'4º trimestre'!BA87 -> 73523500 | BC87: I. a) | BD87: EX. RADIOLOGICOS SIMPLES | BE87: ='1trimestre'!BE87+'2ºtrimestre'!BE87+'3º trimestre'!BE87+'4º trimestre'!BE87 -> 11298 | BF87: ='1trimestre'!BF87+'2ºtrimestre'!BF87+'3º trimestre'!BF87+'4º trimestre'!BF87 -> 11298 | BG87: ='1trimestre'!BG87+'2ºtrimestre'!BG87+'3º trimestre'!BG87+'4º trimestre'!BG87 -> 106239650 | BI87: I. a) | BJ87: EX. RADIOLOGICOS SIMPLES | BK87: ='1trimestre'!BK87+'2ºtrimestre'!BK87+'3º trimestre'!BK87+'4º trimestre'!BK87 -> 0 | BL87: ='1trimestre'!BL87+'2ºtrimestre'!BL87+'3º trimestre'!BL87+'4º trimestre'!BL87 -> 0 | BM87: ='1trimestre'!BM87+'2ºtrimestre'!BM87+'3º trimestre'!BM87+'4º trimestre'!BM87 -> 0 | BO87: I. a) | BP87: EX. RADIOLOGICOS SIMPLES | BQ87: ='1trimestre'!BQ87+'2ºtrimestre'!BQ87+'3º trimestre'!BQ87+'4º trimestre'!BQ87 -> 0 | BR87: ='1trimestre'!BR87+'2ºtrimestre'!BR87+'3º trimestre'!BR87+'4º trimestre'!BR87 -> 0 | BS87: ='1trimestre'!BS87+'2ºtrimestre'!BS87+'3º trimestre'!BS87+'4º trimestre'!BS87 -> 0
A88: I. b) | B88: EX. RADIOLOGICOS COMPLEJOS | C88: 273 | D88: 264 | E88: 7905330 | G88: I. b) | H88: EX. RADIOLOGICOS COMPLEJOS | I88: ='1trimestre'!I88+'2ºtrimestre'!I88+'3º trimestre'!I88+'4º trimestre'!I88 -> 168 | J88: ='1trimestre'!J88+'2ºtrimestre'!J88+'3º trimestre'!J88+'4º trimestre'!J88 -> 168 | K88: ='1trimestre'!K88+'2ºtrimestre'!K88+'3º trimestre'!K88+'4º trimestre'!K88 -> 3932320 | M88: I. b) | N88: EX. RADIOLOGICOS COMPLEJOS | O88: ='1trimestre'!O88+'2ºtrimestre'!O88+'3º trimestre'!O88+'4º trimestre'!O88 -> 17 | P88: ='1trimestre'!P88+'2ºtrimestre'!P88+'3º trimestre'!P88+'4º trimestre'!P88 -> 17 | Q88: ='1trimestre'!Q88+'2ºtrimestre'!Q88+'3º trimestre'!Q88+'4º trimestre'!Q88 -> 311440 | S88: I. b) | T88: EX. RADIOLOGICOS COMPLEJOS | U88: ='1trimestre'!U88+'2ºtrimestre'!U88+'3º trimestre'!U88+'4º trimestre'!U88 -> 88 | V88: ='1trimestre'!V88+'2ºtrimestre'!V88+'3º trimestre'!V88+'4º trimestre'!V88 -> 79 | W88: ='1trimestre'!W88+'2ºtrimestre'!W88+'3º trimestre'!W88+'4º trimestre'!W88 -> 3661570 | Y88: I. b) | Z88: EX. RADIOLOGICOS COMPLEJOS | AA88: ='1trimestre'!AA88+'2ºtrimestre'!AA88+'3º trimestre'!AA88+'4º trimestre'!AA88 -> 0 | AB88: ='1trimestre'!AB88+'2ºtrimestre'!AB88+'3º trimestre'!AB88+'4º trimestre'!AB88 -> 0 | AC88: ='1trimestre'!AC88+'2ºtrimestre'!AC88+'3º trimestre'!AC88+'4º trimestre'!AC88 -> 0 | AE88: I. b) | AF88: EX. RADIOLOGICOS COMPLEJOS | AG88: ='1trimestre'!AG88+'2ºtrimestre'!AG88+'3º trimestre'!AG88+'4º trimestre'!AG88 -> 0 | AH88: ='1trimestre'!AH88+'2ºtrimestre'!AH88+'3º trimestre'!AH88+'4º trimestre'!AH88 -> 0 | AI88: ='1trimestre'!AI88+'2ºtrimestre'!AI88+'3º trimestre'!AI88+'4º trimestre'!AI88 -> 0 | AK88: I. b) | AL88: EX. RADIOLOGICOS COMPLEJOS | AM88: ='1trimestre'!AM88+'2ºtrimestre'!AM88+'3º trimestre'!AM88+'4º trimestre'!AM88 -> 0 | AN88: ='1trimestre'!AN88+'2ºtrimestre'!AN88+'3º trimestre'!AN88+'4º trimestre'!AN88 -> 0 | AO88: ='1trimestre'!AO88+'2ºtrimestre'!AO88+'3º trimestre'!AO88+'4º trimestre'!AO88 -> 0 | AQ88: I. b) | AR88: EX. RADIOLOGICOS COMPLEJOS | AS88: ='1trimestre'!AS88+'2ºtrimestre'!AS88+'3º trimestre'!AS88+'4º trimestre'!AS88 -> 0 | AT88: ='1trimestre'!AT88+'2ºtrimestre'!AT88+'3º trimestre'!AT88+'4º trimestre'!AT88 -> 0 | AU88: ='1trimestre'!AU88+'2ºtrimestre'!AU88+'3º trimestre'!AU88+'4º trimestre'!AU88 -> 0 | AW88: I. b) | AX88: EX. RADIOLOGICOS COMPLEJOS | AY88: ='1trimestre'!AY88+'2ºtrimestre'!AY88+'3º trimestre'!AY88+'4º trimestre'!AY88 -> 0 | AZ88: ='1trimestre'!AZ88+'2ºtrimestre'!AZ88+'3º trimestre'!AZ88+'4º trimestre'!AZ88 -> 0 | BA88: ='1trimestre'!BA88+'2ºtrimestre'!BA88+'3º trimestre'!BA88+'4º trimestre'!BA88 -> 0 | BC88: I. b) | BD88: EX. RADIOLOGICOS COMPLEJOS | BE88: ='1trimestre'!BE88+'2ºtrimestre'!BE88+'3º trimestre'!BE88+'4º trimestre'!BE88 -> 0 | BF88: ='1trimestre'!BF88+'2ºtrimestre'!BF88+'3º trimestre'!BF88+'4º trimestre'!BF88 -> 0 | BG88: ='1trimestre'!BG88+'2ºtrimestre'!BG88+'3º trimestre'!BG88+'4º trimestre'!BG88 -> 0 | BI88: I. b) | BJ88: EX. RADIOLOGICOS COMPLEJOS | BK88: ='1trimestre'!BK88+'2ºtrimestre'!BK88+'3º trimestre'!BK88+'4º trimestre'!BK88 -> 0 | BL88: ='1trimestre'!BL88+'2ºtrimestre'!BL88+'3º trimestre'!BL88+'4º trimestre'!BL88 -> 0 | BM88: ='1trimestre'!BM88+'2ºtrimestre'!BM88+'3º trimestre'!BM88+'4º trimestre'!BM88 -> 0 | BO88: I. b) | BP88: EX. RADIOLOGICOS COMPLEJOS | BQ88: ='1trimestre'!BQ88+'2ºtrimestre'!BQ88+'3º trimestre'!BQ88+'4º trimestre'!BQ88 -> 0 | BR88: ='1trimestre'!BR88+'2ºtrimestre'!BR88+'3º trimestre'!BR88+'4º trimestre'!BR88 -> 0 | BS88: ='1trimestre'!BS88+'2ºtrimestre'!BS88+'3º trimestre'!BS88+'4º trimestre'!BS88 -> 0
A89: II. | B89: TOMOGRAFIA AXIAL COMP. | C89: 37119 | D89: 36512 | E89: 2247096200 | G89: II. | H89: TOMOGRAFIA AXIAL COMP. | I89: ='1trimestre'!I89+'2ºtrimestre'!I89+'3º trimestre'!I89+'4º trimestre'!I89 -> 11913 | J89: ='1trimestre'!J89+'2ºtrimestre'!J89+'3º trimestre'!J89+'4º trimestre'!J89 -> 11701 | K89: ='1trimestre'!K89+'2ºtrimestre'!K89+'3º trimestre'!K89+'4º trimestre'!K89 -> 741924790 | M89: II. | N89: TOMOGRAFIA AXIAL COMP. | O89: ='1trimestre'!O89+'2ºtrimestre'!O89+'3º trimestre'!O89+'4º trimestre'!O89 -> 18031 | P89: ='1trimestre'!P89+'2ºtrimestre'!P89+'3º trimestre'!P89+'4º trimestre'!P89 -> 17926 | Q89: ='1trimestre'!Q89+'2ºtrimestre'!Q89+'3º trimestre'!Q89+'4º trimestre'!Q89 -> 1092707840 | S89: II. | T89: TOMOGRAFIA AXIAL COMP. | U89: ='1trimestre'!U89+'2ºtrimestre'!U89+'3º trimestre'!U89+'4º trimestre'!U89 -> 7175 | V89: ='1trimestre'!V89+'2ºtrimestre'!V89+'3º trimestre'!V89+'4º trimestre'!V89 -> 6885 | W89: ='1trimestre'!W89+'2ºtrimestre'!W89+'3º trimestre'!W89+'4º trimestre'!W89 -> 412463570 | Y89: II. | Z89: TOMOGRAFIA AXIAL COMP. | AA89: ='1trimestre'!AA89+'2ºtrimestre'!AA89+'3º trimestre'!AA89+'4º trimestre'!AA89 -> 0 | AB89: ='1trimestre'!AB89+'2ºtrimestre'!AB89+'3º trimestre'!AB89+'4º trimestre'!AB89 -> 0 | AC89: ='1trimestre'!AC89+'2ºtrimestre'!AC89+'3º trimestre'!AC89+'4º trimestre'!AC89 -> 0 | AE89: II. | AF89: TOMOGRAFIA AXIAL COMP. | AG89: ='1trimestre'!AG89+'2ºtrimestre'!AG89+'3º trimestre'!AG89+'4º trimestre'!AG89 -> 0 | AH89: ='1trimestre'!AH89+'2ºtrimestre'!AH89+'3º trimestre'!AH89+'4º trimestre'!AH89 -> 0 | AI89: ='1trimestre'!AI89+'2ºtrimestre'!AI89+'3º trimestre'!AI89+'4º trimestre'!AI89 -> 0 | AK89: II. | AL89: TOMOGRAFIA AXIAL COMP. | AM89: ='1trimestre'!AM89+'2ºtrimestre'!AM89+'3º trimestre'!AM89+'4º trimestre'!AM89 -> 0 | AN89: ='1trimestre'!AN89+'2ºtrimestre'!AN89+'3º trimestre'!AN89+'4º trimestre'!AN89 -> 0 | AO89: ='1trimestre'!AO89+'2ºtrimestre'!AO89+'3º trimestre'!AO89+'4º trimestre'!AO89 -> 0 | AQ89: II. | AR89: TOMOGRAFIA AXIAL COMP. | AS89: ='1trimestre'!AS89+'2ºtrimestre'!AS89+'3º trimestre'!AS89+'4º trimestre'!AS89 -> 0 | AT89: ='1trimestre'!AT89+'2ºtrimestre'!AT89+'3º trimestre'!AT89+'4º trimestre'!AT89 -> 0 | AU89: ='1trimestre'!AU89+'2ºtrimestre'!AU89+'3º trimestre'!AU89+'4º trimestre'!AU89 -> 0 | AW89: II. | AX89: TOMOGRAFIA AXIAL COMP. | AY89: ='1trimestre'!AY89+'2ºtrimestre'!AY89+'3º trimestre'!AY89+'4º trimestre'!AY89 -> 0 | AZ89: ='1trimestre'!AZ89+'2ºtrimestre'!AZ89+'3º trimestre'!AZ89+'4º trimestre'!AZ89 -> 0 | BA89: ='1trimestre'!BA89+'2ºtrimestre'!BA89+'3º trimestre'!BA89+'4º trimestre'!BA89 -> 0 | BC89: II. | BD89: TOMOGRAFIA AXIAL COMP. | BE89: ='1trimestre'!BE89+'2ºtrimestre'!BE89+'3º trimestre'!BE89+'4º trimestre'!BE89 -> 0 | BF89: ='1trimestre'!BF89+'2ºtrimestre'!BF89+'3º trimestre'!BF89+'4º trimestre'!BF89 -> 0 | BG89: ='1trimestre'!BG89+'2ºtrimestre'!BG89+'3º trimestre'!BG89+'4º trimestre'!BG89 -> 0 | BI89: II. | BJ89: TOMOGRAFIA AXIAL COMP. | BK89: ='1trimestre'!BK89+'2ºtrimestre'!BK89+'3º trimestre'!BK89+'4º trimestre'!BK89 -> 0 | BL89: ='1trimestre'!BL89+'2ºtrimestre'!BL89+'3º trimestre'!BL89+'4º trimestre'!BL89 -> 0 | BM89: ='1trimestre'!BM89+'2ºtrimestre'!BM89+'3º trimestre'!BM89+'4º trimestre'!BM89 -> 0 | BO89: II. | BP89: TOMOGRAFIA AXIAL COMP. | BQ89: ='1trimestre'!BQ89+'2ºtrimestre'!BQ89+'3º trimestre'!BQ89+'4º trimestre'!BQ89 -> 0 | BR89: ='1trimestre'!BR89+'2ºtrimestre'!BR89+'3º trimestre'!BR89+'4º trimestre'!BR89 -> 0 | BS89: ='1trimestre'!BS89+'2ºtrimestre'!BS89+'3º trimestre'!BS89+'4º trimestre'!BS89 -> 0
A90: III | B90: ULTRASONOGRAFIA | C90: 62768 | D90: 62126 | E90: 1009642720 | G90: III | H90: ULTRASONOGRAFIA | I90: ='1trimestre'!I90+'2ºtrimestre'!I90+'3º trimestre'!I90+'4º trimestre'!I90 -> 19821 | J90: ='1trimestre'!J90+'2ºtrimestre'!J90+'3º trimestre'!J90+'4º trimestre'!J90 -> 19336 | K90: ='1trimestre'!K90+'2ºtrimestre'!K90+'3º trimestre'!K90+'4º trimestre'!K90 -> 339665120 | M90: III | N90: ULTRASONOGRAFIA | O90: ='1trimestre'!O90+'2ºtrimestre'!O90+'3º trimestre'!O90+'4º trimestre'!O90 -> 20667 | P90: ='1trimestre'!P90+'2ºtrimestre'!P90+'3º trimestre'!P90+'4º trimestre'!P90 -> 20600 | Q90: ='1trimestre'!Q90+'2ºtrimestre'!Q90+'3º trimestre'!Q90+'4º trimestre'!Q90 -> 282916140 | S90: III | T90: ULTRASONOGRAFIA | U90: ='1trimestre'!U90+'2ºtrimestre'!U90+'3º trimestre'!U90+'4º trimestre'!U90 -> 13973 | V90: ='1trimestre'!V90+'2ºtrimestre'!V90+'3º trimestre'!V90+'4º trimestre'!V90 -> 13894 | W90: ='1trimestre'!W90+'2ºtrimestre'!W90+'3º trimestre'!W90+'4º trimestre'!W90 -> 284172510 | Y90: III | Z90: ULTRASONOGRAFIA | AA90: ='1trimestre'!AA90+'2ºtrimestre'!AA90+'3º trimestre'!AA90+'4º trimestre'!AA90 -> 3851 | AB90: ='1trimestre'!AB90+'2ºtrimestre'!AB90+'3º trimestre'!AB90+'4º trimestre'!AB90 -> 3840 | AC90: ='1trimestre'!AC90+'2ºtrimestre'!AC90+'3º trimestre'!AC90+'4º trimestre'!AC90 -> 68490340 | AE90: III | AF90: ULTRASONOGRAFIA | AG90: ='1trimestre'!AG90+'2ºtrimestre'!AG90+'3º trimestre'!AG90+'4º trimestre'!AG90 -> 1483 | AH90: ='1trimestre'!AH90+'2ºtrimestre'!AH90+'3º trimestre'!AH90+'4º trimestre'!AH90 -> 1483 | AI90: ='1trimestre'!AI90+'2ºtrimestre'!AI90+'3º trimestre'!AI90+'4º trimestre'!AI90 -> 8527250 | AK90: III | AL90: ULTRASONOGRAFIA | AM90: ='1trimestre'!AM90+'2ºtrimestre'!AM90+'3º trimestre'!AM90+'4º trimestre'!AM90 -> 204 | AN90: ='1trimestre'!AN90+'2ºtrimestre'!AN90+'3º trimestre'!AN90+'4º trimestre'!AN90 -> 204 | AO90: ='1trimestre'!AO90+'2ºtrimestre'!AO90+'3º trimestre'!AO90+'4º trimestre'!AO90 -> 1173000 | AQ90: III | AR90: ULTRASONOGRAFIA | AS90: ='1trimestre'!AS90+'2ºtrimestre'!AS90+'3º trimestre'!AS90+'4º trimestre'!AS90 -> 0 | AT90: ='1trimestre'!AT90+'2ºtrimestre'!AT90+'3º trimestre'!AT90+'4º trimestre'!AT90 -> 0 | AU90: ='1trimestre'!AU90+'2ºtrimestre'!AU90+'3º trimestre'!AU90+'4º trimestre'!AU90 -> 0 | AW90: III | AX90: ULTRASONOGRAFIA | AY90: ='1trimestre'!AY90+'2ºtrimestre'!AY90+'3º trimestre'!AY90+'4º trimestre'!AY90 -> 375 | AZ90: ='1trimestre'!AZ90+'2ºtrimestre'!AZ90+'3º trimestre'!AZ90+'4º trimestre'!AZ90 -> 375 | BA90: ='1trimestre'!BA90+'2ºtrimestre'!BA90+'3º trimestre'!BA90+'4º trimestre'!BA90 -> 4713370 | BC90: III | BD90: ULTRASONOGRAFIA | BE90: ='1trimestre'!BE90+'2ºtrimestre'!BE90+'3º trimestre'!BE90+'4º trimestre'!BE90 -> 2394 | BF90: ='1trimestre'!BF90+'2ºtrimestre'!BF90+'3º trimestre'!BF90+'4º trimestre'!BF90 -> 2394 | BG90: ='1trimestre'!BG90+'2ºtrimestre'!BG90+'3º trimestre'!BG90+'4º trimestre'!BG90 -> 19984990 | BI90: III | BJ90: ULTRASONOGRAFIA | BK90: ='1trimestre'!BK90+'2ºtrimestre'!BK90+'3º trimestre'!BK90+'4º trimestre'!BK90 -> 0 | BL90: ='1trimestre'!BL90+'2ºtrimestre'!BL90+'3º trimestre'!BL90+'4º trimestre'!BL90 -> 0 | BM90: ='1trimestre'!BM90+'2ºtrimestre'!BM90+'3º trimestre'!BM90+'4º trimestre'!BM90 -> 0 | BO90: III | BP90: ULTRASONOGRAFIA | BQ90: ='1trimestre'!BQ90+'2ºtrimestre'!BQ90+'3º trimestre'!BQ90+'4º trimestre'!BQ90 -> 0 | BR90: ='1trimestre'!BR90+'2ºtrimestre'!BR90+'3º trimestre'!BR90+'4º trimestre'!BR90 -> 0 | BS90: ='1trimestre'!BS90+'2ºtrimestre'!BS90+'3º trimestre'!BS90+'4º trimestre'!BS90 -> 0
B91: Ecotomografias ( Sin Ecografía Obstetr. Y Abdominal ) | C91: 43124 | D91: 42869 | E91: 768574270 | H91: Ecotomografias ( Sin Ecografía Obstetr. Y Abdominal ) | I91: ='1trimestre'!I91+'2ºtrimestre'!I91+'3º trimestre'!I91+'4º trimestre'!I91 -> 14364 | J91: ='1trimestre'!J91+'2ºtrimestre'!J91+'3º trimestre'!J91+'4º trimestre'!J91 -> 14215 | K91: ='1trimestre'!K91+'2ºtrimestre'!K91+'3º trimestre'!K91+'4º trimestre'!K91 -> 266170670 | N91: Ecotomografias ( Sin Ecografía Obstetr. Y Abdominal ) | O91: ='1trimestre'!O91+'2ºtrimestre'!O91+'3º trimestre'!O91+'4º trimestre'!O91 -> 11954 | P91: ='1trimestre'!P91+'2ºtrimestre'!P91+'3º trimestre'!P91+'4º trimestre'!P91 -> 11916 | Q91: ='1trimestre'!Q91+'2ºtrimestre'!Q91+'3º trimestre'!Q91+'4º trimestre'!Q91 -> 180779540 | T91: Ecotomografias ( Sin Ecografía Obstetr. Y Abdominal ) | U91: ='1trimestre'!U91+'2ºtrimestre'!U91+'3º trimestre'!U91+'4º trimestre'!U91 -> 12567 | V91: ='1trimestre'!V91+'2ºtrimestre'!V91+'3º trimestre'!V91+'4º trimestre'!V91 -> 12504 | W91: ='1trimestre'!W91+'2ºtrimestre'!W91+'3º trimestre'!W91+'4º trimestre'!W91 -> 254928310 | Z91: Ecotomografias ( Sin Ecografía Obstetr. Y Abdominal ) | AA91: ='1trimestre'!AA91+'2ºtrimestre'!AA91+'3º trimestre'!AA91+'4º trimestre'!AA91 -> 3136 | AB91: ='1trimestre'!AB91+'2ºtrimestre'!AB91+'3º trimestre'!AB91+'4º trimestre'!AB91 -> 3131 | AC91: ='1trimestre'!AC91+'2ºtrimestre'!AC91+'3º trimestre'!AC91+'4º trimestre'!AC91 -> 53565890 | AF91: Ecotomografias ( Sin Ecografía Obstetr. Y Abdominal ) | AG91: ='1trimestre'!AG91+'2ºtrimestre'!AG91+'3º trimestre'!AG91+'4º trimestre'!AG91 -> 0 | AH91: ='1trimestre'!AH91+'2ºtrimestre'!AH91+'3º trimestre'!AH91+'4º trimestre'!AH91 -> 0 | AI91: ='1trimestre'!AI91+'2ºtrimestre'!AI91+'3º trimestre'!AI91+'4º trimestre'!AI91 -> 0 | AL91: Ecotomografias ( Sin Ecografía Obstetr. Y Abdominal ) | AM91: ='1trimestre'!AM91+'2ºtrimestre'!AM91+'3º trimestre'!AM91+'4º trimestre'!AM91 -> 0 | AN91: ='1trimestre'!AN91+'2ºtrimestre'!AN91+'3º trimestre'!AN91+'4º trimestre'!AN91 -> 0 | AO91: ='1trimestre'!AO91+'2ºtrimestre'!AO91+'3º trimestre'!AO91+'4º trimestre'!AO91 -> 0 | AR91: Ecotomografias ( Sin Ecografía Obstetr. Y Abdominal ) | AS91: ='1trimestre'!AS91+'2ºtrimestre'!AS91+'3º trimestre'!AS91+'4º trimestre'!AS91 -> 0 | AT91: ='1trimestre'!AT91+'2ºtrimestre'!AT91+'3º trimestre'!AT91+'4º trimestre'!AT91 -> 0 | AU91: ='1trimestre'!AU91+'2ºtrimestre'!AU91+'3º trimestre'!AU91+'4º trimestre'!AU91 -> 0 | AX91: Ecotomografias ( Sin Ecografía Obstetr. Y Abdominal ) | AY91: ='1trimestre'!AY91+'2ºtrimestre'!AY91+'3º trimestre'!AY91+'4º trimestre'!AY91 -> 88 | AZ91: ='1trimestre'!AZ91+'2ºtrimestre'!AZ91+'3º trimestre'!AZ91+'4º trimestre'!AZ91 -> 88 | BA91: ='1trimestre'!BA91+'2ºtrimestre'!BA91+'3º trimestre'!BA91+'4º trimestre'!BA91 -> 1288320 | BD91: Ecotomografias ( Sin Ecografía Obstetr. Y Abdominal ) | BE91: ='1trimestre'!BE91+'2ºtrimestre'!BE91+'3º trimestre'!BE91+'4º trimestre'!BE91 -> 1015 | BF91: ='1trimestre'!BF91+'2ºtrimestre'!BF91+'3º trimestre'!BF91+'4º trimestre'!BF91 -> 1015 | BG91: ='1trimestre'!BG91+'2ºtrimestre'!BG91+'3º trimestre'!BG91+'4º trimestre'!BG91 -> 11841540 | BJ91: Ecotomografias ( Sin Ecografía Obstetr. Y Abdominal ) | BK91: ='1trimestre'!BK91+'2ºtrimestre'!BK91+'3º trimestre'!BK91+'4º trimestre'!BK91 -> 0 | BL91: ='1trimestre'!BL91+'2ºtrimestre'!BL91+'3º trimestre'!BL91+'4º trimestre'!BL91 -> 0 | BM91: ='1trimestre'!BM91+'2ºtrimestre'!BM91+'3º trimestre'!BM91+'4º trimestre'!BM91 -> 0 | BP91: Ecotomografias ( Sin Ecografía Obstetr. Y Abdominal ) | BQ91: ='1trimestre'!BQ91+'2ºtrimestre'!BQ91+'3º trimestre'!BQ91+'4º trimestre'!BQ91 -> 0 | BR91: ='1trimestre'!BR91+'2ºtrimestre'!BR91+'3º trimestre'!BR91+'4º trimestre'!BR91 -> 0 | BS91: ='1trimestre'!BS91+'2ºtrimestre'!BS91+'3º trimestre'!BS91+'4º trimestre'!BS91 -> 0
B92: Ecografías Obstétricas | C92: 11011 | D92: 10738 | E92: 61743500 | H92: Ecografías Obstétricas | I92: ='1trimestre'!I92+'2ºtrimestre'!I92+'3º trimestre'!I92+'4º trimestre'!I92 -> 2515 | J92: ='1trimestre'!J92+'2ºtrimestre'!J92+'3º trimestre'!J92+'4º trimestre'!J92 -> 2242 | K92: ='1trimestre'!K92+'2ºtrimestre'!K92+'3º trimestre'!K92+'4º trimestre'!K92 -> 12891500 | N92: Ecografías Obstétricas | O92: ='1trimestre'!O92+'2ºtrimestre'!O92+'3º trimestre'!O92+'4º trimestre'!O92 -> 5272 | P92: ='1trimestre'!P92+'2ºtrimestre'!P92+'3º trimestre'!P92+'4º trimestre'!P92 -> 5272 | Q92: ='1trimestre'!Q92+'2ºtrimestre'!Q92+'3º trimestre'!Q92+'4º trimestre'!Q92 -> 30314000 | T92: Ecografías Obstétricas | U92: ='1trimestre'!U92+'2ºtrimestre'!U92+'3º trimestre'!U92+'4º trimestre'!U92 -> 1 | V92: ='1trimestre'!V92+'2ºtrimestre'!V92+'3º trimestre'!V92+'4º trimestre'!V92 -> 1 | W92: ='1trimestre'!W92+'2ºtrimestre'!W92+'3º trimestre'!W92+'4º trimestre'!W92 -> 5750 | Z92: Ecografías Obstétricas | AA92: ='1trimestre'!AA92+'2ºtrimestre'!AA92+'3º trimestre'!AA92+'4º trimestre'!AA92 -> 0 | AB92: ='1trimestre'!AB92+'2ºtrimestre'!AB92+'3º trimestre'!AB92+'4º trimestre'!AB92 -> 0 | AC92: ='1trimestre'!AC92+'2ºtrimestre'!AC92+'3º trimestre'!AC92+'4º trimestre'!AC92 -> 0 | AF92: Ecografías Obstétricas | AG92: ='1trimestre'!AG92+'2ºtrimestre'!AG92+'3º trimestre'!AG92+'4º trimestre'!AG92 -> 1483 | AH92: ='1trimestre'!AH92+'2ºtrimestre'!AH92+'3º trimestre'!AH92+'4º trimestre'!AH92 -> 1483 | AI92: ='1trimestre'!AI92+'2ºtrimestre'!AI92+'3º trimestre'!AI92+'4º trimestre'!AI92 -> 8527250 | AL92: Ecografías Obstétricas | AM92: ='1trimestre'!AM92+'2ºtrimestre'!AM92+'3º trimestre'!AM92+'4º trimestre'!AM92 -> 204 | AN92: ='1trimestre'!AN92+'2ºtrimestre'!AN92+'3º trimestre'!AN92+'4º trimestre'!AN92 -> 204 | AO92: ='1trimestre'!AO92+'2ºtrimestre'!AO92+'3º trimestre'!AO92+'4º trimestre'!AO92 -> 1173000 | AR92: Ecografías Obstétricas | AS92: ='1trimestre'!AS92+'2ºtrimestre'!AS92+'3º trimestre'!AS92+'4º trimestre'!AS92 -> 0 | AT92: ='1trimestre'!AT92+'2ºtrimestre'!AT92+'3º trimestre'!AT92+'4º trimestre'!AT92 -> 0 | AU92: ='1trimestre'!AU92+'2ºtrimestre'!AU92+'3º trimestre'!AU92+'4º trimestre'!AU92 -> 0 | AX92: Ecografías Obstétricas | AY92: ='1trimestre'!AY92+'2ºtrimestre'!AY92+'3º trimestre'!AY92+'4º trimestre'!AY92 -> 171 | AZ92: ='1trimestre'!AZ92+'2ºtrimestre'!AZ92+'3º trimestre'!AZ92+'4º trimestre'!AZ92 -> 171 | BA92: ='1trimestre'!BA92+'2ºtrimestre'!BA92+'3º trimestre'!BA92+'4º trimestre'!BA92 -> 983250 | BD92: Ecografías Obstétricas | BE92: ='1trimestre'!BE92+'2ºtrimestre'!BE92+'3º trimestre'!BE92+'4º trimestre'!BE92 -> 1365 | BF92: ='1trimestre'!BF92+'2ºtrimestre'!BF92+'3º trimestre'!BF92+'4º trimestre'!BF92 -> 1365 | BG92: ='1trimestre'!BG92+'2ºtrimestre'!BG92+'3º trimestre'!BG92+'4º trimestre'!BG92 -> 7848750 | BJ92: Ecografías Obstétricas | BK92: ='1trimestre'!BK92+'2ºtrimestre'!BK92+'3º trimestre'!BK92+'4º trimestre'!BK92 -> 0 | BL92: ='1trimestre'!BL92+'2ºtrimestre'!BL92+'3º trimestre'!BL92+'4º trimestre'!BL92 -> 0 | BM92: ='1trimestre'!BM92+'2ºtrimestre'!BM92+'3º trimestre'!BM92+'4º trimestre'!BM92 -> 0 | BP92: Ecografías Obstétricas | BQ92: ='1trimestre'!BQ92+'2ºtrimestre'!BQ92+'3º trimestre'!BQ92+'4º trimestre'!BQ92 -> 0 | BR92: ='1trimestre'!BR92+'2ºtrimestre'!BR92+'3º trimestre'!BR92+'4º trimestre'!BR92 -> 0 | BS92: ='1trimestre'!BS92+'2ºtrimestre'!BS92+'3º trimestre'!BS92+'4º trimestre'!BS92 -> 0
B93: Ecotomografias abdominal | C93: 8633 | D93: 8519 | E93: 179324950 | H93: Ecotomografias abdominal | I93: ='1trimestre'!I93+'2ºtrimestre'!I93+'3º trimestre'!I93+'4º trimestre'!I93 -> 2942 | J93: ='1trimestre'!J93+'2ºtrimestre'!J93+'3º trimestre'!J93+'4º trimestre'!J93 -> 2879 | K93: ='1trimestre'!K93+'2ºtrimestre'!K93+'3º trimestre'!K93+'4º trimestre'!K93 -> 60602950 | N93: Ecotomografias abdominal | O93: ='1trimestre'!O93+'2ºtrimestre'!O93+'3º trimestre'!O93+'4º trimestre'!O93 -> 3441 | P93: ='1trimestre'!P93+'2ºtrimestre'!P93+'3º trimestre'!P93+'4º trimestre'!P93 -> 3412 | Q93: ='1trimestre'!Q93+'2ºtrimestre'!Q93+'3º trimestre'!Q93+'4º trimestre'!Q93 -> 71822600 | T93: Ecotomografias abdominal | U93: ='1trimestre'!U93+'2ºtrimestre'!U93+'3º trimestre'!U93+'4º trimestre'!U93 -> 1405 | V93: ='1trimestre'!V93+'2ºtrimestre'!V93+'3º trimestre'!V93+'4º trimestre'!V93 -> 1389 | W93: ='1trimestre'!W93+'2ºtrimestre'!W93+'3º trimestre'!W93+'4º trimestre'!W93 -> 29238450 | Z93: Ecotomografias abdominal | AA93: ='1trimestre'!AA93+'2ºtrimestre'!AA93+'3º trimestre'!AA93+'4º trimestre'!AA93 -> 715 | AB93: ='1trimestre'!AB93+'2ºtrimestre'!AB93+'3º trimestre'!AB93+'4º trimestre'!AB93 -> 709 | AC93: ='1trimestre'!AC93+'2ºtrimestre'!AC93+'3º trimestre'!AC93+'4º trimestre'!AC93 -> 14924450 | AF93: Ecotomografias abdominal | AG93: ='1trimestre'!AG93+'2ºtrimestre'!AG93+'3º trimestre'!AG93+'4º trimestre'!AG93 -> 0 | AH93: ='1trimestre'!AH93+'2ºtrimestre'!AH93+'3º trimestre'!AH93+'4º trimestre'!AH93 -> 0 | AI93: ='1trimestre'!AI93+'2ºtrimestre'!AI93+'3º trimestre'!AI93+'4º trimestre'!AI93 -> 0 | AL93: Ecotomografias abdominal | AM93: ='1trimestre'!AM93+'2ºtrimestre'!AM93+'3º trimestre'!AM93+'4º trimestre'!AM93 -> 0 | AN93: ='1trimestre'!AN93+'2ºtrimestre'!AN93+'3º trimestre'!AN93+'4º trimestre'!AN93 -> 0 | AO93: ='1trimestre'!AO93+'2ºtrimestre'!AO93+'3º trimestre'!AO93+'4º trimestre'!AO93 -> 0 | AR93: Ecotomografias abdominal | AS93: ='1trimestre'!AS93+'2ºtrimestre'!AS93+'3º trimestre'!AS93+'4º trimestre'!AS93 -> 0 | AT93: ='1trimestre'!AT93+'2ºtrimestre'!AT93+'3º trimestre'!AT93+'4º trimestre'!AT93 -> 0 | AU93: ='1trimestre'!AU93+'2ºtrimestre'!AU93+'3º trimestre'!AU93+'4º trimestre'!AU93 -> 0 | AX93: Ecotomografias abdominal | AY93: ='1trimestre'!AY93+'2ºtrimestre'!AY93+'3º trimestre'!AY93+'4º trimestre'!AY93 -> 116 | AZ93: ='1trimestre'!AZ93+'2ºtrimestre'!AZ93+'3º trimestre'!AZ93+'4º trimestre'!AZ93 -> 116 | BA93: ='1trimestre'!BA93+'2ºtrimestre'!BA93+'3º trimestre'!BA93+'4º trimestre'!BA93 -> 2441800 | BD93: Ecotomografias abdominal | BE93: ='1trimestre'!BE93+'2ºtrimestre'!BE93+'3º trimestre'!BE93+'4º trimestre'!BE93 -> 14 | BF93: ='1trimestre'!BF93+'2ºtrimestre'!BF93+'3º trimestre'!BF93+'4º trimestre'!BF93 -> 14 | BG93: ='1trimestre'!BG93+'2ºtrimestre'!BG93+'3º trimestre'!BG93+'4º trimestre'!BG93 -> 294700 | BJ93: Ecotomografias abdominal | BK93: ='1trimestre'!BK93+'2ºtrimestre'!BK93+'3º trimestre'!BK93+'4º trimestre'!BK93 -> 0 | BL93: ='1trimestre'!BL93+'2ºtrimestre'!BL93+'3º trimestre'!BL93+'4º trimestre'!BL93 -> 0 | BM93: ='1trimestre'!BM93+'2ºtrimestre'!BM93+'3º trimestre'!BM93+'4º trimestre'!BM93 -> 0 | BP93: Ecotomografias abdominal | BQ93: ='1trimestre'!BQ93+'2ºtrimestre'!BQ93+'3º trimestre'!BQ93+'4º trimestre'!BQ93 -> 0 | BR93: ='1trimestre'!BR93+'2ºtrimestre'!BR93+'3º trimestre'!BR93+'4º trimestre'!BR93 -> 0 | BS93: ='1trimestre'!BS93+'2ºtrimestre'!BS93+'3º trimestre'!BS93+'4º trimestre'!BS93 -> 0
A94: IV | B94: RESONANCIA MAGNÉTICA | C94: 0 | D94: 0 | E94: 0 | G94: IV | H94: RESONANCIA MAGNÉTICA | I94: ='1trimestre'!I94+'2ºtrimestre'!I94+'3º trimestre'!I94+'4º trimestre'!I94 -> 0 | J94: ='1trimestre'!J94+'2ºtrimestre'!J94+'3º trimestre'!J94+'4º trimestre'!J94 -> 0 | K94: ='1trimestre'!K94+'2ºtrimestre'!K94+'3º trimestre'!K94+'4º trimestre'!K94 -> 0 | M94: IV | N94: RESONANCIA MAGNÉTICA | O94: ='1trimestre'!O94+'2ºtrimestre'!O94+'3º trimestre'!O94+'4º trimestre'!O94 -> 0 | P94: ='1trimestre'!P94+'2ºtrimestre'!P94+'3º trimestre'!P94+'4º trimestre'!P94 -> 0 | Q94: ='1trimestre'!Q94+'2ºtrimestre'!Q94+'3º trimestre'!Q94+'4º trimestre'!Q94 -> 0 | S94: IV | T94: RESONANCIA MAGNÉTICA | U94: ='1trimestre'!U94+'2ºtrimestre'!U94+'3º trimestre'!U94+'4º trimestre'!U94 -> 0 | V94: ='1trimestre'!V94+'2ºtrimestre'!V94+'3º trimestre'!V94+'4º trimestre'!V94 -> 0 | W94: ='1trimestre'!W94+'2ºtrimestre'!W94+'3º trimestre'!W94+'4º trimestre'!W94 -> 0 | Y94: IV | Z94: RESONANCIA MAGNÉTICA | AA94: ='1trimestre'!AA94+'2ºtrimestre'!AA94+'3º trimestre'!AA94+'4º trimestre'!AA94 -> 0 | AB94: ='1trimestre'!AB94+'2ºtrimestre'!AB94+'3º trimestre'!AB94+'4º trimestre'!AB94 -> 0 | AC94: ='1trimestre'!AC94+'2ºtrimestre'!AC94+'3º trimestre'!AC94+'4º trimestre'!AC94 -> 0 | AE94: IV | AF94: RESONANCIA MAGNÉTICA | AG94: ='1trimestre'!AG94+'2ºtrimestre'!AG94+'3º trimestre'!AG94+'4º trimestre'!AG94 -> 0 | AH94: ='1trimestre'!AH94+'2ºtrimestre'!AH94+'3º trimestre'!AH94+'4º trimestre'!AH94 -> 0 | AI94: ='1trimestre'!AI94+'2ºtrimestre'!AI94+'3º trimestre'!AI94+'4º trimestre'!AI94 -> 0 | AK94: IV | AL94: RESONANCIA MAGNÉTICA | AM94: ='1trimestre'!AM94+'2ºtrimestre'!AM94+'3º trimestre'!AM94+'4º trimestre'!AM94 -> 0 | AN94: ='1trimestre'!AN94+'2ºtrimestre'!AN94+'3º trimestre'!AN94+'4º trimestre'!AN94 -> 0 | AO94: ='1trimestre'!AO94+'2ºtrimestre'!AO94+'3º trimestre'!AO94+'4º trimestre'!AO94 -> 0 | AQ94: IV | AR94: RESONANCIA MAGNÉTICA | AS94: ='1trimestre'!AS94+'2ºtrimestre'!AS94+'3º trimestre'!AS94+'4º trimestre'!AS94 -> 0 | AT94: ='1trimestre'!AT94+'2ºtrimestre'!AT94+'3º trimestre'!AT94+'4º trimestre'!AT94 -> 0 | AU94: ='1trimestre'!AU94+'2ºtrimestre'!AU94+'3º trimestre'!AU94+'4º trimestre'!AU94 -> 0 | AW94: IV | AX94: RESONANCIA MAGNÉTICA | AY94: ='1trimestre'!AY94+'2ºtrimestre'!AY94+'3º trimestre'!AY94+'4º trimestre'!AY94 -> 0 | AZ94: ='1trimestre'!AZ94+'2ºtrimestre'!AZ94+'3º trimestre'!AZ94+'4º trimestre'!AZ94 -> 0 | BA94: ='1trimestre'!BA94+'2ºtrimestre'!BA94+'3º trimestre'!BA94+'4º trimestre'!BA94 -> 0 | BC94: IV | BD94: RESONANCIA MAGNÉTICA | BE94: ='1trimestre'!BE94+'2ºtrimestre'!BE94+'3º trimestre'!BE94+'4º trimestre'!BE94 -> 0 | BF94: ='1trimestre'!BF94+'2ºtrimestre'!BF94+'3º trimestre'!BF94+'4º trimestre'!BF94 -> 0 | BG94: ='1trimestre'!BG94+'2ºtrimestre'!BG94+'3º trimestre'!BG94+'4º trimestre'!BG94 -> 0 | BI94: IV | BJ94: RESONANCIA MAGNÉTICA | BK94: ='1trimestre'!BK94+'2ºtrimestre'!BK94+'3º trimestre'!BK94+'4º trimestre'!BK94 -> 0 | BL94: ='1trimestre'!BL94+'2ºtrimestre'!BL94+'3º trimestre'!BL94+'4º trimestre'!BL94 -> 0 | BM94: ='1trimestre'!BM94+'2ºtrimestre'!BM94+'3º trimestre'!BM94+'4º trimestre'!BM94 -> 0 | BO94: IV | BP94: RESONANCIA MAGNÉTICA | BQ94: ='1trimestre'!BQ94+'2ºtrimestre'!BQ94+'3º trimestre'!BQ94+'4º trimestre'!BQ94 -> 0 | BR94: ='1trimestre'!BR94+'2ºtrimestre'!BR94+'3º trimestre'!BR94+'4º trimestre'!BR94 -> 0 | BS94: ='1trimestre'!BS94+'2ºtrimestre'!BS94+'3º trimestre'!BS94+'4º trimestre'!BS94 -> 0
B95: OTROS EXÁMENES DE IMÁGENES | C95: =SUM(I95+O95+U95+AA95+AG95+AM95+AS95+AY95+BE95+BK95+BQ95) -> 546 | H95: OTROS EXÁMENES DE IMÁGENES | I95: ='1trimestre'!I95+'2ºtrimestre'!I95+'3º trimestre'!I95+'4º trimestre'!I95 -> 0 | J95: =[2]B!$E$763 -> 0 | N95: OTROS EXÁMENES DE IMÁGENES | O95: ='1trimestre'!O95+'2ºtrimestre'!O95+'3º trimestre'!O95+'4º trimestre'!O95 -> 546 | P95: =[2]B!$E$763 -> 0 | T95: OTROS EXÁMENES DE IMÁGENES | U95: ='1trimestre'!U95+'2ºtrimestre'!U95+'3º trimestre'!U95+'4º trimestre'!U95 -> 0 | V95: =[2]B!$E$763 -> 0 | Z95: OTROS EXÁMENES DE IMÁGENES | AA95: ='1trimestre'!AA95+'2ºtrimestre'!AA95+'3º trimestre'!AA95+'4º trimestre'!AA95 -> 0 | AB95: =[2]B!$E$763 -> 0 | AF95: OTROS EXÁMENES DE IMÁGENES | AG95: ='1trimestre'!AG95+'2ºtrimestre'!AG95+'3º trimestre'!AG95+'4º trimestre'!AG95 -> 0 | AH95: =[2]B!$E$763 -> 0 | AL95: OTROS EXÁMENES DE IMÁGENES | AM95: ='1trimestre'!AM95+'2ºtrimestre'!AM95+'3º trimestre'!AM95+'4º trimestre'!AM95 -> 0 | AN95: =[2]B!$E$763 -> 0 | AR95: OTROS EXÁMENES DE IMÁGENES | AS95: ='1trimestre'!AS95+'2ºtrimestre'!AS95+'3º trimestre'!AS95+'4º trimestre'!AS95 -> 0 | AT95: =[2]B!$E$763 -> 0 | AX95: OTROS EXÁMENES DE IMÁGENES | AY95: ='1trimestre'!AY95+'2ºtrimestre'!AY95+'3º trimestre'!AY95+'4º trimestre'!AY95 -> 0 | AZ95: =[2]B!$E$763 -> 0 | BD95: OTROS EXÁMENES DE IMÁGENES | BE95: ='1trimestre'!BE95+'2ºtrimestre'!BE95+'3º trimestre'!BE95+'4º trimestre'!BE95 -> 0 | BF95: =[2]B!$E$763 -> 0 | BJ95: OTROS EXÁMENES DE IMÁGENES | BK95: ='1trimestre'!BK95+'2ºtrimestre'!BK95+'3º trimestre'!BK95+'4º trimestre'!BK95 -> 0 | BL95: =[2]B!$E$763 -> 0 | BP95: OTROS EXÁMENES DE IMÁGENES | BQ95: ='1trimestre'!BQ95+'2ºtrimestre'!BQ95+'3º trimestre'!BQ95+'4º trimestre'!BQ95 -> 0 | BR95: =[2]B!$E$763 -> 0
B96: TOTAL EXAMENES ANATOMIA PATOLOGICA | C96: =SUM(I96+O96+U96+AA96+AG96+AM96+AS96+AY96+BE96+BK96+BQ96) -> 77373 | D96: 77368 | E96: 727704800 | H96: TOTAL EXAMENES ANATOMIA PATOLOGICA | I96: ='1trimestre'!I96+'2ºtrimestre'!I96+'3º trimestre'!I96+'4º trimestre'!I96 -> 43420 | J96: ='1trimestre'!J96+'2ºtrimestre'!J96+'3º trimestre'!J96+'4º trimestre'!J96 -> 43420 | K96: ='1trimestre'!K96+'2ºtrimestre'!K96+'3º trimestre'!K96+'4º trimestre'!K96 -> 234850520 | N96: TOTAL EXAMENES ANATOMIA PATOLOGICA | O96: ='1trimestre'!O96+'2ºtrimestre'!O96+'3º trimestre'!O96+'4º trimestre'!O96 -> 26801 | P96: ='1trimestre'!P96+'2ºtrimestre'!P96+'3º trimestre'!P96+'4º trimestre'!P96 -> 26801 | Q96: ='1trimestre'!Q96+'2ºtrimestre'!Q96+'3º trimestre'!Q96+'4º trimestre'!Q96 -> 390846090 | T96: TOTAL EXAMENES ANATOMIA PATOLOGICA | U96: ='1trimestre'!U96+'2ºtrimestre'!U96+'3º trimestre'!U96+'4º trimestre'!U96 -> 7152 | V96: ='1trimestre'!V96+'2ºtrimestre'!V96+'3º trimestre'!V96+'4º trimestre'!V96 -> 7147 | W96: ='1trimestre'!W96+'2ºtrimestre'!W96+'3º trimestre'!W96+'4º trimestre'!W96 -> 102008190 | Z96: TOTAL EXAMENES ANATOMIA PATOLOGICA | AF96: TOTAL EXAMENES ANATOMIA PATOLOGICA | AG96: ='1trimestre'!AG96+'2ºtrimestre'!AG96+'3º trimestre'!AG96+'4º trimestre'!AG96 -> 0 | AH96: ='1trimestre'!AH96+'2ºtrimestre'!AH96+'3º trimestre'!AH96+'4º trimestre'!AH96 -> 0 | AI96: ='1trimestre'!AI96+'2ºtrimestre'!AI96+'3º trimestre'!AI96+'4º trimestre'!AI96 -> 0 | AL96: TOTAL EXAMENES ANATOMIA PATOLOGICA | AM96: ='1trimestre'!AM96+'2ºtrimestre'!AM96+'3º trimestre'!AM96+'4º trimestre'!AM96 -> 0 | AN96: ='1trimestre'!AN96+'2ºtrimestre'!AN96+'3º trimestre'!AN96+'4º trimestre'!AN96 -> 0 | AO96: ='1trimestre'!AO96+'2ºtrimestre'!AO96+'3º trimestre'!AO96+'4º trimestre'!AO96 -> 0 | AR96: TOTAL EXAMENES ANATOMIA PATOLOGICA | AX96: TOTAL EXAMENES ANATOMIA PATOLOGICA | BD96: TOTAL EXAMENES ANATOMIA PATOLOGICA | BJ96: TOTAL EXAMENES ANATOMIA PATOLOGICA | BP96: TOTAL EXAMENES ANATOMIA PATOLOGICA
A97: SECCION C: PROCEDIMIENTOS DE MEDICINA NUCLEAR , GINECOLOGÍA Y OBSTETRICIA, Y ORTOPEDIA | G97: SECCION C: PROCEDIMIENTOS DE MEDICINA NUCLEAR , GINECOLOGÍA Y OBSTETRICIA, Y ORTOPEDIA | M97: SECCION C: PROCEDIMIENTOS DE MEDICINA NUCLEAR , GINECOLOGÍA Y OBSTETRICIA, Y ORTOPEDIA | S97: SECCION C: PROCEDIMIENTOS DE MEDICINA NUCLEAR , GINECOLOGÍA Y OBSTETRICIA, Y ORTOPEDIA | Y97: SECCION C: PROCEDIMIENTOS DE MEDICINA NUCLEAR , GINECOLOGÍA Y OBSTETRICIA, Y ORTOPEDIA | AE97: SECCION C: PROCEDIMIENTOS DE MEDICINA NUCLEAR , GINECOLOGÍA Y OBSTETRICIA, Y ORTOPEDIA | AK97: SECCION C: PROCEDIMIENTOS DE MEDICINA NUCLEAR , GINECOLOGÍA Y OBSTETRICIA, Y ORTOPEDIA | AQ97: SECCION C: PROCEDIMIENTOS DE MEDICINA NUCLEAR , GINECOLOGÍA Y OBSTETRICIA, Y ORTOPEDIA | AW97: SECCION C: PROCEDIMIENTOS DE MEDICINA NUCLEAR , GINECOLOGÍA Y OBSTETRICIA, Y ORTOPEDIA | BC97: SECCION C: PROCEDIMIENTOS DE MEDICINA NUCLEAR , GINECOLOGÍA Y OBSTETRICIA, Y ORTOPEDIA | BI97: SECCION C: PROCEDIMIENTOS DE MEDICINA NUCLEAR , GINECOLOGÍA Y OBSTETRICIA, Y ORTOPEDIA | BO97: SECCION C: PROCEDIMIENTOS DE MEDICINA NUCLEAR , GINECOLOGÍA Y OBSTETRICIA, Y ORTOPEDIA
A98: CÓDIGOS | B98: IDENTIFICACION DE PRESTACIONES | C98: TOTAL PRODUCCIÓN | D98: TOTAL BENEFICIARIOS MAI | E98: PAGO POR PRESTACIONES ($) | G98: CÓDIGOS | H98: IDENTIFICACION DE PRESTACIONES | I98: TOTAL PRODUCCIÓN | J98: TOTAL BENEFICIARIOS MAI | K98: PAGO POR PRESTACIONES ($) | M98: CÓDIGOS | N98: IDENTIFICACION DE PRESTACIONES | O98: TOTAL PRODUCCIÓN | P98: TOTAL BENEFICIARIOS MAI | Q98: PAGO POR PRESTACIONES ($) | S98: CÓDIGOS | T98: IDENTIFICACION DE PRESTACIONES | U98: TOTAL PRODUCCIÓN | V98: TOTAL BENEFICIARIOS MAI | W98: PAGO POR PRESTACIONES ($) | Y98: CÓDIGOS | Z98: IDENTIFICACION DE PRESTACIONES | AA98: TOTAL PRODUCCIÓN | AB98: TOTAL BENEFICIARIOS MAI | AC98: PAGO POR PRESTACIONES ($) | AE98: CÓDIGOS | AF98: IDENTIFICACION DE PRESTACIONES | AG98: TOTAL PRODUCCIÓN | AH98: TOTAL BENEFICIARIOS MAI | AI98: PAGO POR PRESTACIONES ($) | AK98: CÓDIGOS | AL98: IDENTIFICACION DE PRESTACIONES | AM98: TOTAL PRODUCCIÓN | AN98: TOTAL BENEFICIARIOS MAI | AO98: PAGO POR PRESTACIONES ($) | AQ98: CÓDIGOS | AR98: IDENTIFICACION DE PRESTACIONES | AS98: TOTAL PRODUCCIÓN | AT98: TOTAL BENEFICIARIOS MAI | AU98: PAGO POR PRESTACIONES ($) | AW98: CÓDIGOS | AX98: IDENTIFICACION DE PRESTACIONES | AY98: TOTAL PRODUCCIÓN | AZ98: TOTAL BENEFICIARIOS MAI | BA98: PAGO POR PRESTACIONES ($) | BC98: CÓDIGOS | BD98: IDENTIFICACION DE PRESTACIONES | BE98: TOTAL PRODUCCIÓN | BF98: TOTAL BENEFICIARIOS MAI | BG98: PAGO POR PRESTACIONES ($) | BI98: CÓDIGOS | BJ98: IDENTIFICACION DE PRESTACIONES | BK98: TOTAL PRODUCCIÓN | BL98: TOTAL BENEFICIARIOS MAI | BM98: PAGO POR PRESTACIONES ($) | BO98: CÓDIGOS | BP98: IDENTIFICACION DE PRESTACIONES | BQ98: TOTAL PRODUCCIÓN | BR98: TOTAL BENEFICIARIOS MAI | BS98: PAGO POR PRESTACIONES ($)
A99: 05 | B99: PROCEDIMIENTOS DE MEDICINA NUCLEAR | C99: =SUM(I99+O99+U99+AA99+AG99+AM99+AS99+AY99+BE99+BK99+BQ99) -> 0 | D99: =SUM(J99+P99+V99+AB99+AH99+AN99+AT99+AZ99+BF99+BL99+BR99) -> 0 | E99: =SUM(K99+Q99+W99+AC99+AI99+AO99+AU99+BA99+BG99+BM99+BS99) -> 0 | G99: 05 | H99: PROCEDIMIENTOS DE MEDICINA NUCLEAR | I99: ='1trimestre'!I99+'2ºtrimestre'!I99+'3º trimestre'!I99+'4º trimestre'!I99 -> 0 | J99: ='1trimestre'!J99+'2ºtrimestre'!J99+'3º trimestre'!J99+'4º trimestre'!J99 -> 0 | K99: ='1trimestre'!K99+'2ºtrimestre'!K99+'3º trimestre'!K99+'4º trimestre'!K99 -> 0 | M99: 05 | N99: PROCEDIMIENTOS DE MEDICINA NUCLEAR | O99: ='1trimestre'!O99+'2ºtrimestre'!O99+'3º trimestre'!O99+'4º trimestre'!O99 -> 0 | P99: ='1trimestre'!P99+'2ºtrimestre'!P99+'3º trimestre'!P99+'4º trimestre'!P99 -> 0 | Q99: ='1trimestre'!Q99+'2ºtrimestre'!Q99+'3º trimestre'!Q99+'4º trimestre'!Q99 -> 0 | S99: 05 | T99: PROCEDIMIENTOS DE MEDICINA NUCLEAR | U99: ='1trimestre'!U99+'2ºtrimestre'!U99+'3º trimestre'!U99+'4º trimestre'!U99 -> 0 | V99: ='1trimestre'!V99+'2ºtrimestre'!V99+'3º trimestre'!V99+'4º trimestre'!V99 -> 0 | W99: ='1trimestre'!W99+'2ºtrimestre'!W99+'3º trimestre'!W99+'4º trimestre'!W99 -> 0 | Y99: 05 | Z99: PROCEDIMIENTOS DE MEDICINA NUCLEAR | AA99: ='1trimestre'!AA99+'2ºtrimestre'!AA99+'3º trimestre'!AA99+'4º trimestre'!AA99 -> 0 | AB99: ='1trimestre'!AB99+'2ºtrimestre'!AB99+'3º trimestre'!AB99+'4º trimestre'!AB99 -> 0 | AC99: ='1trimestre'!AC99+'2ºtrimestre'!AC99+'3º trimestre'!AC99+'4º trimestre'!AC99 -> 0 | AE99: 05 | AF99: PROCEDIMIENTOS DE MEDICINA NUCLEAR | AG99: ='1trimestre'!AG99+'2ºtrimestre'!AG99+'3º trimestre'!AG99+'4º trimestre'!AG99 -> 0 | AH99: ='1trimestre'!AH99+'2ºtrimestre'!AH99+'3º trimestre'!AH99+'4º trimestre'!AH99 -> 0 | AI99: ='1trimestre'!AI99+'2ºtrimestre'!AI99+'3º trimestre'!AI99+'4º trimestre'!AI99 -> 0 | AK99: 05 | AL99: PROCEDIMIENTOS DE MEDICINA NUCLEAR | AM99: ='1trimestre'!AM99+'2ºtrimestre'!AM99+'3º trimestre'!AM99+'4º trimestre'!AM99 -> 0 | AN99: ='1trimestre'!AN99+'2ºtrimestre'!AN99+'3º trimestre'!AN99+'4º trimestre'!AN99 -> 0 | AO99: ='1trimestre'!AO99+'2ºtrimestre'!AO99+'3º trimestre'!AO99+'4º trimestre'!AO99 -> 0 | AQ99: 05 | AR99: PROCEDIMIENTOS DE MEDICINA NUCLEAR | AS99: ='1trimestre'!AS99+'2ºtrimestre'!AS99+'3º trimestre'!AS99+'4º trimestre'!AS99 -> 0 | AT99: ='1trimestre'!AT99+'2ºtrimestre'!AT99+'3º trimestre'!AT99+'4º trimestre'!AT99 -> 0 | AU99: ='1trimestre'!AU99+'2ºtrimestre'!AU99+'3º trimestre'!AU99+'4º trimestre'!AU99 -> 0 | AW99: 05 | AX99: PROCEDIMIENTOS DE MEDICINA NUCLEAR | AY99: ='1trimestre'!AY99+'2ºtrimestre'!AY99+'3º trimestre'!AY99+'4º trimestre'!AY99 -> 0 | AZ99: ='1trimestre'!AZ99+'2ºtrimestre'!AZ99+'3º trimestre'!AZ99+'4º trimestre'!AZ99 -> 0 | BA99: ='1trimestre'!BA99+'2ºtrimestre'!BA99+'3º trimestre'!BA99+'4º trimestre'!BA99 -> 0 | BC99: 05 | BD99: PROCEDIMIENTOS DE MEDICINA NUCLEAR | BE99: ='1trimestre'!BE99+'2ºtrimestre'!BE99+'3º trimestre'!BE99+'4º trimestre'!BE99 -> 0 | BF99: ='1trimestre'!BF99+'2ºtrimestre'!BF99+'3º trimestre'!BF99+'4º trimestre'!BF99 -> 0 | BG99: ='1trimestre'!BG99+'2ºtrimestre'!BG99+'3º trimestre'!BG99+'4º trimestre'!BG99 -> 0 | BI99: 05 | BJ99: PROCEDIMIENTOS DE MEDICINA NUCLEAR | BK99: ='1trimestre'!BK99+'2ºtrimestre'!BK99+'3º trimestre'!BK99+'4º trimestre'!BK99 -> 0 | BL99: ='1trimestre'!BL99+'2ºtrimestre'!BL99+'3º trimestre'!BL99+'4º trimestre'!BL99 -> 0 | BM99: ='1trimestre'!BM99+'2ºtrimestre'!BM99+'3º trimestre'!BM99+'4º trimestre'!BM99 -> 0 | BO99: 05 | BP99: PROCEDIMIENTOS DE MEDICINA NUCLEAR | BQ99: ='1trimestre'!BQ99+'2ºtrimestre'!BQ99+'3º trimestre'!BQ99+'4º trimestre'!BQ99 -> 0 | BR99: ='1trimestre'!BR99+'2ºtrimestre'!BR99+'3º trimestre'!BR99+'4º trimestre'!BR99 -> 0 | BS99: ='1trimestre'!BS99+'2ºtrimestre'!BS99+'3º trimestre'!BS99+'4º trimestre'!BS99 -> 0
A100: 2001 | B100: PROCEDIMIENTOS DE GINECOLOGIA Y OBSTETRICIA | C100: 22132 | D100: 20958 | E100: 215829420 | G100: 2001 | H100: PROCEDIMIENTOS DE GINECOLOGIA Y OBSTETRICIA | I100: ='1trimestre'!I100+'2ºtrimestre'!I100+'3º trimestre'!I100+'4º trimestre'!I100 -> 6627 | J100: ='1trimestre'!J100+'2ºtrimestre'!J100+'3º trimestre'!J100+'4º trimestre'!J100 -> 6245 | K100: ='1trimestre'!K100+'2ºtrimestre'!K100+'3º trimestre'!K100+'4º trimestre'!K100 -> 59918000 | M100: 2001 | N100: PROCEDIMIENTOS DE GINECOLOGIA Y OBSTETRICIA | O100: ='1trimestre'!O100+'2ºtrimestre'!O100+'3º trimestre'!O100+'4º trimestre'!O100 -> 5711 | P100: ='1trimestre'!P100+'2ºtrimestre'!P100+'3º trimestre'!P100+'4º trimestre'!P100 -> 5534 | Q100: ='1trimestre'!Q100+'2ºtrimestre'!Q100+'3º trimestre'!Q100+'4º trimestre'!Q100 -> 62711430 | S100: 2001 | T100: PROCEDIMIENTOS DE GINECOLOGIA Y OBSTETRICIA | U100: ='1trimestre'!U100+'2ºtrimestre'!U100+'3º trimestre'!U100+'4º trimestre'!U100 -> 4778 | V100: ='1trimestre'!V100+'2ºtrimestre'!V100+'3º trimestre'!V100+'4º trimestre'!V100 -> 4630 | W100: ='1trimestre'!W100+'2ºtrimestre'!W100+'3º trimestre'!W100+'4º trimestre'!W100 -> 58299490 | Y100: 2001 | Z100: PROCEDIMIENTOS DE GINECOLOGIA Y OBSTETRICIA | AA100: ='1trimestre'!AA100+'2ºtrimestre'!AA100+'3º trimestre'!AA100+'4º trimestre'!AA100 -> 2175 | AB100: ='1trimestre'!AB100+'2ºtrimestre'!AB100+'3º trimestre'!AB100+'4º trimestre'!AB100 -> 2153 | AC100: ='1trimestre'!AC100+'2ºtrimestre'!AC100+'3º trimestre'!AC100+'4º trimestre'!AC100 -> 19568990 | AE100: 2001 | AF100: PROCEDIMIENTOS DE GINECOLOGIA Y OBSTETRICIA | AG100: ='1trimestre'!AG100+'2ºtrimestre'!AG100+'3º trimestre'!AG100+'4º trimestre'!AG100 -> 591 | AH100: ='1trimestre'!AH100+'2ºtrimestre'!AH100+'3º trimestre'!AH100+'4º trimestre'!AH100 -> 488 | AI100: ='1trimestre'!AI100+'2ºtrimestre'!AI100+'3º trimestre'!AI100+'4º trimestre'!AI100 -> 3488280 | AK100: 2001 | AL100: PROCEDIMIENTOS DE GINECOLOGIA Y OBSTETRICIA | AM100: ='1trimestre'!AM100+'2ºtrimestre'!AM100+'3º trimestre'!AM100+'4º trimestre'!AM100 -> 133 | AN100: ='1trimestre'!AN100+'2ºtrimestre'!AN100+'3º trimestre'!AN100+'4º trimestre'!AN100 -> 133 | AO100: ='1trimestre'!AO100+'2ºtrimestre'!AO100+'3º trimestre'!AO100+'4º trimestre'!AO100 -> 657230 | AQ100: 2001 | AR100: PROCEDIMIENTOS DE GINECOLOGIA Y OBSTETRICIA | AS100: ='1trimestre'!AS100+'2ºtrimestre'!AS100+'3º trimestre'!AS100+'4º trimestre'!AS100 -> 530 | AT100: ='1trimestre'!AT100+'2ºtrimestre'!AT100+'3º trimestre'!AT100+'4º trimestre'!AT100 -> 419 | AU100: ='1trimestre'!AU100+'2ºtrimestre'!AU100+'3º trimestre'!AU100+'4º trimestre'!AU100 -> 1773460 | AW100: 2001 | AX100: PROCEDIMIENTOS DE GINECOLOGIA Y OBSTETRICIA | AY100: ='1trimestre'!AY100+'2ºtrimestre'!AY100+'3º trimestre'!AY100+'4º trimestre'!AY100 -> 389 | AZ100: ='1trimestre'!AZ100+'2ºtrimestre'!AZ100+'3º trimestre'!AZ100+'4º trimestre'!AZ100 -> 380 | BA100: ='1trimestre'!BA100+'2ºtrimestre'!BA100+'3º trimestre'!BA100+'4º trimestre'!BA100 -> 1512400 | BC100: 2001 | BD100: PROCEDIMIENTOS DE GINECOLOGIA Y OBSTETRICIA | BE100: ='1trimestre'!BE100+'2ºtrimestre'!BE100+'3º trimestre'!BE100+'4º trimestre'!BE100 -> 1198 | BF100: ='1trimestre'!BF100+'2ºtrimestre'!BF100+'3º trimestre'!BF100+'4º trimestre'!BF100 -> 976 | BG100: ='1trimestre'!BG100+'2ºtrimestre'!BG100+'3º trimestre'!BG100+'4º trimestre'!BG100 -> 7900140 | BI100: 2001 | BJ100: PROCEDIMIENTOS DE GINECOLOGIA Y OBSTETRICIA | BK100: ='1trimestre'!BK100+'2ºtrimestre'!BK100+'3º trimestre'!BK100+'4º trimestre'!BK100 -> 0 | BL100: ='1trimestre'!BL100+'2ºtrimestre'!BL100+'3º trimestre'!BL100+'4º trimestre'!BL100 -> 0 | BM100: ='1trimestre'!BM100+'2ºtrimestre'!BM100+'3º trimestre'!BM100+'4º trimestre'!BM100 -> 0 | BO100: 2001 | BP100: PROCEDIMIENTOS DE GINECOLOGIA Y OBSTETRICIA | BQ100: ='1trimestre'!BQ100+'2ºtrimestre'!BQ100+'3º trimestre'!BQ100+'4º trimestre'!BQ100 -> 0 | BR100: ='1trimestre'!BR100+'2ºtrimestre'!BR100+'3º trimestre'!BR100+'4º trimestre'!BR100 -> 0 | BS100: ='1trimestre'!BS100+'2ºtrimestre'!BS100+'3º trimestre'!BS100+'4º trimestre'!BS100 -> 0
A101: 2107 | B101: PROCEDIMIENTOS DE ORTOPEDIA | C101: 2509 | D101: 2475 | E101: 189936030 | G101: 2107 | H101: PROCEDIMIENTOS DE ORTOPEDIA | I101: ='1trimestre'!I101+'2ºtrimestre'!I101+'3º trimestre'!I101+'4º trimestre'!I101 -> 0 | J101: ='1trimestre'!J101+'2ºtrimestre'!J101+'3º trimestre'!J101+'4º trimestre'!J101 -> 0 | K101: ='1trimestre'!K101+'2ºtrimestre'!K101+'3º trimestre'!K101+'4º trimestre'!K101 -> 0 | M101: 2107 | N101: PROCEDIMIENTOS DE ORTOPEDIA | O101: ='1trimestre'!O101+'2ºtrimestre'!O101+'3º trimestre'!O101+'4º trimestre'!O101 -> 151 | P101: ='1trimestre'!P101+'2ºtrimestre'!P101+'3º trimestre'!P101+'4º trimestre'!P101 -> 141 | Q101: ='1trimestre'!Q101+'2ºtrimestre'!Q101+'3º trimestre'!Q101+'4º trimestre'!Q101 -> 12922110 | S101: 2107 | T101: PROCEDIMIENTOS DE ORTOPEDIA | U101: ='1trimestre'!U101+'2ºtrimestre'!U101+'3º trimestre'!U101+'4º trimestre'!U101 -> 1249 | V101: ='1trimestre'!V101+'2ºtrimestre'!V101+'3º trimestre'!V101+'4º trimestre'!V101 -> 1225 | W101: ='1trimestre'!W101+'2ºtrimestre'!W101+'3º trimestre'!W101+'4º trimestre'!W101 -> 103592920 | Y101: 2107 | Z101: PROCEDIMIENTOS DE ORTOPEDIA | AA101: ='1trimestre'!AA101+'2ºtrimestre'!AA101+'3º trimestre'!AA101+'4º trimestre'!AA101 -> 2 | AB101: ='1trimestre'!AB101+'2ºtrimestre'!AB101+'3º trimestre'!AB101+'4º trimestre'!AB101 -> 2 | AC101: ='1trimestre'!AC101+'2ºtrimestre'!AC101+'3º trimestre'!AC101+'4º trimestre'!AC101 -> 190100 | AE101: 2107 | AF101: PROCEDIMIENTOS DE ORTOPEDIA | AG101: ='1trimestre'!AG101+'2ºtrimestre'!AG101+'3º trimestre'!AG101+'4º trimestre'!AG101 -> 369 | AH101: ='1trimestre'!AH101+'2ºtrimestre'!AH101+'3º trimestre'!AH101+'4º trimestre'!AH101 -> 369 | AI101: ='1trimestre'!AI101+'2ºtrimestre'!AI101+'3º trimestre'!AI101+'4º trimestre'!AI101 -> 23472590 | AK101: 2107 | AL101: PROCEDIMIENTOS DE ORTOPEDIA | AM101: ='1trimestre'!AM101+'2ºtrimestre'!AM101+'3º trimestre'!AM101+'4º trimestre'!AM101 -> 151 | AN101: ='1trimestre'!AN101+'2ºtrimestre'!AN101+'3º trimestre'!AN101+'4º trimestre'!AN101 -> 151 | AO101: ='1trimestre'!AO101+'2ºtrimestre'!AO101+'3º trimestre'!AO101+'4º trimestre'!AO101 -> 8567780 | AQ101: 2107 | AR101: PROCEDIMIENTOS DE ORTOPEDIA | AS101: ='1trimestre'!AS101+'2ºtrimestre'!AS101+'3º trimestre'!AS101+'4º trimestre'!AS101 -> 0 | AT101: ='1trimestre'!AT101+'2ºtrimestre'!AT101+'3º trimestre'!AT101+'4º trimestre'!AT101 -> 0 | AU101: ='1trimestre'!AU101+'2ºtrimestre'!AU101+'3º trimestre'!AU101+'4º trimestre'!AU101 -> 0 | AW101: 2107 | AX101: PROCEDIMIENTOS DE ORTOPEDIA | AY101: ='1trimestre'!AY101+'2ºtrimestre'!AY101+'3º trimestre'!AY101+'4º trimestre'!AY101 -> 162 | AZ101: ='1trimestre'!AZ101+'2ºtrimestre'!AZ101+'3º trimestre'!AZ101+'4º trimestre'!AZ101 -> 162 | BA101: ='1trimestre'!BA101+'2ºtrimestre'!BA101+'3º trimestre'!BA101+'4º trimestre'!BA101 -> 11246640 | BC101: 2107 | BD101: PROCEDIMIENTOS DE ORTOPEDIA | BE101: ='1trimestre'!BE101+'2ºtrimestre'!BE101+'3º trimestre'!BE101+'4º trimestre'!BE101 -> 425 | BF101: ='1trimestre'!BF101+'2ºtrimestre'!BF101+'3º trimestre'!BF101+'4º trimestre'!BF101 -> 425 | BG101: ='1trimestre'!BG101+'2ºtrimestre'!BG101+'3º trimestre'!BG101+'4º trimestre'!BG101 -> 29943890 | BI101: 2107 | BJ101: PROCEDIMIENTOS DE ORTOPEDIA | BK101: ='1trimestre'!BK101+'2ºtrimestre'!BK101+'3º trimestre'!BK101+'4º trimestre'!BK101 -> 0 | BL101: ='1trimestre'!BL101+'2ºtrimestre'!BL101+'3º trimestre'!BL101+'4º trimestre'!BL101 -> 0 | BM101: ='1trimestre'!BM101+'2ºtrimestre'!BM101+'3º trimestre'!BM101+'4º trimestre'!BM101 -> 0 | BO101: 2107 | BP101: PROCEDIMIENTOS DE ORTOPEDIA | BQ101: ='1trimestre'!BQ101+'2ºtrimestre'!BQ101+'3º trimestre'!BQ101+'4º trimestre'!BQ101 -> 0 | BR101: ='1trimestre'!BR101+'2ºtrimestre'!BR101+'3º trimestre'!BR101+'4º trimestre'!BR101 -> 0 | BS101: ='1trimestre'!BS101+'2ºtrimestre'!BS101+'3º trimestre'!BS101+'4º trimestre'!BS101 -> 0
B102: SUB-TOTAL FACTURACION SECCION C | C102: =SUM(C99:C101) -> 24641 | D102: =SUM(D99:D101) -> 23433 | E102: =SUM(E99:E101) -> 405765450 | H102: SUB-TOTAL FACTURACION SECCION C | I102: =SUM(I99:I101) -> 6627 | J102: =SUM(J99:J101) -> 6245 | K102: =SUM(K99:K101) -> 59918000 | N102: SUB-TOTAL FACTURACION SECCION C | O102: =SUM(O99:O101) -> 5862 | P102: =SUM(P99:P101) -> 5675 | Q102: =SUM(Q99:Q101) -> 75633540 | T102: SUB-TOTAL FACTURACION SECCION C | U102: =SUM(U99:U101) -> 6027 | V102: =SUM(V99:V101) -> 5855 | W102: =SUM(W99:W101) -> 161892410 | Z102: SUB-TOTAL FACTURACION SECCION C | AA102: =SUM(AA99:AA101) -> 2177 | AB102: =SUM(AB99:AB101) -> 2155 | AC102: =SUM(AC99:AC101) -> 19759090 | AF102: SUB-TOTAL FACTURACION SECCION C | AG102: =SUM(AG99:AG101) -> 960 | AH102: =SUM(AH99:AH101) -> 857 | AI102: =SUM(AI99:AI101) -> 26960870 | AL102: SUB-TOTAL FACTURACION SECCION C | AM102: =SUM(AM99:AM101) -> 284 | AN102: =SUM(AN99:AN101) -> 284 | AO102: =SUM(AO99:AO101) -> 9225010 | AR102: SUB-TOTAL FACTURACION SECCION C | AS102: =SUM(AS99:AS101) -> 530 | AT102: =SUM(AT99:AT101) -> 419 | AU102: =SUM(AU99:AU101) -> 1773460 | AX102: SUB-TOTAL FACTURACION SECCION C | AY102: =SUM(AY99:AY101) -> 551 | AZ102: =SUM(AZ99:AZ101) -> 542 | BA102: =SUM(BA99:BA101) -> 12759040 | BD102: SUB-TOTAL FACTURACION SECCION C | BE102: =SUM(BE99:BE101) -> 1623 | BF102: =SUM(BF99:BF101) -> 1401 | BG102: =SUM(BG99:BG101) -> 37844030 | BJ102: SUB-TOTAL FACTURACION SECCION C | BK102: =SUM(BK99:BK101) -> 0 | BL102: =SUM(BL99:BL101) -> 0 | BM102: =SUM(BM99:BM101) -> 0 | BP102: SUB-TOTAL FACTURACION SECCION C | BQ102: =SUM(BQ99:BQ101) -> 0 | BR102: =SUM(BR99:BR101) -> 0 | BS102: =SUM(BS99:BS101) -> 0
A103: SECCION D: INTERVENCIONES QUIRÚRGICAS | G103: SECCION D: INTERVENCIONES QUIRÚRGICAS | M103: SECCION D: INTERVENCIONES QUIRÚRGICAS | S103: SECCION D: INTERVENCIONES QUIRÚRGICAS | Y103: SECCION D: INTERVENCIONES QUIRÚRGICAS | AE103: SECCION D: INTERVENCIONES QUIRÚRGICAS | AK103: SECCION D: INTERVENCIONES QUIRÚRGICAS | AQ103: SECCION D: INTERVENCIONES QUIRÚRGICAS | AW103: SECCION D: INTERVENCIONES QUIRÚRGICAS | BC103: SECCION D: INTERVENCIONES QUIRÚRGICAS | BI103: SECCION D: INTERVENCIONES QUIRÚRGICAS | BO103: SECCION D: INTERVENCIONES QUIRÚRGICAS
A104: CODIGOS | B104: IDENTIFICACION DE PRESTACIONES | C104: TOTAL PRODUCCIÓN | D104: TOTAL BENEFICIARIOS MAI | E104: PAGO POR PRESTACIONES ($) | G104: CODIGOS | H104: IDENTIFICACION DE PRESTACIONES | I104: TOTAL PRODUCCIÓN | J104: TOTAL BENEFICIARIOS MAI | K104: PAGO POR PRESTACIONES ($) | M104: CODIGOS | N104: IDENTIFICACION DE PRESTACIONES | O104: TOTAL PRODUCCIÓN | P104: TOTAL BENEFICIARIOS MAI | Q104: PAGO POR PRESTACIONES ($) | S104: CODIGOS | T104: IDENTIFICACION DE PRESTACIONES | U104: TOTAL PRODUCCIÓN | V104: TOTAL BENEFICIARIOS MAI | W104: PAGO POR PRESTACIONES ($) | Y104: CODIGOS | Z104: IDENTIFICACION DE PRESTACIONES | AA104: TOTAL PRODUCCIÓN | AB104: TOTAL BENEFICIARIOS MAI | AC104: PAGO POR PRESTACIONES ($) | AE104: CODIGOS | AF104: IDENTIFICACION DE PRESTACIONES | AG104: TOTAL PRODUCCIÓN | AH104: TOTAL BENEFICIARIOS MAI | AI104: PAGO POR PRESTACIONES ($) | AK104: CODIGOS | AL104: IDENTIFICACION DE PRESTACIONES | AM104: TOTAL PRODUCCIÓN | AN104: TOTAL BENEFICIARIOS MAI | AO104: PAGO POR PRESTACIONES ($) | AQ104: CODIGOS | AR104: IDENTIFICACION DE PRESTACIONES | AS104: TOTAL PRODUCCIÓN | AT104: TOTAL BENEFICIARIOS MAI | AU104: PAGO POR PRESTACIONES ($) | AW104: CODIGOS | AX104: IDENTIFICACION DE PRESTACIONES | AY104: TOTAL PRODUCCIÓN | AZ104: TOTAL BENEFICIARIOS MAI | BA104: PAGO POR PRESTACIONES ($) | BC104: CODIGOS | BD104: IDENTIFICACION DE PRESTACIONES | BE104: TOTAL PRODUCCIÓN | BF104: TOTAL BENEFICIARIOS MAI | BG104: PAGO POR PRESTACIONES ($) | BI104: CODIGOS | BJ104: IDENTIFICACION DE PRESTACIONES | BK104: TOTAL PRODUCCIÓN | BL104: TOTAL BENEFICIARIOS MAI | BM104: PAGO POR PRESTACIONES ($) | BO104: CODIGOS | BP104: IDENTIFICACION DE PRESTACIONES | BQ104: TOTAL PRODUCCIÓN | BR104: TOTAL BENEFICIARIOS MAI | BS104: PAGO POR PRESTACIONES ($)
